Workbook

Sheet Sign Off
B2: Sign Off's
B4: Accounting
C6: Name | D6: Title | E6: Date
B7: Preparer | C7: Belen Villalba | D7: Temp Analyst | E7: 2019-12-13
B8: Reviewer | C8: William Adams | D8: Financial Analysis Manager | E8: 2020-01-14
B9: Approver | C9: N/A | D9: N/A | E9: N/A
B11: Audit Services
C13: Name | D13: Title | E13: Date
B14: Preparer
B16: Energy Delivery
C18: Name | D18: Title | E18: Date
B19: Final Reviewer

Sheet A - Contractor Summary
B2: Contractor Summary
B4: Test Plan: (A) Using the drop down list, select the vendor. (B) Ensure address agrees to invoice(s). (C) Enter the distance between vendor address to Plant City, FL. (D) Determine if vendor is part of the SEE (see tab A.1 for listing). (E) Determine if other agreements exist. (F) Using the drop down list, select the Incident Base that the vendor was initially assigned. (G) If the contractor includes multiple crews with different timelines, utilize the '+' symbol at the top of columns 'H' and 'K' (if necessary) to unhide the vendor summary. (H) Click the button to populate the second (and third, if necessary) set of tabs for documentation of those expenses. (I) Complete steps (A) through (F).
F14: G | I14: G | K14: G | M14: G
C15: Vendor #3 | F15: Vendor #3 | I15: Vendor #3 | K15: Vendor #3 | M15: Vendor #3
G17: H | J17: H
B19: Contractor/Company | C19: ASPLUNDH TREE EXPERT COMPANY | D19: A
B20: SAP Vendor# | C20: 50937
B21: Service Type | C21: Distribution
B23: Address | C23: 708 Blair Mill Rd | D23: B
B24: City | C24: Willow Grove
B25: State/Providence | C25: PA
B26: Zip | C26: 19090
B27: Country | C27: US
B29: Distance from FL (in miles) | C29: 345 | D29: C
B30: Travel Days (500 m/per day) | C30: 1
B32: Member of the SEE | D32: D
B33: Other Agreement/Contract (Y/N) | D33: E
B34: Incident Base | D34: F
B36: Date Secured | C36: 2018-10-19 | F36: 2018-10-19 | I36: 2018-10-19 | K36: 2018-10-19 | M36: 2018-10-19
B37: Start Travel | C37: Titusville, FL | F37: New Smyrna Beach, FL | I37: New Smyrna Beach, FL | K37: Pompano Beach, FL | M37: Pompano Beach, FL
B38: Date Arrived | C38: 2018-10-19 | F38: 2018-10-19 | I38: 2018-10-19 | K38: 2018-10-19 | M38: 2018-10-19
B39: Date Released | C39: 2018-11-01 | F39: 2018-11-01 | I39: 2018-11-01 | K39: 2018-11-01 | M39: 2018-11-01
B40: Time Released | C40: 06:00:00 | F40: 06:00:00 | I40: 06:00:00 | K40: 06:00:00 | M40: 06:00:00
B41: Released To | C41: home | F41: home | I41: home | K41: home | M41: home
B42: Arrived Home/Utility* | C42: 13:00:00 | F42: 12:00:00 | I42: 12:00:00 | K42: 22:00:00 | M42: 22:00:00
F47: C.1 - Rate Sheets (2) | I47: C.1 - Rate Sheets (3) | K47: C.1 - Rate Sheets (3) | M47: C.1 - Rate Sheets (3)
F48: C.2 - Timesheets - Labor (2) | I48: C.2 - Timesheets - Labor (3) | K48: C.2 - Timesheets - Labor (3) | M48: C.2 - Timesheets - Labor (3)
F49: C.4 - Timesheets - Equipmen (2) | I49: C.4 - Timesheets - Equipmen (3) | K49: C.4 - Timesheets - Equipmen (3) | M49: C.4 - Timesheets - Equipmen (3)
F50: D - Lodging (2) | I50: D - Lodging (3) | K50: D - Lodging (3) | M50: D - Lodging (3)
F51: E - Fuel (2) | I51: E - Fuel (3) | K51: E - Fuel (3) | M51: E - Fuel (3)
F52: F - Meals (2) | I52: F - Meals (3) | K52: F - Meals (3) | M52: F - Meals (3)
F53: G - Per Diem (2) | I53: G - Per Diem (3) | K53: G - Per Diem (3) | M53: G - Per Diem (3)
F54: H - Mileage (2) | I54: H - Mileage (3) | K54: H - Mileage (3) | M54: H - Mileage (3)
F55: I - Other (2) | I55: I - Other (3) | K55: I - Other (3) | M55: I - Other (3)
B59: *Estimates reasonable arrival time
B61: Tickmark Explanation:

Sheet A.1 SEE Members
A1: RMAG | B1: RESPONDING COMPANY | C1: COMPANY NAME
A2: SEE
A3: SEE
A4: SEE
A5: SEE
A6: SEE
A7: SEE
A8: SEE
A9: SEE
A10: SEE
A11: SEE
A12: SEE
A13: SEE
A14: SEE
A15: SEE
A16: SEE
A17: SEE
A18: SEE
A19: SEE
A24: SEE
A25: SEE
A26: SEE
A27: SEE
A28: SEE
A29: SEE
A31: SEE
A32: SEE
A33: SEE
A34: SEE
A35: SEE
A40: SEE
A41: SEE
A42: SEE
A43: SEE
A47: SEE
A55: SEE
A56: SEE
A57: SEE
A61: SEE
A64: SEE
A65: SEE

Sheet B - Summary Expenses
B2: Summary of Expenses
B4: Test Plan: (A) Calculate Total Amount Invoiced for each expense category. (B) Using SAP t-code FBL1N, list Vendor Invoices Paid. (C) Ensure there are no differences between the Total Expense Amount and the Total Paid Amount. (D) Ensure there are no difference between Total Invoiced Amount and Total Expense Amount. (E) If applicable, identify difference due to Foreign currency exchange rates.
C9: A
C10: Total Invoiced | D10: Total Calculated | E10: Allowable | F10: Reviewed - Allowed | G10: Reviewed - Not Allowable | H10: Not Allowable
B11: Labor Expense Total | C11: 423913.75 | D11: =+'C.2 - Timesheets - Labor'!CP179 -> 423913.75 | E11: ='C.2 - Timesheets - Labor'!CQ179 -> 423913.75 | F11: ='C.2 - Timesheets - Labor'!CT179 -> 0 | G11: ='C.2 - Timesheets - Labor'!CU179 -> 0 | H11: =D11-(E11+F11+G11) -> 0
B12: Equipment Expense Total | C12: 79286.22 | D12: =+'C.4 - Timesheets - Equipment'!Q88 -> 79286.22 | E12: ='C.4 - Timesheets - Equipment'!R88 -> 79286.22 | F12: ='C.4 - Timesheets - Equipment'!T88 -> 0 | G12: ='C.4 - Timesheets - Equipment'!U88 -> 0 | H12: =D12-(E12+F12+G12) -> 0
B13: Lodging Expense Total | E13: ='D - Lodging'!T93 -> 0 | F13: ='D - Lodging'!V93 -> 0 | G13: ='D - Lodging'!W93 -> 0 | H13: =D13-(E13+F13+G13) -> 0
B14: Fuel/Transport Expense Total | E14: ='E - Fuel'!Q34 -> 0 | F14: ='E - Fuel'!S34 -> 0 | G14: ='E - Fuel'!T34 -> 0 | H14: 0
B15: Meal Expense Total | E15: ='F - Meals'!R141 -> 0 | F15: ='F - Meals'!T141 -> 0 | G15: ='F - Meals'!U141 -> 0 | H15: 0
B16: Per Diem Expense Total | E16: ='G - Per Diem'!N36 -> 0 | F16: ='G - Per Diem'!P36 -> 0 | G16: ='G - Per Diem'!Q36 -> 0 | H16: 0
B17: Mileage Expense Total | C17: 31629.52 | D17: =+'H - Mileage'!L66 -> 31629.52 | E17: ='H - Mileage'!R66 -> 0 | F17: ='H - Mileage'!T66 -> 31629.52 | G17: ='H - Mileage'!U66 -> 0 | H17: 0
B18: Other Expense | E18: ='I - Other'!R16 -> 0 | F18: ='I - Other'!T16 -> 0 | G18: ='I - Other'!U16 -> 0 | H18: =D18-(E18+F18+G18) -> 0
B20: Total Expense per tabs | C20: =SUM(C11:C18) -> 534829.49 | D20: =SUM(D11:D18) -> 534829.49 | E20: =SUM(E11:E18) -> 503199.97 | F20: =SUM(F11:F18) -> 31629.52 | G20: =SUM(G11:G18) -> 0 | H20: 0
B21: Difference | C21: =IF(D21=0,"","1") ->  | D21: =C20-D20 -> 0 | E21: D
B23: Total Expense | D23: =+D20 -> 534829.49 | E23: (from Total SAP Summary)
B24: Total Paid | D24: =-D60 -> -534829.49 | E24: (from FBL1N in SAP)
B25: Difference | C25: =IF(D25=0,"",SUM(C21,1)) ->  | D25: =+D23+D24 -> 0 | E25: C
B27: Exchange Rate
B28: Fx Adjusted to USD
B29: Difference | C29: =IF(D29=0,"","3") ->  | E29: E
B31: B
B33: Document No | C33: Doc Date | D33: Amount | E33: Reference
B34: 81N95018 | C34: 2018-11-09 | D34: 15637.83 | E34: 678291
B35: 81N95118 | C35: 2018-11-09 | D35: 2240.18 | E35: 678292
B36: 81N95218 | C36: 2018-11-09 | D36: 2126.69 | E36: 678293
B37: 81N95318 | C37: 2018-11-09 | D37: 20327.64 | E37: 678294
B38: 81P63318 | C38: 2018-11-09 | D38: 2646.82 | E38: 678289
B39: 81P63418 | C39: 2018-11-09 | D39: 42377.49 | E39: 678290
B40: 82G04418 | C40: 2018-11-09 | D40: 69447.12 | E40: 678295
B41: 82G04518 | C41: 2018-11-09 | D41: 7831.36 | E41: 678296
B42: 82G04618 | C42: 2018-11-09 | D42: 55740.12 | E42: 678297
B43: 82G04718 | C43: 2018-11-09 | D43: 7831.36 | E43: 678298
B44: 82G04818 | C44: 2018-11-09 | D44: 123252.88 | E44: 678299
B45: 82O61918 | C45: 2018-11-09 | D45: 93398.6 | E45: 678301
B46: 82O62018 | C46: 2018-11-09 | D46: 46639.77 | E46: 678302
B47: 82O62118 | C47: 2018-11-09 | D47: 5159.26 | E47: 678303
B48: 82R76918 | C48: 2018-11-09 | D48: 5046.93 | E48: 678304
B49: 82R77018 | C49: 2018-11-09 | D49: 35125.44 | E49: 678300
D60: =SUM(D34:D59) -> 534829.49
B62: Tickmark Explanation:
B63: =IFERROR(C21,"") -> 
B65: =IFERROR(C25,"") -> 

Sheet C.1 - Rate Sheets
B2: Labor Charges - Rate Sheet
B4: Test Plan: (A) Using the vendor rate sheet, ensure that a rate was provided for all Positions and Equipment types.
B6: Labor Types:
B7: ST | C7: Straight Time
B8: OT | C8: Over Time
B9: DT | C9: Double Time
B10: MOB/DMOB | C10: Mobilization/Demobilization Time
B13: Labor per Man Hour | H13: Labor per Equipment Hour
B14: A | H14: A
B15: POSITION | C15: ST | D15: OT | E15: DT | F15: MOB/DMOB | H15: Type | I15: $/HOUR
B16: Foreperson | C16: 39.43 | D16: 53.62 | H16: Crew Cab 4D Pickup | I16: 16.08
B17: General Foreman | C17: 45.03 | D17: 61.99 | H17: Pickup Truck | I17: 12.1
B18: Trimmer A | C18: 29.1 | D18: 39.68 | H18: Truck, 14TD Chipper | I18: 12.03
B19: Trimmer B | C19: 26.9 | D19: 36.53 | H19: Truck, 14Yd Dump, 55 Ft | I19: 18.86
B20: Trimmer C | C20: 25.62 | D20: 34.65 | H20: Truck, 14Yd Dump, 70 Ft | I20: 29
H21: Truck, Pickup AWD | I21: 13.99
H22: Pickup Mileage | I22: 0.97
H23: Split Dump Mileage | I23: 1.61
H24: Lift Mileage | I24: 1.98
B54: Tickmark Explanation:
B55: 1

Sheet C.2 - Timesheets - Labor
B2: Labor Charges - Time Card
B4: Test Plan: | C4: Obtain the time cards. (A) Using the Asset by Company tab (C.3), populate the crew members names and positions (if provided). Find additional information regarding individual crew member from related invoice. (B) Enter hours worked from time card(s). (C) Confirm that the dates per the time cards fall between dates provided per 'A - Contractor Summary' tab. (D) Confirm the labor type charged agrees to the rate sheet. (E) Identify any labor charges to be reviewed (manually enter amounts based on reasonability of time period labor was charged, discrepancies between timecards and invoice, etc. (F) For charges which required further review, document review (include why it was determined to be allowed/disallowed via a tickmark).
B10: Rx | C10: Recalculated.
B11: a | C11: Provided from tab 'C.1 - Rate Sheets'.
B12: b | C12: Check figure should equal $0. Cell will appear yellow if discrepancies are noted.
C14: A | H14: Rx | J14: C | K14: a | CG14: Rx | CL14: Rx | CQ14: Rx | CS14: E | CT14: F
B15: # | C15: Name | D15: Position | E15: Company | F15: Crew# | G15: Invoice# | H15: Start Date | I15: End Date | J15: Dates Worked Reasonable? | K15: Rates | O15: 2018-10-19 | T15: 2018-10-20 | Y15: 2018-10-21 | AD15: 2018-10-22 | AI15: 2018-10-23 | AN15: 2018-10-24 | AS15: 2018-10-25 | AX15: 2018-10-26 | BC15: 2018-10-27 | BH15: 2018-10-28 | BM15: 2018-10-29 | BR15: 2018-10-30 | BW15: 2018-10-31 | CB15: 2018-11-01 | CG15: Total Labor Hours | CL15: Total Labor $ | CQ15: Allowable Charges | CR15: Labor Type Appropriate? | CS15: To Be Reviewed | CT15: Reviewed - Allowable Charge | CU15: Reviewed - Unallowable Charge | CV15: Tickmarks
CG16: Total ST | CH16: OT | CI16: DT | CJ16: MOB/DMOB | CK16: Total Hours | CL16: Total ST $ | CM16: Total OT $ | CN16: Total DT $ | CO16: Total MOB/DMOB $ | CP16: Total Labor $
K18: ST | L18: OT | M18: DT | N18: MOB/DMOB | O18: ST | P18: OT | Q18: DT | R18: MOB/DMOB | S18: Total | T18: ST | U18: OT | V18: DT | W18: MOB/DMOB | X18: Total | Y18: ST | Z18: OT | AA18: DT | AB18: MOB/DMOB | AC18: Total | AD18: ST | AE18: OT | AF18: DT | AG18: MOB/DMOB | AH18: Total | AI18: ST | AJ18: OT | AK18: DT | AL18: MOB/DMOB | AM18: Total | AN18: ST | AO18: OT | AP18: DT | AQ18: MOB/DMOB | AR18: Total | AS18: ST | AT18: OT | AU18: DT | AV18: MOB/DMOB | AW18: Total | AX18: ST | AY18: OT | AZ18: DT | BA18: MOB/DMOB | BB18: Total | BC18: ST | BD18: OT | BE18: DT | BF18: MOB/DMOB | BG18: Total | BH18: ST | BI18: OT | BJ18: DT | BK18: MOB/DMOB | BL18: Total | BM18: ST | BN18: OT | BO18: DT | BP18: MOB/DMOB | BQ18: Total | BR18: ST | BS18: OT | BT18: DT | BU18: MOB/DMOB | BV18: Total | BW18: ST | BX18: OT | BY18: DT | BZ18: MOB/DMOB | CA18: Total | CB18: ST | CC18: OT | CD18: DT | CE18: MOB/DMOB | CF18: Total
B19: 1 | C19: Angelo Perez | D19: Foreperson | E19: Vendor No 3 | F19: 50937 | G19: 81N95018 | H19: 2018-10-19 | I19: 2018-10-20 | J19: =IF(AND(H19>='A - Contractor Summary'!$C$36,I19<='A - Contractor Summary'!$C$42),"Yes","No") -> No | K19: =VLOOKUP($D19,'C.1 - Rate Sheets'!$B$15:$F$25,2,FALSE) -> 39.43 | L19: =VLOOKUP($D19,'C.1 - Rate Sheets'!$B$15:$F$25,3,FALSE) -> 53.62 | M19: =VLOOKUP($D19,'C.1 - Rate Sheets'!$B$15:$F$25,4,FALSE) -> 0 | N19: =VLOOKUP($D19,'C.1 - Rate Sheets'!$B$15:$F$25,5,FALSE) -> 0 | P19: 10 | U19: 16 | CG19: =O19+T19+Y19+AD19+AI19+AN19+AS19+AX19+BC19+BH19+BM19+BR19+BW19+CB19 -> 0 | CH19: =P19+U19+Z19+AE19+AJ19+AO19+AT19+AY19+BD19+BI19+BN19+BS19+BX19+CC19 -> 26 | CI19: 0 | CJ19: 0 | CK19: =SUM(CG19:CJ19) -> 26 | CL19: =CG19*K19 -> 0 | CM19: =CH19*L19-0.01 -> 1394.11 | CN19: =CI19*M19 -> 0 | CO19: =CJ19*N19 -> 0 | CP19: =SUM(CL19:CO19) -> 1394.11 | CQ19: =CP19-CS19 -> 1394.11 | CR19: Yes | CS19: 0 | CT19: 0 | CU19: 0
B20: 2 | C20: Gabriel Tovar | D20: Trimmer B | E20: Vendor No 3 | F20: 50937 | G20: 81N95018 | H20: 2018-10-19 | I20: 2018-10-20 | J20: =IF(AND(H20>='A - Contractor Summary'!$C$36,I20<='A - Contractor Summary'!$C$42),"Yes","No") -> No | K20: =VLOOKUP($D20,'C.1 - Rate Sheets'!$B$15:$F$25,2,FALSE) -> 26.9 | L20: =VLOOKUP($D20,'C.1 - Rate Sheets'!$B$15:$F$25,3,FALSE) -> 36.53 | M20: =VLOOKUP($D20,'C.1 - Rate Sheets'!$B$15:$F$25,4,FALSE) -> 0 | N20: =VLOOKUP($D20,'C.1 - Rate Sheets'!$B$15:$F$25,5,FALSE) -> 0 | P20: 10 | U20: 16 | CG20: =O20+T20+Y20+AD20+AI20+AN20+AS20+AX20+BC20+BH20+BM20+BR20+BW20+CB20 -> 0 | CH20: =P20+U20+Z20+AE20+AJ20+AO20+AT20+AY20+BD20+BI20+BN20+BS20+BX20+CC20 -> 26 | CI20: =Q20+V20+AA20+AF20+AK20+AP20+AU20+AZ20+BE20+BJ20+BO20+BT20+BY20+CD20 -> 0 | CJ20: =R20+W20+AB20+AG20+AL20+AQ20+AV20+BA20+BF20+BK20+BP20+BU20+BZ20+CE20 -> 0 | CK20: =SUM(CG20:CJ20) -> 26 | CL20: =CG20*K20 -> 0 | CM20: =CH20*L20 -> 949.78 | CN20: =CI20*M20 -> 0 | CO20: =CJ20*N20 -> 0 | CP20: =SUM(CL20:CO20) -> 949.78 | CQ20: =CP20-CS20 -> 949.78 | CR20: Yes | CS20: 0 | CT20: 0 | CU20: 0
B21: 3 | C21: Jaison Cruz | D21: Trimmer A | E21: Vendor No 3 | F21: 50937 | G21: 81N95018 | H21: 2018-10-19 | I21: 2018-10-20 | J21: =IF(AND(H21>='A - Contractor Summary'!$C$36,I21<='A - Contractor Summary'!$C$42),"Yes","No") -> No | K21: =VLOOKUP($D21,'C.1 - Rate Sheets'!$B$15:$F$25,2,FALSE) -> 29.1 | L21: =VLOOKUP($D21,'C.1 - Rate Sheets'!$B$15:$F$25,3,FALSE) -> 39.68 | M21: =VLOOKUP($D21,'C.1 - Rate Sheets'!$B$15:$F$25,4,FALSE) -> 0 | N21: =VLOOKUP($D21,'C.1 - Rate Sheets'!$B$15:$F$25,5,FALSE) -> 0 | P21: 10 | U21: 16 | CG21: =O21+T21+Y21+AD21+AI21+AN21+AS21+AX21+BC21+BH21+BM21+BR21+BW21+CB21 -> 0 | CH21: =P21+U21+Z21+AE21+AJ21+AO21+AT21+AY21+BD21+BI21+BN21+BS21+BX21+CC21 -> 26 | CI21: =Q21+V21+AA21+AF21+AK21+AP21+AU21+AZ21+BE21+BJ21+BO21+BT21+BY21+CD21 -> 0 | CJ21: =R21+W21+AB21+AG21+AL21+AQ21+AV21+BA21+BF21+BK21+BP21+BU21+BZ21+CE21 -> 0 | CK21: =SUM(CG21:CJ21) -> 26 | CL21: =CG21*K21 -> 0 | CM21: =CH21*L21 -> 1031.68 | CN21: =CI21*M21 -> 0 | CO21: =CJ21*N21 -> 0 | CP21: =SUM(CL21:CO21) -> 1031.68 | CQ21: =CP21-CS21 -> 1031.68 | CR21: Yes | CS21: 0 | CT21: 0 | CU21: 0
B22: 4 | C22: Dachel Yasmany | D22: Foreperson | E22: Vendor No 3 | F22: 50937 | G22: 81N95018 | H22: 2018-10-19 | I22: 2018-10-20 | J22: =IF(AND(H22>='A - Contractor Summary'!$C$36,I22<='A - Contractor Summary'!$C$42),"Yes","No") -> No | K22: =VLOOKUP($D22,'C.1 - Rate Sheets'!$B$15:$F$25,2,FALSE) -> 39.43 | L22: =VLOOKUP($D22,'C.1 - Rate Sheets'!$B$15:$F$25,3,FALSE) -> 53.62 | M22: =VLOOKUP($D22,'C.1 - Rate Sheets'!$B$15:$F$25,4,FALSE) -> 0 | N22: =VLOOKUP($D22,'C.1 - Rate Sheets'!$B$15:$F$25,5,FALSE) -> 0 | P22: 10 | U22: 16 | CG22: 0 | CH22: 26 | CI22: 0 | CJ22: 0 | CK22: 26 | CL22: 0 | CM22: 1394.12 | CN22: 0 | CO22: 0 | CP22: 1394.12 | CQ22: 1394.12 | CR22: Yes | CS22: 0 | CT22: 0 | CU22: 0
B23: 5 | C23: Oneiber Mejia | D23: Trimmer A | E23: Vendor No 3 | F23: 50937 | G23: 81N95018 | H23: 2018-10-19 | I23: 2018-10-20 | J23: =IF(AND(H23>='A - Contractor Summary'!$C$36,I23<='A - Contractor Summary'!$C$42),"Yes","No") -> No | K23: =VLOOKUP($D23,'C.1 - Rate Sheets'!$B$15:$F$25,2,FALSE) -> 29.1 | L23: =VLOOKUP($D23,'C.1 - Rate Sheets'!$B$15:$F$25,3,FALSE) -> 39.68 | M23: =VLOOKUP($D23,'C.1 - Rate Sheets'!$B$15:$F$25,4,FALSE) -> 0 | N23: =VLOOKUP($D23,'C.1 - Rate Sheets'!$B$15:$F$25,5,FALSE) -> 0 | P23: 10 | U23: 16 | CG23: 0 | CH23: 26 | CI23: 0 | CJ23: 0 | CK23: 26 | CL23: 0 | CM23: 1031.68 | CN23: 0 | CO23: 0 | CP23: 1031.68 | CQ23: 1031.68 | CR23: Yes | CS23: 0 | CT23: 0 | CU23: 0
B24: 6 | C24: Angel Guevara | D24: Trimmer B | E24: Vendor No 3 | F24: 50937 | G24: 81N95018 | H24: 2018-10-19 | I24: 2018-10-20 | J24: =IF(AND(H24>='A - Contractor Summary'!$C$36,I24<='A - Contractor Summary'!$C$42),"Yes","No") -> No | K24: =VLOOKUP($D24,'C.1 - Rate Sheets'!$B$15:$F$25,2,FALSE) -> 26.9 | L24: =VLOOKUP($D24,'C.1 - Rate Sheets'!$B$15:$F$25,3,FALSE) -> 36.53 | M24: =VLOOKUP($D24,'C.1 - Rate Sheets'!$B$15:$F$25,4,FALSE) -> 0 | N24: =VLOOKUP($D24,'C.1 - Rate Sheets'!$B$15:$F$25,5,FALSE) -> 0 | P24: 10 | U24: 16 | CG24: 0 | CH24: 26 | CI24: 0 | CJ24: 0 | CK24: 26 | CL24: 0 | CM24: 949.78 | CN24: 0 | CO24: 0 | CP24: 949.78 | CQ24: 949.78 | CR24: Yes | CS24: 0 | CT24: 0 | CU24: 0
B25: 7 | C25: Orlando Garcia | D25: Trimmer A | E25: Vendor No 3 | F25: 50937 | G25: 81N95018 | H25: 2018-10-19 | I25: 2018-10-20 | J25: =IF(AND(H25>='A - Contractor Summary'!$C$36,I25<='A - Contractor Summary'!$C$42),"Yes","No") -> No | K25: =VLOOKUP($D25,'C.1 - Rate Sheets'!$B$15:$F$25,2,FALSE) -> 29.1 | L25: =VLOOKUP($D25,'C.1 - Rate Sheets'!$B$15:$F$25,3,FALSE) -> 39.68 | M25: =VLOOKUP($D25,'C.1 - Rate Sheets'!$B$15:$F$25,4,FALSE) -> 0 | N25: =VLOOKUP($D25,'C.1 - Rate Sheets'!$B$15:$F$25,5,FALSE) -> 0 | P25: 10 | U25: 16 | CG25: 0 | CH25: 26 | CI25: 0 | CJ25: 0 | CK25: 26 | CL25: 0 | CM25: 1031.68 | CN25: 0 | CO25: 0 | CP25: 1031.68 | CQ25: 1031.68 | CR25: Yes | CS25: 0 | CT25: 0 | CU25: 0
B26: 8 | C26: Victor Cruz | D26: Foreperson | E26: Vendor No 3 | F26: 50937 | G26: 81N95018 | H26: 2018-10-19 | I26: 2018-10-20 | J26: =IF(AND(H26>='A - Contractor Summary'!$C$36,I26<='A - Contractor Summary'!$C$42),"Yes","No") -> No | K26: =VLOOKUP($D26,'C.1 - Rate Sheets'!$B$15:$F$25,2,FALSE) -> 39.43 | L26: =VLOOKUP($D26,'C.1 - Rate Sheets'!$B$15:$F$25,3,FALSE) -> 53.62 | M26: =VLOOKUP($D26,'C.1 - Rate Sheets'!$B$15:$F$25,4,FALSE) -> 0 | N26: =VLOOKUP($D26,'C.1 - Rate Sheets'!$B$15:$F$25,5,FALSE) -> 0 | P26: 10 | U26: 16 | CG26: 0 | CH26: 26 | CI26: 0 | CJ26: 0 | CK26: 26 | CL26: 0 | CM26: 1394.12 | CN26: 0 | CO26: 0 | CP26: 1394.12 | CQ26: 1394.12 | CR26: Yes | CS26: 0 | CT26: 0 | CU26: 0
B27: 10 | C27: Manuel Ortiz | D27: Trimmer A | E27: Vendor No 3 | F27: 50937 | G27: 81N95018 | H27: 2018-10-19 | I27: 2018-10-20 | J27: =IF(AND(H27>='A - Contractor Summary'!$C$36,I27<='A - Contractor Summary'!$C$42),"Yes","No") -> No | K27: =VLOOKUP($D27,'C.1 - Rate Sheets'!$B$15:$F$25,2,FALSE) -> 29.1 | L27: =VLOOKUP($D27,'C.1 - Rate Sheets'!$B$15:$F$25,3,FALSE) -> 39.68 | M27: =VLOOKUP($D27,'C.1 - Rate Sheets'!$B$15:$F$25,4,FALSE) -> 0 | N27: =VLOOKUP($D27,'C.1 - Rate Sheets'!$B$15:$F$25,5,FALSE) -> 0 | O27: 4 | P27: 6 | U27: 16 | CG27: 4 | CH27: 22 | CI27: 0 | CJ27: 0 | CK27: 26 | CL27: 116.4 | CM27: 872.96 | CN27: 0 | CO27: 0 | CP27: 989.36 | CQ27: 989.36 | CR27: Yes | CS27: 0 | CT27: 0 | CU27: 0
B28: 11 | C28: Tonny Rivas | D28: Foreperson | E28: Vendor No 3 | F28: 50937 | G28: 81N95018 | H28: 2018-10-19 | I28: 2018-10-20 | J28: =IF(AND(H28>='A - Contractor Summary'!$C$36,I28<='A - Contractor Summary'!$C$42),"Yes","No") -> No | K28: =VLOOKUP($D28,'C.1 - Rate Sheets'!$B$15:$F$25,2,FALSE) -> 39.43 | L28: =VLOOKUP($D28,'C.1 - Rate Sheets'!$B$15:$F$25,3,FALSE) -> 53.62 | M28: =VLOOKUP($D28,'C.1 - Rate Sheets'!$B$15:$F$25,4,FALSE) -> 0 | N28: =VLOOKUP($D28,'C.1 - Rate Sheets'!$B$15:$F$25,5,FALSE) -> 0 | P28: 10 | U28: 16 | CG28: 0 | CH28: 26 | CI28: 0 | CJ28: 0 | CK28: 26 | CL28: 0 | CM28: 1394.12 | CN28: 0 | CO28: 0 | CP28: 1394.12 | CQ28: 1394.12 | CR28: Yes | CS28: 0 | CT28: 0 | CU28: 0
B29: 12 | C29: Carlos A Ruiz B | D29: Trimmer A | E29: Vendor No 3 | F29: 50937 | G29: 81N95018 | H29: 2018-10-19 | I29: 2018-10-20 | J29: =IF(AND(H29>='A - Contractor Summary'!$C$36,I29<='A - Contractor Summary'!$C$42),"Yes","No") -> No | K29: =VLOOKUP($D29,'C.1 - Rate Sheets'!$B$15:$F$25,2,FALSE) -> 29.1 | L29: =VLOOKUP($D29,'C.1 - Rate Sheets'!$B$15:$F$25,3,FALSE) -> 39.68 | M29: =VLOOKUP($D29,'C.1 - Rate Sheets'!$B$15:$F$25,4,FALSE) -> 0 | N29: =VLOOKUP($D29,'C.1 - Rate Sheets'!$B$15:$F$25,5,FALSE) -> 0 | P29: 10 | U29: 16 | CG29: 0 | CH29: 26 | CI29: 0 | CJ29: 0 | CK29: 26 | CL29: 0 | CM29: 1031.68 | CN29: 0 | CO29: 0 | CP29: 1031.68 | CQ29: 1031.68 | CR29: Yes | CS29: 0 | CT29: 0 | CU29: 0
CG30: 0 | CH30: 0 | CI30: 0 | CJ30: 0 | CK30: 0 | CL30: 0 | CM30: 0 | CN30: 0 | CO30: 0 | CP30: 0 | CQ30: 0
B31: 13 | C31: Carlos R Garcia | D31: General Foreman | E31: Vendor No 3 | F31: 50937 | G31: 81N95118 | H31: 2018-10-19 | I31: 2018-10-20 | J31: =IF(AND(H31>='A - Contractor Summary'!$C$36,I31<='A - Contractor Summary'!$C$42),"Yes","No") -> No | K31: =VLOOKUP($D31,'C.1 - Rate Sheets'!$B$15:$F$25,2,FALSE) -> 45.03 | L31: =VLOOKUP($D31,'C.1 - Rate Sheets'!$B$15:$F$25,3,FALSE) -> 61.99 | M31: =VLOOKUP($D31,'C.1 - Rate Sheets'!$B$15:$F$25,4,FALSE) -> 0 | N31: =VLOOKUP($D31,'C.1 - Rate Sheets'!$B$15:$F$25,5,FALSE) -> 0 | P31: 10 | U31: 16 | CG31: 0 | CH31: 26 | CI31: 0 | CJ31: 0 | CK31: 26 | CL31: 0 | CM31: 1611.74 | CN31: 0 | CO31: 0 | CP31: 1611.74 | CQ31: 1611.74 | CR31: Yes | CS31: 0 | CT31: 0 | CU31: 0
CG32: 0 | CH32: 0 | CI32: 0 | CJ32: 0 | CK32: 0 | CL32: 0 | CM32: 0 | CN32: 0 | CO32: 0 | CP32: 0 | CQ32: 0
B33: 14 | C33: Dave Busch | D33: General Foreman | E33: Vendor No 3 | F33: 50399 | G33: 81N95218 | H33: 2018-10-19 | I33: 2018-10-20 | J33: =IF(AND(H33>='A - Contractor Summary'!$C$36,I33<='A - Contractor Summary'!$C$42),"Yes","No") -> No | K33: =VLOOKUP($D33,'C.1 - Rate Sheets'!$B$15:$F$25,2,FALSE) -> 45.03 | L33: =VLOOKUP($D33,'C.1 - Rate Sheets'!$B$15:$F$25,3,FALSE) -> 61.99 | M33: =VLOOKUP($D33,'C.1 - Rate Sheets'!$B$15:$F$25,4,FALSE) -> 0 | N33: =VLOOKUP($D33,'C.1 - Rate Sheets'!$B$15:$F$25,5,FALSE) -> 0 | O33: 4 | P33: 8 | T33: 8 | U33: 8 | CG33: 12 | CH33: 16 | CI33: 0 | CJ33: 0 | CK33: 28 | CL33: 540.36 | CM33: 991.84 | CN33: 0 | CO33: 0 | CP33: 1532.2 | CQ33: 1532.2 | CR33: Yes | CS33: 0 | CT33: 0 | CU33: 0
CG34: 0 | CH34: 0 | CI34: 0 | CJ34: 0 | CK34: 0 | CL34: 0 | CM34: 0 | CN34: 0 | CO34: 0 | CP34: 0 | CQ34: 0
B35: 16 | C35: Daniel Stokes | D35: Foreperson | E35: Vendor No 3 | F35: 50900 | G35: 81N95318 | H35: 2018-10-19 | I35: 2018-10-20 | J35: =IF(AND(H35>='A - Contractor Summary'!$C$36,I35<='A - Contractor Summary'!$C$42),"Yes","No") -> No | K35: =VLOOKUP($D35,'C.1 - Rate Sheets'!$B$15:$F$25,2,FALSE) -> 39.43 | L35: =VLOOKUP($D35,'C.1 - Rate Sheets'!$B$15:$F$25,3,FALSE) -> 53.62 | M35: =VLOOKUP($D35,'C.1 - Rate Sheets'!$B$15:$F$25,4,FALSE) -> 0 | N35: =VLOOKUP($D35,'C.1 - Rate Sheets'!$B$15:$F$25,5,FALSE) -> 0 | O35: 4 | P35: 8 | T35: 8 | U35: 8 | CG35: 12 | CH35: 16 | CI35: 0 | CJ35: 0 | CK35: 28 | CL35: 473.16 | CM35: 857.92 | CN35: 0 | CO35: 0 | CP35: 1331.08 | CQ35: 1331.08 | CR35: Yes | CS35: 0 | CT35: 0 | CU35: 0
B36: 18 | C36: Jeremy Fox | D36: Trimmer A | E36: Vendor No 3 | F36: 50900 | G36: 81N95318 | H36: 2018-10-19 | I36: 2018-10-20 | J36: =IF(AND(H36>='A - Contractor Summary'!$C$36,I36<='A - Contractor Summary'!$C$42),"Yes","No") -> No | K36: =VLOOKUP($D36,'C.1 - Rate Sheets'!$B$15:$F$25,2,FALSE) -> 29.1 | L36: =VLOOKUP($D36,'C.1 - Rate Sheets'!$B$15:$F$25,3,FALSE) -> 39.68 | M36: =VLOOKUP($D36,'C.1 - Rate Sheets'!$B$15:$F$25,4,FALSE) -> 0 | N36: =VLOOKUP($D36,'C.1 - Rate Sheets'!$B$15:$F$25,5,FALSE) -> 0 | O36: 4 | P36: 8 | T36: 8 | U36: 8 | CG36: 12 | CH36: 16 | CI36: 0 | CJ36: 0 | CK36: 28 | CL36: 349.2 | CM36: 634.88 | CN36: 0 | CO36: 0 | CP36: 984.08 | CQ36: 984.08 | CR36: Yes | CS36: 0 | CT36: 0 | CU36: 0
B37: 20 | C37: John McGowen | D37: Foreperson | E37: Vendor No 3 | F37: 50900 | G37: 81N95318 | H37: 2018-10-19 | I37: 2018-10-20 | J37: =IF(AND(H37>='A - Contractor Summary'!$C$36,I37<='A - Contractor Summary'!$C$42),"Yes","No") -> No | K37: =VLOOKUP($D37,'C.1 - Rate Sheets'!$B$15:$F$25,2,FALSE) -> 39.43 | L37: =VLOOKUP($D37,'C.1 - Rate Sheets'!$B$15:$F$25,3,FALSE) -> 53.62 | M37: =VLOOKUP($D37,'C.1 - Rate Sheets'!$B$15:$F$25,4,FALSE) -> 0 | N37: =VLOOKUP($D37,'C.1 - Rate Sheets'!$B$15:$F$25,5,FALSE) -> 0 | O37: 4 | P37: 8 | T37: 8 | U37: 8 | CG37: 12 | CH37: 16 | CI37: 0 | CJ37: 0 | CK37: 28 | CL37: 473.16 | CM37: 857.92 | CN37: 0 | CO37: 0 | CP37: 1331.08 | CQ37: 1331.08 | CR37: Yes | CS37: 0 | CT37: 0 | CU37: 0
B38: 22 | C38: Edward Thoman | D38: Trimmer A | E38: Vendor No 3 | F38: 50900 | G38: 81N95318 | H38: 2018-10-19 | I38: 2018-10-20 | J38: =IF(AND(H38>='A - Contractor Summary'!$C$36,I38<='A - Contractor Summary'!$C$42),"Yes","No") -> No | K38: =VLOOKUP($D38,'C.1 - Rate Sheets'!$B$15:$F$25,2,FALSE) -> 29.1 | L38: =VLOOKUP($D38,'C.1 - Rate Sheets'!$B$15:$F$25,3,FALSE) -> 39.68 | M38: =VLOOKUP($D38,'C.1 - Rate Sheets'!$B$15:$F$25,4,FALSE) -> 0 | N38: =VLOOKUP($D38,'C.1 - Rate Sheets'!$B$15:$F$25,5,FALSE) -> 0 | O38: 4 | P38: 8 | T38: 8 | U38: 8 | CG38: 12 | CH38: 16 | CI38: 0 | CJ38: 0 | CK38: 28 | CL38: 349.2 | CM38: 634.88 | CN38: 0 | CO38: 0 | CP38: 984.08 | CQ38: 984.08 | CR38: Yes | CS38: 0 | CT38: 0 | CU38: 0
B39: 24 | C39: William Tucker | D39: Foreperson | E39: Vendor No 3 | F39: 50900 | G39: 81N95318 | H39: 2018-10-19 | I39: 2018-10-20 | J39: =IF(AND(H39>='A - Contractor Summary'!$C$36,I39<='A - Contractor Summary'!$C$42),"Yes","No") -> No | K39: =VLOOKUP($D39,'C.1 - Rate Sheets'!$B$15:$F$25,2,FALSE) -> 39.43 | L39: =VLOOKUP($D39,'C.1 - Rate Sheets'!$B$15:$F$25,3,FALSE) -> 53.62 | M39: =VLOOKUP($D39,'C.1 - Rate Sheets'!$B$15:$F$25,4,FALSE) -> 0 | N39: =VLOOKUP($D39,'C.1 - Rate Sheets'!$B$15:$F$25,5,FALSE) -> 0 | O39: 4 | P39: 8 | T39: 8 | U39: 8 | CG39: 12 | CH39: 16 | CI39: 0 | CJ39: 0 | CK39: 28 | CL39: 473.16 | CM39: 857.92 | CN39: 0 | CO39: 0 | CP39: 1331.08 | CQ39: 1331.08 | CR39: Yes | CS39: 0 | CT39: 0 | CU39: 0
B40: 26 | C40: Richie Busch Sr | D40: Trimmer A | E40: Vendor No 3 | F40: 50900 | G40: 81N95318 | H40: 2018-10-19 | I40: 2018-10-20 | J40: =IF(AND(H40>='A - Contractor Summary'!$C$36,I40<='A - Contractor Summary'!$C$42),"Yes","No") -> No | K40: =VLOOKUP($D40,'C.1 - Rate Sheets'!$B$15:$F$25,2,FALSE) -> 29.1 | L40: =VLOOKUP($D40,'C.1 - Rate Sheets'!$B$15:$F$25,3,FALSE) -> 39.68 | M40: =VLOOKUP($D40,'C.1 - Rate Sheets'!$B$15:$F$25,4,FALSE) -> 0 | N40: =VLOOKUP($D40,'C.1 - Rate Sheets'!$B$15:$F$25,5,FALSE) -> 0 | O40: 4 | P40: 8 | T40: 8 | U40: 8 | CG40: 12 | CH40: 16 | CI40: 0 | CJ40: 0 | CK40: 28 | CL40: 349.2 | CM40: 634.88 | CN40: 0 | CO40: 0 | CP40: 984.08 | CQ40: 984.08 | CR40: Yes | CS40: 0 | CT40: 0 | CU40: 0
B41: 28 | C41: Garth Hightower | D41: Foreperson | E41: Vendor No 3 | F41: 50900 | G41: 81N95318 | H41: 2018-10-19 | I41: 2018-10-20 | J41: =IF(AND(H41>='A - Contractor Summary'!$C$36,I41<='A - Contractor Summary'!$C$42),"Yes","No") -> No | K41: =VLOOKUP($D41,'C.1 - Rate Sheets'!$B$15:$F$25,2,FALSE) -> 39.43 | L41: =VLOOKUP($D41,'C.1 - Rate Sheets'!$B$15:$F$25,3,FALSE) -> 53.62 | M41: =VLOOKUP($D41,'C.1 - Rate Sheets'!$B$15:$F$25,4,FALSE) -> 0 | N41: =VLOOKUP($D41,'C.1 - Rate Sheets'!$B$15:$F$25,5,FALSE) -> 0 | O41: 4 | P41: 8 | U41: 16 | CG41: 4 | CH41: 24 | CI41: 0 | CJ41: 0 | CK41: 28 | CL41: 157.72 | CM41: 1286.88 | CN41: 0 | CO41: 0 | CP41: 1444.6 | CQ41: 1444.6 | CR41: Yes | CS41: 0 | CT41: 0 | CU41: 0
B42: 30 | C42: Donny Roberts | D42: Trimmer A | E42: Vendor No 3 | F42: 50900 | G42: 81N95318 | H42: 2018-10-19 | I42: 2018-10-20 | J42: =IF(AND(H42>='A - Contractor Summary'!$C$36,I42<='A - Contractor Summary'!$C$42),"Yes","No") -> No | K42: =VLOOKUP($D42,'C.1 - Rate Sheets'!$B$15:$F$25,2,FALSE) -> 29.1 | L42: =VLOOKUP($D42,'C.1 - Rate Sheets'!$B$15:$F$25,3,FALSE) -> 39.68 | M42: =VLOOKUP($D42,'C.1 - Rate Sheets'!$B$15:$F$25,4,FALSE) -> 0 | N42: =VLOOKUP($D42,'C.1 - Rate Sheets'!$B$15:$F$25,5,FALSE) -> 0 | O42: 4 | P42: 8 | U42: 16 | CG42: 4 | CH42: 24 | CI42: 0 | CJ42: 0 | CK42: 28 | CL42: 116.4 | CM42: 952.32 | CN42: 0 | CO42: 0 | CP42: 1068.72 | CQ42: 1068.72 | CR42: Yes | CS42: 0 | CT42: 0 | CU42: 0
B43: 32 | C43: Jose Roman | D43: Foreperson | E43: Vendor No 3 | F43: 50900 | G43: 81N95318 | H43: 2018-10-19 | I43: 2018-10-20 | J43: =IF(AND(H43>='A - Contractor Summary'!$C$36,I43<='A - Contractor Summary'!$C$42),"Yes","No") -> No | K43: =VLOOKUP($D43,'C.1 - Rate Sheets'!$B$15:$F$25,2,FALSE) -> 39.43 | L43: =VLOOKUP($D43,'C.1 - Rate Sheets'!$B$15:$F$25,3,FALSE) -> 53.62 | M43: =VLOOKUP($D43,'C.1 - Rate Sheets'!$B$15:$F$25,4,FALSE) -> 0 | N43: =VLOOKUP($D43,'C.1 - Rate Sheets'!$B$15:$F$25,5,FALSE) -> 0 | O43: 4 | P43: 8 | U43: 16 | CG43: 4 | CH43: 24 | CI43: 0 | CJ43: 0 | CK43: 28 | CL43: 157.72 | CM43: 1286.88 | CN43: 0 | CO43: 0 | CP43: 1444.6 | CQ43: 1444.6 | CR43: Yes | CS43: 0 | CT43: 0 | CU43: 0
B44: 34 | C44: Eric Johnson | D44: Trimmer A | E44: Vendor No 3 | F44: 50900 | G44: 81N95318 | H44: 2018-10-19 | I44: 2018-10-20 | J44: =IF(AND(H44>='A - Contractor Summary'!$C$36,I44<='A - Contractor Summary'!$C$42),"Yes","No") -> No | K44: =VLOOKUP($D44,'C.1 - Rate Sheets'!$B$15:$F$25,2,FALSE) -> 29.1 | L44: =VLOOKUP($D44,'C.1 - Rate Sheets'!$B$15:$F$25,3,FALSE) -> 39.68 | M44: =VLOOKUP($D44,'C.1 - Rate Sheets'!$B$15:$F$25,4,FALSE) -> 0 | N44: =VLOOKUP($D44,'C.1 - Rate Sheets'!$B$15:$F$25,5,FALSE) -> 0 | O44: 4 | P44: 8 | U44: 16 | CG44: 4 | CH44: 24 | CI44: 0 | CJ44: 0 | CK44: 28 | CL44: 116.4 | CM44: 952.32 | CN44: 0 | CO44: 0 | CP44: 1068.72 | CQ44: 1068.72 | CR44: Yes | CS44: 0 | CT44: 0 | CU44: 0
B45: 36 | C45: Chad Jacobs | D45: Foreperson | E45: Vendor No 3 | F45: 50900 | G45: 81N95318 | H45: 2018-10-19 | I45: 2018-10-20 | J45: =IF(AND(H45>='A - Contractor Summary'!$C$36,I45<='A - Contractor Summary'!$C$42),"Yes","No") -> No | K45: =VLOOKUP($D45,'C.1 - Rate Sheets'!$B$15:$F$25,2,FALSE) -> 39.43 | L45: =VLOOKUP($D45,'C.1 - Rate Sheets'!$B$15:$F$25,3,FALSE) -> 53.62 | M45: =VLOOKUP($D45,'C.1 - Rate Sheets'!$B$15:$F$25,4,FALSE) -> 0 | N45: =VLOOKUP($D45,'C.1 - Rate Sheets'!$B$15:$F$25,5,FALSE) -> 0 | O45: 4 | P45: 8 | U45: 16 | CG45: 4 | CH45: 24 | CI45: 0 | CJ45: 0 | CK45: 28 | CL45: 157.72 | CM45: 1286.88 | CN45: 0 | CO45: 0 | CP45: 1444.6 | CQ45: 1444.6 | CR45: Yes | CS45: 0 | CT45: 0 | CU45: 0
CG46: 0 | CH46: 0 | CI46: 0 | CJ46: 0 | CK46: 0 | CL46: 0 | CM46: 0 | CN46: 0 | CO46: 0 | CP46: 0 | CQ46: 0
B47: 38 | C47: Joel Joseph | D47: General Foreman | E47: Vendor No 3 | F47: 55392 | G47: 81P63318 | H47: 2018-10-19 | I47: 2018-10-20 | J47: =IF(AND(H47>='A - Contractor Summary'!$C$36,I47<='A - Contractor Summary'!$C$42),"Yes","No") -> No | K47: =VLOOKUP($D47,'C.1 - Rate Sheets'!$B$15:$F$25,2,FALSE) -> 45.03 | L47: =VLOOKUP($D47,'C.1 - Rate Sheets'!$B$15:$F$25,3,FALSE) -> 61.99 | M47: =VLOOKUP($D47,'C.1 - Rate Sheets'!$B$15:$F$25,4,FALSE) -> 0 | N47: =VLOOKUP($D47,'C.1 - Rate Sheets'!$B$15:$F$25,5,FALSE) -> 0 | P47: 18 | U47: 14 | CG47: 0 | CH47: 32 | CI47: 0 | CJ47: 0 | CK47: 32 | CL47: 0 | CM47: 1983.68 | CN47: 0 | CO47: 0 | CP47: 1983.68 | CQ47: 1983.68 | CR47: Yes | CS47: 0 | CT47: 0 | CU47: 0
CG48: 0 | CH48: 0 | CI48: 0 | CJ48: 0 | CK48: 0 | CL48: 0 | CM48: 0 | CN48: 0 | CO48: 0 | CP48: 0 | CQ48: 0
B49: 39 | C49: Antoine Jacquesson | D49: Foreperson | E49: Vendor No 3 | F49: 55921 | G49: 81P63418 | H49: 2018-10-19 | I49: 2018-10-20 | J49: =IF(AND(H49>='A - Contractor Summary'!$C$36,I49<='A - Contractor Summary'!$C$42),"Yes","No") -> No | K49: =VLOOKUP($D49,'C.1 - Rate Sheets'!$B$15:$F$25,2,FALSE) -> 39.43 | L49: =VLOOKUP($D49,'C.1 - Rate Sheets'!$B$15:$F$25,3,FALSE) -> 53.62 | M49: =VLOOKUP($D49,'C.1 - Rate Sheets'!$B$15:$F$25,4,FALSE) -> 0 | N49: =VLOOKUP($D49,'C.1 - Rate Sheets'!$B$15:$F$25,5,FALSE) -> 0 | P49: 18 | U49: 14 | CG49: 0 | CH49: 32 | CI49: 0 | CJ49: 0 | CK49: 32 | CL49: 0 | CM49: 1715.84 | CN49: 0 | CO49: 0 | CP49: 1715.84 | CQ49: 1715.84 | CR49: Yes | CS49: 0 | CT49: 0 | CU49: 0
B50: 40 | C50: Edgar Fenelon | D50: Trimmer A | E50: Vendor No 3 | F50: 55921 | G50: 81P63418 | H50: 2018-10-19 | I50: 2018-10-20 | J50: =IF(AND(H50>='A - Contractor Summary'!$C$36,I50<='A - Contractor Summary'!$C$42),"Yes","No") -> No | K50: =VLOOKUP($D50,'C.1 - Rate Sheets'!$B$15:$F$25,2,FALSE) -> 29.1 | L50: =VLOOKUP($D50,'C.1 - Rate Sheets'!$B$15:$F$25,3,FALSE) -> 39.68 | M50: =VLOOKUP($D50,'C.1 - Rate Sheets'!$B$15:$F$25,4,FALSE) -> 0 | N50: =VLOOKUP($D50,'C.1 - Rate Sheets'!$B$15:$F$25,5,FALSE) -> 0 | P50: 18 | U50: 14 | CG50: 0 | CH50: 32 | CI50: 0 | CJ50: 0 | CK50: 32 | CL50: 0 | CM50: 1269.76 | CN50: 0 | CO50: 0 | CP50: 1269.76 | CQ50: 1269.76 | CR50: Yes | CS50: 0 | CT50: 0 | CU50: 0
B51: 41 | C51: Peter Joseph | D51: Foreperson | E51: Vendor No 3 | F51: 55921 | G51: 81P63418 | H51: 2018-10-19 | I51: 2018-10-20 | J51: =IF(AND(H51>='A - Contractor Summary'!$C$36,I51<='A - Contractor Summary'!$C$42),"Yes","No") -> No | K51: =VLOOKUP($D51,'C.1 - Rate Sheets'!$B$15:$F$25,2,FALSE) -> 39.43 | L51: =VLOOKUP($D51,'C.1 - Rate Sheets'!$B$15:$F$25,3,FALSE) -> 53.62 | M51: =VLOOKUP($D51,'C.1 - Rate Sheets'!$B$15:$F$25,4,FALSE) -> 0 | N51: =VLOOKUP($D51,'C.1 - Rate Sheets'!$B$15:$F$25,5,FALSE) -> 0 | P51: 18 | U51: 14 | CG51: 0 | CH51: 32 | CI51: 0 | CJ51: 0 | CK51: 32 | CL51: 0 | CM51: 1715.84 | CN51: 0 | CO51: 0 | CP51: 1715.84 | CQ51: 1715.84 | CR51: No | CS51: 0 | CT51: 0 | CU51: 0
B52: 42 | C52: Gilles Frederick | D52: Trimmer A | E52: Vendor No 3 | F52: 55921 | G52: 81P63418 | H52: 2018-10-19 | I52: 2018-10-20 | J52: =IF(AND(H52>='A - Contractor Summary'!$C$36,I52<='A - Contractor Summary'!$C$42),"Yes","No") -> No | K52: =VLOOKUP($D52,'C.1 - Rate Sheets'!$B$15:$F$25,2,FALSE) -> 29.1 | L52: =VLOOKUP($D52,'C.1 - Rate Sheets'!$B$15:$F$25,3,FALSE) -> 39.68 | M52: =VLOOKUP($D52,'C.1 - Rate Sheets'!$B$15:$F$25,4,FALSE) -> 0 | N52: =VLOOKUP($D52,'C.1 - Rate Sheets'!$B$15:$F$25,5,FALSE) -> 0 | P52: 18 | U52: 14 | CG52: 0 | CH52: 32 | CI52: 0 | CJ52: 0 | CK52: 32 | CL52: 0 | CM52: 1269.76 | CN52: 0 | CO52: 0 | CP52: 1269.76 | CQ52: 1269.76 | CR52: Yes | CS52: 0 | CT52: 0 | CU52: 0
B53: 43 | C53: Ismith Saint Clous | D53: Foreperson | E53: Vendor No 3 | F53: 55921 | G53: 81P63418 | H53: 2018-10-19 | I53: 2018-10-20 | J53: =IF(AND(H53>='A - Contractor Summary'!$C$36,I53<='A - Contractor Summary'!$C$42),"Yes","No") -> No | K53: =VLOOKUP($D53,'C.1 - Rate Sheets'!$B$15:$F$25,2,FALSE) -> 39.43 | L53: =VLOOKUP($D53,'C.1 - Rate Sheets'!$B$15:$F$25,3,FALSE) -> 53.62 | M53: =VLOOKUP($D53,'C.1 - Rate Sheets'!$B$15:$F$25,4,FALSE) -> 0 | N53: =VLOOKUP($D53,'C.1 - Rate Sheets'!$B$15:$F$25,5,FALSE) -> 0 | P53: 18 | U53: 14 | CG53: 0 | CH53: 32 | CI53: 0 | CJ53: 0 | CK53: 32 | CL53: 0 | CM53: 1715.84 | CN53: 0 | CO53: 0 | CP53: 1715.84 | CQ53: 1715.84 | CR53: Yes | CS53: 0 | CT53: 0 | CU53: 0
B54: 44 | C54: Luco Morency | D54: Trimmer A | E54: Vendor No 3 | F54: 55921 | G54: 81P63418 | H54: 2018-10-19 | I54: 2018-10-20 | J54: =IF(AND(H54>='A - Contractor Summary'!$C$36,I54<='A - Contractor Summary'!$C$42),"Yes","No") -> No | K54: =VLOOKUP($D54,'C.1 - Rate Sheets'!$B$15:$F$25,2,FALSE) -> 29.1 | L54: =VLOOKUP($D54,'C.1 - Rate Sheets'!$B$15:$F$25,3,FALSE) -> 39.68 | M54: =VLOOKUP($D54,'C.1 - Rate Sheets'!$B$15:$F$25,4,FALSE) -> 0 | N54: =VLOOKUP($D54,'C.1 - Rate Sheets'!$B$15:$F$25,5,FALSE) -> 0 | P54: 18 | U54: 14 | CG54: 0 | CH54: 32 | CI54: 0 | CJ54: 0 | CK54: 32 | CL54: 0 | CM54: 1269.76 | CN54: 0 | CO54: 0 | CP54: 1269.76 | CQ54: 1269.76 | CR54: Yes | CS54: 0 | CT54: 0 | CU54: 0
B55: 45 | C55: Paulin Toussaint | D55: Foreperson | E55: Vendor No 3 | F55: 55921 | G55: 81P63418 | H55: 2018-10-19 | I55: 2018-10-20 | J55: =IF(AND(H55>='A - Contractor Summary'!$C$36,I55<='A - Contractor Summary'!$C$42),"Yes","No") -> No | K55: =VLOOKUP($D55,'C.1 - Rate Sheets'!$B$15:$F$25,2,FALSE) -> 39.43 | L55: =VLOOKUP($D55,'C.1 - Rate Sheets'!$B$15:$F$25,3,FALSE) -> 53.62 | M55: =VLOOKUP($D55,'C.1 - Rate Sheets'!$B$15:$F$25,4,FALSE) -> 0 | N55: =VLOOKUP($D55,'C.1 - Rate Sheets'!$B$15:$F$25,5,FALSE) -> 0 | P55: 18 | U55: 14 | CG55: 0 | CH55: 32 | CI55: 0 | CJ55: 0 | CK55: 32 | CL55: 0 | CM55: 1715.84 | CN55: 0 | CO55: 0 | CP55: 1715.84 | CQ55: 1715.84 | CR55: Yes | CS55: 0 | CT55: 0 | CU55: 0
B56: 46 | C56: Claude Laguerre | D56: Trimmer A | E56: Vendor No 3 | F56: 55921 | G56: 81P63418 | H56: 2018-10-19 | I56: 2018-10-20 | J56: =IF(AND(H56>='A - Contractor Summary'!$C$36,I56<='A - Contractor Summary'!$C$42),"Yes","No") -> No | K56: =VLOOKUP($D56,'C.1 - Rate Sheets'!$B$15:$F$25,2,FALSE) -> 29.1 | L56: =VLOOKUP($D56,'C.1 - Rate Sheets'!$B$15:$F$25,3,FALSE) -> 39.68 | M56: =VLOOKUP($D56,'C.1 - Rate Sheets'!$B$15:$F$25,4,FALSE) -> 0 | N56: =VLOOKUP($D56,'C.1 - Rate Sheets'!$B$15:$F$25,5,FALSE) -> 0 | P56: 18 | U56: 14 | CG56: 0 | CH56: 32 | CI56: 0 | CJ56: 0 | CK56: 32 | CL56: 0 | CM56: 1269.76 | CN56: 0 | CO56: 0 | CP56: 1269.76 | CQ56: 1269.76 | CR56: Yes | CS56: 0 | CT56: 0 | CU56: 0
B57: 47 | C57: Francois Andre | D57: Foreperson | E57: Vendor No 3 | F57: 55921 | G57: 81P63418 | H57: 2018-10-19 | I57: 2018-10-20 | J57: =IF(AND(H57>='A - Contractor Summary'!$C$36,I57<='A - Contractor Summary'!$C$42),"Yes","No") -> No | K57: =VLOOKUP($D57,'C.1 - Rate Sheets'!$B$15:$F$25,2,FALSE) -> 39.43 | L57: =VLOOKUP($D57,'C.1 - Rate Sheets'!$B$15:$F$25,3,FALSE) -> 53.62 | M57: =VLOOKUP($D57,'C.1 - Rate Sheets'!$B$15:$F$25,4,FALSE) -> 0 | N57: =VLOOKUP($D57,'C.1 - Rate Sheets'!$B$15:$F$25,5,FALSE) -> 0 | P57: 18 | U57: 14 | CG57: 0 | CH57: 32 | CI57: 0 | CJ57: 0 | CK57: 32 | CL57: 0 | CM57: 1715.84 | CN57: 0 | CO57: 0 | CP57: 1715.84 | CQ57: 1715.84 | CR57: Yes | CS57: 0 | CT57: 0 | CU57: 0
B58: 48 | C58: Paul Donald | D58: Trimmer A | E58: Vendor No 3 | F58: 55921 | G58: 81P63418 | H58: 2018-10-19 | I58: 2018-10-20 | J58: =IF(AND(H58>='A - Contractor Summary'!$C$36,I58<='A - Contractor Summary'!$C$42),"Yes","No") -> No | K58: =VLOOKUP($D58,'C.1 - Rate Sheets'!$B$15:$F$25,2,FALSE) -> 29.1 | L58: =VLOOKUP($D58,'C.1 - Rate Sheets'!$B$15:$F$25,3,FALSE) -> 39.68 | M58: =VLOOKUP($D58,'C.1 - Rate Sheets'!$B$15:$F$25,4,FALSE) -> 0 | N58: =VLOOKUP($D58,'C.1 - Rate Sheets'!$B$15:$F$25,5,FALSE) -> 0 | P58: 18 | U58: 14 | CG58: 0 | CH58: 32 | CI58: 0 | CJ58: 0 | CK58: 32 | CL58: 0 | CM58: 1269.76 | CN58: 0 | CO58: 0 | CP58: 1269.76 | CQ58: 1269.76 | CR58: Yes | CS58: 0 | CT58: 0 | CU58: 0
B59: 49 | C59: Elie Nerestan | D59: Foreperson | E59: Vendor No 3 | F59: 55921 | G59: 81P63418 | H59: 2018-10-19 | I59: 2018-10-20 | J59: =IF(AND(H59>='A - Contractor Summary'!$C$36,I59<='A - Contractor Summary'!$C$42),"Yes","No") -> No | K59: =VLOOKUP($D59,'C.1 - Rate Sheets'!$B$15:$F$25,2,FALSE) -> 39.43 | L59: =VLOOKUP($D59,'C.1 - Rate Sheets'!$B$15:$F$25,3,FALSE) -> 53.62 | M59: =VLOOKUP($D59,'C.1 - Rate Sheets'!$B$15:$F$25,4,FALSE) -> 0 | N59: =VLOOKUP($D59,'C.1 - Rate Sheets'!$B$15:$F$25,5,FALSE) -> 0 | P59: 18 | U59: 14 | CG59: 0 | CH59: 32 | CI59: 0 | CJ59: 0 | CK59: 32 | CL59: 0 | CM59: 1715.84 | CN59: 0 | CO59: 0 | CP59: 1715.84 | CQ59: 1715.84 | CR59: Yes | CS59: 0 | CT59: 0 | CU59: 0
B60: 50 | C60: Bruce Bien Aime | D60: Trimmer A | E60: Vendor No 3 | F60: 55921 | G60: 81P63418 | H60: 2018-10-19 | I60: 2018-10-20 | J60: =IF(AND(H60>='A - Contractor Summary'!$C$36,I60<='A - Contractor Summary'!$C$42),"Yes","No") -> No | K60: =VLOOKUP($D60,'C.1 - Rate Sheets'!$B$15:$F$25,2,FALSE) -> 29.1 | L60: =VLOOKUP($D60,'C.1 - Rate Sheets'!$B$15:$F$25,3,FALSE) -> 39.68 | M60: =VLOOKUP($D60,'C.1 - Rate Sheets'!$B$15:$F$25,4,FALSE) -> 0 | N60: =VLOOKUP($D60,'C.1 - Rate Sheets'!$B$15:$F$25,5,FALSE) -> 0 | P60: 18 | U60: 14 | CG60: 0 | CH60: 32 | CI60: 0 | CJ60: 0 | CK60: 32 | CL60: 0 | CM60: 1269.76 | CN60: 0 | CO60: 0 | CP60: 1269.76 | CQ60: 1269.76 | CR60: Yes | CS60: 0 | CT60: 0 | CU60: 0
B61: 51 | C61: Reginal Coissy | D61: Trimmer B | E61: Vendor No 3 | F61: 55921 | G61: 81P63418 | H61: 2018-10-19 | I61: 2018-10-20 | J61: =IF(AND(H61>='A - Contractor Summary'!$C$36,I61<='A - Contractor Summary'!$C$42),"Yes","No") -> No | K61: =VLOOKUP($D61,'C.1 - Rate Sheets'!$B$15:$F$25,2,FALSE) -> 26.9 | L61: =VLOOKUP($D61,'C.1 - Rate Sheets'!$B$15:$F$25,3,FALSE) -> 36.53 | M61: =VLOOKUP($D61,'C.1 - Rate Sheets'!$B$15:$F$25,4,FALSE) -> 0 | N61: =VLOOKUP($D61,'C.1 - Rate Sheets'!$B$15:$F$25,5,FALSE) -> 0 | P61: 18 | U61: 14 | CG61: 0 | CH61: 32 | CI61: 0 | CJ61: 0 | CK61: 32 | CL61: 0 | CM61: 1168.96 | CN61: 0 | CO61: 0 | CP61: 1168.96 | CQ61: 1168.96 | CR61: Yes | CS61: 0 | CT61: 0 | CU61: 0
B62: 52 | C62: Ruben Romero | D62: Trimmer A | E62: Vendor No 3 | F62: 55921 | G62: 81P63418 | H62: 2018-10-19 | I62: 2018-10-20 | J62: =IF(AND(H62>='A - Contractor Summary'!$C$36,I62<='A - Contractor Summary'!$C$42),"Yes","No") -> No | K62: =VLOOKUP($D62,'C.1 - Rate Sheets'!$B$15:$F$25,2,FALSE) -> 29.1 | L62: =VLOOKUP($D62,'C.1 - Rate Sheets'!$B$15:$F$25,3,FALSE) -> 39.68 | M62: =VLOOKUP($D62,'C.1 - Rate Sheets'!$B$15:$F$25,4,FALSE) -> 0 | N62: =VLOOKUP($D62,'C.1 - Rate Sheets'!$B$15:$F$25,5,FALSE) -> 0 | P62: 18 | U62: 14 | CG62: 0 | CH62: 32 | CI62: 0 | CJ62: 0 | CK62: 32 | CL62: 0 | CM62: 1269.76 | CN62: 0 | CO62: 0 | CP62: 1269.76 | CQ62: 1269.76 | CR62: Yes | CS62: 0 | CT62: 0 | CU62: 0
B63: 53 | C63: Anderson Jerome | D63: Foreperson | E63: Vendor No 3 | F63: 55921 | G63: 81P63418 | H63: 2018-10-19 | I63: 2018-10-20 | J63: =IF(AND(H63>='A - Contractor Summary'!$C$36,I63<='A - Contractor Summary'!$C$42),"Yes","No") -> No | K63: =VLOOKUP($D63,'C.1 - Rate Sheets'!$B$15:$F$25,2,FALSE) -> 39.43 | L63: =VLOOKUP($D63,'C.1 - Rate Sheets'!$B$15:$F$25,3,FALSE) -> 53.62 | M63: =VLOOKUP($D63,'C.1 - Rate Sheets'!$B$15:$F$25,4,FALSE) -> 0 | N63: =VLOOKUP($D63,'C.1 - Rate Sheets'!$B$15:$F$25,5,FALSE) -> 0 | P63: 18 | U63: 14 | CG63: 0 | CH63: 32 | CI63: 0 | CJ63: 0 | CK63: 32 | CL63: 0 | CM63: 1715.84 | CN63: 0 | CO63: 0 | CP63: 1715.84 | CQ63: 1715.84 | CR63: Yes | CS63: 0 | CT63: 0 | CU63: 0
B64: 54 | C64: Philome Croissy | D64: Trimmer B | E64: Vendor No 3 | F64: 55921 | G64: 81P63418 | H64: 2018-10-19 | I64: 2018-10-20 | J64: =IF(AND(H64>='A - Contractor Summary'!$C$36,I64<='A - Contractor Summary'!$C$42),"Yes","No") -> No | K64: =VLOOKUP($D64,'C.1 - Rate Sheets'!$B$15:$F$25,2,FALSE) -> 26.9 | L64: =VLOOKUP($D64,'C.1 - Rate Sheets'!$B$15:$F$25,3,FALSE) -> 36.53 | M64: =VLOOKUP($D64,'C.1 - Rate Sheets'!$B$15:$F$25,4,FALSE) -> 0 | N64: =VLOOKUP($D64,'C.1 - Rate Sheets'!$B$15:$F$25,5,FALSE) -> 0 | P64: 18 | U64: 14 | CG64: 0 | CH64: 32 | CI64: 0 | CJ64: 0 | CK64: 32 | CL64: 0 | CM64: 1168.96 | CN64: 0 | CO64: 0 | CP64: 1168.96 | CQ64: 1168.96 | CR64: Yes | CS64: 0 | CT64: 0 | CU64: 0
B65: 55 | C65: Claudain Duroque | D65: Foreperson | E65: Vendor No 3 | F65: 55921 | G65: 81P63418 | H65: 2018-10-19 | I65: 2018-10-20 | J65: =IF(AND(H65>='A - Contractor Summary'!$C$36,I65<='A - Contractor Summary'!$C$42),"Yes","No") -> No | K65: =VLOOKUP($D65,'C.1 - Rate Sheets'!$B$15:$F$25,2,FALSE) -> 39.43 | L65: =VLOOKUP($D65,'C.1 - Rate Sheets'!$B$15:$F$25,3,FALSE) -> 53.62 | M65: =VLOOKUP($D65,'C.1 - Rate Sheets'!$B$15:$F$25,4,FALSE) -> 0 | N65: =VLOOKUP($D65,'C.1 - Rate Sheets'!$B$15:$F$25,5,FALSE) -> 0 | P65: 18 | U65: 14 | CG65: 0 | CH65: 32 | CI65: 0 | CJ65: 0 | CK65: 32 | CL65: 0 | CM65: 1715.84 | CN65: 0 | CO65: 0 | CP65: 1715.84 | CQ65: 1715.84 | CR65: Yes | CS65: 0 | CT65: 0 | CU65: 0
B66: 56 | C66: Lunis Isaac | D66: Trimmer A | E66: Vendor No 3 | F66: 55921 | G66: 81P63418 | H66: 2018-10-19 | I66: 2018-10-20 | J66: =IF(AND(H66>='A - Contractor Summary'!$C$36,I66<='A - Contractor Summary'!$C$42),"Yes","No") -> No | K66: =VLOOKUP($D66,'C.1 - Rate Sheets'!$B$15:$F$25,2,FALSE) -> 29.1 | L66: =VLOOKUP($D66,'C.1 - Rate Sheets'!$B$15:$F$25,3,FALSE) -> 39.68 | M66: =VLOOKUP($D66,'C.1 - Rate Sheets'!$B$15:$F$25,4,FALSE) -> 0 | N66: =VLOOKUP($D66,'C.1 - Rate Sheets'!$B$15:$F$25,5,FALSE) -> 0 | P66: 18 | U66: 14 | CG66: 0 | CH66: 32 | CI66: 0 | CJ66: 0 | CK66: 32 | CL66: 0 | CM66: 1269.76 | CN66: 0 | CO66: 0 | CP66: 1269.76 | CQ66: 1269.76 | CR66: Yes | CS66: 0 | CT66: 0 | CU66: 0
B67: 57 | C67: Richard Louidor | D67: Trimmer B | E67: Vendor No 3 | F67: 55921 | G67: 81P63418 | H67: 2018-10-19 | I67: 2018-10-20 | J67: =IF(AND(H67>='A - Contractor Summary'!$C$36,I67<='A - Contractor Summary'!$C$42),"Yes","No") -> No | K67: =VLOOKUP($D67,'C.1 - Rate Sheets'!$B$15:$F$25,2,FALSE) -> 26.9 | L67: =VLOOKUP($D67,'C.1 - Rate Sheets'!$B$15:$F$25,3,FALSE) -> 36.53 | M67: =VLOOKUP($D67,'C.1 - Rate Sheets'!$B$15:$F$25,4,FALSE) -> 0 | N67: =VLOOKUP($D67,'C.1 - Rate Sheets'!$B$15:$F$25,5,FALSE) -> 0 | P67: 18 | U67: 14 | CG67: 0 | CH67: 32 | CI67: 0 | CJ67: 0 | CK67: 32 | CL67: 0 | CM67: 1168.96 | CN67: 0 | CO67: 0 | CP67: 1168.96 | CQ67: 1168.96 | CR67: Yes | CS67: 0 | CT67: 0 | CU67: 0
B68: 58 | C68: Max Michaud | D68: Foreperson | E68: Vendor No 3 | F68: 55921 | G68: 81P63418 | H68: 2018-10-19 | I68: 2018-10-20 | J68: =IF(AND(H68>='A - Contractor Summary'!$C$36,I68<='A - Contractor Summary'!$C$42),"Yes","No") -> No | K68: =VLOOKUP($D68,'C.1 - Rate Sheets'!$B$15:$F$25,2,FALSE) -> 39.43 | L68: =VLOOKUP($D68,'C.1 - Rate Sheets'!$B$15:$F$25,3,FALSE) -> 53.62 | M68: =VLOOKUP($D68,'C.1 - Rate Sheets'!$B$15:$F$25,4,FALSE) -> 0 | N68: =VLOOKUP($D68,'C.1 - Rate Sheets'!$B$15:$F$25,5,FALSE) -> 0 | P68: 18 | U68: 14 | CG68: 0 | CH68: 32 | CI68: 0 | CJ68: 0 | CK68: 32 | CL68: 0 | CM68: 1715.84 | CN68: 0 | CO68: 0 | CP68: 1715.84 | CQ68: 1715.84 | CR68: Yes | CS68: 0 | CT68: 0 | CU68: 0
B69: 59 | C69: Acmande Michel | D69: Trimmer A | E69: Vendor No 3 | F69: 55921 | G69: 81P63418 | H69: 2018-10-19 | I69: 2018-10-20 | J69: =IF(AND(H69>='A - Contractor Summary'!$C$36,I69<='A - Contractor Summary'!$C$42),"Yes","No") -> No | K69: =VLOOKUP($D69,'C.1 - Rate Sheets'!$B$15:$F$25,2,FALSE) -> 29.1 | L69: =VLOOKUP($D69,'C.1 - Rate Sheets'!$B$15:$F$25,3,FALSE) -> 39.68 | M69: =VLOOKUP($D69,'C.1 - Rate Sheets'!$B$15:$F$25,4,FALSE) -> 0 | N69: =VLOOKUP($D69,'C.1 - Rate Sheets'!$B$15:$F$25,5,FALSE) -> 0 | P69: 18 | U69: 14 | CG69: 0 | CH69: 32 | CI69: 0 | CJ69: 0 | CK69: 32 | CL69: 0 | CM69: 1269.76 | CN69: 0 | CO69: 0 | CP69: 1269.76 | CQ69: 1269.76 | CR69: Yes | CS69: 0 | CT69: 0 | CU69: 0
B70: 60 | C70: Jasmine Martin | D70: Trimmer B | E70: Vendor No 3 | F70: 55921 | G70: 81P63418 | H70: 2018-10-19 | I70: 2018-10-20 | J70: =IF(AND(H70>='A - Contractor Summary'!$C$36,I70<='A - Contractor Summary'!$C$42),"Yes","No") -> No | K70: =VLOOKUP($D70,'C.1 - Rate Sheets'!$B$15:$F$25,2,FALSE) -> 26.9 | L70: =VLOOKUP($D70,'C.1 - Rate Sheets'!$B$15:$F$25,3,FALSE) -> 36.53 | M70: =VLOOKUP($D70,'C.1 - Rate Sheets'!$B$15:$F$25,4,FALSE) -> 0 | N70: =VLOOKUP($D70,'C.1 - Rate Sheets'!$B$15:$F$25,5,FALSE) -> 0 | P70: 18 | U70: 14 | CG70: 0 | CH70: 32 | CI70: 0 | CJ70: 0 | CK70: 32 | CL70: 0 | CM70: 1168.96 | CN70: 0 | CO70: 0 | CP70: 1168.96 | CQ70: 1168.96 | CR70: Yes | CS70: 0 | CT70: 0 | CU70: 0
CG71: 0 | CH71: 0 | CI71: 0 | CJ71: 0 | CK71: 0 | CL71: 0 | CM71: 0 | CN71: 0 | CO71: 0 | CP71: 0 | CQ71: 0
B72: 61 | C72: Daniel Stokes | D72: Foreperson | E72: Vendor No 3 | F72: 50900 | G72: 82G04418 | H72: 2018-10-21 | I72: 2018-10-27 | J72: =IF(AND(H72>='A - Contractor Summary'!$C$36,I72<='A - Contractor Summary'!$C$42),"Yes","No") -> No | K72: =VLOOKUP($D72,'C.1 - Rate Sheets'!$B$15:$F$25,2,FALSE) -> 39.43 | L72: =VLOOKUP($D72,'C.1 - Rate Sheets'!$B$15:$F$25,3,FALSE) -> 53.62 | M72: =VLOOKUP($D72,'C.1 - Rate Sheets'!$B$15:$F$25,4,FALSE) -> 0 | N72: =VLOOKUP($D72,'C.1 - Rate Sheets'!$B$15:$F$25,5,FALSE) -> 0 | Z72: 16 | AD72: 8 | AE72: 8 | AI72: 8 | AJ72: 8 | AN72: 8 | AO72: 8 | AS72: 8 | AT72: 8 | AX72: 8 | AY72: 8 | BD72: 16 | CG72: 40 | CH72: 72 | CI72: 0 | CJ72: 0 | CK72: 112 | CL72: 1577.2 | CM72: 3860.64 | CN72: 0 | CO72: 0 | CP72: 5437.84 | CQ72: 5437.84 | CR72: Yes | CS72: 0 | CT72: 0 | CU72: 0
B73: 63 | C73: Jeremy Fox | D73: Trimmer A | E73: Vendor No 3 | F73: 50900 | G73: 82G04418 | H73: 2018-10-21 | I73: 2018-10-27 | J73: =IF(AND(H73>='A - Contractor Summary'!$C$36,I73<='A - Contractor Summary'!$C$42),"Yes","No") -> No | K73: =VLOOKUP($D73,'C.1 - Rate Sheets'!$B$15:$F$25,2,FALSE) -> 29.1 | L73: =VLOOKUP($D73,'C.1 - Rate Sheets'!$B$15:$F$25,3,FALSE) -> 39.68 | M73: =VLOOKUP($D73,'C.1 - Rate Sheets'!$B$15:$F$25,4,FALSE) -> 0 | N73: =VLOOKUP($D73,'C.1 - Rate Sheets'!$B$15:$F$25,5,FALSE) -> 0 | Z73: 16 | AD73: 8 | AE73: 8 | AI73: 8 | AJ73: 8 | AN73: 8 | AO73: 8 | AS73: 8 | AT73: 8 | AX73: 8 | AY73: 8 | BD73: 16 | CG73: 40 | CH73: 72 | CI73: 0 | CJ73: 0 | CK73: 112 | CL73: 1164 | CM73: 2856.96 | CN73: 0 | CO73: 0 | CP73: 4020.96 | CQ73: 4020.96 | CR73: Yes | CS73: 0 | CT73: 0 | CU73: 0
B74: 65 | C74: John McGowen | D74: Foreperson | E74: Vendor No 3 | F74: 50900 | G74: 82G04418 | H74: 2018-10-21 | I74: 2018-10-21 | J74: =IF(AND(H74>='A - Contractor Summary'!$C$36,I74<='A - Contractor Summary'!$C$42),"Yes","No") -> No | K74: =VLOOKUP($D74,'C.1 - Rate Sheets'!$B$15:$F$25,2,FALSE) -> 39.43 | L74: =VLOOKUP($D74,'C.1 - Rate Sheets'!$B$15:$F$25,3,FALSE) -> 53.62 | M74: =VLOOKUP($D74,'C.1 - Rate Sheets'!$B$15:$F$25,4,FALSE) -> 0 | N74: =VLOOKUP($D74,'C.1 - Rate Sheets'!$B$15:$F$25,5,FALSE) -> 0 | Z74: 5 | CG74: 0 | CH74: 5 | CI74: 0 | CJ74: 0 | CK74: 5 | CL74: 0 | CM74: 268.1 | CN74: 0 | CO74: 0 | CP74: 268.1 | CQ74: 268.1 | CR74: Yes | CS74: 0 | CT74: 0 | CU74: 0
B75: 66 | C75: Edward Thoman | D75: Trimmer C | E75: Vendor No 3 | F75: 50900 | G75: 82G04418 | H75: 2018-10-21 | I75: 2018-10-27 | J75: =IF(AND(H75>='A - Contractor Summary'!$C$36,I75<='A - Contractor Summary'!$C$42),"Yes","No") -> No | K75: =VLOOKUP($D75,'C.1 - Rate Sheets'!$B$15:$F$25,2,FALSE) -> 25.62 | L75: =VLOOKUP($D75,'C.1 - Rate Sheets'!$B$15:$F$25,3,FALSE) -> 34.65 | M75: =VLOOKUP($D75,'C.1 - Rate Sheets'!$B$15:$F$25,4,FALSE) -> 0 | N75: =VLOOKUP($D75,'C.1 - Rate Sheets'!$B$15:$F$25,5,FALSE) -> 0 | Z75: 16 | AD75: 8 | AE75: 8 | AI75: 8 | AJ75: 8 | AN75: 8 | AO75: 8 | AS75: 8 | AT75: 8 | AX75: 8 | AY75: 8 | BD75: 16 | CG75: 40 | CH75: 72 | CI75: 0 | CJ75: 0 | CK75: 112 | CL75: 1024.8 | CM75: 2494.8 | CN75: 0 | CO75: 0 | CP75: 3519.6 | CQ75: 3519.6 | CR75: Yes | CS75: 0 | CT75: 0 | CU75: 0
B76: 68 | C76: Steve Ryan | D76: Foreperson | E76: Vendor No 3 | F76: 50900 | G76: 82G04418 | H76: 2018-10-21 | I76: 2018-10-27 | J76: =IF(AND(H76>='A - Contractor Summary'!$C$36,I76<='A - Contractor Summary'!$C$42),"Yes","No") -> No | K76: =VLOOKUP($D76,'C.1 - Rate Sheets'!$B$15:$F$25,2,FALSE) -> 39.43 | L76: =VLOOKUP($D76,'C.1 - Rate Sheets'!$B$15:$F$25,3,FALSE) -> 53.62 | M76: =VLOOKUP($D76,'C.1 - Rate Sheets'!$B$15:$F$25,4,FALSE) -> 0 | N76: =VLOOKUP($D76,'C.1 - Rate Sheets'!$B$15:$F$25,5,FALSE) -> 0 | Z76: 11 | AD76: 8 | AE76: 8 | AI76: 8 | AJ76: 8 | AN76: 8 | AO76: 8 | AS76: 8 | AT76: 8 | AX76: 8 | AY76: 8 | BD76: 16 | CG76: 40 | CH76: 67 | CI76: 0 | CJ76: 0 | CK76: 107 | CL76: 1577.2 | CM76: 3592.54 | CN76: 0 | CO76: 0 | CP76: 5169.74 | CQ76: 5169.74 | CR76: Yes | CS76: 0 | CT76: 0 | CU76: 0
B77: 70 | C77: William Tucker | D77: Foreperson | E77: Vendor No 3 | F77: 50900 | G77: 82G04418 | H77: 2018-10-21 | I77: 2018-10-27 | J77: =IF(AND(H77>='A - Contractor Summary'!$C$36,I77<='A - Contractor Summary'!$C$42),"Yes","No") -> No | K77: =VLOOKUP($D77,'C.1 - Rate Sheets'!$B$15:$F$25,2,FALSE) -> 39.43 | L77: =VLOOKUP($D77,'C.1 - Rate Sheets'!$B$15:$F$25,3,FALSE) -> 53.62 | M77: =VLOOKUP($D77,'C.1 - Rate Sheets'!$B$15:$F$25,4,FALSE) -> 0 | N77: =VLOOKUP($D77,'C.1 - Rate Sheets'!$B$15:$F$25,5,FALSE) -> 0 | Z77: 16 | AD77: 8 | AE77: 8 | AI77: 8 | AJ77: 8 | AN77: 8 | AO77: 8 | AS77: 8 | AT77: 8 | AX77: 8 | AY77: 8 | BD77: 16 | CG77: 40 | CH77: 72 | CI77: 0 | CJ77: 0 | CK77: 112 | CL77: 1577.2 | CM77: 3860.64 | CN77: 0 | CO77: 0 | CP77: 5437.84 | CQ77: 5437.84 | CR77: Yes | CS77: 0 | CT77: 0 | CU77: 0
B78: 72 | C78: Richie Busch Sr | D78: Trimmer A | E78: Vendor No 3 | F78: 50900 | G78: 82G04418 | H78: 2018-10-21 | I78: 2018-10-27 | J78: =IF(AND(H78>='A - Contractor Summary'!$C$36,I78<='A - Contractor Summary'!$C$42),"Yes","No") -> No | K78: =VLOOKUP($D78,'C.1 - Rate Sheets'!$B$15:$F$25,2,FALSE) -> 29.1 | L78: =VLOOKUP($D78,'C.1 - Rate Sheets'!$B$15:$F$25,3,FALSE) -> 39.68 | M78: =VLOOKUP($D78,'C.1 - Rate Sheets'!$B$15:$F$25,4,FALSE) -> 0 | N78: =VLOOKUP($D78,'C.1 - Rate Sheets'!$B$15:$F$25,5,FALSE) -> 0 | Z78: 16 | AD78: 8 | AE78: 8 | AI78: 8 | AJ78: 8 | AN78: 8 | AO78: 8 | AS78: 8 | AT78: 8 | AX78: 8 | AY78: 8 | BD78: 16 | CG78: 40 | CH78: 72 | CI78: 0 | CJ78: 0 | CK78: 112 | CL78: 1164 | CM78: 2856.96 | CN78: 0 | CO78: 0 | CP78: 4020.96 | CQ78: 4020.96 | CR78: Yes | CS78: 0 | CT78: 0 | CU78: 0
B79: 74 | C79: Garth Hightower | D79: Foreperson | E79: Vendor No 3 | F79: 50900 | G79: 82G04418 | H79: 2018-10-21 | I79: 2018-10-27 | J79: =IF(AND(H79>='A - Contractor Summary'!$C$36,I79<='A - Contractor Summary'!$C$42),"Yes","No") -> No | K79: =VLOOKUP($D79,'C.1 - Rate Sheets'!$B$15:$F$25,2,FALSE) -> 39.43 | L79: =VLOOKUP($D79,'C.1 - Rate Sheets'!$B$15:$F$25,3,FALSE) -> 53.62 | M79: =VLOOKUP($D79,'C.1 - Rate Sheets'!$B$15:$F$25,4,FALSE) -> 0 | N79: =VLOOKUP($D79,'C.1 - Rate Sheets'!$B$15:$F$25,5,FALSE) -> 0 | Z79: 16 | AD79: 8 | AE79: 8 | AI79: 8 | AJ79: 8 | AN79: 8 | AO79: 8 | AS79: 8 | AT79: 8 | AX79: 8 | AY79: 8 | BD79: 16 | CG79: 40 | CH79: 72 | CI79: 0 | CJ79: 0 | CK79: 112 | CL79: 1577.2 | CM79: 3860.64 | CN79: 0 | CO79: 0 | CP79: 5437.84 | CQ79: 5437.84 | CR79: Yes | CS79: 0 | CT79: 0 | CU79: 0
B80: 76 | C80: Donny Roberts | D80: Trimmer A | E80: Vendor No 3 | F80: 50900 | G80: 82G04418 | H80: 2018-10-21 | I80: 2018-10-27 | J80: =IF(AND(H80>='A - Contractor Summary'!$C$36,I80<='A - Contractor Summary'!$C$42),"Yes","No") -> No | K80: =VLOOKUP($D80,'C.1 - Rate Sheets'!$B$15:$F$25,2,FALSE) -> 29.1 | L80: =VLOOKUP($D80,'C.1 - Rate Sheets'!$B$15:$F$25,3,FALSE) -> 39.68 | M80: =VLOOKUP($D80,'C.1 - Rate Sheets'!$B$15:$F$25,4,FALSE) -> 0 | N80: =VLOOKUP($D80,'C.1 - Rate Sheets'!$B$15:$F$25,5,FALSE) -> 0 | Z80: 16 | AD80: 8 | AE80: 8 | AI80: 8 | AJ80: 8 | AN80: 8 | AO80: 8 | AS80: 8 | AT80: 8 | AX80: 8 | AY80: 8 | BD80: 16 | CG80: 40 | CH80: 72 | CI80: 0 | CJ80: 0 | CK80: 112 | CL80: 1164 | CM80: 2856.96 | CN80: 0 | CO80: 0 | CP80: 4020.96 | CQ80: 4020.96 | CR80: Yes | CS80: 0 | CT80: 0 | CU80: 0
B81: 78 | C81: Jose Roman | D81: Foreperson | E81: Vendor No 3 | F81: 50900 | G81: 82G04418 | H81: 2018-10-21 | I81: 2018-10-27 | J81: =IF(AND(H81>='A - Contractor Summary'!$C$36,I81<='A - Contractor Summary'!$C$42),"Yes","No") -> No | K81: =VLOOKUP($D81,'C.1 - Rate Sheets'!$B$15:$F$25,2,FALSE) -> 39.43 | L81: =VLOOKUP($D81,'C.1 - Rate Sheets'!$B$15:$F$25,3,FALSE) -> 53.62 | M81: =VLOOKUP($D81,'C.1 - Rate Sheets'!$B$15:$F$25,4,FALSE) -> 0 | N81: =VLOOKUP($D81,'C.1 - Rate Sheets'!$B$15:$F$25,5,FALSE) -> 0 | Z81: 16 | AD81: 8 | AE81: 8 | AI81: 8 | AJ81: 8 | AN81: 8 | AO81: 8 | AS81: 8 | AT81: 8 | AX81: 8 | AY81: 8 | BD81: 16 | CG81: 40 | CH81: 72 | CI81: 0 | CJ81: 0 | CK81: 112 | CL81: 1577.2 | CM81: 3860.64 | CN81: 0 | CO81: 0 | CP81: 5437.84 | CQ81: 5437.84 | CR81: Yes | CS81: 0 | CT81: 0 | CU81: 0
B82: 80 | C82: Eric Johnson | D82: Trimmer A | E82: Vendor No 3 | F82: 50900 | G82: 82G04418 | H82: 2018-10-21 | I82: 2018-10-27 | J82: =IF(AND(H82>='A - Contractor Summary'!$C$36,I82<='A - Contractor Summary'!$C$42),"Yes","No") -> No | K82: =VLOOKUP($D82,'C.1 - Rate Sheets'!$B$15:$F$25,2,FALSE) -> 29.1 | L82: =VLOOKUP($D82,'C.1 - Rate Sheets'!$B$15:$F$25,3,FALSE) -> 39.68 | M82: =VLOOKUP($D82,'C.1 - Rate Sheets'!$B$15:$F$25,4,FALSE) -> 0 | N82: =VLOOKUP($D82,'C.1 - Rate Sheets'!$B$15:$F$25,5,FALSE) -> 0 | Z82: 16 | AD82: 8 | AE82: 8 | AI82: 8 | AJ82: 8 | AN82: 8 | AO82: 8 | AS82: 8 | AT82: 8 | AX82: 8 | AY82: 8 | BD82: 16 | CG82: 40 | CH82: 72 | CI82: 0 | CJ82: 0 | CK82: 112 | CL82: 1164 | CM82: 2856.96 | CN82: 0 | CO82: 0 | CP82: 4020.96 | CQ82: 4020.96 | CR82: Yes | CS82: 0 | CT82: 0 | CU82: 0
B83: 82 | C83: Chad Jacobs | D83: Foreperson | E83: Vendor No 3 | F83: 50900 | G83: 82G04418 | H83: 2018-10-21 | I83: 2018-10-27 | J83: =IF(AND(H83>='A - Contractor Summary'!$C$36,I83<='A - Contractor Summary'!$C$42),"Yes","No") -> No | K83: =VLOOKUP($D83,'C.1 - Rate Sheets'!$B$15:$F$25,2,FALSE) -> 39.43 | L83: =VLOOKUP($D83,'C.1 - Rate Sheets'!$B$15:$F$25,3,FALSE) -> 53.62 | M83: =VLOOKUP($D83,'C.1 - Rate Sheets'!$B$15:$F$25,4,FALSE) -> 0 | N83: =VLOOKUP($D83,'C.1 - Rate Sheets'!$B$15:$F$25,5,FALSE) -> 0 | Z83: 16 | AD83: 8 | AE83: 8 | AI83: 8 | AJ83: 8 | AN83: 8 | AO83: 8 | AS83: 8 | AT83: 8 | AX83: 8 | AY83: 8 | BD83: 16 | CG83: 40 | CH83: 72 | CI83: 0 | CJ83: 0 | CK83: 112 | CL83: 1577.2 | CM83: 3860.64 | CN83: 0 | CO83: 0 | CP83: 5437.84 | CQ83: 5437.84 | CR83: Yes | CS83: 0 | CT83: 0 | CU83: 0
CG84: 0 | CH84: 0 | CI84: 0 | CJ84: 0 | CK84: 0 | CL84: 0 | CM84: 0 | CN84: 0 | CO84: 0 | CP84: 0 | CQ84: 0
B85: 84 | C85: Carlos R Garcia | D85: General Foreman | E85: Vendor No 3 | F85: 50937 | G85: 82G04518 | H85: 2018-10-21 | I85: 2018-10-27 | J85: =IF(AND(H85>='A - Contractor Summary'!$C$36,I85<='A - Contractor Summary'!$C$42),"Yes","No") -> No | K85: =VLOOKUP($D85,'C.1 - Rate Sheets'!$B$15:$F$25,2,FALSE) -> 45.03 | L85: =VLOOKUP($D85,'C.1 - Rate Sheets'!$B$15:$F$25,3,FALSE) -> 61.99 | M85: =VLOOKUP($D85,'C.1 - Rate Sheets'!$B$15:$F$25,4,FALSE) -> 0 | N85: =VLOOKUP($D85,'C.1 - Rate Sheets'!$B$15:$F$25,5,FALSE) -> 0 | Z85: 16 | AD85: 8 | AE85: 8 | AI85: 8 | AJ85: 8 | AN85: 8 | AO85: 8 | AS85: 8 | AT85: 8 | AX85: 8 | AY85: 8 | BD85: 16 | CG85: =O85+T85+Y85+AD85+AI85+AN85+AS85+AX85+BC85+BH85+BM85+BR85+BW85+CB85 -> 40 | CH85: =P85+U85+Z85+AE85+AJ85+AO85+AT85+AY85+BD85+BI85+BN85+BS85+BX85+CC85 -> 72 | CI85: =Q85+V85+AA85+AF85+AK85+AP85+AU85+AZ85+BE85+BJ85+BO85+BT85+BY85+CD85 -> 0 | CJ85: =R85+W85+AB85+AG85+AL85+AQ85+AV85+BA85+BF85+BK85+BP85+BU85+BZ85+CE85 -> 0 | CK85: =SUM(CG85:CJ85) -> 112 | CL85: =CG85*K85 -> 1801.2 | CM85: =CH85*L85 -> 4463.28 | CN85: =CI85*M85 -> 0 | CO85: =CJ85*N85 -> 0 | CP85: =SUM(CL85:CO85) -> 6264.48 | CQ85: =CP85-CS85 -> 6264.48 | CR85: Yes | CS85: 0 | CT85: 0 | CU85: 0
CG86: 0 | CH86: 0 | CI86: 0 | CJ86: 0 | CK86: 0 | CL86: 0 | CM86: 0 | CN86: 0 | CO86: 0 | CP86: 0 | CQ86: 0
B87: 86 | C87: Dave Busch | D87: General Foreman | E87: Vendor No 3 | F87: 50399 | G87: 82G04718 | H87: 2018-10-21 | I87: 2018-10-27 | J87: =IF(AND(H87>='A - Contractor Summary'!$C$36,I87<='A - Contractor Summary'!$C$42),"Yes","No") -> No | K87: =VLOOKUP($D87,'C.1 - Rate Sheets'!$B$15:$F$25,2,FALSE) -> 45.03 | L87: =VLOOKUP($D87,'C.1 - Rate Sheets'!$B$15:$F$25,3,FALSE) -> 61.99 | M87: =VLOOKUP($D87,'C.1 - Rate Sheets'!$B$15:$F$25,4,FALSE) -> 0 | N87: =VLOOKUP($D87,'C.1 - Rate Sheets'!$B$15:$F$25,5,FALSE) -> 0 | Z87: 16 | AD87: 8 | AE87: 8 | AI87: 8 | AJ87: 8 | AN87: 8 | AO87: 8 | AS87: 8 | AT87: 8 | AX87: 8 | AY87: 8 | BD87: 16 | CG87: 40 | CH87: 72 | CI87: 0 | CJ87: 0 | CK87: 112 | CL87: 1801.2 | CM87: 4463.28 | CN87: 0 | CO87: 0 | CP87: 6264.48 | CQ87: 6264.48 | CR87: Yes | CS87: 0 | CT87: 0 | CU87: 0
CG88: 0 | CH88: 0 | CI88: 0 | CJ88: 0 | CK88: 0 | CL88: 0 | CM88: 0 | CN88: 0 | CO88: 0 | CP88: 0 | CQ88: 0
B89: 88 | C89: Carlos R Garcia | D89: General Foreman | E89: Vendor No 3 | F89: 50937 | G89: 82R76918 | H89: 2018-10-28 | I89: 2018-11-01 | J89: =IF(AND(H89>='A - Contractor Summary'!$C$36,I89<='A - Contractor Summary'!$C$42),"Yes","No") -> No | K89: =VLOOKUP($D89,'C.1 - Rate Sheets'!$B$15:$F$25,2,FALSE) -> 45.03 | L89: =VLOOKUP($D89,'C.1 - Rate Sheets'!$B$15:$F$25,3,FALSE) -> 61.99 | M89: =VLOOKUP($D89,'C.1 - Rate Sheets'!$B$15:$F$25,4,FALSE) -> 0 | N89: =VLOOKUP($D89,'C.1 - Rate Sheets'!$B$15:$F$25,5,FALSE) -> 0 | BI89: 16 | BM89: 8 | BN89: 8 | BR89: 8 | BS89: 8 | BW89: 8 | BX89: 8 | CB89: 6 | CG89: 30 | CH89: 40 | CI89: 0 | CJ89: 0 | CK89: 70 | CL89: 1350.9 | CM89: 2479.6 | CN89: 0 | CO89: 0 | CP89: 3830.5 | CQ89: 3830.5 | CR89: Yes | CS89: 0 | CT89: 0 | CU89: 0
CG90: 0 | CH90: 0 | CI90: 0 | CJ90: 0 | CK90: 0 | CL90: 0 | CM90: 0 | CN90: 0 | CO90: 0 | CP90: 0 | CQ90: 0
B91: 90 | C91: Dave Busch | D91: General Foreman | E91: Vendor No 3 | F91: 50399 | G91: 82O62118 | H91: 2018-10-28 | I91: 2018-11-01 | J91: =IF(AND(H91>='A - Contractor Summary'!$C$36,I91<='A - Contractor Summary'!$C$42),"Yes","No") -> No | K91: =VLOOKUP($D91,'C.1 - Rate Sheets'!$B$15:$F$25,2,FALSE) -> 45.03 | L91: =VLOOKUP($D91,'C.1 - Rate Sheets'!$B$15:$F$25,3,FALSE) -> 61.99 | M91: =VLOOKUP($D91,'C.1 - Rate Sheets'!$B$15:$F$25,4,FALSE) -> 0 | N91: =VLOOKUP($D91,'C.1 - Rate Sheets'!$B$15:$F$25,5,FALSE) -> 0 | BI91: 16 | BM91: 8 | BN91: 8 | BR91: 8 | BS91: 8 | BW91: 8 | BX91: 8 | CB91: 8 | CC91: 0.5 | CG91: 32 | CH91: 40.5 | CI91: 0 | CJ91: 0 | CK91: 72.5 | CL91: 1440.96 | CM91: 2510.595 | CN91: 0 | CO91: 0 | CP91: 3951.555 | CQ91: 3951.555 | CR91: Yes | CS91: 0 | CT91: 0 | CU91: 0
CG92: 0 | CH92: 0 | CI92: 0 | CJ92: 0 | CK92: 0 | CL92: 0 | CM92: 0 | CN92: 0 | CO92: 0 | CP92: 0 | CQ92: 0
B93: 92 | C93: Angelo Perez | D93: Foreperson | E93: Vendor No 3 | F93: 50937 | G93: 82G04618 | H93: 2018-10-21 | I93: 2018-10-27 | J93: =IF(AND(H93>='A - Contractor Summary'!$C$36,I93<='A - Contractor Summary'!$C$42),"Yes","No") -> No | K93: =VLOOKUP($D93,'C.1 - Rate Sheets'!$B$15:$F$25,2,FALSE) -> 39.43 | L93: =VLOOKUP($D93,'C.1 - Rate Sheets'!$B$15:$F$25,3,FALSE) -> 53.62 | M93: =VLOOKUP($D93,'C.1 - Rate Sheets'!$B$15:$F$25,4,FALSE) -> 0 | N93: =VLOOKUP($D93,'C.1 - Rate Sheets'!$B$15:$F$25,5,FALSE) -> 0 | Z93: 16 | AD93: 8 | AE93: 8 | AI93: 8 | AJ93: 8 | AN93: 8 | AO93: 8 | AS93: 8 | AT93: 8 | AX93: 8 | AY93: 8 | BD93: 16 | CG93: 40 | CH93: 72 | CI93: 0 | CJ93: 0 | CK93: 112 | CL93: 1577.2 | CM93: 3860.64 | CN93: 0 | CO93: 0 | CP93: 5437.84 | CQ93: 5437.84 | CR93: Yes | CS93: 0 | CT93: 0 | CU93: 0
B94: 94 | C94: Gabriel Tovar | D94: Trimmer B | E94: Vendor No 3 | F94: 50937 | G94: 82G04618 | H94: 2018-10-21 | I94: 2018-10-27 | J94: =IF(AND(H94>='A - Contractor Summary'!$C$36,I94<='A - Contractor Summary'!$C$42),"Yes","No") -> No | K94: =VLOOKUP($D94,'C.1 - Rate Sheets'!$B$15:$F$25,2,FALSE) -> 26.9 | L94: =VLOOKUP($D94,'C.1 - Rate Sheets'!$B$15:$F$25,3,FALSE) -> 36.53 | M94: =VLOOKUP($D94,'C.1 - Rate Sheets'!$B$15:$F$25,4,FALSE) -> 0 | N94: =VLOOKUP($D94,'C.1 - Rate Sheets'!$B$15:$F$25,5,FALSE) -> 0 | Z94: 16 | AD94: 8 | AE94: 8 | AI94: 8 | AJ94: 8 | AN94: 8 | AO94: 8 | AS94: 8 | AT94: 8 | AX94: 8 | AY94: 8 | BD94: 16 | CG94: 40 | CH94: 72 | CI94: 0 | CJ94: 0 | CK94: 112 | CL94: 1076 | CM94: 2630.16 | CN94: 0 | CO94: 0 | CP94: 3706.16 | CQ94: 3706.16 | CR94: Yes | CS94: 0 | CT94: 0 | CU94: 0
B95: 96 | C95: Jaison Cruz | D95: Trimmer A | E95: Vendor No 3 | F95: 50937 | G95: 82G04618 | H95: 2018-10-21 | I95: 2018-10-27 | J95: =IF(AND(H95>='A - Contractor Summary'!$C$36,I95<='A - Contractor Summary'!$C$42),"Yes","No") -> No | K95: =VLOOKUP($D95,'C.1 - Rate Sheets'!$B$15:$F$25,2,FALSE) -> 29.1 | L95: =VLOOKUP($D95,'C.1 - Rate Sheets'!$B$15:$F$25,3,FALSE) -> 39.68 | M95: =VLOOKUP($D95,'C.1 - Rate Sheets'!$B$15:$F$25,4,FALSE) -> 0 | N95: =VLOOKUP($D95,'C.1 - Rate Sheets'!$B$15:$F$25,5,FALSE) -> 0 | Z95: 16 | AD95: 8 | AE95: 8 | AI95: 8 | AJ95: 8 | AN95: 8 | AO95: 8 | AS95: 8 | AT95: 8 | AX95: 8 | AY95: 8 | BD95: 16 | CG95: 40 | CH95: 72 | CI95: 0 | CJ95: 0 | CK95: 112 | CL95: 1164 | CM95: 2856.96 | CN95: 0 | CO95: 0 | CP95: 4020.96 | CQ95: 4020.96 | CR95: Yes | CS95: 0 | CT95: 0 | CU95: 0
B96: 98 | C96: Dachel Yasmany | D96: Foreperson | E96: Vendor No 3 | F96: 50937 | G96: 82G04618 | H96: 2018-10-21 | I96: 2018-10-27 | J96: =IF(AND(H96>='A - Contractor Summary'!$C$36,I96<='A - Contractor Summary'!$C$42),"Yes","No") -> No | K96: =VLOOKUP($D96,'C.1 - Rate Sheets'!$B$15:$F$25,2,FALSE) -> 39.43 | L96: =VLOOKUP($D96,'C.1 - Rate Sheets'!$B$15:$F$25,3,FALSE) -> 53.62 | M96: =VLOOKUP($D96,'C.1 - Rate Sheets'!$B$15:$F$25,4,FALSE) -> 0 | N96: =VLOOKUP($D96,'C.1 - Rate Sheets'!$B$15:$F$25,5,FALSE) -> 0 | Z96: 16 | AD96: 8 | AE96: 8 | AI96: 8 | AJ96: 8 | AN96: 8 | AO96: 8 | AS96: 8 | AT96: 8 | AX96: 8 | AY96: 8 | BD96: 16 | CG96: 40 | CH96: 72 | CI96: 0 | CJ96: 0 | CK96: 112 | CL96: 1577.2 | CM96: 3860.64 | CN96: 0 | CO96: 0 | CP96: 5437.84 | CQ96: 5437.84 | CR96: Yes | CS96: 0 | CT96: 0 | CU96: 0
B97: 100 | C97: Oneiber Mejia | D97: Trimmer A | E97: Vendor No 3 | F97: 50937 | G97: 82G04618 | H97: 2018-10-21 | I97: 2018-10-27 | J97: =IF(AND(H97>='A - Contractor Summary'!$C$36,I97<='A - Contractor Summary'!$C$42),"Yes","No") -> No | K97: =VLOOKUP($D97,'C.1 - Rate Sheets'!$B$15:$F$25,2,FALSE) -> 29.1 | L97: =VLOOKUP($D97,'C.1 - Rate Sheets'!$B$15:$F$25,3,FALSE) -> 39.68 | M97: =VLOOKUP($D97,'C.1 - Rate Sheets'!$B$15:$F$25,4,FALSE) -> 0 | N97: =VLOOKUP($D97,'C.1 - Rate Sheets'!$B$15:$F$25,5,FALSE) -> 0 | Z97: 16 | AD97: 8 | AE97: 8 | AI97: 8 | AJ97: 8 | AN97: 8 | AO97: 8 | AS97: 8 | AT97: 8 | AX97: 8 | AY97: 8 | BD97: 16 | CG97: 40 | CH97: 72 | CI97: 0 | CJ97: 0 | CK97: 112 | CL97: 1164 | CM97: 2856.96 | CN97: 0 | CO97: 0 | CP97: 4020.96 | CQ97: 4020.96 | CR97: Yes | CS97: 0 | CT97: 0 | CU97: 0
B98: 102 | C98: Angel Guevara | D98: Trimmer B | E98: Vendor No 3 | F98: 50937 | G98: 82G04618 | H98: 2018-10-21 | I98: 2018-10-27 | J98: =IF(AND(H98>='A - Contractor Summary'!$C$36,I98<='A - Contractor Summary'!$C$42),"Yes","No") -> No | K98: =VLOOKUP($D98,'C.1 - Rate Sheets'!$B$15:$F$25,2,FALSE) -> 26.9 | L98: =VLOOKUP($D98,'C.1 - Rate Sheets'!$B$15:$F$25,3,FALSE) -> 36.53 | M98: =VLOOKUP($D98,'C.1 - Rate Sheets'!$B$15:$F$25,4,FALSE) -> 0 | N98: =VLOOKUP($D98,'C.1 - Rate Sheets'!$B$15:$F$25,5,FALSE) -> 0 | Z98: 16 | AD98: 8 | AE98: 8 | AI98: 8 | AJ98: 8 | AN98: 8 | AO98: 8 | AS98: 8 | AT98: 8 | AX98: 8 | AY98: 8 | BD98: 16 | CG98: 40 | CH98: 72 | CI98: 0 | CJ98: 0 | CK98: 112 | CL98: 1076 | CM98: 2630.16 | CN98: 0 | CO98: 0 | CP98: 3706.16 | CQ98: 3706.16 | CR98: Yes | CS98: 0 | CT98: 0 | CU98: 0
B99: 104 | C99: Orlando Garcia | D99: Trimmer A | E99: Vendor No 3 | F99: 50937 | G99: 82G04618 | H99: 2018-10-21 | I99: 2018-10-27 | J99: =IF(AND(H99>='A - Contractor Summary'!$C$36,I99<='A - Contractor Summary'!$C$42),"Yes","No") -> No | K99: =VLOOKUP($D99,'C.1 - Rate Sheets'!$B$15:$F$25,2,FALSE) -> 29.1 | L99: =VLOOKUP($D99,'C.1 - Rate Sheets'!$B$15:$F$25,3,FALSE) -> 39.68 | M99: =VLOOKUP($D99,'C.1 - Rate Sheets'!$B$15:$F$25,4,FALSE) -> 0 | N99: =VLOOKUP($D99,'C.1 - Rate Sheets'!$B$15:$F$25,5,FALSE) -> 0 | Z99: 16 | AD99: 8 | AE99: 8 | AI99: 8 | AJ99: 8 | AN99: 8 | AO99: 8 | AS99: 8 | AT99: 8 | AX99: 8 | AY99: 8 | BD99: 16 | CG99: 40 | CH99: 72 | CI99: 0 | CJ99: 0 | CK99: 112 | CL99: 1164 | CM99: 2856.96 | CN99: 0 | CO99: 0 | CP99: 4020.96 | CQ99: 4020.96 | CR99: Yes | CS99: 0 | CT99: 0 | CU99: 0
B100: 106 | C100: Victor Cruz | D100: Foreperson | E100: Vendor No 3 | F100: 50937 | G100: 82G04618 | H100: 2018-10-21 | I100: 2018-10-25 | J100: =IF(AND(H100>='A - Contractor Summary'!$C$36,I100<='A - Contractor Summary'!$C$42),"Yes","No") -> No | K100: =VLOOKUP($D100,'C.1 - Rate Sheets'!$B$15:$F$25,2,FALSE) -> 39.43 | L100: =VLOOKUP($D100,'C.1 - Rate Sheets'!$B$15:$F$25,3,FALSE) -> 53.62 | M100: =VLOOKUP($D100,'C.1 - Rate Sheets'!$B$15:$F$25,4,FALSE) -> 0 | N100: =VLOOKUP($D100,'C.1 - Rate Sheets'!$B$15:$F$25,5,FALSE) -> 0 | Z100: 16 | AD100: 8 | AE100: 8 | AI100: 8 | AJ100: 8 | AN100: 8 | AO100: 8 | AS100: 5 | CG100: 29 | CH100: 40 | CI100: 0 | CJ100: 0 | CK100: 69 | CL100: 1143.47 | CM100: 2144.8 | CN100: 0 | CO100: 0 | CP100: 3288.27 | CQ100: 3288.27 | CR100: Yes | CS100: 0 | CT100: 0 | CU100: 0
B101: 108 | C101: Manuel Ortiz | D101: Trimmer A | E101: Vendor No 3 | F101: 50937 | G101: 82G04618 | H101: 2018-10-21 | I101: 2018-10-27 | J101: =IF(AND(H101>='A - Contractor Summary'!$C$36,I101<='A - Contractor Summary'!$C$42),"Yes","No") -> No | K101: =VLOOKUP($D101,'C.1 - Rate Sheets'!$B$15:$F$25,2,FALSE) -> 29.1 | L101: =VLOOKUP($D101,'C.1 - Rate Sheets'!$B$15:$F$25,3,FALSE) -> 39.68 | M101: =VLOOKUP($D101,'C.1 - Rate Sheets'!$B$15:$F$25,4,FALSE) -> 0 | N101: =VLOOKUP($D101,'C.1 - Rate Sheets'!$B$15:$F$25,5,FALSE) -> 0 | Z101: 16 | AD101: 8 | AE101: 8 | AI101: 8 | AJ101: 8 | AN101: 8 | AO101: 8 | AS101: 8 | AT101: 8 | AX101: 8 | AY101: 8 | BD101: 16 | CG101: 40 | CH101: 72 | CI101: 0 | CJ101: 0 | CK101: 112 | CL101: 1164 | CM101: 2856.96 | CN101: 0 | CO101: 0 | CP101: 4020.96 | CQ101: 4020.96 | CR101: Yes | CS101: 0 | CT101: 0 | CU101: 0
B102: 110 | C102: Tonny Rivas | D102: Foreperson | E102: Vendor No 3 | F102: 50937 | G102: 82G04618 | H102: 2018-10-21 | I102: 2018-10-27 | J102: =IF(AND(H102>='A - Contractor Summary'!$C$36,I102<='A - Contractor Summary'!$C$42),"Yes","No") -> No | K102: =VLOOKUP($D102,'C.1 - Rate Sheets'!$B$15:$F$25,2,FALSE) -> 39.43 | L102: =VLOOKUP($D102,'C.1 - Rate Sheets'!$B$15:$F$25,3,FALSE) -> 53.62 | M102: =VLOOKUP($D102,'C.1 - Rate Sheets'!$B$15:$F$25,4,FALSE) -> 0 | N102: =VLOOKUP($D102,'C.1 - Rate Sheets'!$B$15:$F$25,5,FALSE) -> 0 | Z102: 16 | AD102: 8 | AE102: 8 | AI102: 8 | AJ102: 8 | AN102: 8 | AO102: 8 | AS102: 8 | AT102: 8 | AX102: 8 | AY102: 8 | BD102: 16 | CG102: 40 | CH102: 72 | CI102: 0 | CJ102: 0 | CK102: 112 | CL102: 1577.2 | CM102: 3860.64 | CN102: 0 | CO102: 0 | CP102: 5437.84 | CQ102: 5437.84 | CR102: Yes | CS102: 0 | CT102: 0 | CU102: 0
B103: 112 | C103: Carlos A Ruiz B | D103: Trimmer A | E103: Vendor No 3 | F103: 50937 | G103: 82G04618 | H103: 2018-10-21 | I103: 2018-10-27 | J103: =IF(AND(H103>='A - Contractor Summary'!$C$36,I103<='A - Contractor Summary'!$C$42),"Yes","No") -> No | K103: =VLOOKUP($D103,'C.1 - Rate Sheets'!$B$15:$F$25,2,FALSE) -> 29.1 | L103: =VLOOKUP($D103,'C.1 - Rate Sheets'!$B$15:$F$25,3,FALSE) -> 39.68 | M103: =VLOOKUP($D103,'C.1 - Rate Sheets'!$B$15:$F$25,4,FALSE) -> 0 | N103: =VLOOKUP($D103,'C.1 - Rate Sheets'!$B$15:$F$25,5,FALSE) -> 0 | Z103: 16 | AD103: 8 | AE103: 8 | AI103: 8 | AJ103: 8 | AN103: 8 | AO103: 8 | AS103: 8 | AT103: 8 | AX103: 8 | AY103: 8 | BD103: 16 | CG103: 40 | CH103: 72 | CI103: 0 | CJ103: 0 | CK103: 112 | CL103: 1164 | CM103: 2856.96 | CN103: 0 | CO103: 0 | CP103: 4020.96 | CQ103: 4020.96 | CR103: Yes | CS103: 0 | CT103: 0 | CU103: 0
B104: 114 | C104: Juan C Colmenarez | D104: Trimmer B | E104: Vendor No 3 | F104: 50937 | G104: 82G04618 | H104: 2018-10-25 | I104: 2018-10-27 | J104: =IF(AND(H104>='A - Contractor Summary'!$C$36,I104<='A - Contractor Summary'!$C$42),"Yes","No") -> No | K104: =VLOOKUP($D104,'C.1 - Rate Sheets'!$B$15:$F$25,2,FALSE) -> 26.9 | L104: =VLOOKUP($D104,'C.1 - Rate Sheets'!$B$15:$F$25,3,FALSE) -> 36.53 | M104: =VLOOKUP($D104,'C.1 - Rate Sheets'!$B$15:$F$25,4,FALSE) -> 0 | N104: =VLOOKUP($D104,'C.1 - Rate Sheets'!$B$15:$F$25,5,FALSE) -> 0 | AS104: 10 | AT104: 1 | AY104: 16 | BD104: 16 | CG104: 10 | CH104: 33 | CI104: 0 | CJ104: 0 | CK104: 43 | CL104: 269 | CM104: 1205.49 | CN104: 0 | CO104: 0 | CP104: 1474.49 | CQ104: 1474.49 | CR104: Yes | CS104: 0 | CT104: 0 | CU104: 0
CG105: 0 | CH105: 0 | CI105: 0 | CJ105: 0 | CK105: 0 | CL105: 0 | CM105: 0 | CN105: 0 | CO105: 0 | CP105: 0 | CQ105: 0
B106: 116 | C106: Joel Joseph | D106: General Foreman | E106: Vendor No 3 | F106: 55392 | G106: 82G04818 | H106: 2018-10-21 | I106: 2018-10-27 | J106: =IF(AND(H106>='A - Contractor Summary'!$C$36,I106<='A - Contractor Summary'!$C$42),"Yes","No") -> No | K106: =VLOOKUP($D106,'C.1 - Rate Sheets'!$B$15:$F$25,2,FALSE) -> 45.03 | L106: =VLOOKUP($D106,'C.1 - Rate Sheets'!$B$15:$F$25,3,FALSE) -> 61.99 | M106: =VLOOKUP($D106,'C.1 - Rate Sheets'!$B$15:$F$25,4,FALSE) -> 0 | N106: =VLOOKUP($D106,'C.1 - Rate Sheets'!$B$15:$F$25,5,FALSE) -> 0 | Z106: 16 | AD106: 8 | AE106: 8 | AI106: 8 | AJ106: 8 | AN106: 8 | AO106: 8 | AS106: 8 | AT106: 8 | AX106: 8 | AY106: 8 | BD106: 16 | CG106: 40 | CH106: 72 | CI106: 0 | CJ106: 0 | CK106: 112 | CL106: 1801.2 | CM106: 4463.28 | CN106: 0 | CO106: 0 | CP106: 6264.48 | CQ106: 6264.48 | CR106: Yes | CS106: 0 | CT106: 0 | CU106: 0
B107: 118 | C107: Antoine Jacquesson | D107: Foreperson | E107: Vendor No 3 | F107: 55392 | G107: 82G04818 | H107: 2018-10-21 | I107: 2018-10-27 | J107: =IF(AND(H107>='A - Contractor Summary'!$C$36,I107<='A - Contractor Summary'!$C$42),"Yes","No") -> No | K107: =VLOOKUP($D107,'C.1 - Rate Sheets'!$B$15:$F$25,2,FALSE) -> 39.43 | L107: =VLOOKUP($D107,'C.1 - Rate Sheets'!$B$15:$F$25,3,FALSE) -> 53.62 | M107: =VLOOKUP($D107,'C.1 - Rate Sheets'!$B$15:$F$25,4,FALSE) -> 0 | N107: =VLOOKUP($D107,'C.1 - Rate Sheets'!$B$15:$F$25,5,FALSE) -> 0 | Z107: 16 | AD107: 8 | AE107: 8 | AI107: 8 | AJ107: 8 | AN107: 8 | AO107: 8 | AS107: 8 | AT107: 8 | AX107: 8 | AY107: 8 | BD107: 16 | CG107: 40 | CH107: 72 | CI107: 0 | CJ107: 0 | CK107: 112 | CL107: 1577.2 | CM107: 3860.64 | CN107: 0 | CO107: 0 | CP107: 5437.84 | CQ107: 5437.84 | CR107: Yes | CS107: 0 | CT107: 0 | CU107: 0
B108: 120 | C108: Edgar Fenelon | D108: Trimmer B | E108: Vendor No 3 | F108: 55392 | G108: 82G04818 | H108: 2018-10-21 | I108: 2018-10-27 | J108: =IF(AND(H108>='A - Contractor Summary'!$C$36,I108<='A - Contractor Summary'!$C$42),"Yes","No") -> No | K108: =VLOOKUP($D108,'C.1 - Rate Sheets'!$B$15:$F$25,2,FALSE) -> 26.9 | L108: =VLOOKUP($D108,'C.1 - Rate Sheets'!$B$15:$F$25,3,FALSE) -> 36.53 | M108: =VLOOKUP($D108,'C.1 - Rate Sheets'!$B$15:$F$25,4,FALSE) -> 0 | N108: =VLOOKUP($D108,'C.1 - Rate Sheets'!$B$15:$F$25,5,FALSE) -> 0 | Z108: 16 | AD108: 8 | AE108: 8 | AI108: 8 | AJ108: 8 | AN108: 8 | AO108: 8 | AS108: 8 | AT108: 8 | AX108: 8 | AY108: 8 | BD108: 16 | CG108: 40 | CH108: 72 | CI108: 0 | CJ108: 0 | CK108: 112 | CL108: 1076 | CM108: 2630.16 | CN108: 0 | CO108: 0 | CP108: 3706.16 | CQ108: 3706.16 | CR108: Yes | CS108: 0 | CT108: 0 | CU108: 0
B109: 122 | C109: Peter Joseph | D109: Trimmer A | E109: Vendor No 3 | F109: 55392 | G109: 82G04818 | H109: 2018-10-21 | I109: 2018-10-27 | J109: =IF(AND(H109>='A - Contractor Summary'!$C$36,I109<='A - Contractor Summary'!$C$42),"Yes","No") -> No | K109: =VLOOKUP($D109,'C.1 - Rate Sheets'!$B$15:$F$25,2,FALSE) -> 29.1 | L109: =VLOOKUP($D109,'C.1 - Rate Sheets'!$B$15:$F$25,3,FALSE) -> 39.68 | M109: =VLOOKUP($D109,'C.1 - Rate Sheets'!$B$15:$F$25,4,FALSE) -> 0 | N109: =VLOOKUP($D109,'C.1 - Rate Sheets'!$B$15:$F$25,5,FALSE) -> 0 | Z109: 16 | AD109: 8 | AE109: 8 | AI109: 8 | AJ109: 8 | AN109: 8 | AO109: 8 | AS109: 8 | AT109: 8 | AX109: 8 | AY109: 8 | BD109: 16 | CG109: 40 | CH109: 72 | CI109: 0 | CJ109: 0 | CK109: 112 | CL109: 1164 | CM109: 2856.96 | CN109: 0 | CO109: 0 | CP109: 4020.96 | CQ109: 4020.96 | CR109: Yes | CS109: 0 | CT109: 0 | CU109: 0
B110: 124 | C110: Giles Frederick | D110: Foreperson | E110: Vendor No 3 | F110: 55392 | G110: 82G04818 | H110: 2018-10-21 | I110: 2018-10-27 | J110: =IF(AND(H110>='A - Contractor Summary'!$C$36,I110<='A - Contractor Summary'!$C$42),"Yes","No") -> No | K110: =VLOOKUP($D110,'C.1 - Rate Sheets'!$B$15:$F$25,2,FALSE) -> 39.43 | L110: =VLOOKUP($D110,'C.1 - Rate Sheets'!$B$15:$F$25,3,FALSE) -> 53.62 | M110: =VLOOKUP($D110,'C.1 - Rate Sheets'!$B$15:$F$25,4,FALSE) -> 0 | N110: =VLOOKUP($D110,'C.1 - Rate Sheets'!$B$15:$F$25,5,FALSE) -> 0 | Z110: 16 | AD110: 8 | AE110: 8 | AI110: 8 | AJ110: 8 | AN110: 8 | AO110: 8 | AS110: 8 | AT110: 8 | AX110: 8 | AY110: 8 | BD110: 16 | CG110: 40 | CH110: 72 | CI110: 0 | CJ110: 0 | CK110: 112 | CL110: 1577.2 | CM110: 3860.64 | CN110: 0 | CO110: 0 | CP110: 5437.84 | CQ110: 5437.84 | CR110: Yes | CS110: 0 | CT110: 0 | CU110: 0
B111: 126 | C111: Ismith Saint Clous | D111: Foreperson | E111: Vendor No 3 | F111: 55392 | G111: 82G04818 | H111: 2018-10-21 | I111: 2018-10-27 | J111: =IF(AND(H111>='A - Contractor Summary'!$C$36,I111<='A - Contractor Summary'!$C$42),"Yes","No") -> No | K111: =VLOOKUP($D111,'C.1 - Rate Sheets'!$B$15:$F$25,2,FALSE) -> 39.43 | L111: =VLOOKUP($D111,'C.1 - Rate Sheets'!$B$15:$F$25,3,FALSE) -> 53.62 | M111: =VLOOKUP($D111,'C.1 - Rate Sheets'!$B$15:$F$25,4,FALSE) -> 0 | N111: =VLOOKUP($D111,'C.1 - Rate Sheets'!$B$15:$F$25,5,FALSE) -> 0 | Z111: 16 | AD111: 8 | AE111: 8 | AI111: 8 | AJ111: 8 | AN111: 8 | AO111: 8 | AS111: 8 | AT111: 8 | AX111: 8 | AY111: 8 | BD111: 16 | CG111: 40 | CH111: 72 | CI111: 0 | CJ111: 0 | CK111: 112 | CL111: 1577.2 | CM111: 3860.64 | CN111: 0 | CO111: 0 | CP111: 5437.84 | CQ111: 5437.84 | CR111: Yes | CS111: 0 | CT111: 0 | CU111: 0
B112: 128 | C112: Luco Morency | D112: Trimmer A | E112: Vendor No 3 | F112: 55392 | G112: 82G04818 | H112: 2018-10-21 | I112: 2018-10-27 | J112: =IF(AND(H112>='A - Contractor Summary'!$C$36,I112<='A - Contractor Summary'!$C$42),"Yes","No") -> No | K112: =VLOOKUP($D112,'C.1 - Rate Sheets'!$B$15:$F$25,2,FALSE) -> 29.1 | L112: =VLOOKUP($D112,'C.1 - Rate Sheets'!$B$15:$F$25,3,FALSE) -> 39.68 | M112: =VLOOKUP($D112,'C.1 - Rate Sheets'!$B$15:$F$25,4,FALSE) -> 0 | N112: =VLOOKUP($D112,'C.1 - Rate Sheets'!$B$15:$F$25,5,FALSE) -> 0 | Z112: 16 | AD112: 8 | AE112: 8 | AI112: 8 | AJ112: 8 | AN112: 8 | AO112: 8 | AS112: 8 | AT112: 8 | AX112: 8 | AY112: 8 | BD112: 16 | CG112: 40 | CH112: 72 | CI112: 0 | CJ112: 0 | CK112: 112 | CL112: 1164 | CM112: 2856.96 | CN112: 0 | CO112: 0 | CP112: 4020.96 | CQ112: 4020.96 | CR112: Yes | CS112: 0 | CT112: 0 | CU112: 0
B113: 130 | C113: Paulin Toussaint | D113: Trimmer A | E113: Vendor No 3 | F113: 55392 | G113: 82G04818 | H113: 2018-10-21 | I113: 2018-10-27 | J113: =IF(AND(H113>='A - Contractor Summary'!$C$36,I113<='A - Contractor Summary'!$C$42),"Yes","No") -> No | K113: =VLOOKUP($D113,'C.1 - Rate Sheets'!$B$15:$F$25,2,FALSE) -> 29.1 | L113: =VLOOKUP($D113,'C.1 - Rate Sheets'!$B$15:$F$25,3,FALSE) -> 39.68 | M113: =VLOOKUP($D113,'C.1 - Rate Sheets'!$B$15:$F$25,4,FALSE) -> 0 | N113: =VLOOKUP($D113,'C.1 - Rate Sheets'!$B$15:$F$25,5,FALSE) -> 0 | Z113: 16 | AD113: 8 | AE113: 8 | AI113: 8 | AJ113: 8 | AN113: 8 | AO113: 8 | AS113: 8 | AT113: 8 | AX113: 8 | AY113: 8 | BD113: 16 | CG113: 40 | CH113: 72 | CI113: 0 | CJ113: 0 | CK113: 112 | CL113: 1164 | CM113: 2856.96 | CN113: 0 | CO113: 0 | CP113: 4020.96 | CQ113: 4020.96 | CR113: Yes | CS113: 0 | CT113: 0 | CU113: 0
B114: 132 | C114: Claude Laguerre | D114: Foreperson | E114: Vendor No 3 | F114: 55392 | G114: 82G04818 | H114: 2018-10-21 | I114: 2018-10-27 | J114: =IF(AND(H114>='A - Contractor Summary'!$C$36,I114<='A - Contractor Summary'!$C$42),"Yes","No") -> No | K114: =VLOOKUP($D114,'C.1 - Rate Sheets'!$B$15:$F$25,2,FALSE) -> 39.43 | L114: =VLOOKUP($D114,'C.1 - Rate Sheets'!$B$15:$F$25,3,FALSE) -> 53.62 | M114: =VLOOKUP($D114,'C.1 - Rate Sheets'!$B$15:$F$25,4,FALSE) -> 0 | N114: =VLOOKUP($D114,'C.1 - Rate Sheets'!$B$15:$F$25,5,FALSE) -> 0 | Z114: 16 | AD114: 8 | AE114: 8 | AI114: 8 | AJ114: 8 | AN114: 8 | AO114: 8 | AS114: 8 | AT114: 8 | AX114: 8 | AY114: 8 | BD114: 16 | CG114: 40 | CH114: 72 | CI114: 0 | CJ114: 0 | CK114: 112 | CL114: 1577.2 | CM114: 3860.64 | CN114: 0 | CO114: 0 | CP114: 5437.84 | CQ114: 5437.84 | CR114: Yes | CS114: 0 | CT114: 0 | CU114: 0
B115: 134 | C115: Francois Andre | D115: Trimmer A | E115: Vendor No 3 | F115: 55392 | G115: 82G04818 | H115: 2018-10-21 | I115: 2018-10-27 | J115: =IF(AND(H115>='A - Contractor Summary'!$C$36,I115<='A - Contractor Summary'!$C$42),"Yes","No") -> No | K115: =VLOOKUP($D115,'C.1 - Rate Sheets'!$B$15:$F$25,2,FALSE) -> 29.1 | L115: =VLOOKUP($D115,'C.1 - Rate Sheets'!$B$15:$F$25,3,FALSE) -> 39.68 | M115: =VLOOKUP($D115,'C.1 - Rate Sheets'!$B$15:$F$25,4,FALSE) -> 0 | N115: =VLOOKUP($D115,'C.1 - Rate Sheets'!$B$15:$F$25,5,FALSE) -> 0 | Z115: 16 | AD115: 8 | AE115: 8 | AI115: 8 | AJ115: 8 | AN115: 8 | AO115: 8 | AS115: 8 | AT115: 8 | AX115: 8 | AY115: 8 | BD115: 16 | CG115: 40 | CH115: 72 | CI115: 0 | CJ115: 0 | CK115: 112 | CL115: 1164 | CM115: 2856.96 | CN115: 0 | CO115: 0 | CP115: 4020.96 | CQ115: 4020.96 | CR115: Yes | CS115: 0 | CT115: 0 | CU115: 0
B116: 136 | C116: Paul Donald | D116: Trimmer A | E116: Vendor No 3 | F116: 55392 | G116: 82G04818 | H116: 2018-10-21 | I116: 2018-10-27 | J116: =IF(AND(H116>='A - Contractor Summary'!$C$36,I116<='A - Contractor Summary'!$C$42),"Yes","No") -> No | K116: =VLOOKUP($D116,'C.1 - Rate Sheets'!$B$15:$F$25,2,FALSE) -> 29.1 | L116: =VLOOKUP($D116,'C.1 - Rate Sheets'!$B$15:$F$25,3,FALSE) -> 39.68 | M116: =VLOOKUP($D116,'C.1 - Rate Sheets'!$B$15:$F$25,4,FALSE) -> 0 | N116: =VLOOKUP($D116,'C.1 - Rate Sheets'!$B$15:$F$25,5,FALSE) -> 0 | Z116: 16 | AD116: 8 | AE116: 8 | AI116: 8 | AJ116: 8 | AN116: 8 | AO116: 8 | AS116: 8 | AT116: 8 | AX116: 8 | AY116: 8 | BD116: 16 | CG116: 40 | CH116: 72 | CI116: 0 | CJ116: 0 | CK116: 112 | CL116: 1164 | CM116: 2856.96 | CN116: 0 | CO116: 0 | CP116: 4020.96 | CQ116: 4020.96 | CR116: Yes | CS116: 0 | CT116: 0 | CU116: 0
B117: 138 | C117: Elie Nerestan | D117: Trimmer A | E117: Vendor No 3 | F117: 55392 | G117: 82G04818 | H117: 2018-10-21 | I117: 2018-10-27 | J117: =IF(AND(H117>='A - Contractor Summary'!$C$36,I117<='A - Contractor Summary'!$C$42),"Yes","No") -> No | K117: =VLOOKUP($D117,'C.1 - Rate Sheets'!$B$15:$F$25,2,FALSE) -> 29.1 | L117: =VLOOKUP($D117,'C.1 - Rate Sheets'!$B$15:$F$25,3,FALSE) -> 39.68 | M117: =VLOOKUP($D117,'C.1 - Rate Sheets'!$B$15:$F$25,4,FALSE) -> 0 | N117: =VLOOKUP($D117,'C.1 - Rate Sheets'!$B$15:$F$25,5,FALSE) -> 0 | Z117: 16 | AD117: 8 | AE117: 8 | AI117: 8 | AJ117: 8 | AN117: 8 | AO117: 8 | AS117: 8 | AT117: 8 | AX117: 8 | AY117: 8 | BD117: 16 | CG117: 40 | CH117: 72 | CI117: 0 | CJ117: 0 | CK117: 112 | CL117: 1164 | CM117: 2856.96 | CN117: 0 | CO117: 0 | CP117: 4020.96 | CQ117: 4020.96 | CR117: Yes | CS117: 0 | CT117: 0 | CU117: 0
B118: 140 | C118: Bruce Bien Aime | D118: Trimmer B | E118: Vendor No 3 | F118: 55392 | G118: 82G04818 | H118: 2018-10-21 | I118: 2018-10-27 | J118: =IF(AND(H118>='A - Contractor Summary'!$C$36,I118<='A - Contractor Summary'!$C$42),"Yes","No") -> No | K118: =VLOOKUP($D118,'C.1 - Rate Sheets'!$B$15:$F$25,2,FALSE) -> 26.9 | L118: =VLOOKUP($D118,'C.1 - Rate Sheets'!$B$15:$F$25,3,FALSE) -> 36.53 | M118: =VLOOKUP($D118,'C.1 - Rate Sheets'!$B$15:$F$25,4,FALSE) -> 0 | N118: =VLOOKUP($D118,'C.1 - Rate Sheets'!$B$15:$F$25,5,FALSE) -> 0 | Z118: 16 | AD118: 8 | AE118: 8 | AI118: 8 | AJ118: 8 | AN118: 8 | AO118: 8 | AS118: 8 | AT118: 8 | AX118: 8 | AY118: 8 | BD118: 16 | CG118: 40 | CH118: 72 | CI118: 0 | CJ118: 0 | CK118: 112 | CL118: 1076 | CM118: 2630.16 | CN118: 0 | CO118: 0 | CP118: 3706.16 | CQ118: 3706.16 | CR118: Yes | CS118: 0 | CT118: 0 | CU118: 0
B119: 142 | C119: Reginal Coissy | D119: Trimmer A | E119: Vendor No 3 | F119: 55392 | G119: 82G04818 | H119: 2018-10-21 | I119: 2018-10-27 | J119: =IF(AND(H119>='A - Contractor Summary'!$C$36,I119<='A - Contractor Summary'!$C$42),"Yes","No") -> No | K119: =VLOOKUP($D119,'C.1 - Rate Sheets'!$B$15:$F$25,2,FALSE) -> 29.1 | L119: =VLOOKUP($D119,'C.1 - Rate Sheets'!$B$15:$F$25,3,FALSE) -> 39.68 | M119: =VLOOKUP($D119,'C.1 - Rate Sheets'!$B$15:$F$25,4,FALSE) -> 0 | N119: =VLOOKUP($D119,'C.1 - Rate Sheets'!$B$15:$F$25,5,FALSE) -> 0 | Z119: 16 | AD119: 8 | AE119: 8 | AI119: 8 | AJ119: 8 | AN119: 8 | AO119: 8 | AS119: 8 | AT119: 8 | AX119: 8 | AY119: 8 | BD119: 16 | CG119: 40 | CH119: 72 | CI119: 0 | CJ119: 0 | CK119: 112 | CL119: 1164 | CM119: 2856.96 | CN119: 0 | CO119: 0 | CP119: 4020.96 | CQ119: 4020.96 | CR119: Yes | CS119: 0 | CT119: 0 | CU119: 0
B120: 144 | C120: Ruben Romero | D120: Foreperson | E120: Vendor No 3 | F120: 55392 | G120: 82G04818 | H120: 2018-10-21 | I120: 2018-10-27 | J120: =IF(AND(H120>='A - Contractor Summary'!$C$36,I120<='A - Contractor Summary'!$C$42),"Yes","No") -> No | K120: =VLOOKUP($D120,'C.1 - Rate Sheets'!$B$15:$F$25,2,FALSE) -> 39.43 | L120: =VLOOKUP($D120,'C.1 - Rate Sheets'!$B$15:$F$25,3,FALSE) -> 53.62 | M120: =VLOOKUP($D120,'C.1 - Rate Sheets'!$B$15:$F$25,4,FALSE) -> 0 | N120: =VLOOKUP($D120,'C.1 - Rate Sheets'!$B$15:$F$25,5,FALSE) -> 0 | Z120: 16 | AD120: 8 | AE120: 8 | AI120: 8 | AJ120: 8 | AN120: 8 | AO120: 8 | AS120: 8 | AT120: 8 | AX120: 8 | AY120: 8 | BD120: 16 | CG120: 40 | CH120: 72 | CI120: 0 | CJ120: 0 | CK120: 112 | CL120: 1577.2 | CM120: 3860.64 | CN120: 0 | CO120: 0 | CP120: 5437.84 | CQ120: 5437.84 | CR120: Yes | CS120: 0 | CT120: 0 | CU120: 0
B121: 146 | C121: Anderson Jerome | D121: Foreperson | E121: Vendor No 3 | F121: 55392 | G121: 82G04818 | H121: 2018-10-21 | I121: 2018-10-26 | J121: =IF(AND(H121>='A - Contractor Summary'!$C$36,I121<='A - Contractor Summary'!$C$42),"Yes","No") -> No | K121: =VLOOKUP($D121,'C.1 - Rate Sheets'!$B$15:$F$25,2,FALSE) -> 39.43 | L121: =VLOOKUP($D121,'C.1 - Rate Sheets'!$B$15:$F$25,3,FALSE) -> 53.62 | M121: =VLOOKUP($D121,'C.1 - Rate Sheets'!$B$15:$F$25,4,FALSE) -> 0 | N121: =VLOOKUP($D121,'C.1 - Rate Sheets'!$B$15:$F$25,5,FALSE) -> 0 | Z121: 16 | AD121: 8 | AE121: 8 | AI121: 8 | AJ121: 8 | AN121: 8 | AO121: 8 | AS121: 8 | AT121: 8 | AX121: 8 | AY121: 8 | CG121: 40 | CH121: 56 | CI121: 0 | CJ121: 0 | CK121: 96 | CL121: 1577.2 | CM121: 3002.72 | CN121: 0 | CO121: 0 | CP121: 4579.92 | CQ121: 4579.92 | CR121: Yes | CS121: 0 | CT121: 0 | CU121: 0
B122: 148 | C122: Philome Croissy | D122: Trimmer A | E122: Vendor No 3 | F122: 55392 | G122: 82G04818 | H122: 2018-10-21 | I122: 2018-10-27 | J122: =IF(AND(H122>='A - Contractor Summary'!$C$36,I122<='A - Contractor Summary'!$C$42),"Yes","No") -> No | K122: =VLOOKUP($D122,'C.1 - Rate Sheets'!$B$15:$F$25,2,FALSE) -> 29.1 | L122: =VLOOKUP($D122,'C.1 - Rate Sheets'!$B$15:$F$25,3,FALSE) -> 39.68 | M122: =VLOOKUP($D122,'C.1 - Rate Sheets'!$B$15:$F$25,4,FALSE) -> 0 | N122: =VLOOKUP($D122,'C.1 - Rate Sheets'!$B$15:$F$25,5,FALSE) -> 0 | Z122: 16 | AD122: 8 | AE122: 8 | AI122: 8 | AJ122: 8 | AN122: 8 | AO122: 8 | AS122: 8 | AT122: 8 | AX122: 8 | AY122: 8 | BD122: 16 | CG122: 40 | CH122: 72 | CI122: 0 | CJ122: 0 | CK122: 112 | CL122: 1164 | CM122: 2856.96 | CN122: 0 | CO122: 0 | CP122: 4020.96 | CQ122: 4020.96 | CR122: Yes | CS122: 0 | CT122: 0 | CU122: 0
B123: 150 | C123: Claudain Duroque | D123: Foreperson | E123: Vendor No 3 | F123: 55392 | G123: 82G04818 | H123: 2018-10-21 | I123: 2018-10-27 | J123: =IF(AND(H123>='A - Contractor Summary'!$C$36,I123<='A - Contractor Summary'!$C$42),"Yes","No") -> No | K123: =VLOOKUP($D123,'C.1 - Rate Sheets'!$B$15:$F$25,2,FALSE) -> 39.43 | L123: =VLOOKUP($D123,'C.1 - Rate Sheets'!$B$15:$F$25,3,FALSE) -> 53.62 | M123: =VLOOKUP($D123,'C.1 - Rate Sheets'!$B$15:$F$25,4,FALSE) -> 0 | N123: =VLOOKUP($D123,'C.1 - Rate Sheets'!$B$15:$F$25,5,FALSE) -> 0 | Z123: 16 | AD123: 8 | AE123: 8 | AI123: 8 | AJ123: 8 | AN123: 8 | AO123: 8 | AS123: 8 | AT123: 8 | AX123: 8 | AY123: 8 | BD123: 16 | CG123: 40 | CH123: 72 | CI123: 0 | CJ123: 0 | CK123: 112 | CL123: 1577.2 | CM123: 3860.64 | CN123: 0 | CO123: 0 | CP123: 5437.84 | CQ123: 5437.84 | CR123: Yes | CS123: 0 | CT123: 0 | CU123: 0
B124: 152 | C124: Lunis Isaac | D124: Trimmer A | E124: Vendor No 3 | F124: 55392 | G124: 82G04818 | H124: 2018-10-21 | I124: 2018-10-27 | J124: =IF(AND(H124>='A - Contractor Summary'!$C$36,I124<='A - Contractor Summary'!$C$42),"Yes","No") -> No | K124: =VLOOKUP($D124,'C.1 - Rate Sheets'!$B$15:$F$25,2,FALSE) -> 29.1 | L124: =VLOOKUP($D124,'C.1 - Rate Sheets'!$B$15:$F$25,3,FALSE) -> 39.68 | M124: =VLOOKUP($D124,'C.1 - Rate Sheets'!$B$15:$F$25,4,FALSE) -> 0 | N124: =VLOOKUP($D124,'C.1 - Rate Sheets'!$B$15:$F$25,5,FALSE) -> 0 | Z124: 16 | AD124: 8 | AE124: 8 | AI124: 8 | AJ124: 8 | AN124: 8 | AO124: 8 | AS124: 8 | AT124: 8 | AX124: 8 | AY124: 8 | BD124: 16 | CG124: 40 | CH124: 72 | CI124: 0 | CJ124: 0 | CK124: 112 | CL124: 1164 | CM124: 2856.96 | CN124: 0 | CO124: 0 | CP124: 4020.96 | CQ124: 4020.96 | CR124: Yes | CS124: 0 | CT124: 0 | CU124: 0
B125: 154 | C125: Richard Louidor | D125: Foreperson | E125: Vendor No 3 | F125: 55392 | G125: 82G04818 | H125: 2018-10-21 | I125: 2018-10-27 | J125: =IF(AND(H125>='A - Contractor Summary'!$C$36,I125<='A - Contractor Summary'!$C$42),"Yes","No") -> No | K125: =VLOOKUP($D125,'C.1 - Rate Sheets'!$B$15:$F$25,2,FALSE) -> 39.43 | L125: =VLOOKUP($D125,'C.1 - Rate Sheets'!$B$15:$F$25,3,FALSE) -> 53.62 | M125: =VLOOKUP($D125,'C.1 - Rate Sheets'!$B$15:$F$25,4,FALSE) -> 0 | N125: =VLOOKUP($D125,'C.1 - Rate Sheets'!$B$15:$F$25,5,FALSE) -> 0 | Z125: 16 | AD125: 8 | AE125: 8 | AI125: 8 | AJ125: 8 | AN125: 8 | AO125: 8 | AS125: 8 | AT125: 8 | AX125: 8 | AY125: 8 | BD125: 16 | CG125: 40 | CH125: 72 | CI125: 0 | CJ125: 0 | CK125: 112 | CL125: 1577.2 | CM125: 3860.64 | CN125: 0 | CO125: 0 | CP125: 5437.84 | CQ125: 5437.84 | CR125: Yes | CS125: 0 | CT125: 0 | CU125: 0
B126: 156 | C126: Max Michaud | D126: Trimmer A | E126: Vendor No 3 | F126: 55392 | G126: 82G04818 | H126: 2018-10-21 | I126: 2018-10-27 | J126: =IF(AND(H126>='A - Contractor Summary'!$C$36,I126<='A - Contractor Summary'!$C$42),"Yes","No") -> No | K126: =VLOOKUP($D126,'C.1 - Rate Sheets'!$B$15:$F$25,2,FALSE) -> 29.1 | L126: =VLOOKUP($D126,'C.1 - Rate Sheets'!$B$15:$F$25,3,FALSE) -> 39.68 | M126: =VLOOKUP($D126,'C.1 - Rate Sheets'!$B$15:$F$25,4,FALSE) -> 0 | N126: =VLOOKUP($D126,'C.1 - Rate Sheets'!$B$15:$F$25,5,FALSE) -> 0 | Z126: 16 | AD126: 8 | AE126: 8 | AI126: 8 | AJ126: 8 | AN126: 8 | AO126: 8 | AS126: 8 | AT126: 8 | AX126: 8 | AY126: 8 | BD126: 16 | CG126: 40 | CH126: 72 | CI126: 0 | CJ126: 0 | CK126: 112 | CL126: 1164 | CM126: 2856.96 | CN126: 0 | CO126: 0 | CP126: 4020.96 | CQ126: 4020.96 | CR126: Yes | CS126: 0 | CT126: 0 | CU126: 0
B127: 158 | C127: Acmande Michel | D127: Trimmer B | E127: Vendor No 3 | F127: 55392 | G127: 82G04818 | H127: 2018-10-21 | I127: 2018-10-27 | J127: =IF(AND(H127>='A - Contractor Summary'!$C$36,I127<='A - Contractor Summary'!$C$42),"Yes","No") -> No | K127: =VLOOKUP($D127,'C.1 - Rate Sheets'!$B$15:$F$25,2,FALSE) -> 26.9 | L127: =VLOOKUP($D127,'C.1 - Rate Sheets'!$B$15:$F$25,3,FALSE) -> 36.53 | M127: =VLOOKUP($D127,'C.1 - Rate Sheets'!$B$15:$F$25,4,FALSE) -> 0 | N127: =VLOOKUP($D127,'C.1 - Rate Sheets'!$B$15:$F$25,5,FALSE) -> 0 | Z127: 16 | AD127: 8 | AE127: 8 | AI127: 8 | AJ127: 8 | AN127: 8 | AO127: 8 | AS127: 8 | AT127: 8 | AX127: 8 | AY127: 8 | BD127: 16 | CG127: 40 | CH127: 72 | CI127: 0 | CJ127: 0 | CK127: 112 | CL127: 1076 | CM127: 2630.16 | CN127: 0 | CO127: 0 | CP127: 3706.16 | CQ127: 3706.16 | CR127: Yes | CS127: 0 | CT127: 0 | CU127: 0
B128: 160 | C128: Jasmine Martin | D128: Trimmer A | E128: Vendor No 3 | F128: 55392 | G128: 82G04818 | H128: 2018-10-21 | I128: 2018-10-27 | J128: =IF(AND(H128>='A - Contractor Summary'!$C$36,I128<='A - Contractor Summary'!$C$42),"Yes","No") -> No | K128: =VLOOKUP($D128,'C.1 - Rate Sheets'!$B$15:$F$25,2,FALSE) -> 29.1 | L128: =VLOOKUP($D128,'C.1 - Rate Sheets'!$B$15:$F$25,3,FALSE) -> 39.68 | M128: =VLOOKUP($D128,'C.1 - Rate Sheets'!$B$15:$F$25,4,FALSE) -> 0 | N128: =VLOOKUP($D128,'C.1 - Rate Sheets'!$B$15:$F$25,5,FALSE) -> 0 | Z128: 16 | AD128: 8 | AE128: 8 | AI128: 8 | AJ128: 8 | AN128: 8 | AO128: 8 | AS128: 8 | AT128: 8 | AX128: 8 | AY128: 8 | BD128: 16 | CG128: 40 | CH128: 72 | CI128: 0 | CJ128: 0 | CK128: 112 | CL128: 1164 | CM128: 2856.96 | CN128: 0 | CO128: 0 | CP128: 4020.96 | CQ128: 4020.96 | CR128: Yes | CS128: 0 | CT128: 0 | CU128: 0
B129: 162 | C129: Termitus Jacques | D129: Trimmer A | E129: Vendor No 3 | F129: 55392 | G129: 82G04818 | H129: 2018-10-27 | I129: 2018-10-27 | J129: =IF(AND(H129>='A - Contractor Summary'!$C$36,I129<='A - Contractor Summary'!$C$42),"Yes","No") -> No | K129: =VLOOKUP($D129,'C.1 - Rate Sheets'!$B$15:$F$25,2,FALSE) -> 29.1 | L129: =VLOOKUP($D129,'C.1 - Rate Sheets'!$B$15:$F$25,3,FALSE) -> 39.68 | M129: =VLOOKUP($D129,'C.1 - Rate Sheets'!$B$15:$F$25,4,FALSE) -> 0 | N129: =VLOOKUP($D129,'C.1 - Rate Sheets'!$B$15:$F$25,5,FALSE) -> 0 | BD129: 16 | CG129: 0 | CH129: 16 | CI129: 0 | CJ129: 0 | CK129: 16 | CL129: 0 | CM129: 634.88 | CN129: 0 | CO129: 0 | CP129: 634.88 | CQ129: 634.88 | CR129: Yes | CS129: 0 | CT129: 0 | CU129: 0
CG130: 0 | CH130: 0 | CI130: 0 | CJ130: 0 | CK130: 0 | CL130: 0 | CM130: 0 | CN130: 0 | CO130: 0 | CP130: 0 | CQ130: 0
B131: 163 | C131: Daniel Stokes | D131: Foreperson | E131: Vendor No 3 | F131: 50900 | G131: 82O62018 | H131: 2018-10-28 | I131: 2018-11-01 | J131: =IF(AND(H131>='A - Contractor Summary'!$C$36,I131<='A - Contractor Summary'!$C$42),"Yes","No") -> No | K131: =VLOOKUP($D131,'C.1 - Rate Sheets'!$B$15:$F$25,2,FALSE) -> 39.43 | L131: =VLOOKUP($D131,'C.1 - Rate Sheets'!$B$15:$F$25,3,FALSE) -> 53.62 | M131: =VLOOKUP($D131,'C.1 - Rate Sheets'!$B$15:$F$25,4,FALSE) -> 0 | N131: =VLOOKUP($D131,'C.1 - Rate Sheets'!$B$15:$F$25,5,FALSE) -> 0 | BI131: 16 | BM131: 8 | BN131: 8 | BR131: 8 | BS131: 8 | BW131: 8 | BX131: 8 | CB131: 8 | CC131: 0.5 | CG131: 32 | CH131: 40.5 | CI131: 0 | CJ131: 0 | CK131: 72.5 | CL131: 1261.76 | CM131: 2171.61 | CN131: 0 | CO131: 0 | CP131: 3433.37 | CQ131: 3433.37 | CR131: Yes | CS131: 0 | CT131: 0 | CU131: 0
B132: 165 | C132: Jeremy Fox | D132: Trimmer A | E132: Vendor No 3 | F132: 50900 | G132: 82O62018 | H132: 2018-10-28 | I132: 2018-11-01 | J132: =IF(AND(H132>='A - Contractor Summary'!$C$36,I132<='A - Contractor Summary'!$C$42),"Yes","No") -> No | K132: =VLOOKUP($D132,'C.1 - Rate Sheets'!$B$15:$F$25,2,FALSE) -> 29.1 | L132: =VLOOKUP($D132,'C.1 - Rate Sheets'!$B$15:$F$25,3,FALSE) -> 39.68 | M132: =VLOOKUP($D132,'C.1 - Rate Sheets'!$B$15:$F$25,4,FALSE) -> 0 | N132: =VLOOKUP($D132,'C.1 - Rate Sheets'!$B$15:$F$25,5,FALSE) -> 0 | BI132: 16 | BM132: 8 | BN132: 8 | BR132: 8 | BS132: 8 | BW132: 8 | BX132: 8 | CB132: 8 | CC132: 0.5 | CG132: 32 | CH132: 40.5 | CI132: 0 | CJ132: 0 | CK132: 72.5 | CL132: 931.2 | CM132: 1607.04 | CN132: 0 | CO132: 0 | CP132: 2538.24 | CQ132: 2538.24 | CR132: Yes | CS132: 0 | CT132: 0 | CU132: 0
B133: 167 | C133: Steve Ryan | D133: Foreperson | E133: Vendor No 3 | F133: 50900 | G133: 82O62018 | H133: 2018-10-28 | I133: 2018-11-01 | J133: =IF(AND(H133>='A - Contractor Summary'!$C$36,I133<='A - Contractor Summary'!$C$42),"Yes","No") -> No | K133: =VLOOKUP($D133,'C.1 - Rate Sheets'!$B$15:$F$25,2,FALSE) -> 39.43 | L133: =VLOOKUP($D133,'C.1 - Rate Sheets'!$B$15:$F$25,3,FALSE) -> 53.62 | M133: =VLOOKUP($D133,'C.1 - Rate Sheets'!$B$15:$F$25,4,FALSE) -> 0 | N133: =VLOOKUP($D133,'C.1 - Rate Sheets'!$B$15:$F$25,5,FALSE) -> 0 | BI133: 16 | BM133: 8 | BN133: 8 | BR133: 8 | BS133: 8 | BW133: 8 | BX133: 8 | CB133: 8 | CC133: 0.5 | CG133: 32 | CH133: 40.5 | CI133: 0 | CJ133: 0 | CK133: 72.5 | CL133: 1261.76 | CM133: 2171.61 | CN133: 0 | CO133: 0 | CP133: 3433.37 | CQ133: 3433.37 | CR133: Yes | CS133: 0 | CT133: 0 | CU133: 0
B134: 169 | C134: Edward Thoman | D134: Trimmer C | E134: Vendor No 3 | F134: 50900 | G134: 82O62018 | H134: 2018-10-28 | I134: 2018-11-01 | J134: =IF(AND(H134>='A - Contractor Summary'!$C$36,I134<='A - Contractor Summary'!$C$42),"Yes","No") -> No | K134: =VLOOKUP($D134,'C.1 - Rate Sheets'!$B$15:$F$25,2,FALSE) -> 25.62 | L134: =VLOOKUP($D134,'C.1 - Rate Sheets'!$B$15:$F$25,3,FALSE) -> 34.65 | M134: =VLOOKUP($D134,'C.1 - Rate Sheets'!$B$15:$F$25,4,FALSE) -> 0 | N134: =VLOOKUP($D134,'C.1 - Rate Sheets'!$B$15:$F$25,5,FALSE) -> 0 | BI134: 16 | BM134: 8 | BN134: 8 | BR134: 8 | BS134: 8 | BW134: 8 | BX134: 8 | CB134: 8 | CC134: 0.5 | CG134: 32 | CH134: 40.5 | CI134: 0 | CJ134: 0 | CK134: 72.5 | CL134: 819.84 | CM134: 1403.325 | CN134: 0 | CO134: 0 | CP134: 2223.165 | CQ134: 2223.165 | CR134: Yes | CS134: 0 | CT134: 0 | CU134: 0
B135: 171 | C135: William Tucker | D135: Foreperson | E135: Vendor No 3 | F135: 50900 | G135: 82O62018 | H135: 2018-10-28 | I135: 2018-11-01 | J135: =IF(AND(H135>='A - Contractor Summary'!$C$36,I135<='A - Contractor Summary'!$C$42),"Yes","No") -> No | K135: =VLOOKUP($D135,'C.1 - Rate Sheets'!$B$15:$F$25,2,FALSE) -> 39.43 | L135: =VLOOKUP($D135,'C.1 - Rate Sheets'!$B$15:$F$25,3,FALSE) -> 53.62 | M135: =VLOOKUP($D135,'C.1 - Rate Sheets'!$B$15:$F$25,4,FALSE) -> 0 | N135: =VLOOKUP($D135,'C.1 - Rate Sheets'!$B$15:$F$25,5,FALSE) -> 0 | BI135: 16 | BM135: 8 | BN135: 8 | BR135: 8 | BS135: 8 | BW135: 8 | BX135: 8 | CB135: 8 | CC135: 0.5 | CG135: 32 | CH135: 40.5 | CI135: 0 | CJ135: 0 | CK135: 72.5 | CL135: 1261.76 | CM135: 2171.61 | CN135: 0 | CO135: 0 | CP135: 3433.37 | CQ135: 3433.37 | CR135: Yes | CS135: 0 | CT135: 0 | CU135: 0
B136: 173 | C136: Ritchie Busch Sr | D136: Foreperson | E136: Vendor No 3 | F136: 50900 | G136: 82O62018 | H136: 2018-10-28 | I136: 2018-11-01 | J136: =IF(AND(H136>='A - Contractor Summary'!$C$36,I136<='A - Contractor Summary'!$C$42),"Yes","No") -> No | K136: =VLOOKUP($D136,'C.1 - Rate Sheets'!$B$15:$F$25,2,FALSE) -> 39.43 | L136: =VLOOKUP($D136,'C.1 - Rate Sheets'!$B$15:$F$25,3,FALSE) -> 53.62 | M136: =VLOOKUP($D136,'C.1 - Rate Sheets'!$B$15:$F$25,4,FALSE) -> 0 | N136: =VLOOKUP($D136,'C.1 - Rate Sheets'!$B$15:$F$25,5,FALSE) -> 0 | BI136: 16 | BM136: 8 | BN136: 8 | BR136: 8 | BS136: 8 | BW136: 8 | BX136: 8 | CB136: 8 | CC136: 0.5 | CG136: 32 | CH136: 40.5 | CI136: 0 | CJ136: 0 | CK136: 72.5 | CL136: 1261.76 | CM136: 2171.61 | CN136: 0 | CO136: 0 | CP136: 3433.37 | CQ136: 3433.37 | CR136: Yes | CS136: 0 | CT136: 0 | CU136: 0
B137: 175 | C137: Garth Hightower | D137: Trimmer A | E137: Vendor No 3 | F137: 50900 | G137: 82O62018 | H137: 2018-10-28 | I137: 2018-11-01 | J137: =IF(AND(H137>='A - Contractor Summary'!$C$36,I137<='A - Contractor Summary'!$C$42),"Yes","No") -> No | K137: =VLOOKUP($D137,'C.1 - Rate Sheets'!$B$15:$F$25,2,FALSE) -> 29.1 | L137: =VLOOKUP($D137,'C.1 - Rate Sheets'!$B$15:$F$25,3,FALSE) -> 39.68 | M137: =VLOOKUP($D137,'C.1 - Rate Sheets'!$B$15:$F$25,4,FALSE) -> 0 | N137: =VLOOKUP($D137,'C.1 - Rate Sheets'!$B$15:$F$25,5,FALSE) -> 0 | BI137: 16 | BM137: 8 | BN137: 8 | BR137: 8 | BS137: 8 | BW137: 8 | BX137: 8 | CB137: 8 | CC137: 0.5 | CG137: 32 | CH137: 40.5 | CI137: 0 | CJ137: 0 | CK137: 72.5 | CL137: 931.2 | CM137: 1607.04 | CN137: 0 | CO137: 0 | CP137: 2538.24 | CQ137: 2538.24 | CR137: Yes | CS137: 0 | CT137: 0 | CU137: 0
B138: 177 | C138: Donny Roberts | D138: Foreperson | E138: Vendor No 3 | F138: 50900 | G138: 82O62018 | H138: 2018-10-28 | I138: 2018-11-01 | J138: =IF(AND(H138>='A - Contractor Summary'!$C$36,I138<='A - Contractor Summary'!$C$42),"Yes","No") -> No | K138: =VLOOKUP($D138,'C.1 - Rate Sheets'!$B$15:$F$25,2,FALSE) -> 39.43 | L138: =VLOOKUP($D138,'C.1 - Rate Sheets'!$B$15:$F$25,3,FALSE) -> 53.62 | M138: =VLOOKUP($D138,'C.1 - Rate Sheets'!$B$15:$F$25,4,FALSE) -> 0 | N138: =VLOOKUP($D138,'C.1 - Rate Sheets'!$B$15:$F$25,5,FALSE) -> 0 | BI138: 16 | BM138: 8 | BN138: 8 | BR138: 8 | BS138: 8 | BW138: 8 | BX138: 8 | CB138: 8 | CC138: 0.5 | CG138: 32 | CH138: 40.5 | CI138: 0 | CJ138: 0 | CK138: 72.5 | CL138: 1261.76 | CM138: 2171.61 | CN138: 0 | CO138: 0 | CP138: 3433.37 | CQ138: 3433.37 | CR138: Yes | CS138: 0 | CT138: 0 | CU138: 0
B139: 179 | C139: Jose Roman | D139: Trimmer A | E139: Vendor No 3 | F139: 50900 | G139: 82O62018 | H139: 2018-10-28 | I139: 2018-11-01 | J139: =IF(AND(H139>='A - Contractor Summary'!$C$36,I139<='A - Contractor Summary'!$C$42),"Yes","No") -> No | K139: =VLOOKUP($D139,'C.1 - Rate Sheets'!$B$15:$F$25,2,FALSE) -> 29.1 | L139: =VLOOKUP($D139,'C.1 - Rate Sheets'!$B$15:$F$25,3,FALSE) -> 39.68 | M139: =VLOOKUP($D139,'C.1 - Rate Sheets'!$B$15:$F$25,4,FALSE) -> 0 | N139: =VLOOKUP($D139,'C.1 - Rate Sheets'!$B$15:$F$25,5,FALSE) -> 0 | BI139: 16 | BM139: 8 | BN139: 8 | BR139: 8 | BS139: 8 | BW139: 8 | BX139: 8 | CB139: 8 | CC139: 0.5 | CG139: 32 | CH139: 40.5 | CI139: 0 | CJ139: 0 | CK139: 72.5 | CL139: 931.2 | CM139: 1607.04 | CN139: 0 | CO139: 0 | CP139: 2538.24 | CQ139: 2538.24 | CR139: Yes | CS139: 0 | CT139: 0 | CU139: 0
B140: 181 | C140: Eric Johnson | D140: Foreperson | E140: Vendor No 3 | F140: 50900 | G140: 82O62018 | H140: 2018-10-28 | I140: 2018-11-01 | J140: =IF(AND(H140>='A - Contractor Summary'!$C$36,I140<='A - Contractor Summary'!$C$42),"Yes","No") -> No | K140: =VLOOKUP($D140,'C.1 - Rate Sheets'!$B$15:$F$25,2,FALSE) -> 39.43 | L140: =VLOOKUP($D140,'C.1 - Rate Sheets'!$B$15:$F$25,3,FALSE) -> 53.62 | M140: =VLOOKUP($D140,'C.1 - Rate Sheets'!$B$15:$F$25,4,FALSE) -> 0 | N140: =VLOOKUP($D140,'C.1 - Rate Sheets'!$B$15:$F$25,5,FALSE) -> 0 | BI140: 16 | BM140: 8 | BN140: 8 | BR140: 8 | BS140: 8 | BW140: 8 | BX140: 8 | CB140: 8 | CC140: 0.5 | CG140: 32 | CH140: 40.5 | CI140: 0 | CJ140: 0 | CK140: 72.5 | CL140: 1261.76 | CM140: 2171.61 | CN140: 0 | CO140: 0 | CP140: 3433.37 | CQ140: 3433.37 | CR140: Yes | CS140: 0 | CT140: 0 | CU140: 0
B141: 183 | C141: Chad Jacobs | D141: Trimmer A | E141: Vendor No 3 | F141: 50900 | G141: 82O62018 | H141: 2018-10-28 | I141: 2018-11-01 | J141: =IF(AND(H141>='A - Contractor Summary'!$C$36,I141<='A - Contractor Summary'!$C$42),"Yes","No") -> No | K141: =VLOOKUP($D141,'C.1 - Rate Sheets'!$B$15:$F$25,2,FALSE) -> 29.1 | L141: =VLOOKUP($D141,'C.1 - Rate Sheets'!$B$15:$F$25,3,FALSE) -> 39.68 | M141: =VLOOKUP($D141,'C.1 - Rate Sheets'!$B$15:$F$25,4,FALSE) -> 0 | N141: =VLOOKUP($D141,'C.1 - Rate Sheets'!$B$15:$F$25,5,FALSE) -> 0 | BI141: 16 | BM141: 8 | BN141: 8 | BR141: 8 | BS141: 8 | BW141: 8 | BX141: 8 | CB141: 8 | CC141: 0.5 | CG141: 32 | CH141: 40.5 | CI141: 0 | CJ141: 0 | CK141: 72.5 | CL141: 931.2 | CM141: 1607.04 | CN141: 0 | CO141: 0 | CP141: 2538.24 | CQ141: 2538.24 | CR141: Yes | CS141: 0 | CT141: 0 | CU141: 0
CG142: 0 | CH142: 0 | CI142: 0 | CJ142: 0 | CK142: 0 | CL142: 0 | CM142: 0 | CN142: 0 | CO142: 0 | CP142: 0 | CQ142: 0 | CR142: Yes | CS142: 0 | CT142: 0 | CU142: 0
B143: 185 | C143: Joel Joseph | D143: General Foreman | E143: Vendor No 3 | F143: 55392 | G143: 82O61918 | H143: 2018-10-28 | I143: 2018-11-01 | J143: =IF(AND(H143>='A - Contractor Summary'!$C$36,I143<='A - Contractor Summary'!$C$42),"Yes","No") -> No | K143: =VLOOKUP($D143,'C.1 - Rate Sheets'!$B$15:$F$25,2,FALSE) -> 45.03 | L143: =VLOOKUP($D143,'C.1 - Rate Sheets'!$B$15:$F$25,3,FALSE) -> 61.99 | M143: =VLOOKUP($D143,'C.1 - Rate Sheets'!$B$15:$F$25,4,FALSE) -> 0 | N143: =VLOOKUP($D143,'C.1 - Rate Sheets'!$B$15:$F$25,5,FALSE) -> 0 | BI143: 16 | BM143: 8 | BN143: 8 | BR143: 8 | BS143: 8 | BW143: 8 | BX143: 8 | CB143: 8 | CC143: 8 | CG143: 32 | CH143: 48 | CI143: 0 | CJ143: 0 | CK143: 80 | CL143: 1440.96 | CM143: 2975.52 | CN143: 0 | CO143: 0 | CP143: 4416.48 | CQ143: 4416.48 | CR143: Yes | CS143: 0 | CT143: 0 | CU143: 0
B144: 187 | C144: Antoine Jacquesson | D144: Foreperson | E144: Vendor No 3 | F144: 55392 | G144: 82O61918 | H144: 2018-10-28 | I144: 2018-11-01 | J144: =IF(AND(H144>='A - Contractor Summary'!$C$36,I144<='A - Contractor Summary'!$C$42),"Yes","No") -> No | K144: =VLOOKUP($D144,'C.1 - Rate Sheets'!$B$15:$F$25,2,FALSE) -> 39.43 | L144: =VLOOKUP($D144,'C.1 - Rate Sheets'!$B$15:$F$25,3,FALSE) -> 53.62 | M144: =VLOOKUP($D144,'C.1 - Rate Sheets'!$B$15:$F$25,4,FALSE) -> 0 | N144: =VLOOKUP($D144,'C.1 - Rate Sheets'!$B$15:$F$25,5,FALSE) -> 0 | BI144: 16 | BM144: 8 | BN144: 8 | BR144: 8 | BS144: 8 | BW144: 8 | BX144: 8 | CB144: 8 | CC144: 8 | CG144: 32 | CH144: 48 | CI144: 0 | CJ144: 0 | CK144: 80 | CL144: 1261.76 | CM144: 2573.76 | CN144: 0 | CO144: 0 | CP144: 3835.52 | CQ144: 3835.52 | CR144: Yes | CS144: 0 | CT144: 0 | CU144: 0
B145: 189 | C145: Edgar Fenelon | D145: Trimmer B | E145: Vendor No 3 | F145: 55392 | G145: 82O61918 | H145: 2018-10-28 | I145: 2018-11-01 | J145: =IF(AND(H145>='A - Contractor Summary'!$C$36,I145<='A - Contractor Summary'!$C$42),"Yes","No") -> No | K145: =VLOOKUP($D145,'C.1 - Rate Sheets'!$B$15:$F$25,2,FALSE) -> 26.9 | L145: =VLOOKUP($D145,'C.1 - Rate Sheets'!$B$15:$F$25,3,FALSE) -> 36.53 | M145: =VLOOKUP($D145,'C.1 - Rate Sheets'!$B$15:$F$25,4,FALSE) -> 0 | N145: =VLOOKUP($D145,'C.1 - Rate Sheets'!$B$15:$F$25,5,FALSE) -> 0 | BI145: 16 | BM145: 8 | BN145: 8 | BR145: 8 | BS145: 8 | BW145: 8 | BX145: 8 | CB145: 8 | CC145: 8 | CG145: 32 | CH145: 48 | CI145: 0 | CJ145: 0 | CK145: 80 | CL145: 860.8 | CM145: 1753.44 | CN145: 0 | CO145: 0 | CP145: 2614.24 | CQ145: 2614.24 | CR145: Yes | CS145: 0 | CT145: 0 | CU145: 0
B146: 191 | C146: Peter Joseph | D146: Trimmer A | E146: Vendor No 3 | F146: 55392 | G146: 82O61918 | H146: 2018-10-28 | I146: 2018-11-01 | J146: =IF(AND(H146>='A - Contractor Summary'!$C$36,I146<='A - Contractor Summary'!$C$42),"Yes","No") -> No | K146: =VLOOKUP($D146,'C.1 - Rate Sheets'!$B$15:$F$25,2,FALSE) -> 29.1 | L146: =VLOOKUP($D146,'C.1 - Rate Sheets'!$B$15:$F$25,3,FALSE) -> 39.68 | M146: =VLOOKUP($D146,'C.1 - Rate Sheets'!$B$15:$F$25,4,FALSE) -> 0 | N146: =VLOOKUP($D146,'C.1 - Rate Sheets'!$B$15:$F$25,5,FALSE) -> 0 | BI146: 16 | BM146: 8 | BN146: 8 | BR146: 8 | BS146: 8 | BW146: 8 | BX146: 8 | CB146: 8 | CC146: 8 | CG146: 32 | CH146: 48 | CI146: 0 | CJ146: 0 | CK146: 80 | CL146: 931.2 | CM146: 1904.64 | CN146: 0 | CO146: 0 | CP146: 2835.84 | CQ146: 2835.84 | CR146: Yes | CS146: 0 | CT146: 0 | CU146: 0
B147: 193 | C147: Giles Frederick | D147: Foreperson | E147: Vendor No 3 | F147: 55392 | G147: 82O61918 | H147: 2018-10-28 | I147: 2018-11-01 | J147: =IF(AND(H147>='A - Contractor Summary'!$C$36,I147<='A - Contractor Summary'!$C$42),"Yes","No") -> No | K147: =VLOOKUP($D147,'C.1 - Rate Sheets'!$B$15:$F$25,2,FALSE) -> 39.43 | L147: =VLOOKUP($D147,'C.1 - Rate Sheets'!$B$15:$F$25,3,FALSE) -> 53.62 | M147: =VLOOKUP($D147,'C.1 - Rate Sheets'!$B$15:$F$25,4,FALSE) -> 0 | N147: =VLOOKUP($D147,'C.1 - Rate Sheets'!$B$15:$F$25,5,FALSE) -> 0 | BI147: 16 | BM147: 8 | BN147: 8 | BR147: 8 | BS147: 8 | BW147: 8 | BX147: 8 | CB147: 8 | CC147: 8 | CG147: 32 | CH147: 48 | CI147: 0 | CJ147: 0 | CK147: 80 | CL147: 1261.76 | CM147: 2573.76 | CN147: 0 | CO147: 0 | CP147: 3835.52 | CQ147: 3835.52 | CR147: Yes | CS147: 0 | CT147: 0 | CU147: 0
B148: 195 | C148: Ismith Saint Clous | D148: Foreperson | E148: Vendor No 3 | F148: 55392 | G148: 82O61918 | H148: 2018-10-28 | I148: 2018-11-01 | J148: =IF(AND(H148>='A - Contractor Summary'!$C$36,I148<='A - Contractor Summary'!$C$42),"Yes","No") -> No | K148: =VLOOKUP($D148,'C.1 - Rate Sheets'!$B$15:$F$25,2,FALSE) -> 39.43 | L148: =VLOOKUP($D148,'C.1 - Rate Sheets'!$B$15:$F$25,3,FALSE) -> 53.62 | M148: =VLOOKUP($D148,'C.1 - Rate Sheets'!$B$15:$F$25,4,FALSE) -> 0 | N148: =VLOOKUP($D148,'C.1 - Rate Sheets'!$B$15:$F$25,5,FALSE) -> 0 | BI148: 16 | BM148: 8 | BN148: 8 | BR148: 8 | BS148: 8 | BW148: 8 | BX148: 8 | CB148: 8 | CC148: 8 | CG148: 32 | CH148: 48 | CI148: 0 | CJ148: 0 | CK148: 80 | CL148: 1261.76 | CM148: 2573.76 | CN148: 0 | CO148: 0 | CP148: 3835.52 | CQ148: 3835.52 | CR148: Yes | CS148: 0 | CT148: 0 | CU148: 0
B149: 197 | C149: Luco Morency | D149: Trimmer A | E149: Vendor No 3 | F149: 55392 | G149: 82O61918 | H149: 2018-10-28 | I149: 2018-11-01 | J149: =IF(AND(H149>='A - Contractor Summary'!$C$36,I149<='A - Contractor Summary'!$C$42),"Yes","No") -> No | K149: =VLOOKUP($D149,'C.1 - Rate Sheets'!$B$15:$F$25,2,FALSE) -> 29.1 | L149: =VLOOKUP($D149,'C.1 - Rate Sheets'!$B$15:$F$25,3,FALSE) -> 39.68 | M149: =VLOOKUP($D149,'C.1 - Rate Sheets'!$B$15:$F$25,4,FALSE) -> 0 | N149: =VLOOKUP($D149,'C.1 - Rate Sheets'!$B$15:$F$25,5,FALSE) -> 0 | BI149: 16 | BM149: 8 | BN149: 8 | BR149: 8 | BS149: 8 | BW149: 8 | BX149: 8 | CB149: 8 | CC149: 8 | CG149: =O149+T149+Y149+AD149+AI149+AN149+AS149+AX149+BC149+BH149+BM149+BR149+BW149+CB149 -> 32 | CH149: =P149+U149+Z149+AE149+AJ149+AO149+AT149+AY149+BD149+BI149+BN149+BS149+BX149+CC149 -> 48 | CI149: =Q149+V149+AA149+AF149+AK149+AP149+AU149+AZ149+BE149+BJ149+BO149+BT149+BY149+CD149 -> 0 | CJ149: =R149+W149+AB149+AG149+AL149+AQ149+AV149+BA149+BF149+BK149+BP149+BU149+BZ149+CE149 -> 0 | CK149: =SUM(CG149:CJ149) -> 80 | CL149: =CG149*K149 -> 931.2 | CM149: =CH149*L149 -> 1904.64 | CN149: =CI149*M149 -> 0 | CO149: =CJ149*N149 -> 0 | CP149: =SUM(CL149:CO149) -> 2835.84 | CQ149: =CP149-CS149 -> 2835.84 | CR149: Yes | CS149: 0 | CT149: 0 | CU149: 0
B150: 199 | C150: Paulin Toussaint | D150: Trimmer A | E150: Vendor No 3 | F150: 55392 | G150: 82O61918 | H150: 2018-10-28 | I150: 2018-11-01 | J150: =IF(AND(H150>='A - Contractor Summary'!$C$36,I150<='A - Contractor Summary'!$C$42),"Yes","No") -> No | K150: =VLOOKUP($D150,'C.1 - Rate Sheets'!$B$15:$F$25,2,FALSE) -> 29.1 | L150: =VLOOKUP($D150,'C.1 - Rate Sheets'!$B$15:$F$25,3,FALSE) -> 39.68 | M150: =VLOOKUP($D150,'C.1 - Rate Sheets'!$B$15:$F$25,4,FALSE) -> 0 | N150: =VLOOKUP($D150,'C.1 - Rate Sheets'!$B$15:$F$25,5,FALSE) -> 0 | BI150: 16 | BM150: 8 | BN150: 8 | BR150: 8 | BS150: 8 | BW150: 8 | BX150: 8 | CB150: 8 | CC150: 8 | CG150: 32 | CH150: 48 | CI150: 0 | CJ150: 0 | CK150: 80 | CL150: 931.2 | CM150: 1904.64 | CN150: 0 | CO150: 0 | CP150: 2835.84 | CQ150: 2835.84 | CR150: Yes | CS150: 0 | CT150: 0 | CU150: 0
B151: 201 | C151: Claude Laguerre | D151: Foreperson | E151: Vendor No 3 | F151: 55392 | G151: 82O61918 | H151: 2018-10-28 | I151: 2018-11-01 | J151: =IF(AND(H151>='A - Contractor Summary'!$C$36,I151<='A - Contractor Summary'!$C$42),"Yes","No") -> No | K151: =VLOOKUP($D151,'C.1 - Rate Sheets'!$B$15:$F$25,2,FALSE) -> 39.43 | L151: =VLOOKUP($D151,'C.1 - Rate Sheets'!$B$15:$F$25,3,FALSE) -> 53.62 | M151: =VLOOKUP($D151,'C.1 - Rate Sheets'!$B$15:$F$25,4,FALSE) -> 0 | N151: =VLOOKUP($D151,'C.1 - Rate Sheets'!$B$15:$F$25,5,FALSE) -> 0 | BI151: 16 | BM151: 8 | BN151: 8 | BR151: 8 | BS151: 8 | BW151: 8 | BX151: 8 | CB151: 8 | CC151: 8 | CG151: 32 | CH151: 48 | CI151: 0 | CJ151: 0 | CK151: 80 | CL151: 1261.76 | CM151: 2573.76 | CN151: 0 | CO151: 0 | CP151: 3835.52 | CQ151: 3835.52 | CR151: Yes | CS151: 0 | CT151: 0 | CU151: 0
B152: 203 | C152: Francois Andre | D152: Trimmer A | E152: Vendor No 3 | F152: 55392 | G152: 82O61918 | H152: 2018-10-28 | I152: 2018-11-01 | J152: =IF(AND(H152>='A - Contractor Summary'!$C$36,I152<='A - Contractor Summary'!$C$42),"Yes","No") -> No | K152: =VLOOKUP($D152,'C.1 - Rate Sheets'!$B$15:$F$25,2,FALSE) -> 29.1 | L152: =VLOOKUP($D152,'C.1 - Rate Sheets'!$B$15:$F$25,3,FALSE) -> 39.68 | M152: =VLOOKUP($D152,'C.1 - Rate Sheets'!$B$15:$F$25,4,FALSE) -> 0 | N152: =VLOOKUP($D152,'C.1 - Rate Sheets'!$B$15:$F$25,5,FALSE) -> 0 | BI152: 16 | BM152: 8 | BN152: 8 | BR152: 8 | BS152: 8 | BW152: 8 | BX152: 8 | CB152: 8 | CC152: 8 | CG152: 32 | CH152: 48 | CI152: 0 | CJ152: 0 | CK152: 80 | CL152: 931.2 | CM152: 1904.64 | CN152: 0 | CO152: 0 | CP152: 2835.84 | CQ152: 2835.84 | CR152: Yes | CS152: 0 | CT152: 0 | CU152: 0
B153: 205 | C153: Paul Donald | D153: Trimmer A | E153: Vendor No 3 | F153: 55392 | G153: 82O61918 | H153: 2018-10-28 | I153: 2018-11-01 | J153: =IF(AND(H153>='A - Contractor Summary'!$C$36,I153<='A - Contractor Summary'!$C$42),"Yes","No") -> No | K153: =VLOOKUP($D153,'C.1 - Rate Sheets'!$B$15:$F$25,2,FALSE) -> 29.1 | L153: =VLOOKUP($D153,'C.1 - Rate Sheets'!$B$15:$F$25,3,FALSE) -> 39.68 | M153: =VLOOKUP($D153,'C.1 - Rate Sheets'!$B$15:$F$25,4,FALSE) -> 0 | N153: =VLOOKUP($D153,'C.1 - Rate Sheets'!$B$15:$F$25,5,FALSE) -> 0 | BI153: 16 | BM153: 8 | BN153: 8 | BR153: 8 | BS153: 8 | BW153: 8 | BX153: 8 | CB153: 8 | CC153: 8 | CG153: 32 | CH153: 48 | CI153: 0 | CJ153: 0 | CK153: 80 | CL153: 931.2 | CM153: 1904.64 | CN153: 0 | CO153: 0 | CP153: 2835.84 | CQ153: 2835.84 | CR153: Yes | CS153: 0 | CT153: 0 | CU153: 0
B154: 207 | C154: Elie Nerestan | D154: Trimmer A | E154: Vendor No 3 | F154: 55392 | G154: 82O61918 | H154: 2018-10-28 | I154: 2018-11-01 | J154: =IF(AND(H154>='A - Contractor Summary'!$C$36,I154<='A - Contractor Summary'!$C$42),"Yes","No") -> No | K154: =VLOOKUP($D154,'C.1 - Rate Sheets'!$B$15:$F$25,2,FALSE) -> 29.1 | L154: =VLOOKUP($D154,'C.1 - Rate Sheets'!$B$15:$F$25,3,FALSE) -> 39.68 | M154: =VLOOKUP($D154,'C.1 - Rate Sheets'!$B$15:$F$25,4,FALSE) -> 0 | N154: =VLOOKUP($D154,'C.1 - Rate Sheets'!$B$15:$F$25,5,FALSE) -> 0 | BI154: 16 | BM154: 8 | BN154: 8 | BR154: 8 | BS154: 8 | BW154: 8 | BX154: 8 | CB154: 8 | CC154: 8 | CG154: 32 | CH154: 48 | CI154: 0 | CJ154: 0 | CK154: 80 | CL154: 931.2 | CM154: 1904.64 | CN154: 0 | CO154: 0 | CP154: 2835.84 | CQ154: 2835.84 | CR154: Yes | CS154: 0 | CT154: 0 | CU154: 0
B155: 209 | C155: Bruce Bien Aime | D155: Trimmer B | E155: Vendor No 3 | F155: 55392 | G155: 82O61918 | H155: 2018-10-28 | I155: 2018-11-01 | J155: =IF(AND(H155>='A - Contractor Summary'!$C$36,I155<='A - Contractor Summary'!$C$42),"Yes","No") -> No | K155: =VLOOKUP($D155,'C.1 - Rate Sheets'!$B$15:$F$25,2,FALSE) -> 26.9 | L155: =VLOOKUP($D155,'C.1 - Rate Sheets'!$B$15:$F$25,3,FALSE) -> 36.53 | M155: =VLOOKUP($D155,'C.1 - Rate Sheets'!$B$15:$F$25,4,FALSE) -> 0 | N155: =VLOOKUP($D155,'C.1 - Rate Sheets'!$B$15:$F$25,5,FALSE) -> 0 | BI155: 16 | BM155: 8 | BN155: 8 | BR155: 8 | BS155: 8 | BW155: 8 | BX155: 8 | CB155: 8 | CC155: 8 | CG155: 32 | CH155: 48 | CI155: 0 | CJ155: 0 | CK155: 80 | CL155: 860.8 | CM155: 1753.44 | CN155: 0 | CO155: 0 | CP155: 2614.24 | CQ155: 2614.24 | CR155: Yes | CS155: 0 | CT155: 0 | CU155: 0
B156: 211 | C156: Reginal Coissy | D156: Trimmer A | E156: Vendor No 3 | F156: 55392 | G156: 82O61918 | H156: 2018-10-28 | I156: 2018-11-01 | J156: =IF(AND(H156>='A - Contractor Summary'!$C$36,I156<='A - Contractor Summary'!$C$42),"Yes","No") -> No | K156: =VLOOKUP($D156,'C.1 - Rate Sheets'!$B$15:$F$25,2,FALSE) -> 29.1 | L156: =VLOOKUP($D156,'C.1 - Rate Sheets'!$B$15:$F$25,3,FALSE) -> 39.68 | M156: =VLOOKUP($D156,'C.1 - Rate Sheets'!$B$15:$F$25,4,FALSE) -> 0 | N156: =VLOOKUP($D156,'C.1 - Rate Sheets'!$B$15:$F$25,5,FALSE) -> 0 | BI156: 16 | BM156: 8 | BN156: 8 | BR156: 8 | BS156: 8 | BW156: 8 | BX156: 8 | CB156: 8 | CC156: 8 | CG156: 32 | CH156: 48 | CI156: 0 | CJ156: 0 | CK156: 80 | CL156: 931.2 | CM156: 1904.64 | CN156: 0 | CO156: 0 | CP156: 2835.84 | CQ156: 2835.84 | CR156: Yes | CS156: 0 | CT156: 0 | CU156: 0
B157: 213 | C157: Ruben Romero | D157: Foreperson | E157: Vendor No 3 | F157: 55392 | G157: 82O61918 | H157: 2018-10-28 | I157: 2018-11-01 | J157: =IF(AND(H157>='A - Contractor Summary'!$C$36,I157<='A - Contractor Summary'!$C$42),"Yes","No") -> No | K157: =VLOOKUP($D157,'C.1 - Rate Sheets'!$B$15:$F$25,2,FALSE) -> 39.43 | L157: =VLOOKUP($D157,'C.1 - Rate Sheets'!$B$15:$F$25,3,FALSE) -> 53.62 | M157: =VLOOKUP($D157,'C.1 - Rate Sheets'!$B$15:$F$25,4,FALSE) -> 0 | N157: =VLOOKUP($D157,'C.1 - Rate Sheets'!$B$15:$F$25,5,FALSE) -> 0 | BI157: 16 | BM157: 8 | BN157: 8 | BR157: 8 | BS157: 8 | BW157: 8 | BX157: 8 | CB157: 8 | CC157: 8 | CG157: 32 | CH157: 48 | CI157: 0 | CJ157: 0 | CK157: 80 | CL157: 1261.76 | CM157: 2573.76 | CN157: 0 | CO157: 0 | CP157: 3835.52 | CQ157: 3835.52 | CR157: Yes | CS157: 0 | CT157: 0 | CU157: 0
B158: 215 | C158: Termitus Jacques | D158: Trimmer A | E158: Vendor No 3 | F158: 55392 | G158: 82O61918 | H158: 2018-10-28 | I158: 2018-11-01 | J158: =IF(AND(H158>='A - Contractor Summary'!$C$36,I158<='A - Contractor Summary'!$C$42),"Yes","No") -> No | K158: =VLOOKUP($D158,'C.1 - Rate Sheets'!$B$15:$F$25,2,FALSE) -> 29.1 | L158: =VLOOKUP($D158,'C.1 - Rate Sheets'!$B$15:$F$25,3,FALSE) -> 39.68 | M158: =VLOOKUP($D158,'C.1 - Rate Sheets'!$B$15:$F$25,4,FALSE) -> 0 | N158: =VLOOKUP($D158,'C.1 - Rate Sheets'!$B$15:$F$25,5,FALSE) -> 0 | BI158: 16 | BM158: 8 | BN158: 8 | BR158: 8 | BS158: 8 | BW158: 8 | BX158: 8 | CB158: 8 | CC158: 8 | CG158: 32 | CH158: 48 | CI158: 0 | CJ158: 0 | CK158: 80 | CL158: 931.2 | CM158: 1904.64 | CN158: 0 | CO158: 0 | CP158: 2835.84 | CQ158: 2835.84 | CR158: Yes | CS158: 0 | CT158: 0 | CU158: 0
B159: 217 | C159: Philome Croissy | D159: Trimmer A | E159: Vendor No 3 | F159: 55392 | G159: 82O61918 | H159: 2018-10-28 | I159: 2018-11-01 | J159: =IF(AND(H159>='A - Contractor Summary'!$C$36,I159<='A - Contractor Summary'!$C$42),"Yes","No") -> No | K159: =VLOOKUP($D159,'C.1 - Rate Sheets'!$B$15:$F$25,2,FALSE) -> 29.1 | L159: =VLOOKUP($D159,'C.1 - Rate Sheets'!$B$15:$F$25,3,FALSE) -> 39.68 | M159: =VLOOKUP($D159,'C.1 - Rate Sheets'!$B$15:$F$25,4,FALSE) -> 0 | N159: =VLOOKUP($D159,'C.1 - Rate Sheets'!$B$15:$F$25,5,FALSE) -> 0 | BI159: 16 | BM159: 8 | BN159: 8 | BR159: 8 | BS159: 8 | BW159: 8 | BX159: 8 | CB159: 8 | CC159: 8 | CG159: 32 | CH159: 48 | CI159: 0 | CJ159: 0 | CK159: 80 | CL159: 931.2 | CM159: 1904.64 | CN159: 0 | CO159: 0 | CP159: 2835.84 | CQ159: 2835.84 | CR159: Yes | CS159: 0 | CT159: 0 | CU159: 0
B160: 219 | C160: Claudain Duroque | D160: Foreperson | E160: Vendor No 3 | F160: 55392 | G160: 82O61918 | H160: 2018-10-28 | I160: 2018-11-01 | J160: =IF(AND(H160>='A - Contractor Summary'!$C$36,I160<='A - Contractor Summary'!$C$42),"Yes","No") -> No | K160: =VLOOKUP($D160,'C.1 - Rate Sheets'!$B$15:$F$25,2,FALSE) -> 39.43 | L160: =VLOOKUP($D160,'C.1 - Rate Sheets'!$B$15:$F$25,3,FALSE) -> 53.62 | M160: =VLOOKUP($D160,'C.1 - Rate Sheets'!$B$15:$F$25,4,FALSE) -> 0 | N160: =VLOOKUP($D160,'C.1 - Rate Sheets'!$B$15:$F$25,5,FALSE) -> 0 | BI160: 16 | BM160: 8 | BN160: 8 | BR160: 8 | BS160: 8 | BW160: 8 | BX160: 8 | CB160: 8 | CC160: 8 | CG160: 32 | CH160: 48 | CI160: 0 | CJ160: 0 | CK160: 80 | CL160: 1261.76 | CM160: 2573.76 | CN160: 0 | CO160: 0 | CP160: 3835.52 | CQ160: 3835.52 | CR160: Yes | CS160: 0 | CT160: 0 | CU160: 0
B161: 221 | C161: Lunis Isaac | D161: Trimmer A | E161: Vendor No 3 | F161: 55392 | G161: 82O61918 | H161: 2018-10-28 | I161: 2018-11-01 | J161: =IF(AND(H161>='A - Contractor Summary'!$C$36,I161<='A - Contractor Summary'!$C$42),"Yes","No") -> No | K161: =VLOOKUP($D161,'C.1 - Rate Sheets'!$B$15:$F$25,2,FALSE) -> 29.1 | L161: =VLOOKUP($D161,'C.1 - Rate Sheets'!$B$15:$F$25,3,FALSE) -> 39.68 | M161: =VLOOKUP($D161,'C.1 - Rate Sheets'!$B$15:$F$25,4,FALSE) -> 0 | N161: =VLOOKUP($D161,'C.1 - Rate Sheets'!$B$15:$F$25,5,FALSE) -> 0 | BI161: 16 | BM161: 8 | BN161: 8 | BR161: 8 | BS161: 8 | BW161: 8 | BX161: 8 | CB161: 8 | CC161: 8 | CG161: 32 | CH161: 48 | CI161: 0 | CJ161: 0 | CK161: 80 | CL161: 931.2 | CM161: 1904.64 | CN161: 0 | CO161: 0 | CP161: 2835.84 | CQ161: 2835.84 | CR161: Yes | CS161: 0 | CT161: 0 | CU161: 0
B162: 223 | C162: Richard Louidor | D162: Foreperson | E162: Vendor No 3 | F162: 55392 | G162: 82O61918 | H162: 2018-10-28 | I162: 2018-11-01 | J162: =IF(AND(H162>='A - Contractor Summary'!$C$36,I162<='A - Contractor Summary'!$C$42),"Yes","No") -> No | K162: =VLOOKUP($D162,'C.1 - Rate Sheets'!$B$15:$F$25,2,FALSE) -> 39.43 | L162: =VLOOKUP($D162,'C.1 - Rate Sheets'!$B$15:$F$25,3,FALSE) -> 53.62 | M162: =VLOOKUP($D162,'C.1 - Rate Sheets'!$B$15:$F$25,4,FALSE) -> 0 | N162: =VLOOKUP($D162,'C.1 - Rate Sheets'!$B$15:$F$25,5,FALSE) -> 0 | BI162: 16 | BM162: 8 | BN162: 8 | BR162: 8 | BS162: 8 | BW162: 8 | BX162: 8 | CB162: 8 | CC162: 8 | CG162: 32 | CH162: 48 | CI162: 0 | CJ162: 0 | CK162: 80 | CL162: 1261.76 | CM162: 2573.76 | CN162: 0 | CO162: 0 | CP162: 3835.52 | CQ162: 3835.52 | CR162: Yes | CS162: 0 | CT162: 0 | CU162: 0
B163: 225 | C163: Max Michaud | D163: Trimmer A | E163: Vendor No 3 | F163: 55392 | G163: 82O61918 | H163: 2018-10-28 | I163: 2018-11-01 | J163: =IF(AND(H163>='A - Contractor Summary'!$C$36,I163<='A - Contractor Summary'!$C$42),"Yes","No") -> No | K163: =VLOOKUP($D163,'C.1 - Rate Sheets'!$B$15:$F$25,2,FALSE) -> 29.1 | L163: =VLOOKUP($D163,'C.1 - Rate Sheets'!$B$15:$F$25,3,FALSE) -> 39.68 | M163: =VLOOKUP($D163,'C.1 - Rate Sheets'!$B$15:$F$25,4,FALSE) -> 0 | N163: =VLOOKUP($D163,'C.1 - Rate Sheets'!$B$15:$F$25,5,FALSE) -> 0 | BI163: 16 | BM163: 8 | BN163: 8 | BR163: 8 | BS163: 8 | BW163: 8 | BX163: 8 | CB163: 8 | CC163: 8 | CG163: 32 | CH163: 48 | CI163: 0 | CJ163: 0 | CK163: 80 | CL163: 931.2 | CM163: 1904.64 | CN163: 0 | CO163: 0 | CP163: 2835.84 | CQ163: 2835.84 | CR163: Yes | CS163: 0 | CT163: 0 | CU163: 0
B164: 227 | C164: Acmande Michel | D164: Trimmer B | E164: Vendor No 3 | F164: 55392 | G164: 82O61918 | H164: 2018-10-28 | I164: 2018-11-01 | J164: =IF(AND(H164>='A - Contractor Summary'!$C$36,I164<='A - Contractor Summary'!$C$42),"Yes","No") -> No | K164: =VLOOKUP($D164,'C.1 - Rate Sheets'!$B$15:$F$25,2,FALSE) -> 26.9 | L164: =VLOOKUP($D164,'C.1 - Rate Sheets'!$B$15:$F$25,3,FALSE) -> 36.53 | M164: =VLOOKUP($D164,'C.1 - Rate Sheets'!$B$15:$F$25,4,FALSE) -> 0 | N164: =VLOOKUP($D164,'C.1 - Rate Sheets'!$B$15:$F$25,5,FALSE) -> 0 | BI164: 16 | BM164: 8 | BN164: 8 | BR164: 8 | BS164: 8 | BW164: 8 | BX164: 8 | CB164: 8 | CC164: 8 | CG164: 32 | CH164: 48 | CI164: 0 | CJ164: 0 | CK164: 80 | CL164: 860.8 | CM164: 1753.44 | CN164: 0 | CO164: 0 | CP164: 2614.24 | CQ164: 2614.24 | CR164: Yes | CS164: 0 | CT164: 0 | CU164: 0
B165: 229 | C165: Jasmine Martin | D165: Trimmer A | E165: Vendor No 3 | F165: 55392 | G165: 82O61918 | H165: 2018-10-28 | I165: 2018-11-01 | J165: =IF(AND(H165>='A - Contractor Summary'!$C$36,I165<='A - Contractor Summary'!$C$42),"Yes","No") -> No | K165: =VLOOKUP($D165,'C.1 - Rate Sheets'!$B$15:$F$25,2,FALSE) -> 29.1 | L165: =VLOOKUP($D165,'C.1 - Rate Sheets'!$B$15:$F$25,3,FALSE) -> 39.68 | M165: =VLOOKUP($D165,'C.1 - Rate Sheets'!$B$15:$F$25,4,FALSE) -> 0 | N165: =VLOOKUP($D165,'C.1 - Rate Sheets'!$B$15:$F$25,5,FALSE) -> 0 | BI165: 16 | BM165: 8 | BN165: 8 | BR165: 8 | BS165: 8 | BW165: 8 | BX165: 8 | CB165: 8 | CC165: 8 | CG165: 32 | CH165: 48 | CI165: 0 | CJ165: 0 | CK165: 80 | CL165: 931.2 | CM165: 1904.64 | CN165: 0 | CO165: 0 | CP165: 2835.84 | CQ165: 2835.84 | CR165: Yes | CS165: 0 | CT165: 0 | CU165: 0
CG166: 0 | CH166: 0 | CI166: 0 | CJ166: 0 | CK166: 0 | CL166: 0 | CM166: 0 | CN166: 0 | CO166: 0 | CP166: 0 | CQ166: 0 | CR166: Yes | CS166: 0 | CT166: 0 | CU166: 0
B167: 231 | C167: Angelo Perez | D167: Foreperson | E167: Vendor No 3 | F167: 50937 | G167: 82R77018 | H167: 2018-10-28 | I167: 2018-11-01 | J167: =IF(AND(H167>='A - Contractor Summary'!$C$36,I167<='A - Contractor Summary'!$C$42),"Yes","No") -> No | K167: =VLOOKUP($D167,'C.1 - Rate Sheets'!$B$15:$F$25,2,FALSE) -> 39.43 | L167: =VLOOKUP($D167,'C.1 - Rate Sheets'!$B$15:$F$25,3,FALSE) -> 53.62 | M167: =VLOOKUP($D167,'C.1 - Rate Sheets'!$B$15:$F$25,4,FALSE) -> 0 | N167: =VLOOKUP($D167,'C.1 - Rate Sheets'!$B$15:$F$25,5,FALSE) -> 0 | BI167: 16 | BM167: 8 | BN167: 8 | BR167: 8 | BS167: 8 | BW167: 8 | BX167: 8 | CB167: 6 | CG167: 30 | CH167: 40 | CI167: 0 | CJ167: 0 | CK167: 70 | CL167: 1182.9 | CM167: 2144.8 | CN167: 0 | CO167: 0 | CP167: 3327.7 | CQ167: 3327.7 | CR167: Yes | CS167: 0 | CT167: 0 | CU167: 0
B168: 233 | C168: Gabriel Tovar | D168: Trimmer B | E168: Vendor No 3 | F168: 50937 | G168: 82R77018 | H168: 2018-10-28 | I168: 2018-11-01 | J168: =IF(AND(H168>='A - Contractor Summary'!$C$36,I168<='A - Contractor Summary'!$C$42),"Yes","No") -> No | K168: =VLOOKUP($D168,'C.1 - Rate Sheets'!$B$15:$F$25,2,FALSE) -> 26.9 | L168: =VLOOKUP($D168,'C.1 - Rate Sheets'!$B$15:$F$25,3,FALSE) -> 36.53 | M168: =VLOOKUP($D168,'C.1 - Rate Sheets'!$B$15:$F$25,4,FALSE) -> 0 | N168: =VLOOKUP($D168,'C.1 - Rate Sheets'!$B$15:$F$25,5,FALSE) -> 0 | BI168: 16 | BM168: 8 | BN168: 8 | BR168: 8 | BS168: 8 | BW168: 8 | BX168: 8 | CB168: 6 | CG168: 30 | CH168: 40 | CI168: 0 | CJ168: 0 | CK168: 70 | CL168: 807 | CM168: 1461.2 | CN168: 0 | CO168: 0 | CP168: 2268.2 | CQ168: 2268.2 | CR168: Yes | CS168: 0 | CT168: 0 | CU168: 0
B169: 235 | C169: Jaison Cruz | D169: Trimmer A | E169: Vendor No 3 | F169: 50937 | G169: 82R77018 | H169: 2018-10-28 | I169: 2018-11-01 | J169: =IF(AND(H169>='A - Contractor Summary'!$C$36,I169<='A - Contractor Summary'!$C$42),"Yes","No") -> No | K169: =VLOOKUP($D169,'C.1 - Rate Sheets'!$B$15:$F$25,2,FALSE) -> 29.1 | L169: =VLOOKUP($D169,'C.1 - Rate Sheets'!$B$15:$F$25,3,FALSE) -> 39.68 | M169: =VLOOKUP($D169,'C.1 - Rate Sheets'!$B$15:$F$25,4,FALSE) -> 0 | N169: =VLOOKUP($D169,'C.1 - Rate Sheets'!$B$15:$F$25,5,FALSE) -> 0 | BI169: 16 | BM169: 8 | BN169: 8 | BR169: 8 | BS169: 8 | BW169: 8 | BX169: 8 | CB169: 6 | CG169: 30 | CH169: 40 | CI169: 0 | CJ169: 0 | CK169: 70 | CL169: 873 | CM169: 1587.2 | CN169: 0 | CO169: 0 | CP169: 2460.2 | CQ169: 2460.2 | CR169: Yes | CS169: 0 | CT169: 0 | CU169: 0
B170: 237 | C170: Dachel Yasmany | D170: Foreperson | E170: Vendor No 3 | F170: 50937 | G170: 82R77018 | H170: 2018-10-28 | I170: 2018-11-01 | J170: =IF(AND(H170>='A - Contractor Summary'!$C$36,I170<='A - Contractor Summary'!$C$42),"Yes","No") -> No | K170: =VLOOKUP($D170,'C.1 - Rate Sheets'!$B$15:$F$25,2,FALSE) -> 39.43 | L170: =VLOOKUP($D170,'C.1 - Rate Sheets'!$B$15:$F$25,3,FALSE) -> 53.62 | M170: =VLOOKUP($D170,'C.1 - Rate Sheets'!$B$15:$F$25,4,FALSE) -> 0 | N170: =VLOOKUP($D170,'C.1 - Rate Sheets'!$B$15:$F$25,5,FALSE) -> 0 | BI170: 16 | BM170: 8 | BN170: 8 | BR170: 8 | BS170: 8 | BW170: 8 | BX170: 8 | CB170: 6 | CG170: 30 | CH170: 40 | CI170: 0 | CJ170: 0 | CK170: 70 | CL170: 1182.9 | CM170: 2144.8 | CN170: 0 | CO170: 0 | CP170: 3327.7 | CQ170: 3327.7 | CR170: Yes | CS170: 0 | CT170: 0 | CU170: 0
B171: 239 | C171: Oneiber Mejia | D171: Trimmer A | E171: Vendor No 3 | F171: 50937 | G171: 82R77018 | H171: 2018-10-28 | I171: 2018-11-01 | J171: =IF(AND(H171>='A - Contractor Summary'!$C$36,I171<='A - Contractor Summary'!$C$42),"Yes","No") -> No | K171: =VLOOKUP($D171,'C.1 - Rate Sheets'!$B$15:$F$25,2,FALSE) -> 29.1 | L171: =VLOOKUP($D171,'C.1 - Rate Sheets'!$B$15:$F$25,3,FALSE) -> 39.68 | M171: =VLOOKUP($D171,'C.1 - Rate Sheets'!$B$15:$F$25,4,FALSE) -> 0 | N171: =VLOOKUP($D171,'C.1 - Rate Sheets'!$B$15:$F$25,5,FALSE) -> 0 | BI171: 16 | BM171: 8 | BN171: 8 | BR171: 8 | BS171: 8 | BW171: 8 | BX171: 8 | CB171: 6 | CG171: 30 | CH171: 40 | CI171: 0 | CJ171: 0 | CK171: 70 | CL171: 873 | CM171: 1587.2 | CN171: 0 | CO171: 0 | CP171: 2460.2 | CQ171: 2460.2 | CR171: Yes | CS171: 0 | CT171: 0 | CU171: 0
B172: 241 | C172: Angel Guevara | D172: Trimmer B | E172: Vendor No 3 | F172: 50937 | G172: 82R77018 | H172: 2018-10-28 | I172: 2018-11-01 | J172: =IF(AND(H172>='A - Contractor Summary'!$C$36,I172<='A - Contractor Summary'!$C$42),"Yes","No") -> No | K172: =VLOOKUP($D172,'C.1 - Rate Sheets'!$B$15:$F$25,2,FALSE) -> 26.9 | L172: =VLOOKUP($D172,'C.1 - Rate Sheets'!$B$15:$F$25,3,FALSE) -> 36.53 | M172: =VLOOKUP($D172,'C.1 - Rate Sheets'!$B$15:$F$25,4,FALSE) -> 0 | N172: =VLOOKUP($D172,'C.1 - Rate Sheets'!$B$15:$F$25,5,FALSE) -> 0 | BI172: 16 | BM172: 8 | BN172: 8 | BR172: 8 | BS172: 8 | BW172: 8 | BX172: 8 | CB172: 6 | CG172: 30 | CH172: 40 | CI172: 0 | CJ172: 0 | CK172: 70 | CL172: 807 | CM172: 1461.2 | CN172: 0 | CO172: 0 | CP172: 2268.2 | CQ172: 2268.2 | CR172: Yes | CS172: 0 | CT172: 0 | CU172: 0
B173: 243 | C173: Orlando Garcia | D173: Trimmer A | E173: Vendor No 3 | F173: 50937 | G173: 82R77018 | H173: 2018-10-28 | I173: 2018-11-01 | J173: =IF(AND(H173>='A - Contractor Summary'!$C$36,I173<='A - Contractor Summary'!$C$42),"Yes","No") -> No | K173: =VLOOKUP($D173,'C.1 - Rate Sheets'!$B$15:$F$25,2,FALSE) -> 29.1 | L173: =VLOOKUP($D173,'C.1 - Rate Sheets'!$B$15:$F$25,3,FALSE) -> 39.68 | M173: =VLOOKUP($D173,'C.1 - Rate Sheets'!$B$15:$F$25,4,FALSE) -> 0 | N173: =VLOOKUP($D173,'C.1 - Rate Sheets'!$B$15:$F$25,5,FALSE) -> 0 | BI173: 16 | BM173: 8 | BN173: 8 | BR173: 8 | BS173: 8 | BW173: 8 | BX173: 8 | CB173: 6 | CG173: 30 | CH173: 40 | CI173: 0 | CJ173: 0 | CK173: 70 | CL173: 873 | CM173: 1587.2 | CN173: 0 | CO173: 0 | CP173: 2460.2 | CQ173: 2460.2 | CR173: Yes | CS173: 0 | CT173: 0 | CU173: 0
B174: 245 | C174: Manuel Ortiz | D174: Trimmer A | E174: Vendor No 3 | F174: 50937 | G174: 82R77018 | H174: 2018-10-28 | I174: 2018-11-01 | J174: =IF(AND(H174>='A - Contractor Summary'!$C$36,I174<='A - Contractor Summary'!$C$42),"Yes","No") -> No | K174: =VLOOKUP($D174,'C.1 - Rate Sheets'!$B$15:$F$25,2,FALSE) -> 29.1 | L174: =VLOOKUP($D174,'C.1 - Rate Sheets'!$B$15:$F$25,3,FALSE) -> 39.68 | M174: =VLOOKUP($D174,'C.1 - Rate Sheets'!$B$15:$F$25,4,FALSE) -> 0 | N174: =VLOOKUP($D174,'C.1 - Rate Sheets'!$B$15:$F$25,5,FALSE) -> 0 | BI174: 16 | BM174: 8 | BN174: 8 | BR174: 8 | BS174: 8 | BW174: 8 | BX174: 8 | CB174: 6 | CG174: 30 | CH174: 40 | CI174: 0 | CJ174: 0 | CK174: 70 | CL174: 873 | CM174: 1587.2 | CN174: 0 | CO174: 0 | CP174: 2460.2 | CQ174: 2460.2 | CR174: Yes | CS174: 0 | CT174: 0 | CU174: 0
B175: 247 | C175: Tonny Rivas | D175: Foreperson | E175: Vendor No 3 | F175: 50937 | G175: 82R77018 | H175: 2018-10-28 | I175: 2018-11-01 | J175: =IF(AND(H175>='A - Contractor Summary'!$C$36,I175<='A - Contractor Summary'!$C$42),"Yes","No") -> No | K175: =VLOOKUP($D175,'C.1 - Rate Sheets'!$B$15:$F$25,2,FALSE) -> 39.43 | L175: =VLOOKUP($D175,'C.1 - Rate Sheets'!$B$15:$F$25,3,FALSE) -> 53.62 | M175: =VLOOKUP($D175,'C.1 - Rate Sheets'!$B$15:$F$25,4,FALSE) -> 0 | N175: =VLOOKUP($D175,'C.1 - Rate Sheets'!$B$15:$F$25,5,FALSE) -> 0 | BI175: 16 | BM175: 8 | BN175: 8 | BR175: 8 | BS175: 8 | BW175: 8 | BX175: 8 | CB175: 6 | CG175: 30 | CH175: 40 | CI175: 0 | CJ175: 0 | CK175: 70 | CL175: 1182.9 | CM175: 2144.8 | CN175: 0 | CO175: 0 | CP175: 3327.7 | CQ175: 3327.7 | CR175: Yes | CS175: 0 | CT175: 0 | CU175: 0
B176: 249 | C176: Carlos A Ruiz B | D176: Trimmer A | E176: Vendor No 3 | F176: 50937 | G176: 82R77018 | H176: 2018-10-28 | I176: 2018-11-01 | J176: =IF(AND(H176>='A - Contractor Summary'!$C$36,I176<='A - Contractor Summary'!$C$42),"Yes","No") -> No | K176: =VLOOKUP($D176,'C.1 - Rate Sheets'!$B$15:$F$25,2,FALSE) -> 29.1 | L176: =VLOOKUP($D176,'C.1 - Rate Sheets'!$B$15:$F$25,3,FALSE) -> 39.68 | M176: =VLOOKUP($D176,'C.1 - Rate Sheets'!$B$15:$F$25,4,FALSE) -> 0 | N176: =VLOOKUP($D176,'C.1 - Rate Sheets'!$B$15:$F$25,5,FALSE) -> 0 | BI176: 16 | BM176: 8 | BN176: 8 | BR176: 8 | BS176: 8 | BW176: 8 | BX176: 8 | CB176: 6 | CG176: 30 | CH176: 40 | CI176: 0 | CJ176: 0 | CK176: 70 | CL176: 873 | CM176: 1587.2 | CN176: 0 | CO176: 0 | CP176: 2460.2 | CQ176: 2460.2 | CR176: Yes | CS176: 0 | CT176: 0 | CU176: 0
B177: 251 | C177: Juan C Colmenarez | D177: Trimmer B | E177: Vendor No 3 | F177: 50937 | G177: 82R77018 | H177: 2018-10-28 | I177: 2018-11-01 | J177: =IF(AND(H177>='A - Contractor Summary'!$C$36,I177<='A - Contractor Summary'!$C$42),"Yes","No") -> No | K177: =VLOOKUP($D177,'C.1 - Rate Sheets'!$B$15:$F$25,2,FALSE) -> 26.9 | L177: =VLOOKUP($D177,'C.1 - Rate Sheets'!$B$15:$F$25,3,FALSE) -> 36.53 | M177: =VLOOKUP($D177,'C.1 - Rate Sheets'!$B$15:$F$25,4,FALSE) -> 0 | N177: =VLOOKUP($D177,'C.1 - Rate Sheets'!$B$15:$F$25,5,FALSE) -> 0 | BI177: 16 | BM177: 8 | BN177: 8 | BR177: 8 | BS177: 8 | BW177: 8 | BX177: 8 | CB177: 6 | CG177: 30 | CH177: 40 | CI177: 0 | CJ177: 0 | CK177: 70 | CL177: 807 | CM177: 1461.2 | CN177: 0 | CO177: 0 | CP177: 2268.2 | CQ177: 2268.2 | CR177: Yes | CS177: 0 | CT177: 0 | CU177: 0
CG178: 0 | CH178: 0 | CI178: 0 | CJ178: 0 | CK178: 0 | CL178: 0 | CM178: 0 | CN178: 0 | CO178: 0 | CP178: 0 | CQ178: 0 | CR178: Yes | CS178: 0 | CT178: 0 | CU178: 0
O179: =SUM(O19:O178) -> 52 | P179: 626 | Q179: 0 | R179: 0 | S179: 0 | T179: 56 | U179: 650 | V179: 0 | W179: 0 | X179: 0 | Y179: 0 | Z179: 752 | AA179: 0 | AB179: 0 | AC179: 0 | AD179: 376 | AE179: 376 | AF179: 0 | AG179: 0 | AH179: 0 | AI179: 376 | AJ179: 376 | AK179: 0 | AL179: 0 | AM179: 0 | AN179: 376 | AO179: 376 | AP179: 0 | AQ179: 0 | AR179: 0 | AS179: 383 | AT179: 369 | AU179: =SUM(AU19:AU178) -> 0 | AV179: 0 | AW179: 0 | AX179: 368 | AY179: 384 | AZ179: 0 | BA179: 0 | BB179: 0 | BC179: 0 | BD179: 752 | BE179: 0 | BF179: 0 | BG179: 0 | BH179: 0 | BI179: 752 | BJ179: 0 | BK179: 0 | BL179: 0 | BM179: 376 | BN179: 376 | BO179: 0 | BP179: 0 | BQ179: 0 | BR179: 376 | BS179: 376 | BT179: 0 | BU179: 0 | BV179: 0 | BW179: 376 | BX179: 376 | BY179: 0 | BZ179: 0 | CA179: =SUM(CA19:CA178) -> 0 | CB179: 352 | CC179: 190 | CD179: 0 | CE179: 0 | CF179: 0 | CG179: =SUM(O179,T179,Y179) -> 108 | CH179: =SUM(P179,U179,Z179) -> 2028 | CI179: =SUM(Q179,V179,AA179) -> 0 | CJ179: =SUM(R179,W179,AB179) -> 0 | CK179: =SUM(CG179:CJ179) -> 2136 | CL179: =CG179*K179 -> 0 | CM179: =CH179*L179 -> 0 | CN179: 0 | CO179: 0 | CP179: =IFERROR(SUM(CP19:CP178),0) -> 423913.75 | CQ179: =CP179-CS179 -> 423913.75 | CV179: =CS179-CT179-CU179 -> 0 | CW179: check (b)
O180: Total # of Crew | S180: =COUNTIF(S19:S178,">0") -> 0 | T180: Total # of Crew | X180: =COUNTIF(X19:X178,">0") -> 0 | Y180: Total # of Crew | AC180: =COUNTIF(AC19:AC178,">0") -> 0 | AD180: Total # of Crew | AH180: =COUNTIF(AH19:AH178,">0") -> 0 | AI180: Total # of Crew | AM180: =COUNTIF(AM19:AM178,">0") -> 0 | AN180: Total # of Crew | AR180: =COUNTIF(AR19:AR178,">0") -> 0 | AS180: Total # of Crew | AW180: =COUNTIF(AW19:AW178,">0") -> 0 | AX180: Total # of Crew | BB180: =COUNTIF(BB19:BB178,">0") -> 0 | BC180: Total # of Crew | BG180: =COUNTIF(BG19:BG178,">0") -> 0 | BH180: Total # of Crew | BL180: =COUNTIF(BL19:BL178,">0") -> 0 | BM180: Total # of Crew | BQ180: =COUNTIF(BQ19:BQ178,">0") -> 0 | BR180: Total # of Crew | BV180: =COUNTIF(BV19:BV178,">0") -> 0 | BW180: Total # of Crew | CA180: =COUNTIF(CA19:CA178,">0") -> 0 | CB180: Total # of Crew | CF180: =COUNTIF(CF19:CF178,">0") -> 0 | CG180: # of time charges | CK180: =SUM(S180,X180,AC180) -> 0
B188: Tickmark Explanation:
B190: 1
B191: 2
B192: 3

Sheet C.3 - Asset by Company
A1: Asset Tag | B1: Position | C1: Name

Sheet C.4 - Timesheets - Equipment
B2: Equipment Charges - Time Card
B4: Test Plan: | C4: Obtain the time cards. (A) Populate the equipment names and types (if provided). Find additional information regarding individual equipment charge from related invoice. (B) Enter hours worked from time card(s). (C) Confirm that the dates per the time cards fall between dates provided per 'A - Contractor Summary' tab. (D) Identify any equipment charges to be reviewed. (E) For charges which required further review, document review (include why it was determined to be allowed/disallowed via a tickmark).
B10: Rx | C10: Recalculated.
B11: a | C11: Provided from tab 'C.1 - Rate Sheets'.
B12: b | C12: Check figure should equal $0. Cell will appear yellow if discrepancies are noted.
C14: A | H14: Rx | J14: C | K14: a | L14: B | P14: Rx | S14: D | T14: E
B15: # | C15: Equipment Name | D15: Equipment ID | E15: Company | F15: Crew# | G15: Invoice | H15: Start Date | I15: End Date | J15: Dates Worked Reasonable? | K15: Rates | L15: Week Ending | M15: Week Ending | N15: Week Ending | P15: Total Hours | Q15: Total Equipment $ | R15: Allowable Charges | S15: To Be Reviewed | T15: Reviewed - Allowable Charge | U15: Reviewed - Unallowable Charge | V15: Tickmarks
L16: 2018-10-20 | M16: 2018-10-27 | N16: 2018-11-03
L17: Hours | M17: Hours | N17: Hours | O17: Hours
B18: 1 | C18: Truck, Pickup AWD | D18: 614-3521 | E18: Vendor No. 3 | F18: 50937 | G18: 81N95018 | H18: 2018-10-14 | I18: 2018-10-20 | J18: =IF(AND(H18>='A - Contractor Summary'!$C$36,I18<='A - Contractor Summary'!$C$42),"Yes","No") -> No | K18: =VLOOKUP($C18,'C.1 - Rate Sheets'!H:I,2,FALSE) -> 13.99 | L18: 21 | P18: =SUM(L18:O18) -> 21 | Q18: =P18*K18 -> 293.79 | R18: =Q18-S18 -> 293.79 | S18: 0 | T18: 0 | U18: 0
B19: 2 | C19: Pickup Truck | D19: 602-0501 | E19: Vendor No. 3 | F19: 50937 | G19: 81N95018 | H19: 2018-10-14 | I19: 2018-10-20 | J19: =IF(AND(H19>='A - Contractor Summary'!$C$36,I19<='A - Contractor Summary'!$C$42),"Yes","No") -> No | K19: =VLOOKUP($C19,'C.1 - Rate Sheets'!H:I,2,FALSE) -> 12.1 | L19: 21 | P19: 21 | Q19: 254.1 | R19: 254.1 | S19: 0 | T19: 0 | U19: 0
B20: 3 | C20: Truck, 14Yd Dump, 55 Ft | D20: 896-8383 | E20: Vendor No. 3 | F20: 50937 | G20: 81N95018 | H20: 2018-10-14 | I20: 2018-10-20 | J20: =IF(AND(H20>='A - Contractor Summary'!$C$36,I20<='A - Contractor Summary'!$C$42),"Yes","No") -> No | K20: =VLOOKUP($C20,'C.1 - Rate Sheets'!H:I,2,FALSE) -> 18.86 | L20: 21 | P20: 21 | Q20: 396.06 | R20: 396.06 | S20: 0 | T20: 0 | U20: 0
B21: 4 | C21: Truck, 14Yd Dump, 55 Ft | D21: 895-0743 | E21: Vendor No. 3 | F21: 50937 | G21: 81N95018 | H21: 2018-10-14 | I21: 2018-10-20 | J21: =IF(AND(H21>='A - Contractor Summary'!$C$36,I21<='A - Contractor Summary'!$C$42),"Yes","No") -> No | K21: =VLOOKUP($C21,'C.1 - Rate Sheets'!H:I,2,FALSE) -> 18.86 | L21: 21 | P21: 21 | Q21: 396.06 | R21: 396.06 | S21: 0 | T21: 0 | U21: 0
B22: 5 | C22: Truck, Pickup AWD | D22: 632-8575 | E22: Vendor No. 3 | F22: 50937 | G22: 81N95118 | H22: 2018-10-14 | I22: 2018-10-20 | J22: =IF(AND(H22>='A - Contractor Summary'!$C$36,I22<='A - Contractor Summary'!$C$42),"Yes","No") -> No | K22: =VLOOKUP($C22,'C.1 - Rate Sheets'!H:I,2,FALSE) -> 13.99 | L22: 21 | P22: 21 | Q22: 293.79 | R22: 293.79 | S22: 0 | T22: 0 | U22: 0
B23: 6 | C23: Truck, Pickup AWD | D23: 632-5524 | E23: Vendor No. 3 | F23: 50399 | G23: 81N95218 | H23: 2018-10-14 | I23: 2018-10-20 | J23: =IF(AND(H23>='A - Contractor Summary'!$C$36,I23<='A - Contractor Summary'!$C$42),"Yes","No") -> No | K23: =VLOOKUP($C23,'C.1 - Rate Sheets'!H:I,2,FALSE) -> 13.99 | L23: 21 | P23: 21 | Q23: 293.79 | R23: 293.79 | S23: 0 | T23: 0 | U23: 0
B24: 7 | C24: Truck, 14Yd Dump, 70 Ft | D24: 897-3887 | E24: Vendor No. 3 | F24: 50900 | G24: 81N95318 | H24: 2018-10-14 | I24: 2018-10-20 | J24: =IF(AND(H24>='A - Contractor Summary'!$C$36,I24<='A - Contractor Summary'!$C$42),"Yes","No") -> No | K24: =VLOOKUP($C24,'C.1 - Rate Sheets'!H:I,2,FALSE) -> 29 | L24: 21 | P24: 21 | Q24: 609 | R24: 609 | S24: 0 | T24: 0 | U24: 0
B25: 8 | C25: Truck, 14Yd Dump, 70 Ft | D25: 869-2522 | E25: Vendor No. 3 | F25: 50900 | G25: 81N95318 | H25: 2018-10-14 | I25: 2018-10-20 | J25: =IF(AND(H25>='A - Contractor Summary'!$C$36,I25<='A - Contractor Summary'!$C$42),"Yes","No") -> No | K25: =VLOOKUP($C25,'C.1 - Rate Sheets'!H:I,2,FALSE) -> 29 | L25: 21 | P25: 21 | Q25: 609 | R25: 609 | S25: 0 | T25: 0 | U25: 0
B26: 9 | C26: Truck, 14Yd Dump, 70 Ft | D26: 865-2550 | E26: Vendor No. 3 | F26: 50900 | G26: 81N95318 | H26: 2018-10-14 | I26: 2018-10-20 | J26: =IF(AND(H26>='A - Contractor Summary'!$C$36,I26<='A - Contractor Summary'!$C$42),"Yes","No") -> No | K26: =VLOOKUP($C26,'C.1 - Rate Sheets'!H:I,2,FALSE) -> 29 | L26: 21 | P26: 21 | Q26: 609 | R26: 609 | S26: 0 | T26: 0 | U26: 0
B27: 10 | C27: Truck, 14Yd Dump, 70 Ft | D27: 865-8219 | E27: Vendor No. 3 | F27: 50900 | G27: 81N95318 | H27: 2018-10-14 | I27: 2018-10-20 | J27: =IF(AND(H27>='A - Contractor Summary'!$C$36,I27<='A - Contractor Summary'!$C$42),"Yes","No") -> No | K27: =VLOOKUP($C27,'C.1 - Rate Sheets'!H:I,2,FALSE) -> 29 | L27: 21 | P27: 21 | Q27: 609 | R27: 609 | S27: 0 | T27: 0 | U27: 0
B28: 11 | C28: Truck, 14Yd Dump, 55 Ft | D28: 865-9076 | E28: Vendor No. 3 | F28: 50900 | G28: 81N95318 | H28: 2018-10-14 | I28: 2018-10-20 | J28: =IF(AND(H28>='A - Contractor Summary'!$C$36,I28<='A - Contractor Summary'!$C$42),"Yes","No") -> No | K28: =VLOOKUP($C28,'C.1 - Rate Sheets'!H:I,2,FALSE) -> 18.86 | L28: 21 | P28: 21 | Q28: 396.06 | R28: 396.06 | S28: 0 | T28: 0 | U28: 0
B29: 12 | C29: Truck, 14Yd Dump, 55 Ft | D29: 897-3204 | E29: Vendor No. 3 | F29: 50900 | G29: 81N95318 | H29: 2018-10-14 | I29: 2018-10-20 | J29: =IF(AND(H29>='A - Contractor Summary'!$C$36,I29<='A - Contractor Summary'!$C$42),"Yes","No") -> No | K29: =VLOOKUP($C29,'C.1 - Rate Sheets'!H:I,2,FALSE) -> 18.86 | L29: 21 | P29: 21 | Q29: 396.06 | R29: 396.06 | S29: 0 | T29: 0 | U29: 0
B30: 13 | C30: Truck, Pickup AWD | D30: 614-7588 | E30: Vendor No. 3 | F30: 55392 | G30: 81P63318 | H30: 2018-10-14 | I30: 2018-10-20 | J30: =IF(AND(H30>='A - Contractor Summary'!$C$36,I30<='A - Contractor Summary'!$C$42),"Yes","No") -> No | K30: =VLOOKUP($C30,'C.1 - Rate Sheets'!H:I,2,FALSE) -> 13.99 | L30: 11 | P30: 11 | Q30: 153.89 | R30: 153.89 | S30: 0 | T30: 0 | U30: 0
B31: 14 | C31: Truck, 14Yd Dump, 55 Ft | D31: 895-8778 | E31: Vendor No. 3 | F31: 55921 | G31: 81P63418 | H31: 2018-10-14 | I31: 2018-10-20 | J31: =IF(AND(H31>='A - Contractor Summary'!$C$36,I31<='A - Contractor Summary'!$C$42),"Yes","No") -> No | K31: =VLOOKUP($C31,'C.1 - Rate Sheets'!H:I,2,FALSE) -> 18.86 | L31: 11 | P31: 11 | Q31: 207.46 | R31: 207.46 | S31: 0 | T31: 0 | U31: 0
B32: 15 | C32: Truck, 14Yd Dump, 55 Ft | D32: 895-0736 | E32: Vendor No. 3 | F32: 55921 | G32: 81P63418 | H32: 2018-10-14 | I32: 2018-10-20 | J32: =IF(AND(H32>='A - Contractor Summary'!$C$36,I32<='A - Contractor Summary'!$C$42),"Yes","No") -> No | K32: =VLOOKUP($C32,'C.1 - Rate Sheets'!H:I,2,FALSE) -> 18.86 | L32: 11 | P32: 11 | Q32: 207.46 | R32: 207.46 | S32: 0 | T32: 0 | U32: 0
B33: 16 | C33: Truck, 14Yd Dump, 55 Ft | D33: 897-2576 | E33: Vendor No. 3 | F33: 55921 | G33: 81P63418 | H33: 2018-10-14 | I33: 2018-10-20 | J33: =IF(AND(H33>='A - Contractor Summary'!$C$36,I33<='A - Contractor Summary'!$C$42),"Yes","No") -> No | K33: =VLOOKUP($C33,'C.1 - Rate Sheets'!H:I,2,FALSE) -> 18.86 | L33: 11 | P33: 11 | Q33: 207.46 | R33: 207.46 | S33: 0 | T33: 0 | U33: 0
B34: 17 | C34: Truck, 14TD Chipper | D34: 770-1708 | E34: Vendor No. 3 | F34: 55921 | G34: 81P63418 | H34: 2018-10-14 | I34: 2018-10-20 | J34: =IF(AND(H34>='A - Contractor Summary'!$C$36,I34<='A - Contractor Summary'!$C$42),"Yes","No") -> No | K34: =VLOOKUP($C34,'C.1 - Rate Sheets'!H:I,2,FALSE) -> 12.03 | L34: 11 | P34: 11 | Q34: 132.33 | R34: 132.33 | S34: 0 | T34: 0 | U34: 0
B35: 18 | C35: Truck, 14TD Chipper | D35: 770-8429 | E35: Vendor No. 3 | F35: 55921 | G35: 81P63418 | H35: 2018-10-14 | I35: 2018-10-20 | J35: =IF(AND(H35>='A - Contractor Summary'!$C$36,I35<='A - Contractor Summary'!$C$42),"Yes","No") -> No | K35: =VLOOKUP($C35,'C.1 - Rate Sheets'!H:I,2,FALSE) -> 12.03 | L35: 11 | P35: 11 | Q35: 132.33 | R35: 132.33 | S35: 0 | T35: 0 | U35: 0
B36: 19 | C36: Truck, 14TD Chipper | D36: 770-9359 | E36: Vendor No. 3 | F36: 55921 | G36: 81P63418 | H36: 2018-10-14 | I36: 2018-10-20 | J36: =IF(AND(H36>='A - Contractor Summary'!$C$36,I36<='A - Contractor Summary'!$C$42),"Yes","No") -> No | K36: =VLOOKUP($C36,'C.1 - Rate Sheets'!H:I,2,FALSE) -> 12.03 | L36: 11 | P36: 11 | Q36: 132.33 | R36: 132.33 | S36: 0 | T36: 0 | U36: 0
B37: 20 | C37: Truck, 14TD Chipper | D37: 770-1909 | E37: Vendor No. 3 | F37: 55921 | G37: 81P63418 | H37: 2018-10-14 | I37: 2018-10-20 | J37: =IF(AND(H37>='A - Contractor Summary'!$C$36,I37<='A - Contractor Summary'!$C$42),"Yes","No") -> No | K37: =VLOOKUP($C37,'C.1 - Rate Sheets'!H:I,2,FALSE) -> 12.03 | L37: 11 | P37: 11 | Q37: 132.33 | R37: 132.33 | S37: 0 | T37: 0 | U37: 0
B38: 21 | C38: Crew Cab 4D Pickup | D38: 622-2513 | E38: Vendor No. 3 | F38: 55921 | G38: 81P63418 | H38: 2018-10-14 | I38: 2018-10-20 | J38: =IF(AND(H38>='A - Contractor Summary'!$C$36,I38<='A - Contractor Summary'!$C$42),"Yes","No") -> No | K38: =VLOOKUP($C38,'C.1 - Rate Sheets'!H:I,2,FALSE) -> 16.08 | L38: 11 | P38: 11 | Q38: 176.88 | R38: 176.88 | S38: 0 | T38: 0 | U38: 0
B39: 22 | C39: Truck, 14Yd Dump, 55 Ft | D39: 897-3692 | E39: Vendor No. 3 | F39: 55921 | G39: 81P63418 | H39: 2018-10-14 | I39: 2018-10-20 | J39: =IF(AND(H39>='A - Contractor Summary'!$C$36,I39<='A - Contractor Summary'!$C$42),"Yes","No") -> No | K39: =VLOOKUP($C39,'C.1 - Rate Sheets'!H:I,2,FALSE) -> 18.86 | L39: 11 | P39: 11 | Q39: 207.46 | R39: 207.46 | S39: 0 | T39: 0 | U39: 0
B40: 23 | C40: Truck, 14Yd Dump, 55 Ft | D40: 895-8562 | E40: Vendor No. 3 | F40: 55921 | G40: 81P63418 | H40: 2018-10-14 | I40: 2018-10-20 | J40: =IF(AND(H40>='A - Contractor Summary'!$C$36,I40<='A - Contractor Summary'!$C$42),"Yes","No") -> No | K40: =VLOOKUP($C40,'C.1 - Rate Sheets'!H:I,2,FALSE) -> 18.86 | L40: 11 | P40: 11 | Q40: 207.46 | R40: 207.46 | S40: 0 | T40: 0 | U40: 0
B41: 24 | C41: Truck, 14Yd Dump, 55 Ft | D41: 897-3887 | E41: Vendor No. 3 | F41: 50900 | G41: 82G04418 | H41: 2018-10-21 | I41: 2018-10-27 | J41: =IF(AND(H41>='A - Contractor Summary'!$C$36,I41<='A - Contractor Summary'!$C$42),"Yes","No") -> No | K41: =VLOOKUP($C41,'C.1 - Rate Sheets'!H:I,2,FALSE) -> 18.86 | M41: 112 | P41: 112 | Q41: 2112.32 | R41: 2112.32 | S41: 0 | T41: 0 | U41: 0
B42: 25 | C42: Truck, 14Yd Dump, 70 Ft | D42: 869-2522 | E42: Vendor No. 3 | F42: 50900 | G42: 82G04418 | H42: 2018-10-21 | I42: 2018-10-27 | J42: =IF(AND(H42>='A - Contractor Summary'!$C$36,I42<='A - Contractor Summary'!$C$42),"Yes","No") -> No | K42: =VLOOKUP($C42,'C.1 - Rate Sheets'!H:I,2,FALSE) -> 29 | M42: 112 | P42: 112 | Q42: 3248 | R42: =Q42-S42 -> 3248 | S42: 0 | T42: 0 | U42: 0
B43: 26 | C43: Truck, 14Yd Dump, 70 Ft | D43: 865-2550 | E43: Vendor No. 3 | F43: 50900 | G43: 82G04418 | H43: 2018-10-21 | I43: 2018-10-27 | J43: =IF(AND(H43>='A - Contractor Summary'!$C$36,I43<='A - Contractor Summary'!$C$42),"Yes","No") -> No | K43: =VLOOKUP($C43,'C.1 - Rate Sheets'!H:I,2,FALSE) -> 29 | M43: 112 | P43: 112 | Q43: 3248 | R43: 3248 | S43: 0 | T43: 0 | U43: 0
B44: 27 | C44: Truck, 14Yd Dump, 70 Ft | D44: 865-8219 | E44: Vendor No. 3 | F44: 50900 | G44: 82G04418 | H44: 2018-10-21 | I44: 2018-10-27 | J44: =IF(AND(H44>='A - Contractor Summary'!$C$36,I44<='A - Contractor Summary'!$C$42),"Yes","No") -> No | K44: =VLOOKUP($C44,'C.1 - Rate Sheets'!H:I,2,FALSE) -> 29 | M44: 112 | P44: 112 | Q44: 3248 | R44: 3248 | S44: 0 | T44: 0 | U44: 0
B45: 28 | C45: Truck, 14Yd Dump, 70 Ft | D45: 865-9076 | E45: Vendor No. 3 | F45: 50900 | G45: 82G04418 | H45: 2018-10-21 | I45: 2018-10-27 | J45: =IF(AND(H45>='A - Contractor Summary'!$C$36,I45<='A - Contractor Summary'!$C$42),"Yes","No") -> No | K45: =VLOOKUP($C45,'C.1 - Rate Sheets'!H:I,2,FALSE) -> 29 | M45: 112 | P45: 112 | Q45: 3248 | R45: 3248 | S45: 0 | T45: 0 | U45: 0
B46: 29 | C46: Truck, 14Yd Dump, 55 Ft | D46: 897-3204 | E46: Vendor No. 3 | F46: 50900 | G46: 82G04418 | H46: 2018-10-21 | I46: 2018-10-27 | J46: =IF(AND(H46>='A - Contractor Summary'!$C$36,I46<='A - Contractor Summary'!$C$42),"Yes","No") -> No | K46: =VLOOKUP($C46,'C.1 - Rate Sheets'!H:I,2,FALSE) -> 18.86 | M46: 112 | P46: 112 | Q46: 2112.32 | R46: 2112.32 | S46: 0 | T46: 0 | U46: 0
B47: 30 | C47: Truck, Pickup AWD | E47: Vendor No. 3 | F47: 50937 | G47: 82G04518 | H47: 2018-10-21 | I47: 2018-10-27 | J47: =IF(AND(H47>='A - Contractor Summary'!$C$36,I47<='A - Contractor Summary'!$C$42),"Yes","No") -> No | K47: =VLOOKUP($C47,'C.1 - Rate Sheets'!H:I,2,FALSE) -> 13.99 | M47: 112 | P47: 112 | Q47: 1566.88 | R47: =Q47-S47 -> 1566.88
B48: 31 | C48: Truck, Pickup AWD | D48: 632-5524 | E48: Vendor No. 3 | F48: 50399 | G48: 82G04718 | H48: 2018-10-21 | I48: 2018-10-27 | J48: =IF(AND(H48>='A - Contractor Summary'!$C$36,I48<='A - Contractor Summary'!$C$42),"Yes","No") -> No | K48: =VLOOKUP($C48,'C.1 - Rate Sheets'!H:I,2,FALSE) -> 13.99 | M48: 112 | P48: 112 | Q48: 1566.88 | R48: 1566.88 | S48: 0 | T48: 0 | U48: 0
B49: 32 | C49: Truck, Pickup AWD | D49: 632-8575 | E49: Vendor No. 3 | F49: 50937 | G49: 82R76918 | H49: 2018-10-28 | I49: 2018-11-03 | J49: =IF(AND(H49>='A - Contractor Summary'!$C$36,I49<='A - Contractor Summary'!$C$42),"Yes","No") -> No | K49: =VLOOKUP($C49,'C.1 - Rate Sheets'!H:I,2,FALSE) -> 13.99 | M49: 0 | N49: 64 | P49: 64 | Q49: 895.36 | R49: 895.36 | S49: 0 | T49: 0 | U49: 0
B50: 33 | C50: Truck, Pickup AWD | D50: 632-5524 | E50: Vendor No. 3 | F50: 50399 | G50: 82O62118 | H50: 2018-10-28 | I50: 2018-11-03 | J50: =IF(AND(H50>='A - Contractor Summary'!$C$36,I50<='A - Contractor Summary'!$C$42),"Yes","No") -> No | K50: =VLOOKUP($C50,'C.1 - Rate Sheets'!H:I,2,FALSE) -> 13.99 | M50: 0 | N50: 64 | P50: 64 | Q50: =P50*K50 -> 895.36 | R50: 895.36 | S50: 0 | T50: 0 | U50: 0
B51: 34 | C51: Truck, Pickup AWD | D51: 614-3521 | E51: Vendor No. 3 | F51: 50937 | G51: 82G04618 | H51: 2018-10-21 | I51: 2018-10-27 | J51: =IF(AND(H51>='A - Contractor Summary'!$C$36,I51<='A - Contractor Summary'!$C$42),"Yes","No") -> No | K51: =VLOOKUP($C51,'C.1 - Rate Sheets'!H:I,2,FALSE) -> 13.99 | M51: 112 | P51: =SUM(M51:O51) -> 112 | Q51: 1566.88 | R51: 1566.88 | S51: 0 | T51: 0 | U51: 0
B52: 35 | C52: Pickup Truck | D52: 602-0501 | E52: Vendor No. 3 | F52: 50937 | G52: 82G04618 | H52: 2018-10-21 | I52: 2018-10-27 | J52: =IF(AND(H52>='A - Contractor Summary'!$C$36,I52<='A - Contractor Summary'!$C$42),"Yes","No") -> No | K52: =VLOOKUP($C52,'C.1 - Rate Sheets'!H:I,2,FALSE) -> 12.1 | M52: 112 | P52: =SUM(M52:O52) -> 112 | Q52: 1355.2 | R52: 1355.2 | S52: 0 | T52: 0 | U52: 0
B53: 36 | C53: Truck, 14Yd Dump, 55 Ft | D53: 896-8383 | E53: Vendor No. 3 | F53: 50937 | G53: 82G04618 | H53: 2018-10-21 | I53: 2018-10-27 | J53: =IF(AND(H53>='A - Contractor Summary'!$C$36,I53<='A - Contractor Summary'!$C$42),"Yes","No") -> No | K53: =VLOOKUP($C53,'C.1 - Rate Sheets'!H:I,2,FALSE) -> 18.86 | M53: 112 | P53: =SUM(M53:O53) -> 112 | Q53: 2112.32 | R53: 2112.32 | S53: 0 | T53: 0 | U53: 0
B54: 37 | C54: Truck, 14Yd Dump, 55 Ft | D54: 895-0743 | E54: Vendor No. 3 | F54: 50937 | G54: 82G04618 | H54: 2018-10-21 | I54: 2018-10-27 | J54: =IF(AND(H54>='A - Contractor Summary'!$C$36,I54<='A - Contractor Summary'!$C$42),"Yes","No") -> No | K54: =VLOOKUP($C54,'C.1 - Rate Sheets'!H:I,2,FALSE) -> 18.86 | M54: 112 | P54: =SUM(M54:O54) -> 112 | Q54: 2112.32 | R54: 2112.32 | S54: 0 | T54: 0 | U54: 0
B55: 38 | C55: Pickup Truck | D55: 614-7558 | E55: Vendor No. 3 | F55: 55392 | G55: 82G04818 | H55: 2018-10-21 | I55: 2018-10-27 | J55: =IF(AND(H55>='A - Contractor Summary'!$C$36,I55<='A - Contractor Summary'!$C$42),"Yes","No") -> No | K55: =VLOOKUP($C55,'C.1 - Rate Sheets'!H:I,2,FALSE) -> 12.1 | M55: 112 | P55: =SUM(L55:O55) -> 112 | Q55: 1355.2 | R55: 1355.2 | S55: 0 | T55: 0 | U55: 0
B56: 39 | C56: Truck, 14Yd Dump, 55 Ft | D56: 869-2526 | E56: Vendor No. 3 | F56: 55392 | G56: 82G04818 | H56: 2018-10-21 | I56: 2018-10-27 | J56: =IF(AND(H56>='A - Contractor Summary'!$C$36,I56<='A - Contractor Summary'!$C$42),"Yes","No") -> No | K56: =VLOOKUP($C56,'C.1 - Rate Sheets'!H:I,2,FALSE) -> 18.86 | M56: 112 | P56: 112 | Q56: 2112.32 | R56: 2112.32 | S56: 0 | T56: 0 | U56: 0
B57: 40 | C57: Truck, 14Yd Dump, 55 Ft | D57: 895-0736 | E57: Vendor No. 3 | F57: 55392 | G57: 82G04818 | H57: 2018-10-21 | I57: 2018-10-27 | J57: =IF(AND(H57>='A - Contractor Summary'!$C$36,I57<='A - Contractor Summary'!$C$42),"Yes","No") -> No | K57: =VLOOKUP($C57,'C.1 - Rate Sheets'!H:I,2,FALSE) -> 18.86 | M57: 112 | P57: 112 | Q57: 2112.32 | R57: 2112.32 | S57: 0 | T57: 0 | U57: 0
B58: 41 | C58: Truck, 14Yd Dump, 55 Ft | D58: 897-2576 | E58: Vendor No. 3 | F58: 55392 | G58: 82G04818 | H58: 2018-10-21 | I58: 2018-10-27 | J58: =IF(AND(H58>='A - Contractor Summary'!$C$36,I58<='A - Contractor Summary'!$C$42),"Yes","No") -> No | K58: =VLOOKUP($C58,'C.1 - Rate Sheets'!H:I,2,FALSE) -> 18.86 | M58: 112 | P58: 112 | Q58: 2112.32 | R58: 2112.32 | S58: 0 | T58: 0 | U58: 0
B59: 42 | C59: Truck, 14Yd Dump, 55 Ft | D59: 897-3692 | E59: Vendor No. 3 | F59: 55392 | G59: 82G04818 | H59: 2018-10-21 | I59: 2018-10-27 | J59: =IF(AND(H59>='A - Contractor Summary'!$C$36,I59<='A - Contractor Summary'!$C$42),"Yes","No") -> No | K59: =VLOOKUP($C59,'C.1 - Rate Sheets'!H:I,2,FALSE) -> 18.86 | M59: 96 | P59: 96 | Q59: 1810.56 | R59: 1810.56 | S59: 0 | T59: 0 | U59: 0
B60: 43 | C60: Truck, 14Yd Dump, 55 Ft | D60: 895-8562 | E60: Vendor No. 3 | F60: 55392 | G60: 82G04818 | H60: 2018-10-21 | I60: 2018-10-27 | J60: =IF(AND(H60>='A - Contractor Summary'!$C$36,I60<='A - Contractor Summary'!$C$42),"Yes","No") -> No | K60: =VLOOKUP($C60,'C.1 - Rate Sheets'!H:I,2,FALSE) -> 18.86 | M60: 112 | P60: 112 | Q60: 2112.32 | R60: 2112.32 | S60: 0 | T60: 0 | U60: 0
B61: 44 | C61: Pickup Truck | D61: 622-2513 | E61: Vendor No. 3 | F61: 55392 | G61: 82G04818 | H61: 2018-10-21 | I61: 2018-10-27 | J61: =IF(AND(H61>='A - Contractor Summary'!$C$36,I61<='A - Contractor Summary'!$C$42),"Yes","No") -> No | K61: =VLOOKUP($C61,'C.1 - Rate Sheets'!H:I,2,FALSE) -> 12.1 | M61: 112 | P61: 112 | Q61: 1355.2 | R61: 1355.2 | S61: 0 | T61: 0 | U61: 0
B62: 45 | C62: Truck, 14TD Chipper | D62: 770-1708 | E62: Vendor No. 3 | F62: 55392 | G62: 82G04818 | H62: 2018-10-21 | I62: 2018-10-27 | J62: =IF(AND(H62>='A - Contractor Summary'!$C$36,I62<='A - Contractor Summary'!$C$42),"Yes","No") -> No | K62: =VLOOKUP($C62,'C.1 - Rate Sheets'!H:I,2,FALSE) -> 12.03 | M62: 112 | P62: 112 | Q62: 1347.36 | R62: 1347.36 | S62: 0 | T62: 0 | U62: 0
B63: 46 | C63: Truck, 14TD Chipper | D63: 770-8429 | E63: Vendor No. 3 | F63: 55392 | G63: 82G04818 | H63: 2018-10-21 | I63: 2018-10-27 | J63: =IF(AND(H63>='A - Contractor Summary'!$C$36,I63<='A - Contractor Summary'!$C$42),"Yes","No") -> No | K63: =VLOOKUP($C63,'C.1 - Rate Sheets'!H:I,2,FALSE) -> 12.03 | M63: 112 | P63: 112 | Q63: 1347.36 | R63: 1347.36 | S63: 0 | T63: 0 | U63: 0
B64: 47 | C64: Truck, 14TD Chipper | D64: 770-9359 | E64: Vendor No. 3 | F64: 55392 | G64: 82G04818 | H64: 2018-10-21 | I64: 2018-10-27 | J64: =IF(AND(H64>='A - Contractor Summary'!$C$36,I64<='A - Contractor Summary'!$C$42),"Yes","No") -> No | K64: =VLOOKUP($C64,'C.1 - Rate Sheets'!H:I,2,FALSE) -> 12.03 | M64: 112 | P64: 112 | Q64: 1347.36 | R64: 1347.36 | S64: 0 | T64: 0 | U64: 0
B65: 48 | C65: Truck, 14TD Chipper | D65: 770-1909 | E65: Vendor No. 3 | F65: 55392 | G65: 82G04818 | H65: 2018-10-21 | I65: 2018-10-27 | J65: =IF(AND(H65>='A - Contractor Summary'!$C$36,I65<='A - Contractor Summary'!$C$42),"Yes","No") -> No | K65: =VLOOKUP($C65,'C.1 - Rate Sheets'!H:I,2,FALSE) -> 12.03 | M65: 112 | P65: 112 | Q65: 1347.36 | R65: 1347.36 | S65: 0 | T65: 0 | U65: 0
B66: 49 | C66: Truck, 14Yd Dump, 55 Ft | D66: 897-3887 | E66: Vendor No. 3 | F66: 50900 | G66: 82O62018 | H66: 2018-10-28 | I66: 2018-11-03 | J66: =IF(AND(H66>='A - Contractor Summary'!$C$36,I66<='A - Contractor Summary'!$C$42),"Yes","No") -> No | K66: =VLOOKUP($C66,'C.1 - Rate Sheets'!H:I,2,FALSE) -> 18.86 | N66: 64 | P66: 64 | Q66: 1207.04 | R66: 1207.04 | S66: 0 | T66: 0 | U66: 0
B67: 50 | C67: Truck, 14Yd Dump, 70 Ft | D67: 869-2522 | E67: Vendor No. 3 | F67: 50900 | G67: 82O62018 | H67: 2018-10-28 | I67: 2018-11-03 | J67: =IF(AND(H67>='A - Contractor Summary'!$C$36,I67<='A - Contractor Summary'!$C$42),"Yes","No") -> No | K67: =VLOOKUP($C67,'C.1 - Rate Sheets'!H:I,2,FALSE) -> 29 | N67: 64 | P67: 64 | Q67: 1856 | R67: 1856 | S67: 0 | T67: 0 | U67: 0
B68: 51 | C68: Truck, 14Yd Dump, 70 Ft | D68: 865-2550 | E68: Vendor No. 3 | F68: 50900 | G68: 82O62018 | H68: 2018-10-28 | I68: 2018-11-03 | J68: =IF(AND(H68>='A - Contractor Summary'!$C$36,I68<='A - Contractor Summary'!$C$42),"Yes","No") -> No | K68: =VLOOKUP($C68,'C.1 - Rate Sheets'!H:I,2,FALSE) -> 29 | N68: 64 | P68: 64 | Q68: 1856 | R68: 1856 | S68: 0 | T68: 0 | U68: 0
B69: 52 | C69: Truck, 14Yd Dump, 70 Ft | D69: 865-8219 | E69: Vendor No. 3 | F69: 50900 | G69: 82O62018 | H69: 2018-10-28 | I69: 2018-11-03 | J69: =IF(AND(H69>='A - Contractor Summary'!$C$36,I69<='A - Contractor Summary'!$C$42),"Yes","No") -> No | K69: =VLOOKUP($C69,'C.1 - Rate Sheets'!H:I,2,FALSE) -> 29 | N69: 64 | P69: 64 | Q69: 1856 | R69: 1856 | S69: 0 | T69: 0 | U69: 0
B70: 53 | C70: Truck, 14Yd Dump, 70 Ft | D70: 865-9076 | E70: Vendor No. 3 | F70: 50900 | G70: 82O62018 | H70: 2018-10-28 | I70: 2018-11-03 | J70: =IF(AND(H70>='A - Contractor Summary'!$C$36,I70<='A - Contractor Summary'!$C$42),"Yes","No") -> No | K70: =VLOOKUP($C70,'C.1 - Rate Sheets'!H:I,2,FALSE) -> 29 | N70: 64 | P70: 64 | Q70: 1856 | R70: 1856 | S70: 0 | T70: 0 | U70: 0
B71: 54 | C71: Truck, 14Yd Dump, 55 Ft | D71: 897-3204 | E71: Vendor No. 3 | F71: 50900 | G71: 82O62018 | H71: 2018-10-28 | I71: 2018-11-03 | J71: =IF(AND(H71>='A - Contractor Summary'!$C$36,I71<='A - Contractor Summary'!$C$42),"Yes","No") -> No | K71: =VLOOKUP($C71,'C.1 - Rate Sheets'!H:I,2,FALSE) -> 18.86 | N71: 64 | P71: 64 | Q71: 1207.04 | R71: 1207.04 | S71: 0 | T71: 0 | U71: 0
B72: 55 | C72: Pickup Truck | D72: 614-7588 | E72: Vendor No. 3 | F72: 55392 | G72: 82O61918 | H72: 2018-10-28 | I72: 2018-11-03 | J72: =IF(AND(H72>='A - Contractor Summary'!$C$36,I72<='A - Contractor Summary'!$C$42),"Yes","No") -> No | K72: =VLOOKUP($C72,'C.1 - Rate Sheets'!H:I,2,FALSE) -> 12.1 | N72: 64 | P72: 64 | Q72: 774.4 | R72: 774.4 | S72: 0 | T72: 0 | U72: 0
B73: 56 | C73: Truck, 14Yd Dump, 55 Ft | D73: 869-2526 | E73: Vendor No. 3 | F73: 55392 | G73: 82O61918 | H73: 2018-10-28 | I73: 2018-11-03 | J73: =IF(AND(H73>='A - Contractor Summary'!$C$36,I73<='A - Contractor Summary'!$C$42),"Yes","No") -> No | K73: =VLOOKUP($C73,'C.1 - Rate Sheets'!H:I,2,FALSE) -> 18.86 | N73: 64 | P73: 64 | Q73: 1207.04 | R73: 1207.04 | S73: 0 | T73: 0 | U73: 0
B74: 57 | C74: Truck, 14Yd Dump, 55 Ft | D74: 895-0736 | E74: Vendor No. 3 | F74: 55392 | G74: 82O61918 | H74: 2018-10-28 | I74: 2018-11-03 | J74: =IF(AND(H74>='A - Contractor Summary'!$C$36,I74<='A - Contractor Summary'!$C$42),"Yes","No") -> No | K74: =VLOOKUP($C74,'C.1 - Rate Sheets'!H:I,2,FALSE) -> 18.86 | N74: 64 | P74: 64 | Q74: 1207.04 | R74: 1207.04 | S74: 0 | T74: 0 | U74: 0
B75: 58 | C75: Truck, 14Yd Dump, 55 Ft | D75: 897.2576 | E75: Vendor No. 3 | F75: 55392 | G75: 82O61918 | H75: 2018-10-28 | I75: 2018-11-03 | J75: =IF(AND(H75>='A - Contractor Summary'!$C$36,I75<='A - Contractor Summary'!$C$42),"Yes","No") -> No | K75: =VLOOKUP($C75,'C.1 - Rate Sheets'!H:I,2,FALSE) -> 18.86 | N75: 64 | P75: 64 | Q75: 1207.04 | R75: 1207.04 | S75: 0 | T75: 0 | U75: 0
B76: 59 | C76: Truck, 14Yd Dump, 55 Ft | D76: 897-3692 | E76: Vendor No. 3 | F76: 55392 | G76: 82O61918 | H76: 2018-10-28 | I76: 2018-11-03 | J76: =IF(AND(H76>='A - Contractor Summary'!$C$36,I76<='A - Contractor Summary'!$C$42),"Yes","No") -> No | K76: =VLOOKUP($C76,'C.1 - Rate Sheets'!H:I,2,FALSE) -> 18.86 | N76: 64 | P76: 64 | Q76: 1207.04 | R76: 1207.04 | S76: 0 | T76: 0 | U76: 0
B77: 60 | C77: Truck, 14Yd Dump, 55 Ft | D77: 895-8562 | E77: Vendor No. 3 | F77: 55392 | G77: 82O61918 | H77: 2018-10-28 | I77: 2018-11-03 | J77: =IF(AND(H77>='A - Contractor Summary'!$C$36,I77<='A - Contractor Summary'!$C$42),"Yes","No") -> No | K77: =VLOOKUP($C77,'C.1 - Rate Sheets'!H:I,2,FALSE) -> 18.86 | N77: 64 | P77: 64 | Q77: 1207.04 | R77: 1207.04 | S77: 0 | T77: 0 | U77: 0
B78: 61 | C78: Pickup Truck | D78: 622-2513 | E78: Vendor No. 3 | F78: 55392 | G78: 82O61918 | H78: 2018-10-28 | I78: 2018-11-03 | J78: =IF(AND(H78>='A - Contractor Summary'!$C$36,I78<='A - Contractor Summary'!$C$42),"Yes","No") -> No | K78: =VLOOKUP($C78,'C.1 - Rate Sheets'!H:I,2,FALSE) -> 12.1 | N78: 64 | P78: 64 | Q78: 774.4 | R78: 774.4 | S78: 0 | T78: 0 | U78: 0
B79: 62 | C79: Truck, 14TD Chipper | D79: 770-1708 | E79: Vendor No. 3 | F79: 55392 | G79: 82O61918 | H79: 2018-10-28 | I79: 2018-11-03 | J79: =IF(AND(H79>='A - Contractor Summary'!$C$36,I79<='A - Contractor Summary'!$C$42),"Yes","No") -> No | K79: =VLOOKUP($C79,'C.1 - Rate Sheets'!H:I,2,FALSE) -> 12.03 | N79: 64 | P79: 64 | Q79: 769.92 | R79: 769.92 | S79: 0 | T79: 0 | U79: 0
B80: 63 | C80: Truck, 14TD Chipper | D80: 770-8429 | E80: Vendor No. 3 | F80: 55392 | G80: 82O61918 | H80: 2018-10-28 | I80: 2018-11-03 | J80: =IF(AND(H80>='A - Contractor Summary'!$C$36,I80<='A - Contractor Summary'!$C$42),"Yes","No") -> No | K80: =VLOOKUP($C80,'C.1 - Rate Sheets'!H:I,2,FALSE) -> 12.03 | N80: 64 | P80: 64 | Q80: 769.92 | R80: =Q80-S80 -> 769.92 | S80: 0 | T80: 0 | U80: 0
B81: 64 | C81: Truck, 14TD Chipper | D81: 770-9359 | E81: Vendor No. 3 | F81: 55392 | G81: 82O61918 | H81: 2018-10-28 | I81: 2018-11-03 | J81: =IF(AND(H81>='A - Contractor Summary'!$C$36,I81<='A - Contractor Summary'!$C$42),"Yes","No") -> No | K81: =VLOOKUP($C81,'C.1 - Rate Sheets'!H:I,2,FALSE) -> 12.03 | N81: 64 | P81: 64 | Q81: 769.92 | R81: 769.92 | S81: 0 | T81: 0 | U81: 0
B82: 65 | C82: Truck, 14TD Chipper | D82: 770-1909 | E82: Vendor No. 3 | F82: 55392 | G82: 82O61918 | H82: 2018-10-28 | I82: 2018-11-03 | J82: =IF(AND(H82>='A - Contractor Summary'!$C$36,I82<='A - Contractor Summary'!$C$42),"Yes","No") -> No | K82: =VLOOKUP($C82,'C.1 - Rate Sheets'!H:I,2,FALSE) -> 12.03 | N82: 64 | P82: 64 | Q82: =P82*K82 -> 769.92 | R82: 769.92 | S82: 0 | T82: 0 | U82: 0
B83: 66 | C83: Truck, Pickup AWD | D83: 614-3521 | E83: Vendor No. 3 | F83: 50937 | G83: 82R77018 | H83: 2018-10-28 | I83: 2018-11-03 | J83: =IF(AND(H83>='A - Contractor Summary'!$C$36,I83<='A - Contractor Summary'!$C$42),"Yes","No") -> No | K83: =VLOOKUP($C83,'C.1 - Rate Sheets'!H:I,2,FALSE) -> 13.99 | N83: 64 | P83: 64 | Q83: 895.36 | R83: 895.36 | S83: 0 | T83: 0 | U83: 0
B84: 67 | C84: Pickup Truck | D84: 602-0501 | E84: Vendor No. 3 | F84: 50937 | G84: 82R77018 | H84: 2018-10-28 | I84: 2018-11-03 | J84: =IF(AND(H84>='A - Contractor Summary'!$C$36,I84<='A - Contractor Summary'!$C$42),"Yes","No") -> No | K84: =VLOOKUP($C84,'C.1 - Rate Sheets'!H:I,2,FALSE) -> 12.1 | N84: 64 | P84: 64 | Q84: 774.4 | R84: 774.4 | S84: 0 | T84: 0 | U84: 0
B85: 68 | C85: Truck, 14Yd Dump, 55 Ft | D85: 896-8383 | E85: Vendor No. 3 | F85: 50937 | G85: 82R77018 | H85: 2018-10-28 | I85: 2018-11-03 | J85: =IF(AND(H85>='A - Contractor Summary'!$C$36,I85<='A - Contractor Summary'!$C$42),"Yes","No") -> No | K85: =VLOOKUP($C85,'C.1 - Rate Sheets'!H:I,2,FALSE) -> 18.86 | N85: 64 | P85: 64 | Q85: 1207.04 | R85: 1207.04 | S85: 0 | T85: 0 | U85: 0
B86: 69 | C86: Truck, 14Yd Dump, 55 Ft | D86: 895-0743 | E86: Vendor No. 3 | F86: 50937 | G86: 82R77018 | H86: 2018-10-28 | I86: 2018-11-03 | J86: =IF(AND(H86>='A - Contractor Summary'!$C$36,I86<='A - Contractor Summary'!$C$42),"Yes","No") -> No | K86: =VLOOKUP($C86,'C.1 - Rate Sheets'!H:I,2,FALSE) -> 18.86 | N86: 64 | P86: 64 | Q86: 1207.04 | R86: 1207.04 | S86: 0 | T86: 0 | U86: 0
J87: =IF(AND(H87>='A - Contractor Summary'!$C$36,I87<='A - Contractor Summary'!$C$42),"Yes","No") -> No | P87: 0 | Q87: 0 | R87: 0 | S87: 0 | T87: 0 | U87: 0
L88: =SUM(L18:L87) -> 373 | M88: =SUM(M18:M87) -> 2560 | N88: =SUM(N18:N87) -> 1472 | O88: =SUM(O18:O87) -> 0 | P88: =SUM(P18:P87) -> 4405 | Q88: =IFERROR(SUM(Q18:Q87),0) -> 79286.22 | R88: =IFERROR(SUM(R18:R87),0) -> 79286.22 | S88: =SUM(S18:S87) -> 0 | T88: =SUM(T18:T87) -> 0 | U88: =SUM(U18:U87) -> 0 | V88: =S88-T88-U88 -> 0 | W88: check (b)
B92: Tickmark Explanation:

Sheet D - Lodging
B2: Lodging Charges
B4: Test Plan: (A) Obtain support of individual charges. (B) Enter Yes/No if receipt is itemized (C) Enter Yes/No if proof of payment has been provided. (D) Ensure charges fall between the dates the vendor was mobilized and the date they arrived. (E) Ensure charges are prior to the date the vendor arrived home or was released to another utility. (F) Ensure the location of stay was reasonable (G) Determine the amount(s) to be reviewed, allowed and/or disallowed. (H) For charges which required further review, document review (include why it was determined to be allowed/disallowed via a tickmark).
B8: Rx | C8: Recalculated.
B9: a | C9: Check figure should equal $0. Cell will appear yellow if discrepancies are noted.
C11: A | M11: Rx | N11: B | O11: C | P11: D | Q11: E | R11: F | S11: G | V11: H
B12: Support Reviewed | P12: Conclusion
B13: # | C13: Type of Support | D13: Support Identifier | E13: Crew | F13: Company | G13: Check In Date | H13: Person | I13: Hotel Name | J13: Location | K13: # of Nights | L13: Total Invoice | M13: $ / Night | N13: Itemized Receipt | O13: Proof of Payment | P13: Reasonable based on Mobilization date(s) | Q13: Reasonable based on Demobilization date(s) | R13: Location Reasonable | S13: Conclusion | T13: $ Allowable Charge | U13: $ To Be Reviewed | V13: Reviewed - Allowable $ | W13: Reviewed - Unallowable $ | X13: Tickmark
B14: 1 | M14: =L14/K14 ->  | P14: =IF(AND(G14>='A - Contractor Summary'!$C$36,G14<='A - Contractor Summary'!$C$38),"Yes",IF(G14<'A - Contractor Summary'!$C$36,"No",IF(G14>'A - Contractor Summary'!$C$39,"",""))) -> No | Q14: =IF(OR(P14="Yes",P14="No")*AND(G14<'A - Contractor Summary'!$C$39),"",IF(AND(G14>'A - Contractor Summary'!$C$39,G14<'A - Contractor Summary'!$C$42),"Yes",IF(G14>'A - Contractor Summary'!$C$42,"No","Needs Review"))) ->  | S14: =IF(AND(R14="YES",O14="Yes",N14="Yes")*OR(P14="Yes",Q14="Yes"),"Yes",IF(OR(N14="No",O14="No",P14="No",Q14="No",R14="No"),"No","Needs Review")) -> No | T14: =IF(S14="Yes",L14,0) -> 0 | U14: =IF(S14="Needs Review",L14,0) -> 0
B15: 2 | P15: =IF(AND(G15>='A - Contractor Summary'!$C$36,G15<='A - Contractor Summary'!$C$38),"Yes",IF(G15<'A - Contractor Summary'!$C$36,"No",IF(G15>'A - Contractor Summary'!$C$39,"",""))) -> No | Q15: =IF(OR(P15="Yes",P15="No")*AND(G15<'A - Contractor Summary'!$C$39),"",IF(AND(G15>'A - Contractor Summary'!$C$39,G15<'A - Contractor Summary'!$C$42),"Yes",IF(G15>'A - Contractor Summary'!$C$42,"No","Needs Review"))) ->  | S15: No | T15: 0 | U15: 0
B16: 3 | P16: =IF(AND(G16>='A - Contractor Summary'!$C$36,G16<='A - Contractor Summary'!$C$38),"Yes",IF(G16<'A - Contractor Summary'!$C$36,"No",IF(G16>'A - Contractor Summary'!$C$39,"",""))) -> No | Q16: =IF(OR(P16="Yes",P16="No")*AND(G16<'A - Contractor Summary'!$C$39),"",IF(AND(G16>'A - Contractor Summary'!$C$39,G16<'A - Contractor Summary'!$C$42),"Yes",IF(G16>'A - Contractor Summary'!$C$42,"No","Needs Review"))) ->  | S16: No | T16: 0 | U16: 0
B17: 4 | P17: =IF(AND(G17>='A - Contractor Summary'!$C$36,G17<='A - Contractor Summary'!$C$38),"Yes",IF(G17<'A - Contractor Summary'!$C$36,"No",IF(G17>'A - Contractor Summary'!$C$39,"",""))) -> No | Q17: =IF(OR(P17="Yes",P17="No")*AND(G17<'A - Contractor Summary'!$C$39),"",IF(AND(G17>'A - Contractor Summary'!$C$39,G17<'A - Contractor Summary'!$C$42),"Yes",IF(G17>'A - Contractor Summary'!$C$42,"No","Needs Review"))) ->  | S17: No | T17: 0 | U17: 0
B18: 5 | P18: =IF(AND(G18>='A - Contractor Summary'!$C$36,G18<='A - Contractor Summary'!$C$38),"Yes",IF(G18<'A - Contractor Summary'!$C$36,"No",IF(G18>'A - Contractor Summary'!$C$39,"",""))) -> No | Q18: =IF(OR(P18="Yes",P18="No")*AND(G18<'A - Contractor Summary'!$C$39),"",IF(AND(G18>'A - Contractor Summary'!$C$39,G18<'A - Contractor Summary'!$C$42),"Yes",IF(G18>'A - Contractor Summary'!$C$42,"No","Needs Review"))) ->  | S18: No | T18: 0 | U18: 0
B19: 6 | P19: =IF(AND(G19>='A - Contractor Summary'!$C$36,G19<='A - Contractor Summary'!$C$38),"Yes",IF(G19<'A - Contractor Summary'!$C$36,"No",IF(G19>'A - Contractor Summary'!$C$39,"",""))) -> No | Q19: =IF(OR(P19="Yes",P19="No")*AND(G19<'A - Contractor Summary'!$C$39),"",IF(AND(G19>'A - Contractor Summary'!$C$39,G19<'A - Contractor Summary'!$C$42),"Yes",IF(G19>'A - Contractor Summary'!$C$42,"No","Needs Review"))) ->  | S19: No | T19: 0 | U19: 0
B20: 7 | P20: =IF(AND(G20>='A - Contractor Summary'!$C$36,G20<='A - Contractor Summary'!$C$38),"Yes",IF(G20<'A - Contractor Summary'!$C$36,"No",IF(G20>'A - Contractor Summary'!$C$39,"",""))) -> No | Q20: =IF(OR(P20="Yes",P20="No")*AND(G20<'A - Contractor Summary'!$C$39),"",IF(AND(G20>'A - Contractor Summary'!$C$39,G20<'A - Contractor Summary'!$C$42),"Yes",IF(G20>'A - Contractor Summary'!$C$42,"No","Needs Review"))) ->  | S20: No | T20: 0 | U20: 0
B21: 8 | P21: =IF(AND(G21>='A - Contractor Summary'!$C$36,G21<='A - Contractor Summary'!$C$38),"Yes",IF(G21<'A - Contractor Summary'!$C$36,"No",IF(G21>'A - Contractor Summary'!$C$39,"",""))) -> No | Q21: =IF(OR(P21="Yes",P21="No")*AND(G21<'A - Contractor Summary'!$C$39),"",IF(AND(G21>'A - Contractor Summary'!$C$39,G21<'A - Contractor Summary'!$C$42),"Yes",IF(G21>'A - Contractor Summary'!$C$42,"No","Needs Review"))) ->  | S21: No | T21: 0 | U21: 0
B22: 9 | P22: =IF(AND(G22>='A - Contractor Summary'!$C$36,G22<='A - Contractor Summary'!$C$38),"Yes",IF(G22<'A - Contractor Summary'!$C$36,"No",IF(G22>'A - Contractor Summary'!$C$39,"",""))) -> No | Q22: =IF(OR(P22="Yes",P22="No")*AND(G22<'A - Contractor Summary'!$C$39),"",IF(AND(G22>'A - Contractor Summary'!$C$39,G22<'A - Contractor Summary'!$C$42),"Yes",IF(G22>'A - Contractor Summary'!$C$42,"No","Needs Review"))) ->  | S22: No | T22: 0 | U22: 0
B23: 10 | P23: =IF(AND(G23>='A - Contractor Summary'!$C$36,G23<='A - Contractor Summary'!$C$38),"Yes",IF(G23<'A - Contractor Summary'!$C$36,"No",IF(G23>'A - Contractor Summary'!$C$39,"",""))) -> No | Q23: =IF(OR(P23="Yes",P23="No")*AND(G23<'A - Contractor Summary'!$C$39),"",IF(AND(G23>'A - Contractor Summary'!$C$39,G23<'A - Contractor Summary'!$C$42),"Yes",IF(G23>'A - Contractor Summary'!$C$42,"No","Needs Review"))) ->  | S23: No | T23: 0 | U23: 0
B24: 11 | P24: =IF(AND(G24>='A - Contractor Summary'!$C$36,G24<='A - Contractor Summary'!$C$38),"Yes",IF(G24<'A - Contractor Summary'!$C$36,"No",IF(G24>'A - Contractor Summary'!$C$39,"",""))) -> No | Q24: =IF(OR(P24="Yes",P24="No")*AND(G24<'A - Contractor Summary'!$C$39),"",IF(AND(G24>'A - Contractor Summary'!$C$39,G24<'A - Contractor Summary'!$C$42),"Yes",IF(G24>'A - Contractor Summary'!$C$42,"No","Needs Review"))) ->  | S24: No | T24: 0 | U24: 0
B25: 12 | P25: =IF(AND(G25>='A - Contractor Summary'!$C$36,G25<='A - Contractor Summary'!$C$38),"Yes",IF(G25<'A - Contractor Summary'!$C$36,"No",IF(G25>'A - Contractor Summary'!$C$39,"",""))) -> No | Q25: =IF(OR(P25="Yes",P25="No")*AND(G25<'A - Contractor Summary'!$C$39),"",IF(AND(G25>'A - Contractor Summary'!$C$39,G25<'A - Contractor Summary'!$C$42),"Yes",IF(G25>'A - Contractor Summary'!$C$42,"No","Needs Review"))) ->  | S25: No | T25: 0 | U25: 0
B26: 13 | P26: =IF(AND(G26>='A - Contractor Summary'!$C$36,G26<='A - Contractor Summary'!$C$38),"Yes",IF(G26<'A - Contractor Summary'!$C$36,"No",IF(G26>'A - Contractor Summary'!$C$39,"",""))) -> No | Q26: =IF(OR(P26="Yes",P26="No")*AND(G26<'A - Contractor Summary'!$C$39),"",IF(AND(G26>'A - Contractor Summary'!$C$39,G26<'A - Contractor Summary'!$C$42),"Yes",IF(G26>'A - Contractor Summary'!$C$42,"No","Needs Review"))) ->  | S26: No | T26: 0 | U26: 0
B27: 14 | P27: =IF(AND(G27>='A - Contractor Summary'!$C$36,G27<='A - Contractor Summary'!$C$38),"Yes",IF(G27<'A - Contractor Summary'!$C$36,"No",IF(G27>'A - Contractor Summary'!$C$39,"",""))) -> No | Q27: =IF(OR(P27="Yes",P27="No")*AND(G27<'A - Contractor Summary'!$C$39),"",IF(AND(G27>'A - Contractor Summary'!$C$39,G27<'A - Contractor Summary'!$C$42),"Yes",IF(G27>'A - Contractor Summary'!$C$42,"No","Needs Review"))) ->  | S27: No | T27: 0 | U27: 0
B28: 15 | P28: =IF(AND(G28>='A - Contractor Summary'!$C$36,G28<='A - Contractor Summary'!$C$38),"Yes",IF(G28<'A - Contractor Summary'!$C$36,"No",IF(G28>'A - Contractor Summary'!$C$39,"",""))) -> No | Q28: =IF(OR(P28="Yes",P28="No")*AND(G28<'A - Contractor Summary'!$C$39),"",IF(AND(G28>'A - Contractor Summary'!$C$39,G28<'A - Contractor Summary'!$C$42),"Yes",IF(G28>'A - Contractor Summary'!$C$42,"No","Needs Review"))) ->  | S28: No | T28: 0 | U28: 0
B29: 16 | P29: =IF(AND(G29>='A - Contractor Summary'!$C$36,G29<='A - Contractor Summary'!$C$38),"Yes",IF(G29<'A - Contractor Summary'!$C$36,"No",IF(G29>'A - Contractor Summary'!$C$39,"",""))) -> No | Q29: =IF(OR(P29="Yes",P29="No")*AND(G29<'A - Contractor Summary'!$C$39),"",IF(AND(G29>'A - Contractor Summary'!$C$39,G29<'A - Contractor Summary'!$C$42),"Yes",IF(G29>'A - Contractor Summary'!$C$42,"No","Needs Review"))) ->  | S29: No | T29: 0 | U29: 0
B30: 17 | P30: =IF(AND(G30>='A - Contractor Summary'!$C$36,G30<='A - Contractor Summary'!$C$38),"Yes",IF(G30<'A - Contractor Summary'!$C$36,"No",IF(G30>'A - Contractor Summary'!$C$39,"",""))) -> No | Q30: =IF(OR(P30="Yes",P30="No")*AND(G30<'A - Contractor Summary'!$C$39),"",IF(AND(G30>'A - Contractor Summary'!$C$39,G30<'A - Contractor Summary'!$C$42),"Yes",IF(G30>'A - Contractor Summary'!$C$42,"No","Needs Review"))) ->  | S30: No | T30: 0 | U30: 0
B31: 18 | P31: =IF(AND(G31>='A - Contractor Summary'!$C$36,G31<='A - Contractor Summary'!$C$38),"Yes",IF(G31<'A - Contractor Summary'!$C$36,"No",IF(G31>'A - Contractor Summary'!$C$39,"",""))) -> No | Q31: =IF(OR(P31="Yes",P31="No")*AND(G31<'A - Contractor Summary'!$C$39),"",IF(AND(G31>'A - Contractor Summary'!$C$39,G31<'A - Contractor Summary'!$C$42),"Yes",IF(G31>'A - Contractor Summary'!$C$42,"No","Needs Review"))) ->  | S31: No | T31: 0 | U31: 0
B32: 19 | P32: =IF(AND(G32>='A - Contractor Summary'!$C$36,G32<='A - Contractor Summary'!$C$38),"Yes",IF(G32<'A - Contractor Summary'!$C$36,"No",IF(G32>'A - Contractor Summary'!$C$39,"",""))) -> No | Q32: =IF(OR(P32="Yes",P32="No")*AND(G32<'A - Contractor Summary'!$C$39),"",IF(AND(G32>'A - Contractor Summary'!$C$39,G32<'A - Contractor Summary'!$C$42),"Yes",IF(G32>'A - Contractor Summary'!$C$42,"No","Needs Review"))) ->  | S32: No | T32: 0 | U32: 0
B33: 20 | P33: =IF(AND(G33>='A - Contractor Summary'!$C$36,G33<='A - Contractor Summary'!$C$38),"Yes",IF(G33<'A - Contractor Summary'!$C$36,"No",IF(G33>'A - Contractor Summary'!$C$39,"",""))) -> No | Q33: =IF(OR(P33="Yes",P33="No")*AND(G33<'A - Contractor Summary'!$C$39),"",IF(AND(G33>'A - Contractor Summary'!$C$39,G33<'A - Contractor Summary'!$C$42),"Yes",IF(G33>'A - Contractor Summary'!$C$42,"No","Needs Review"))) ->  | S33: No | T33: 0 | U33: 0
B34: 21 | P34: =IF(AND(G34>='A - Contractor Summary'!$C$36,G34<='A - Contractor Summary'!$C$38),"Yes",IF(G34<'A - Contractor Summary'!$C$36,"No",IF(G34>'A - Contractor Summary'!$C$39,"",""))) -> No | Q34: =IF(OR(P34="Yes",P34="No")*AND(G34<'A - Contractor Summary'!$C$39),"",IF(AND(G34>'A - Contractor Summary'!$C$39,G34<'A - Contractor Summary'!$C$42),"Yes",IF(G34>'A - Contractor Summary'!$C$42,"No","Needs Review"))) ->  | S34: No | T34: 0 | U34: 0
B35: 22 | P35: =IF(AND(G35>='A - Contractor Summary'!$C$36,G35<='A - Contractor Summary'!$C$38),"Yes",IF(G35<'A - Contractor Summary'!$C$36,"No",IF(G35>'A - Contractor Summary'!$C$39,"",""))) -> No | Q35: =IF(OR(P35="Yes",P35="No")*AND(G35<'A - Contractor Summary'!$C$39),"",IF(AND(G35>'A - Contractor Summary'!$C$39,G35<'A - Contractor Summary'!$C$42),"Yes",IF(G35>'A - Contractor Summary'!$C$42,"No","Needs Review"))) ->  | S35: No | T35: 0 | U35: 0
B36: 23 | P36: =IF(AND(G36>='A - Contractor Summary'!$C$36,G36<='A - Contractor Summary'!$C$38),"Yes",IF(G36<'A - Contractor Summary'!$C$36,"No",IF(G36>'A - Contractor Summary'!$C$39,"",""))) -> No | Q36: =IF(OR(P36="Yes",P36="No")*AND(G36<'A - Contractor Summary'!$C$39),"",IF(AND(G36>'A - Contractor Summary'!$C$39,G36<'A - Contractor Summary'!$C$42),"Yes",IF(G36>'A - Contractor Summary'!$C$42,"No","Needs Review"))) ->  | S36: No | T36: 0 | U36: 0
B37: 24 | P37: =IF(AND(G37>='A - Contractor Summary'!$C$36,G37<='A - Contractor Summary'!$C$38),"Yes",IF(G37<'A - Contractor Summary'!$C$36,"No",IF(G37>'A - Contractor Summary'!$C$39,"",""))) -> No | Q37: =IF(OR(P37="Yes",P37="No")*AND(G37<'A - Contractor Summary'!$C$39),"",IF(AND(G37>'A - Contractor Summary'!$C$39,G37<'A - Contractor Summary'!$C$42),"Yes",IF(G37>'A - Contractor Summary'!$C$42,"No","Needs Review"))) ->  | S37: No | T37: 0 | U37: 0
B38: 25 | P38: =IF(AND(G38>='A - Contractor Summary'!$C$36,G38<='A - Contractor Summary'!$C$38),"Yes",IF(G38<'A - Contractor Summary'!$C$36,"No",IF(G38>'A - Contractor Summary'!$C$39,"",""))) -> No | Q38: =IF(OR(P38="Yes",P38="No")*AND(G38<'A - Contractor Summary'!$C$39),"",IF(AND(G38>'A - Contractor Summary'!$C$39,G38<'A - Contractor Summary'!$C$42),"Yes",IF(G38>'A - Contractor Summary'!$C$42,"No","Needs Review"))) ->  | S38: No | T38: 0 | U38: 0
B39: 26 | P39: =IF(AND(G39>='A - Contractor Summary'!$C$36,G39<='A - Contractor Summary'!$C$38),"Yes",IF(G39<'A - Contractor Summary'!$C$36,"No",IF(G39>'A - Contractor Summary'!$C$39,"",""))) -> No | Q39: =IF(OR(P39="Yes",P39="No")*AND(G39<'A - Contractor Summary'!$C$39),"",IF(AND(G39>'A - Contractor Summary'!$C$39,G39<'A - Contractor Summary'!$C$42),"Yes",IF(G39>'A - Contractor Summary'!$C$42,"No","Needs Review"))) ->  | S39: No | T39: 0 | U39: 0
B40: 27 | P40: =IF(AND(G40>='A - Contractor Summary'!$C$36,G40<='A - Contractor Summary'!$C$38),"Yes",IF(G40<'A - Contractor Summary'!$C$36,"No",IF(G40>'A - Contractor Summary'!$C$39,"",""))) -> No | Q40: =IF(OR(P40="Yes",P40="No")*AND(G40<'A - Contractor Summary'!$C$39),"",IF(AND(G40>'A - Contractor Summary'!$C$39,G40<'A - Contractor Summary'!$C$42),"Yes",IF(G40>'A - Contractor Summary'!$C$42,"No","Needs Review"))) ->  | S40: No | T40: 0 | U40: 0
B41: 28 | P41: =IF(AND(G41>='A - Contractor Summary'!$C$36,G41<='A - Contractor Summary'!$C$38),"Yes",IF(G41<'A - Contractor Summary'!$C$36,"No",IF(G41>'A - Contractor Summary'!$C$39,"",""))) -> No | Q41: =IF(OR(P41="Yes",P41="No")*AND(G41<'A - Contractor Summary'!$C$39),"",IF(AND(G41>'A - Contractor Summary'!$C$39,G41<'A - Contractor Summary'!$C$42),"Yes",IF(G41>'A - Contractor Summary'!$C$42,"No","Needs Review"))) ->  | S41: No | T41: 0 | U41: 0
B42: 29 | P42: =IF(AND(G42>='A - Contractor Summary'!$C$36,G42<='A - Contractor Summary'!$C$38),"Yes",IF(G42<'A - Contractor Summary'!$C$36,"No",IF(G42>'A - Contractor Summary'!$C$39,"",""))) -> No | Q42: =IF(OR(P42="Yes",P42="No")*AND(G42<'A - Contractor Summary'!$C$39),"",IF(AND(G42>'A - Contractor Summary'!$C$39,G42<'A - Contractor Summary'!$C$42),"Yes",IF(G42>'A - Contractor Summary'!$C$42,"No","Needs Review"))) ->  | S42: No | T42: 0 | U42: 0
B43: 30 | P43: =IF(AND(G43>='A - Contractor Summary'!$C$36,G43<='A - Contractor Summary'!$C$38),"Yes",IF(G43<'A - Contractor Summary'!$C$36,"No",IF(G43>'A - Contractor Summary'!$C$39,"",""))) -> No | Q43: =IF(OR(P43="Yes",P43="No")*AND(G43<'A - Contractor Summary'!$C$39),"",IF(AND(G43>'A - Contractor Summary'!$C$39,G43<'A - Contractor Summary'!$C$42),"Yes",IF(G43>'A - Contractor Summary'!$C$42,"No","Needs Review"))) ->  | S43: No | T43: 0 | U43: 0
B44: 31 | P44: =IF(AND(G44>='A - Contractor Summary'!$C$36,G44<='A - Contractor Summary'!$C$38),"Yes",IF(G44<'A - Contractor Summary'!$C$36,"No",IF(G44>'A - Contractor Summary'!$C$39,"",""))) -> No | Q44: =IF(OR(P44="Yes",P44="No")*AND(G44<'A - Contractor Summary'!$C$39),"",IF(AND(G44>'A - Contractor Summary'!$C$39,G44<'A - Contractor Summary'!$C$42),"Yes",IF(G44>'A - Contractor Summary'!$C$42,"No","Needs Review"))) ->  | S44: No | T44: 0 | U44: 0
B45: 32 | P45: =IF(AND(G45>='A - Contractor Summary'!$C$36,G45<='A - Contractor Summary'!$C$38),"Yes",IF(G45<'A - Contractor Summary'!$C$36,"No",IF(G45>'A - Contractor Summary'!$C$39,"",""))) -> No | Q45: =IF(OR(P45="Yes",P45="No")*AND(G45<'A - Contractor Summary'!$C$39),"",IF(AND(G45>'A - Contractor Summary'!$C$39,G45<'A - Contractor Summary'!$C$42),"Yes",IF(G45>'A - Contractor Summary'!$C$42,"No","Needs Review"))) ->  | S45: No | T45: 0 | U45: 0
B46: 33 | M46: =L46/K46 ->  | P46: =IF(AND(G46>='A - Contractor Summary'!$C$36,G46<='A - Contractor Summary'!$C$38),"Yes",IF(G46<'A - Contractor Summary'!$C$36,"No",IF(G46>'A - Contractor Summary'!$C$39,"",""))) -> No | Q46: =IF(OR(P46="Yes",P46="No")*AND(G46<'A - Contractor Summary'!$C$39),"",IF(AND(G46>'A - Contractor Summary'!$C$39,G46<'A - Contractor Summary'!$C$42),"Yes",IF(G46>'A - Contractor Summary'!$C$42,"No","Needs Review"))) ->  | S46: =IF(AND(R46="YES",O46="Yes",N46="Yes")*OR(P46="Yes",Q46="Yes"),"Yes",IF(OR(N46="No",O46="No",P46="No",Q46="No",R46="No"),"No","Needs Review")) -> No | T46: =IF(S46="Yes",L46,0) -> 0 | U46: =IF(S46="Needs Review",L46,0) -> 0
B47: 34 | P47: =IF(AND(G47>='A - Contractor Summary'!$C$36,G47<='A - Contractor Summary'!$C$38),"Yes",IF(G47<'A - Contractor Summary'!$C$36,"No",IF(G47>'A - Contractor Summary'!$C$39,"",""))) -> No | Q47: =IF(OR(P47="Yes",P47="No")*AND(G47<'A - Contractor Summary'!$C$39),"",IF(AND(G47>'A - Contractor Summary'!$C$39,G47<'A - Contractor Summary'!$C$42),"Yes",IF(G47>'A - Contractor Summary'!$C$42,"No","Needs Review"))) ->  | S47: No | T47: 0 | U47: 0
B48: 35 | P48: =IF(AND(G48>='A - Contractor Summary'!$C$36,G48<='A - Contractor Summary'!$C$38),"Yes",IF(G48<'A - Contractor Summary'!$C$36,"No",IF(G48>'A - Contractor Summary'!$C$39,"",""))) -> No | Q48: =IF(OR(P48="Yes",P48="No")*AND(G48<'A - Contractor Summary'!$C$39),"",IF(AND(G48>'A - Contractor Summary'!$C$39,G48<'A - Contractor Summary'!$C$42),"Yes",IF(G48>'A - Contractor Summary'!$C$42,"No","Needs Review"))) ->  | S48: No | T48: 0 | U48: 0
B49: 36 | P49: =IF(AND(G49>='A - Contractor Summary'!$C$36,G49<='A - Contractor Summary'!$C$38),"Yes",IF(G49<'A - Contractor Summary'!$C$36,"No",IF(G49>'A - Contractor Summary'!$C$39,"",""))) -> No | Q49: =IF(OR(P49="Yes",P49="No")*AND(G49<'A - Contractor Summary'!$C$39),"",IF(AND(G49>'A - Contractor Summary'!$C$39,G49<'A - Contractor Summary'!$C$42),"Yes",IF(G49>'A - Contractor Summary'!$C$42,"No","Needs Review"))) ->  | S49: No | T49: 0 | U49: 0
B50: 37 | P50: =IF(AND(G50>='A - Contractor Summary'!$C$36,G50<='A - Contractor Summary'!$C$38),"Yes",IF(G50<'A - Contractor Summary'!$C$36,"No",IF(G50>'A - Contractor Summary'!$C$39,"",""))) -> No | Q50: =IF(OR(P50="Yes",P50="No")*AND(G50<'A - Contractor Summary'!$C$39),"",IF(AND(G50>'A - Contractor Summary'!$C$39,G50<'A - Contractor Summary'!$C$42),"Yes",IF(G50>'A - Contractor Summary'!$C$42,"No","Needs Review"))) ->  | S50: No | T50: 0 | U50: 0
B51: 38 | P51: =IF(AND(G51>='A - Contractor Summary'!$C$36,G51<='A - Contractor Summary'!$C$38),"Yes",IF(G51<'A - Contractor Summary'!$C$36,"No",IF(G51>'A - Contractor Summary'!$C$39,"",""))) -> No | Q51: =IF(OR(P51="Yes",P51="No")*AND(G51<'A - Contractor Summary'!$C$39),"",IF(AND(G51>'A - Contractor Summary'!$C$39,G51<'A - Contractor Summary'!$C$42),"Yes",IF(G51>'A - Contractor Summary'!$C$42,"No","Needs Review"))) ->  | S51: No | T51: 0 | U51: 0
B52: 39 | P52: =IF(AND(G52>='A - Contractor Summary'!$C$36,G52<='A - Contractor Summary'!$C$38),"Yes",IF(G52<'A - Contractor Summary'!$C$36,"No",IF(G52>'A - Contractor Summary'!$C$39,"",""))) -> No | Q52: =IF(OR(P52="Yes",P52="No")*AND(G52<'A - Contractor Summary'!$C$39),"",IF(AND(G52>'A - Contractor Summary'!$C$39,G52<'A - Contractor Summary'!$C$42),"Yes",IF(G52>'A - Contractor Summary'!$C$42,"No","Needs Review"))) ->  | S52: No | T52: 0 | U52: 0
B53: 40 | P53: =IF(AND(G53>='A - Contractor Summary'!$C$36,G53<='A - Contractor Summary'!$C$38),"Yes",IF(G53<'A - Contractor Summary'!$C$36,"No",IF(G53>'A - Contractor Summary'!$C$39,"",""))) -> No | Q53: =IF(OR(P53="Yes",P53="No")*AND(G53<'A - Contractor Summary'!$C$39),"",IF(AND(G53>'A - Contractor Summary'!$C$39,G53<'A - Contractor Summary'!$C$42),"Yes",IF(G53>'A - Contractor Summary'!$C$42,"No","Needs Review"))) ->  | S53: No | T53: 0 | U53: 0
B54: 41 | P54: =IF(AND(G54>='A - Contractor Summary'!$C$36,G54<='A - Contractor Summary'!$C$38),"Yes",IF(G54<'A - Contractor Summary'!$C$36,"No",IF(G54>'A - Contractor Summary'!$C$39,"",""))) -> No | Q54: =IF(OR(P54="Yes",P54="No")*AND(G54<'A - Contractor Summary'!$C$39),"",IF(AND(G54>'A - Contractor Summary'!$C$39,G54<'A - Contractor Summary'!$C$42),"Yes",IF(G54>'A - Contractor Summary'!$C$42,"No","Needs Review"))) ->  | S54: No | T54: 0 | U54: 0
B55: 42 | P55: =IF(AND(G55>='A - Contractor Summary'!$C$36,G55<='A - Contractor Summary'!$C$38),"Yes",IF(G55<'A - Contractor Summary'!$C$36,"No",IF(G55>'A - Contractor Summary'!$C$39,"",""))) -> No | Q55: =IF(OR(P55="Yes",P55="No")*AND(G55<'A - Contractor Summary'!$C$39),"",IF(AND(G55>'A - Contractor Summary'!$C$39,G55<'A - Contractor Summary'!$C$42),"Yes",IF(G55>'A - Contractor Summary'!$C$42,"No","Needs Review"))) ->  | S55: No | T55: 0 | U55: 0
B56: 43 | P56: =IF(AND(G56>='A - Contractor Summary'!$C$36,G56<='A - Contractor Summary'!$C$38),"Yes",IF(G56<'A - Contractor Summary'!$C$36,"No",IF(G56>'A - Contractor Summary'!$C$39,"",""))) -> No | Q56: =IF(OR(P56="Yes",P56="No")*AND(G56<'A - Contractor Summary'!$C$39),"",IF(AND(G56>'A - Contractor Summary'!$C$39,G56<'A - Contractor Summary'!$C$42),"Yes",IF(G56>'A - Contractor Summary'!$C$42,"No","Needs Review"))) ->  | S56: No | T56: 0 | U56: 0
B57: 44 | P57: =IF(AND(G57>='A - Contractor Summary'!$C$36,G57<='A - Contractor Summary'!$C$38),"Yes",IF(G57<'A - Contractor Summary'!$C$36,"No",IF(G57>'A - Contractor Summary'!$C$39,"",""))) -> No | Q57: =IF(OR(P57="Yes",P57="No")*AND(G57<'A - Contractor Summary'!$C$39),"",IF(AND(G57>'A - Contractor Summary'!$C$39,G57<'A - Contractor Summary'!$C$42),"Yes",IF(G57>'A - Contractor Summary'!$C$42,"No","Needs Review"))) ->  | S57: No | T57: 0 | U57: 0
B58: 45 | P58: =IF(AND(G58>='A - Contractor Summary'!$C$36,G58<='A - Contractor Summary'!$C$38),"Yes",IF(G58<'A - Contractor Summary'!$C$36,"No",IF(G58>'A - Contractor Summary'!$C$39,"",""))) -> No | Q58: =IF(OR(P58="Yes",P58="No")*AND(G58<'A - Contractor Summary'!$C$39),"",IF(AND(G58>'A - Contractor Summary'!$C$39,G58<'A - Contractor Summary'!$C$42),"Yes",IF(G58>'A - Contractor Summary'!$C$42,"No","Needs Review"))) ->  | S58: No | T58: 0 | U58: 0
B59: 46 | P59: =IF(AND(G59>='A - Contractor Summary'!$C$36,G59<='A - Contractor Summary'!$C$38),"Yes",IF(G59<'A - Contractor Summary'!$C$36,"No",IF(G59>'A - Contractor Summary'!$C$39,"",""))) -> No | Q59: =IF(OR(P59="Yes",P59="No")*AND(G59<'A - Contractor Summary'!$C$39),"",IF(AND(G59>'A - Contractor Summary'!$C$39,G59<'A - Contractor Summary'!$C$42),"Yes",IF(G59>'A - Contractor Summary'!$C$42,"No","Needs Review"))) ->  | S59: No | T59: 0 | U59: 0
B60: 47 | P60: =IF(AND(G60>='A - Contractor Summary'!$C$36,G60<='A - Contractor Summary'!$C$38),"Yes",IF(G60<'A - Contractor Summary'!$C$36,"No",IF(G60>'A - Contractor Summary'!$C$39,"",""))) -> No | Q60: =IF(OR(P60="Yes",P60="No")*AND(G60<'A - Contractor Summary'!$C$39),"",IF(AND(G60>'A - Contractor Summary'!$C$39,G60<'A - Contractor Summary'!$C$42),"Yes",IF(G60>'A - Contractor Summary'!$C$42,"No","Needs Review"))) ->  | S60: No | T60: 0 | U60: 0
B61: 48 | P61: =IF(AND(G61>='A - Contractor Summary'!$C$36,G61<='A - Contractor Summary'!$C$38),"Yes",IF(G61<'A - Contractor Summary'!$C$36,"No",IF(G61>'A - Contractor Summary'!$C$39,"",""))) -> No | Q61: =IF(OR(P61="Yes",P61="No")*AND(G61<'A - Contractor Summary'!$C$39),"",IF(AND(G61>'A - Contractor Summary'!$C$39,G61<'A - Contractor Summary'!$C$42),"Yes",IF(G61>'A - Contractor Summary'!$C$42,"No","Needs Review"))) ->  | S61: No | T61: 0 | U61: 0
B62: 49 | P62: =IF(AND(G62>='A - Contractor Summary'!$C$36,G62<='A - Contractor Summary'!$C$38),"Yes",IF(G62<'A - Contractor Summary'!$C$36,"No",IF(G62>'A - Contractor Summary'!$C$39,"",""))) -> No | Q62: =IF(OR(P62="Yes",P62="No")*AND(G62<'A - Contractor Summary'!$C$39),"",IF(AND(G62>'A - Contractor Summary'!$C$39,G62<'A - Contractor Summary'!$C$42),"Yes",IF(G62>'A - Contractor Summary'!$C$42,"No","Needs Review"))) ->  | S62: No | T62: 0 | U62: 0
B63: 50 | P63: =IF(AND(G63>='A - Contractor Summary'!$C$36,G63<='A - Contractor Summary'!$C$38),"Yes",IF(G63<'A - Contractor Summary'!$C$36,"No",IF(G63>'A - Contractor Summary'!$C$39,"",""))) -> No | Q63: =IF(OR(P63="Yes",P63="No")*AND(G63<'A - Contractor Summary'!$C$39),"",IF(AND(G63>'A - Contractor Summary'!$C$39,G63<'A - Contractor Summary'!$C$42),"Yes",IF(G63>'A - Contractor Summary'!$C$42,"No","Needs Review"))) ->  | S63: No | T63: 0 | U63: 0
B64: 51 | P64: =IF(AND(G64>='A - Contractor Summary'!$C$36,G64<='A - Contractor Summary'!$C$38),"Yes",IF(G64<'A - Contractor Summary'!$C$36,"No",IF(G64>'A - Contractor Summary'!$C$39,"",""))) -> No | Q64: =IF(OR(P64="Yes",P64="No")*AND(G64<'A - Contractor Summary'!$C$39),"",IF(AND(G64>'A - Contractor Summary'!$C$39,G64<'A - Contractor Summary'!$C$42),"Yes",IF(G64>'A - Contractor Summary'!$C$42,"No","Needs Review"))) ->  | S64: No | T64: 0 | U64: 0
B65: 52 | P65: =IF(AND(G65>='A - Contractor Summary'!$C$36,G65<='A - Contractor Summary'!$C$38),"Yes",IF(G65<'A - Contractor Summary'!$C$36,"No",IF(G65>'A - Contractor Summary'!$C$39,"",""))) -> No | Q65: =IF(OR(P65="Yes",P65="No")*AND(G65<'A - Contractor Summary'!$C$39),"",IF(AND(G65>'A - Contractor Summary'!$C$39,G65<'A - Contractor Summary'!$C$42),"Yes",IF(G65>'A - Contractor Summary'!$C$42,"No","Needs Review"))) ->  | S65: No | T65: 0 | U65: 0
B66: 53 | P66: =IF(AND(G66>='A - Contractor Summary'!$C$36,G66<='A - Contractor Summary'!$C$38),"Yes",IF(G66<'A - Contractor Summary'!$C$36,"No",IF(G66>'A - Contractor Summary'!$C$39,"",""))) -> No | Q66: =IF(OR(P66="Yes",P66="No")*AND(G66<'A - Contractor Summary'!$C$39),"",IF(AND(G66>'A - Contractor Summary'!$C$39,G66<'A - Contractor Summary'!$C$42),"Yes",IF(G66>'A - Contractor Summary'!$C$42,"No","Needs Review"))) ->  | S66: No | T66: 0 | U66: 0
B67: 54 | P67: =IF(AND(G67>='A - Contractor Summary'!$C$36,G67<='A - Contractor Summary'!$C$38),"Yes",IF(G67<'A - Contractor Summary'!$C$36,"No",IF(G67>'A - Contractor Summary'!$C$39,"",""))) -> No | Q67: =IF(OR(P67="Yes",P67="No")*AND(G67<'A - Contractor Summary'!$C$39),"",IF(AND(G67>'A - Contractor Summary'!$C$39,G67<'A - Contractor Summary'!$C$42),"Yes",IF(G67>'A - Contractor Summary'!$C$42,"No","Needs Review"))) ->  | S67: No | T67: 0 | U67: 0
B68: 55 | P68: =IF(AND(G68>='A - Contractor Summary'!$C$36,G68<='A - Contractor Summary'!$C$38),"Yes",IF(G68<'A - Contractor Summary'!$C$36,"No",IF(G68>'A - Contractor Summary'!$C$39,"",""))) -> No | Q68: =IF(OR(P68="Yes",P68="No")*AND(G68<'A - Contractor Summary'!$C$39),"",IF(AND(G68>'A - Contractor Summary'!$C$39,G68<'A - Contractor Summary'!$C$42),"Yes",IF(G68>'A - Contractor Summary'!$C$42,"No","Needs Review"))) ->  | S68: No | T68: 0 | U68: 0
B69: 56 | P69: =IF(AND(G69>='A - Contractor Summary'!$C$36,G69<='A - Contractor Summary'!$C$38),"Yes",IF(G69<'A - Contractor Summary'!$C$36,"No",IF(G69>'A - Contractor Summary'!$C$39,"",""))) -> No | Q69: =IF(OR(P69="Yes",P69="No")*AND(G69<'A - Contractor Summary'!$C$39),"",IF(AND(G69>'A - Contractor Summary'!$C$39,G69<'A - Contractor Summary'!$C$42),"Yes",IF(G69>'A - Contractor Summary'!$C$42,"No","Needs Review"))) ->  | S69: No | T69: 0 | U69: 0
B70: 57 | P70: =IF(AND(G70>='A - Contractor Summary'!$C$36,G70<='A - Contractor Summary'!$C$38),"Yes",IF(G70<'A - Contractor Summary'!$C$36,"No",IF(G70>'A - Contractor Summary'!$C$39,"",""))) -> No | Q70: =IF(OR(P70="Yes",P70="No")*AND(G70<'A - Contractor Summary'!$C$39),"",IF(AND(G70>'A - Contractor Summary'!$C$39,G70<'A - Contractor Summary'!$C$42),"Yes",IF(G70>'A - Contractor Summary'!$C$42,"No","Needs Review"))) ->  | S70: No | T70: 0 | U70: 0
B71: 58 | P71: =IF(AND(G71>='A - Contractor Summary'!$C$36,G71<='A - Contractor Summary'!$C$38),"Yes",IF(G71<'A - Contractor Summary'!$C$36,"No",IF(G71>'A - Contractor Summary'!$C$39,"",""))) -> No | Q71: =IF(OR(P71="Yes",P71="No")*AND(G71<'A - Contractor Summary'!$C$39),"",IF(AND(G71>'A - Contractor Summary'!$C$39,G71<'A - Contractor Summary'!$C$42),"Yes",IF(G71>'A - Contractor Summary'!$C$42,"No","Needs Review"))) ->  | S71: No | T71: 0 | U71: 0
B72: 59 | P72: =IF(AND(G72>='A - Contractor Summary'!$C$36,G72<='A - Contractor Summary'!$C$38),"Yes",IF(G72<'A - Contractor Summary'!$C$36,"No",IF(G72>'A - Contractor Summary'!$C$39,"",""))) -> No | Q72: =IF(OR(P72="Yes",P72="No")*AND(G72<'A - Contractor Summary'!$C$39),"",IF(AND(G72>'A - Contractor Summary'!$C$39,G72<'A - Contractor Summary'!$C$42),"Yes",IF(G72>'A - Contractor Summary'!$C$42,"No","Needs Review"))) ->  | S72: No | T72: 0 | U72: 0
B73: 60 | P73: =IF(AND(G73>='A - Contractor Summary'!$C$36,G73<='A - Contractor Summary'!$C$38),"Yes",IF(G73<'A - Contractor Summary'!$C$36,"No",IF(G73>'A - Contractor Summary'!$C$39,"",""))) -> No | Q73: =IF(OR(P73="Yes",P73="No")*AND(G73<'A - Contractor Summary'!$C$39),"",IF(AND(G73>'A - Contractor Summary'!$C$39,G73<'A - Contractor Summary'!$C$42),"Yes",IF(G73>'A - Contractor Summary'!$C$42,"No","Needs Review"))) ->  | S73: No | T73: 0 | U73: 0
B74: 61 | P74: =IF(AND(G74>='A - Contractor Summary'!$C$36,G74<='A - Contractor Summary'!$C$38),"Yes",IF(G74<'A - Contractor Summary'!$C$36,"No",IF(G74>'A - Contractor Summary'!$C$39,"",""))) -> No | Q74: =IF(OR(P74="Yes",P74="No")*AND(G74<'A - Contractor Summary'!$C$39),"",IF(AND(G74>'A - Contractor Summary'!$C$39,G74<'A - Contractor Summary'!$C$42),"Yes",IF(G74>'A - Contractor Summary'!$C$42,"No","Needs Review"))) ->  | S74: No | T74: 0 | U74: 0
B75: 62 | P75: =IF(AND(G75>='A - Contractor Summary'!$C$36,G75<='A - Contractor Summary'!$C$38),"Yes",IF(G75<'A - Contractor Summary'!$C$36,"No",IF(G75>'A - Contractor Summary'!$C$39,"",""))) -> No | Q75: =IF(OR(P75="Yes",P75="No")*AND(G75<'A - Contractor Summary'!$C$39),"",IF(AND(G75>'A - Contractor Summary'!$C$39,G75<'A - Contractor Summary'!$C$42),"Yes",IF(G75>'A - Contractor Summary'!$C$42,"No","Needs Review"))) ->  | S75: No | T75: 0 | U75: 0
B76: 63 | P76: =IF(AND(G76>='A - Contractor Summary'!$C$36,G76<='A - Contractor Summary'!$C$38),"Yes",IF(G76<'A - Contractor Summary'!$C$36,"No",IF(G76>'A - Contractor Summary'!$C$39,"",""))) -> No | Q76: =IF(OR(P76="Yes",P76="No")*AND(G76<'A - Contractor Summary'!$C$39),"",IF(AND(G76>'A - Contractor Summary'!$C$39,G76<'A - Contractor Summary'!$C$42),"Yes",IF(G76>'A - Contractor Summary'!$C$42,"No","Needs Review"))) ->  | S76: No | T76: 0 | U76: 0 | X76: 3
B77: 64 | P77: =IF(AND(G77>='A - Contractor Summary'!$C$36,G77<='A - Contractor Summary'!$C$38),"Yes",IF(G77<'A - Contractor Summary'!$C$36,"No",IF(G77>'A - Contractor Summary'!$C$39,"",""))) -> No | Q77: =IF(OR(P77="Yes",P77="No")*AND(G77<'A - Contractor Summary'!$C$39),"",IF(AND(G77>'A - Contractor Summary'!$C$39,G77<'A - Contractor Summary'!$C$42),"Yes",IF(G77>'A - Contractor Summary'!$C$42,"No","Needs Review"))) ->  | S77: No | T77: 0 | U77: 0 | X77: 3
B78: 65 | M78: =L78/K78 ->  | P78: =IF(AND(G78>='A - Contractor Summary'!$C$36,G78<='A - Contractor Summary'!$C$38),"Yes",IF(G78<'A - Contractor Summary'!$C$36,"No",IF(G78>'A - Contractor Summary'!$C$39,"",""))) -> No | Q78: =IF(OR(P78="Yes",P78="No")*AND(G78<'A - Contractor Summary'!$C$39),"",IF(AND(G78>'A - Contractor Summary'!$C$39,G78<'A - Contractor Summary'!$C$42),"Yes",IF(G78>'A - Contractor Summary'!$C$42,"No","Needs Review"))) ->  | S78: =IF(AND(R78="YES",O78="Yes",N78="Yes")*OR(P78="Yes",Q78="Yes"),"Yes",IF(OR(N78="No",O78="No",P78="No",Q78="No",R78="No"),"No","Needs Review")) -> No | T78: =IF(S78="Yes",L78,0) -> 0 | U78: =IF(S78="Needs Review",L78,0) -> 0
B79: 66 | P79: =IF(AND(G79>='A - Contractor Summary'!$C$36,G79<='A - Contractor Summary'!$C$38),"Yes",IF(G79<'A - Contractor Summary'!$C$36,"No",IF(G79>'A - Contractor Summary'!$C$39,"",""))) -> No | Q79: =IF(OR(P79="Yes",P79="No")*AND(G79<'A - Contractor Summary'!$C$39),"",IF(AND(G79>'A - Contractor Summary'!$C$39,G79<'A - Contractor Summary'!$C$42),"Yes",IF(G79>'A - Contractor Summary'!$C$42,"No","Needs Review"))) ->  | S79: No | T79: 0 | U79: 0
B80: 67 | P80: =IF(AND(G80>='A - Contractor Summary'!$C$36,G80<='A - Contractor Summary'!$C$38),"Yes",IF(G80<'A - Contractor Summary'!$C$36,"No",IF(G80>'A - Contractor Summary'!$C$39,"",""))) -> No | Q80: =IF(OR(P80="Yes",P80="No")*AND(G80<'A - Contractor Summary'!$C$39),"",IF(AND(G80>'A - Contractor Summary'!$C$39,G80<'A - Contractor Summary'!$C$42),"Yes",IF(G80>'A - Contractor Summary'!$C$42,"No","Needs Review"))) ->  | S80: No | T80: 0 | U80: 0
B81: 68 | P81: =IF(AND(G81>='A - Contractor Summary'!$C$36,G81<='A - Contractor Summary'!$C$38),"Yes",IF(G81<'A - Contractor Summary'!$C$36,"No",IF(G81>'A - Contractor Summary'!$C$39,"",""))) -> No | Q81: =IF(OR(P81="Yes",P81="No")*AND(G81<'A - Contractor Summary'!$C$39),"",IF(AND(G81>'A - Contractor Summary'!$C$39,G81<'A - Contractor Summary'!$C$42),"Yes",IF(G81>'A - Contractor Summary'!$C$42,"No","Needs Review"))) ->  | S81: No | T81: 0 | U81: 0 | X81: 3
B82: 69 | P82: =IF(AND(G82>='A - Contractor Summary'!$C$36,G82<='A - Contractor Summary'!$C$38),"Yes",IF(G82<'A - Contractor Summary'!$C$36,"No",IF(G82>'A - Contractor Summary'!$C$39,"",""))) -> No | Q82: =IF(OR(P82="Yes",P82="No")*AND(G82<'A - Contractor Summary'!$C$39),"",IF(AND(G82>'A - Contractor Summary'!$C$39,G82<'A - Contractor Summary'!$C$42),"Yes",IF(G82>'A - Contractor Summary'!$C$42,"No","Needs Review"))) ->  | S82: No | T82: 0 | U82: 0 | X82: 3
B83: 70 | P83: =IF(AND(G83>='A - Contractor Summary'!$C$36,G83<='A - Contractor Summary'!$C$38),"Yes",IF(G83<'A - Contractor Summary'!$C$36,"No",IF(G83>'A - Contractor Summary'!$C$39,"",""))) -> No | Q83: =IF(OR(P83="Yes",P83="No")*AND(G83<'A - Contractor Summary'!$C$39),"",IF(AND(G83>'A - Contractor Summary'!$C$39,G83<'A - Contractor Summary'!$C$42),"Yes",IF(G83>'A - Contractor Summary'!$C$42,"No","Needs Review"))) ->  | S83: No | T83: 0 | U83: 0
B84: 71 | P84: =IF(AND(G84>='A - Contractor Summary'!$C$36,G84<='A - Contractor Summary'!$C$38),"Yes",IF(G84<'A - Contractor Summary'!$C$36,"No",IF(G84>'A - Contractor Summary'!$C$39,"",""))) -> No | Q84: =IF(OR(P84="Yes",P84="No")*AND(G84<'A - Contractor Summary'!$C$39),"",IF(AND(G84>'A - Contractor Summary'!$C$39,G84<'A - Contractor Summary'!$C$42),"Yes",IF(G84>'A - Contractor Summary'!$C$42,"No","Needs Review"))) ->  | S84: No | T84: 0 | U84: 0
B85: 72 | P85: =IF(AND(G85>='A - Contractor Summary'!$C$36,G85<='A - Contractor Summary'!$C$38),"Yes",IF(G85<'A - Contractor Summary'!$C$36,"No",IF(G85>'A - Contractor Summary'!$C$39,"",""))) -> No | Q85: =IF(OR(P85="Yes",P85="No")*AND(G85<'A - Contractor Summary'!$C$39),"",IF(AND(G85>'A - Contractor Summary'!$C$39,G85<'A - Contractor Summary'!$C$42),"Yes",IF(G85>'A - Contractor Summary'!$C$42,"No","Needs Review"))) ->  | S85: No | T85: 0 | U85: 0
B86: 73 | P86: =IF(AND(G86>='A - Contractor Summary'!$C$36,G86<='A - Contractor Summary'!$C$38),"Yes",IF(G86<'A - Contractor Summary'!$C$36,"No",IF(G86>'A - Contractor Summary'!$C$39,"",""))) -> No | Q86: =IF(OR(P86="Yes",P86="No")*AND(G86<'A - Contractor Summary'!$C$39),"",IF(AND(G86>'A - Contractor Summary'!$C$39,G86<'A - Contractor Summary'!$C$42),"Yes",IF(G86>'A - Contractor Summary'!$C$42,"No","Needs Review"))) ->  | S86: No | T86: 0 | U86: 0
B87: 74 | P87: =IF(AND(G87>='A - Contractor Summary'!$C$36,G87<='A - Contractor Summary'!$C$38),"Yes",IF(G87<'A - Contractor Summary'!$C$36,"No",IF(G87>'A - Contractor Summary'!$C$39,"",""))) -> No | Q87: =IF(OR(P87="Yes",P87="No")*AND(G87<'A - Contractor Summary'!$C$39),"",IF(AND(G87>'A - Contractor Summary'!$C$39,G87<'A - Contractor Summary'!$C$42),"Yes",IF(G87>'A - Contractor Summary'!$C$42,"No","Needs Review"))) ->  | S87: No | T87: 0 | U87: 0
B88: 75 | P88: =IF(AND(G88>='A - Contractor Summary'!$C$36,G88<='A - Contractor Summary'!$C$38),"Yes",IF(G88<'A - Contractor Summary'!$C$36,"No",IF(G88>'A - Contractor Summary'!$C$39,"",""))) -> No | Q88: =IF(OR(P88="Yes",P88="No")*AND(G88<'A - Contractor Summary'!$C$39),"",IF(AND(G88>'A - Contractor Summary'!$C$39,G88<'A - Contractor Summary'!$C$42),"Yes",IF(G88>'A - Contractor Summary'!$C$42,"No","Needs Review"))) ->  | S88: No | T88: 0 | U88: 71.68 | V88: =+M88 ->  | X88: 4
B89: 76 | P89: =IF(AND(G89>='A - Contractor Summary'!$C$36,G89<='A - Contractor Summary'!$C$38),"Yes",IF(G89<'A - Contractor Summary'!$C$36,"No",IF(G89>'A - Contractor Summary'!$C$39,"",""))) -> No | Q89: =IF(OR(P89="Yes",P89="No")*AND(G89<'A - Contractor Summary'!$C$39),"",IF(AND(G89>'A - Contractor Summary'!$C$39,G89<'A - Contractor Summary'!$C$42),"Yes",IF(G89>'A - Contractor Summary'!$C$42,"No","Needs Review"))) ->  | S89: No | T89: 0 | U89: 71.68 | V89: =+M89 ->  | X89: 4
B90: 77 | P90: =IF(AND(G90>='A - Contractor Summary'!$C$36,G90<='A - Contractor Summary'!$C$38),"Yes",IF(G90<'A - Contractor Summary'!$C$36,"No",IF(G90>'A - Contractor Summary'!$C$39,"",""))) -> No | Q90: =IF(OR(P90="Yes",P90="No")*AND(G90<'A - Contractor Summary'!$C$39),"",IF(AND(G90>'A - Contractor Summary'!$C$39,G90<'A - Contractor Summary'!$C$42),"Yes",IF(G90>'A - Contractor Summary'!$C$42,"No","Needs Review"))) ->  | S90: No | T90: 0 | U90: 0 | X90: 2,3
B91: 78 | P91: =IF(AND(G91>='A - Contractor Summary'!$C$36,G91<='A - Contractor Summary'!$C$38),"Yes",IF(G91<'A - Contractor Summary'!$C$36,"No",IF(G91>'A - Contractor Summary'!$C$39,"",""))) -> No | Q91: =IF(OR(P91="Yes",P91="No")*AND(G91<'A - Contractor Summary'!$C$39),"",IF(AND(G91>'A - Contractor Summary'!$C$39,G91<'A - Contractor Summary'!$C$42),"Yes",IF(G91>'A - Contractor Summary'!$C$42,"No","Needs Review"))) ->  | S91: No | T91: 0 | U91: 0 | X91: 1
B92: 79 | P92: =IF(AND(G92>='A - Contractor Summary'!$C$36,G92<='A - Contractor Summary'!$C$38),"Yes",IF(G92<'A - Contractor Summary'!$C$36,"No",IF(G92>'A - Contractor Summary'!$C$39,"",""))) -> No | Q92: =IF(OR(P92="Yes",P92="No")*AND(G92<'A - Contractor Summary'!$C$39),"",IF(AND(G92>'A - Contractor Summary'!$C$39,G92<'A - Contractor Summary'!$C$42),"Yes",IF(G92>'A - Contractor Summary'!$C$42,"No","Needs Review"))) ->  | S92: No | T92: 0 | U92: 0 | X92: 1
L93: =SUM(L14:L92) -> 0 | T93: =IFERROR(SUM(T14:T92),0) -> 0 | U93: =IFERROR(SUM(U14:U92),0) -> 143.36 | V93: 0 | W93: =IFERROR(SUM(W14:W92),0) -> 0 | X93: =U93-V93-W93 -> 143.36 | Y93: check (a)
B96: Tickmark Explanation:
B97: 1
B98: 2
B99: 3
B100: 4

Sheet E - Fuel
B2: Fuel Charges
B4: Test Plan: (A) Obtain support of individual charges. (B) Enter Yes/No if receipt is itemized (C) Enter Yes/No if proof of payment has been provided. (D) Ensure charges fall between the dates the vendor was mobilized and the date they arrived. (E) Ensure charges are prior to the date the vendor arrived home or was released to another utility. (F) Ensure the location of charge was reasonable (G) Determine the amount(s) to be reviewed, allowed and/or disallowed. (H) For charges which required further review, document review (include why it was determined to be allowed/disallowed via a tickmark).
P5: No Fuel Charges
B9: a | C9: Check figure should equal $0. Cell will appear yellow if discrepancies are noted.
C11: A | K11: B | L11: C | M11: D | N11: E | O11: F | P11: G | S11: H
B12: Support Reviewed | M12: Conclusions
B13: # | C13: Type of Support | D13: Support Identifier | E13: Company | F13: Date | G13: Person | H13: Name | I13: Location | J13: Total Charge | K13: Itemized Receipt | L13: Proof of Payment | M13: Reasonable based on Mobilization date(s) | N13: Reasonable based on Demobilization date(s) | O13: Locations Reasonable | P13: Conclusion | Q13: $ Allowable Charge | R13: $ To Be Reviewed | S13: Reviewed - Allowable Charge | T13: Reviewed - Unallowable Charge | U13: Tickmarks
B14: 1 | M14: =IF(AND(F14>='A - Contractor Summary'!$C$36,F14<='A - Contractor Summary'!$C$38),"Yes",IF(F14<'A - Contractor Summary'!$C$36,"No",IF(F14>'A - Contractor Summary'!$C$39,"",""))) -> No | N14: =IF(OR(M14="Yes",M14="No")*AND(F14<'A - Contractor Summary'!$C$39),"",IF(AND(F14>'A - Contractor Summary'!$C$39,F14<'A - Contractor Summary'!$C$42),"Yes",IF(F14>'A - Contractor Summary'!$C$42,"No","Needs Review"))) ->  | P14: =IF(AND(O14="Yes",K14="Yes",L14="Yes")*OR(N14="Yes",M14="Yes"),"Yes",IF(OR(K14="No",M14="No",N14="No",O14="No",L14="No"),"No","Needs Review")) -> No | Q14: =IF(P14="Yes",J14,0) -> 0 | R14: =IF(P14="Needs Review",J14,0) -> 0
B15: 2 | M15: =IF(AND(F15>='A - Contractor Summary'!$C$36,F15<='A - Contractor Summary'!$C$38),"Yes",IF(F15<'A - Contractor Summary'!$C$36,"No",IF(F15>'A - Contractor Summary'!$C$39,"",""))) -> No | N15: =IF(OR(M15="Yes",M15="No")*AND(F15<'A - Contractor Summary'!$C$39),"",IF(AND(F15>'A - Contractor Summary'!$C$39,F15<'A - Contractor Summary'!$C$42),"Yes",IF(F15>'A - Contractor Summary'!$C$42,"No","Needs Review"))) ->  | P15: =IF(AND(O15="Yes",K15="Yes",L15="Yes")*OR(N15="Yes",M15="Yes"),"Yes",IF(OR(K15="No",M15="No",N15="No",O15="No",L15="No"),"No","Needs Review")) -> No | Q15: 0 | R15: 0
B16: 3 | M16: =IF(AND(F16>='A - Contractor Summary'!$C$36,F16<='A - Contractor Summary'!$C$38),"Yes",IF(F16<'A - Contractor Summary'!$C$36,"No",IF(F16>'A - Contractor Summary'!$C$39,"",""))) -> No | N16: =IF(OR(M16="Yes",M16="No")*AND(F16<'A - Contractor Summary'!$C$39),"",IF(AND(F16>'A - Contractor Summary'!$C$39,F16<'A - Contractor Summary'!$C$42),"Yes",IF(F16>'A - Contractor Summary'!$C$42,"No","Needs Review"))) ->  | P16: No | Q16: 0 | R16: 0
B17: 4 | M17: =IF(AND(F17>='A - Contractor Summary'!$C$36,F17<='A - Contractor Summary'!$C$38),"Yes",IF(F17<'A - Contractor Summary'!$C$36,"No",IF(F17>'A - Contractor Summary'!$C$39,"",""))) -> No | N17: =IF(OR(M17="Yes",M17="No")*AND(F17<'A - Contractor Summary'!$C$39),"",IF(AND(F17>'A - Contractor Summary'!$C$39,F17<'A - Contractor Summary'!$C$42),"Yes",IF(F17>'A - Contractor Summary'!$C$42,"No","Needs Review"))) ->  | P17: No | Q17: 0 | R17: 0
B18: 5 | M18: =IF(AND(F18>='A - Contractor Summary'!$C$36,F18<='A - Contractor Summary'!$C$38),"Yes",IF(F18<'A - Contractor Summary'!$C$36,"No",IF(F18>'A - Contractor Summary'!$C$39,"",""))) -> No | N18: =IF(OR(M18="Yes",M18="No")*AND(F18<'A - Contractor Summary'!$C$39),"",IF(AND(F18>'A - Contractor Summary'!$C$39,F18<'A - Contractor Summary'!$C$42),"Yes",IF(F18>'A - Contractor Summary'!$C$42,"No","Needs Review"))) ->  | P18: No | Q18: 0 | R18: 0
B19: 6 | M19: =IF(AND(F19>='A - Contractor Summary'!$C$36,F19<='A - Contractor Summary'!$C$38),"Yes",IF(F19<'A - Contractor Summary'!$C$36,"No",IF(F19>'A - Contractor Summary'!$C$39,"",""))) -> No | N19: =IF(OR(M19="Yes",M19="No")*AND(F19<'A - Contractor Summary'!$C$39),"",IF(AND(F19>'A - Contractor Summary'!$C$39,F19<'A - Contractor Summary'!$C$42),"Yes",IF(F19>'A - Contractor Summary'!$C$42,"No","Needs Review"))) ->  | P19: No | Q19: 0 | R19: 0
B20: 7 | M20: =IF(AND(F20>='A - Contractor Summary'!$C$36,F20<='A - Contractor Summary'!$C$38),"Yes",IF(F20<'A - Contractor Summary'!$C$36,"No",IF(F20>'A - Contractor Summary'!$C$39,"",""))) -> No | N20: =IF(OR(M20="Yes",M20="No")*AND(F20<'A - Contractor Summary'!$C$39),"",IF(AND(F20>'A - Contractor Summary'!$C$39,F20<'A - Contractor Summary'!$C$42),"Yes",IF(F20>'A - Contractor Summary'!$C$42,"No","Needs Review"))) ->  | P20: No | Q20: 0 | R20: 0
B21: 8 | M21: =IF(AND(F21>='A - Contractor Summary'!$C$36,F21<='A - Contractor Summary'!$C$38),"Yes",IF(F21<'A - Contractor Summary'!$C$36,"No",IF(F21>'A - Contractor Summary'!$C$39,"",""))) -> No | N21: =IF(OR(M21="Yes",M21="No")*AND(F21<'A - Contractor Summary'!$C$39),"",IF(AND(F21>'A - Contractor Summary'!$C$39,F21<'A - Contractor Summary'!$C$42),"Yes",IF(F21>'A - Contractor Summary'!$C$42,"No","Needs Review"))) ->  | P21: No | Q21: 0 | R21: 0
B22: 9 | M22: =IF(AND(F22>='A - Contractor Summary'!$C$36,F22<='A - Contractor Summary'!$C$38),"Yes",IF(F22<'A - Contractor Summary'!$C$36,"No",IF(F22>'A - Contractor Summary'!$C$39,"",""))) -> No | N22: =IF(OR(M22="Yes",M22="No")*AND(F22<'A - Contractor Summary'!$C$39),"",IF(AND(F22>'A - Contractor Summary'!$C$39,F22<'A - Contractor Summary'!$C$42),"Yes",IF(F22>'A - Contractor Summary'!$C$42,"No","Needs Review"))) ->  | P22: No | Q22: 0 | R22: 0
B23: 10 | M23: =IF(AND(F23>='A - Contractor Summary'!$C$36,F23<='A - Contractor Summary'!$C$38),"Yes",IF(F23<'A - Contractor Summary'!$C$36,"No",IF(F23>'A - Contractor Summary'!$C$39,"",""))) -> No | N23: =IF(OR(M23="Yes",M23="No")*AND(F23<'A - Contractor Summary'!$C$39),"",IF(AND(F23>'A - Contractor Summary'!$C$39,F23<'A - Contractor Summary'!$C$42),"Yes",IF(F23>'A - Contractor Summary'!$C$42,"No","Needs Review"))) ->  | P23: No | Q23: 0 | R23: 0
B24: 11 | M24: =IF(AND(F24>='A - Contractor Summary'!$C$36,F24<='A - Contractor Summary'!$C$38),"Yes",IF(F24<'A - Contractor Summary'!$C$36,"No",IF(F24>'A - Contractor Summary'!$C$39,"",""))) -> No | N24: =IF(OR(M24="Yes",M24="No")*AND(F24<'A - Contractor Summary'!$C$39),"",IF(AND(F24>'A - Contractor Summary'!$C$39,F24<'A - Contractor Summary'!$C$42),"Yes",IF(F24>'A - Contractor Summary'!$C$42,"No","Needs Review"))) ->  | P24: No | Q24: 0 | R24: 0
B25: 12 | M25: =IF(AND(F25>='A - Contractor Summary'!$C$36,F25<='A - Contractor Summary'!$C$38),"Yes",IF(F25<'A - Contractor Summary'!$C$36,"No",IF(F25>'A - Contractor Summary'!$C$39,"",""))) -> No | N25: =IF(OR(M25="Yes",M25="No")*AND(F25<'A - Contractor Summary'!$C$39),"",IF(AND(F25>'A - Contractor Summary'!$C$39,F25<'A - Contractor Summary'!$C$42),"Yes",IF(F25>'A - Contractor Summary'!$C$42,"No","Needs Review"))) ->  | P25: No | Q25: 0 | R25: 0
B26: 13 | M26: =IF(AND(F26>='A - Contractor Summary'!$C$36,F26<='A - Contractor Summary'!$C$38),"Yes",IF(F26<'A - Contractor Summary'!$C$36,"No",IF(F26>'A - Contractor Summary'!$C$39,"",""))) -> No | N26: =IF(OR(M26="Yes",M26="No")*AND(F26<'A - Contractor Summary'!$C$39),"",IF(AND(F26>'A - Contractor Summary'!$C$39,F26<'A - Contractor Summary'!$C$42),"Yes",IF(F26>'A - Contractor Summary'!$C$42,"No","Needs Review"))) ->  | P26: No | Q26: 0 | R26: 0
B27: 14 | M27: =IF(AND(F27>='A - Contractor Summary'!$C$36,F27<='A - Contractor Summary'!$C$38),"Yes",IF(F27<'A - Contractor Summary'!$C$36,"No",IF(F27>'A - Contractor Summary'!$C$39,"",""))) -> No | N27: =IF(OR(M27="Yes",M27="No")*AND(F27<'A - Contractor Summary'!$C$39),"",IF(AND(F27>'A - Contractor Summary'!$C$39,F27<'A - Contractor Summary'!$C$42),"Yes",IF(F27>'A - Contractor Summary'!$C$42,"No","Needs Review"))) ->  | P27: No | Q27: 0 | R27: 0
B28: 15 | M28: =IF(AND(F28>='A - Contractor Summary'!$C$36,F28<='A - Contractor Summary'!$C$38),"Yes",IF(F28<'A - Contractor Summary'!$C$36,"No",IF(F28>'A - Contractor Summary'!$C$39,"",""))) -> No | N28: =IF(OR(M28="Yes",M28="No")*AND(F28<'A - Contractor Summary'!$C$39),"",IF(AND(F28>'A - Contractor Summary'!$C$39,F28<'A - Contractor Summary'!$C$42),"Yes",IF(F28>'A - Contractor Summary'!$C$42,"No","Needs Review"))) ->  | P28: No | Q28: 0 | R28: 0
B29: 16 | M29: =IF(AND(F29>='A - Contractor Summary'!$C$36,F29<='A - Contractor Summary'!$C$38),"Yes",IF(F29<'A - Contractor Summary'!$C$36,"No",IF(F29>'A - Contractor Summary'!$C$39,"",""))) -> No | N29: =IF(OR(M29="Yes",M29="No")*AND(F29<'A - Contractor Summary'!$C$39),"",IF(AND(F29>'A - Contractor Summary'!$C$39,F29<'A - Contractor Summary'!$C$42),"Yes",IF(F29>'A - Contractor Summary'!$C$42,"No","Needs Review"))) ->  | P29: No | Q29: 0 | R29: 0
B30: 17 | M30: =IF(AND(F30>='A - Contractor Summary'!$C$36,F30<='A - Contractor Summary'!$C$38),"Yes",IF(F30<'A - Contractor Summary'!$C$36,"No",IF(F30>'A - Contractor Summary'!$C$39,"",""))) -> No | N30: =IF(OR(M30="Yes",M30="No")*AND(F30<'A - Contractor Summary'!$C$39),"",IF(AND(F30>'A - Contractor Summary'!$C$39,F30<'A - Contractor Summary'!$C$42),"Yes",IF(F30>'A - Contractor Summary'!$C$42,"No","Needs Review"))) ->  | P30: No | Q30: 0 | R30: 0
B31: 18 | M31: =IF(AND(F31>='A - Contractor Summary'!$C$36,F31<='A - Contractor Summary'!$C$38),"Yes",IF(F31<'A - Contractor Summary'!$C$36,"No",IF(F31>'A - Contractor Summary'!$C$39,"",""))) -> No | N31: =IF(OR(M31="Yes",M31="No")*AND(F31<'A - Contractor Summary'!$C$39),"",IF(AND(F31>'A - Contractor Summary'!$C$39,F31<'A - Contractor Summary'!$C$42),"Yes",IF(F31>'A - Contractor Summary'!$C$42,"No","Needs Review"))) ->  | P31: No | Q31: =IF(P31="Yes",#REF!,0) -> 0 | R31: =IF(P31="ED Review",#REF!,0) -> 0
B32: 19 | M32: =IF(AND(F32>='A - Contractor Summary'!$C$36,F32<='A - Contractor Summary'!$C$38),"Yes",IF(F32<'A - Contractor Summary'!$C$36,"No",IF(F32>'A - Contractor Summary'!$C$39,"",""))) -> No | N32: =IF(OR(M32="Yes",M32="No")*AND(F32<'A - Contractor Summary'!$C$39),"",IF(AND(F32>'A - Contractor Summary'!$C$39,F32<'A - Contractor Summary'!$C$42),"Yes",IF(F32>'A - Contractor Summary'!$C$42,"No","Needs Review"))) ->  | P32: No | Q32: =IF(P32="Yes",#REF!,0) -> 0 | R32: =IF(P32="ED Review",#REF!,0) -> 0
B33: 20 | M33: =IF(AND(F33>='A - Contractor Summary'!$C$36,F33<='A - Contractor Summary'!$C$38),"Yes",IF(F33<'A - Contractor Summary'!$C$36,"No",IF(F33>'A - Contractor Summary'!$C$39,"",""))) -> No | N33: =IF(OR(M33="Yes",M33="No")*AND(F33<'A - Contractor Summary'!$C$39),"",IF(AND(F33>'A - Contractor Summary'!$C$39,F33<'A - Contractor Summary'!$C$42),"Yes",IF(F33>'A - Contractor Summary'!$C$42,"No","Needs Review"))) ->  | P33: No | Q33: =IF(P33="Yes",#REF!,0) -> 0 | R33: =IF(P33="ED Review",#REF!,0) -> 0
J34: =SUM(J14:J33) -> 0 | Q34: =IFERROR(SUM(Q14:Q33),0) -> 0 | R34: =IFERROR(SUM(R14:R33),0) -> 0 | S34: =SUM(S14:S33) -> 0 | T34: =SUM(T14:T33) -> 0 | U34: =R34-S34-T34 -> 0 | V34: check (a)
B40: Tickmark Explanation:

Sheet F - Meals
B2: Meal Charges
B4: Test Plan: (A) Obtain support of individual charges. (B) Enter Yes/No if receipt is itemized. (C) Enter Yes/No if proof of payment has been provided. (D) Ensure charges fall between the dates the vendor was mobilized and the date they arrived. (E) Ensure charges are prior to the date the vendor arrived home or was released to another utility. (F) Ensure the location of charge was reasonable (G) Determine the amount(s) to be reviewed, allowed and/or disallowed. (H) For charges which required further review, document review and include why it was determined to be allowed/disallowed via a tickmark.
B9: a | C9: Check figure should equal $0. Cell will appear yellow if discrepancies are noted.
C11: A | L11: B | M11: C | N11: D | O11: E | P11: F | Q11: G | T11: H
B12: Support Reviewed | N12: Conclusions
B13: # | C13: Type of Support | D13: Support Identifier | E13: Company | F13: Crew | G13: Date | H13: Person | I13: Restaurant Name | J13: Location | K13: $ Total | L13: Itemized Receipt | M13: Proof of Payment | N13: Reasonable based on Mobilization date(s) | O13: Reasonable based on Demobilization date(s) | P13: Locations Reasonable | Q13: Conclusion | R13: $ Allowable Charge | S13: $ To Be Reviewed | T13: Reviewed - Allowable Charge | U13: Reviewed - Unallowable Charge | V13: Tickmarks
B14: 1 | N14: =IF(AND(G14>='A - Contractor Summary'!$C$36,G14<='A - Contractor Summary'!$C$38),"Yes",IF(G14<'A - Contractor Summary'!$C$36,"No",IF(G14>'A - Contractor Summary'!$C$39,"",""))) -> No | O14: =IF(OR(N14="Yes",N14="No")*AND(G14<'A - Contractor Summary'!$C$39),"",IF(AND(G14>'A - Contractor Summary'!$C$39,G14<'A - Contractor Summary'!$C$42),"Yes",IF(G14>'A - Contractor Summary'!$C$42,"No","Needs Review"))) ->  | P14: Yes | Q14: =IF(AND(P14="Yes",L14="Yes",M14="Yes")*OR(O14="Yes",N14="Yes"),"Yes",IF(OR(L14="No",N14="No",O14="No",P14="No",M14="No"),"No","Needs Review")) -> No | R14: =IF(Q14="Yes",K14,0) -> 0 | S14: =IF(Q14="Needs Review",K14,0) -> 0 | T14: 0 | U14: 0
B15: 2 | N15: =IF(AND(G15>='A - Contractor Summary'!$C$36,G15<='A - Contractor Summary'!$C$38),"Yes",IF(G15<'A - Contractor Summary'!$C$36,"No",IF(G15>'A - Contractor Summary'!$C$39,"",""))) -> No | O15: =IF(OR(N15="Yes",N15="No")*AND(G15<'A - Contractor Summary'!$C$39),"",IF(AND(G15>'A - Contractor Summary'!$C$39,G15<'A - Contractor Summary'!$C$42),"Yes",IF(G15>'A - Contractor Summary'!$C$42,"No","Needs Review"))) ->  | P15: Yes | Q15: No | R15: 0 | S15: 0 | T15: 0 | U15: 0
B16: 3 | N16: =IF(AND(G16>='A - Contractor Summary'!$C$36,G16<='A - Contractor Summary'!$C$38),"Yes",IF(G16<'A - Contractor Summary'!$C$36,"No",IF(G16>'A - Contractor Summary'!$C$39,"",""))) -> No | O16: =IF(OR(N16="Yes",N16="No")*AND(G16<'A - Contractor Summary'!$C$39),"",IF(AND(G16>'A - Contractor Summary'!$C$39,G16<'A - Contractor Summary'!$C$42),"Yes",IF(G16>'A - Contractor Summary'!$C$42,"No","Needs Review"))) ->  | P16: Yes | Q16: No | R16: 0 | S16: 0 | T16: 0 | U16: 0
B17: 4 | N17: =IF(AND(G17>='A - Contractor Summary'!$C$36,G17<='A - Contractor Summary'!$C$38),"Yes",IF(G17<'A - Contractor Summary'!$C$36,"No",IF(G17>'A - Contractor Summary'!$C$39,"",""))) -> No | O17: =IF(OR(N17="Yes",N17="No")*AND(G17<'A - Contractor Summary'!$C$39),"",IF(AND(G17>'A - Contractor Summary'!$C$39,G17<'A - Contractor Summary'!$C$42),"Yes",IF(G17>'A - Contractor Summary'!$C$42,"No","Needs Review"))) ->  | P17: Yes | Q17: No | R17: 0 | S17: 0 | T17: 0 | U17: 0
B18: 5 | N18: =IF(AND(G18>='A - Contractor Summary'!$C$36,G18<='A - Contractor Summary'!$C$38),"Yes",IF(G18<'A - Contractor Summary'!$C$36,"No",IF(G18>'A - Contractor Summary'!$C$39,"",""))) -> No | O18: =IF(OR(N18="Yes",N18="No")*AND(G18<'A - Contractor Summary'!$C$39),"",IF(AND(G18>'A - Contractor Summary'!$C$39,G18<'A - Contractor Summary'!$C$42),"Yes",IF(G18>'A - Contractor Summary'!$C$42,"No","Needs Review"))) ->  | P18: No | Q18: No | R18: 0 | S18: 0 | T18: 0 | U18: 0
B19: 6 | N19: =IF(AND(G19>='A - Contractor Summary'!$C$36,G19<='A - Contractor Summary'!$C$38),"Yes",IF(G19<'A - Contractor Summary'!$C$36,"No",IF(G19>'A - Contractor Summary'!$C$39,"",""))) -> No | O19: =IF(OR(N19="Yes",N19="No")*AND(G19<'A - Contractor Summary'!$C$39),"",IF(AND(G19>'A - Contractor Summary'!$C$39,G19<'A - Contractor Summary'!$C$42),"Yes",IF(G19>'A - Contractor Summary'!$C$42,"No","Needs Review"))) ->  | P19: Yes | Q19: No | R19: 0 | S19: 0
B20: 7 | N20: =IF(AND(G20>='A - Contractor Summary'!$C$36,G20<='A - Contractor Summary'!$C$38),"Yes",IF(G20<'A - Contractor Summary'!$C$36,"No",IF(G20>'A - Contractor Summary'!$C$39,"",""))) -> No | O20: =IF(OR(N20="Yes",N20="No")*AND(G20<'A - Contractor Summary'!$C$39),"",IF(AND(G20>'A - Contractor Summary'!$C$39,G20<'A - Contractor Summary'!$C$42),"Yes",IF(G20>'A - Contractor Summary'!$C$42,"No","Needs Review"))) ->  | P20: Yes | Q20: No | R20: 0 | S20: 0
B21: 8 | N21: =IF(AND(G21>='A - Contractor Summary'!$C$36,G21<='A - Contractor Summary'!$C$38),"Yes",IF(G21<'A - Contractor Summary'!$C$36,"No",IF(G21>'A - Contractor Summary'!$C$39,"",""))) -> No | O21: =IF(OR(N21="Yes",N21="No")*AND(G21<'A - Contractor Summary'!$C$39),"",IF(AND(G21>'A - Contractor Summary'!$C$39,G21<'A - Contractor Summary'!$C$42),"Yes",IF(G21>'A - Contractor Summary'!$C$42,"No","Needs Review"))) ->  | P21: Yes | Q21: No | R21: 0 | S21: 0
B22: 9 | N22: =IF(AND(G22>='A - Contractor Summary'!$C$36,G22<='A - Contractor Summary'!$C$38),"Yes",IF(G22<'A - Contractor Summary'!$C$36,"No",IF(G22>'A - Contractor Summary'!$C$39,"",""))) -> No | O22: =IF(OR(N22="Yes",N22="No")*AND(G22<'A - Contractor Summary'!$C$39),"",IF(AND(G22>'A - Contractor Summary'!$C$39,G22<'A - Contractor Summary'!$C$42),"Yes",IF(G22>'A - Contractor Summary'!$C$42,"No","Needs Review"))) ->  | P22: Yes | Q22: No | R22: 0 | S22: 0
B23: 10 | N23: =IF(AND(G23>='A - Contractor Summary'!$C$36,G23<='A - Contractor Summary'!$C$38),"Yes",IF(G23<'A - Contractor Summary'!$C$36,"No",IF(G23>'A - Contractor Summary'!$C$39,"",""))) -> No | O23: =IF(OR(N23="Yes",N23="No")*AND(G23<'A - Contractor Summary'!$C$39),"",IF(AND(G23>'A - Contractor Summary'!$C$39,G23<'A - Contractor Summary'!$C$42),"Yes",IF(G23>'A - Contractor Summary'!$C$42,"No","Needs Review"))) ->  | P23: Yes | Q23: No | R23: 0 | S23: 0 | T23: 0 | U23: 0
B24: 11 | N24: =IF(AND(G24>='A - Contractor Summary'!$C$36,G24<='A - Contractor Summary'!$C$38),"Yes",IF(G24<'A - Contractor Summary'!$C$36,"No",IF(G24>'A - Contractor Summary'!$C$39,"",""))) -> No | O24: =IF(OR(N24="Yes",N24="No")*AND(G24<'A - Contractor Summary'!$C$39),"",IF(AND(G24>'A - Contractor Summary'!$C$39,G24<'A - Contractor Summary'!$C$42),"Yes",IF(G24>'A - Contractor Summary'!$C$42,"No","Needs Review"))) ->  | P24: Yes | Q24: No | R24: 0 | S24: 0 | T24: 0 | U24: 0
B25: 12 | N25: =IF(AND(G25>='A - Contractor Summary'!$C$36,G25<='A - Contractor Summary'!$C$38),"Yes",IF(G25<'A - Contractor Summary'!$C$36,"No",IF(G25>'A - Contractor Summary'!$C$39,"",""))) -> No | O25: =IF(OR(N25="Yes",N25="No")*AND(G25<'A - Contractor Summary'!$C$39),"",IF(AND(G25>'A - Contractor Summary'!$C$39,G25<'A - Contractor Summary'!$C$42),"Yes",IF(G25>'A - Contractor Summary'!$C$42,"No","Needs Review"))) ->  | P25: Yes | Q25: No | R25: 0 | S25: 0 | T25: 0 | U25: 0
B26: 13 | N26: =IF(AND(G26>='A - Contractor Summary'!$C$36,G26<='A - Contractor Summary'!$C$38),"Yes",IF(G26<'A - Contractor Summary'!$C$36,"No",IF(G26>'A - Contractor Summary'!$C$39,"",""))) -> No | O26: =IF(OR(N26="Yes",N26="No")*AND(G26<'A - Contractor Summary'!$C$39),"",IF(AND(G26>'A - Contractor Summary'!$C$39,G26<'A - Contractor Summary'!$C$42),"Yes",IF(G26>'A - Contractor Summary'!$C$42,"No","Needs Review"))) ->  | P26: Yes | Q26: No | R26: 0 | S26: 0 | T26: 0 | U26: 0
B27: 14 | N27: =IF(AND(G27>='A - Contractor Summary'!$C$36,G27<='A - Contractor Summary'!$C$38),"Yes",IF(G27<'A - Contractor Summary'!$C$36,"No",IF(G27>'A - Contractor Summary'!$C$39,"",""))) -> No | O27: =IF(OR(N27="Yes",N27="No")*AND(G27<'A - Contractor Summary'!$C$39),"",IF(AND(G27>'A - Contractor Summary'!$C$39,G27<'A - Contractor Summary'!$C$42),"Yes",IF(G27>'A - Contractor Summary'!$C$42,"No","Needs Review"))) ->  | P27: Yes | Q27: No | R27: 0 | S27: 0 | T27: 0 | U27: 0
B28: 15 | N28: =IF(AND(G28>='A - Contractor Summary'!$C$36,G28<='A - Contractor Summary'!$C$38),"Yes",IF(G28<'A - Contractor Summary'!$C$36,"No",IF(G28>'A - Contractor Summary'!$C$39,"",""))) -> No | O28: =IF(OR(N28="Yes",N28="No")*AND(G28<'A - Contractor Summary'!$C$39),"",IF(AND(G28>'A - Contractor Summary'!$C$39,G28<'A - Contractor Summary'!$C$42),"Yes",IF(G28>'A - Contractor Summary'!$C$42,"No","Needs Review"))) ->  | P28: Yes | Q28: No | R28: 0 | S28: 0 | T28: 0 | U28: 0
B29: 16 | N29: =IF(AND(G29>='A - Contractor Summary'!$C$36,G29<='A - Contractor Summary'!$C$38),"Yes",IF(G29<'A - Contractor Summary'!$C$36,"No",IF(G29>'A - Contractor Summary'!$C$39,"",""))) -> No | O29: =IF(OR(N29="Yes",N29="No")*AND(G29<'A - Contractor Summary'!$C$39),"",IF(AND(G29>'A - Contractor Summary'!$C$39,G29<'A - Contractor Summary'!$C$42),"Yes",IF(G29>'A - Contractor Summary'!$C$42,"No","Needs Review"))) ->  | P29: No | Q29: No | R29: 0 | S29: 0 | T29: 0 | U29: 0
B30: 17 | N30: =IF(AND(G30>='A - Contractor Summary'!$C$36,G30<='A - Contractor Summary'!$C$38),"Yes",IF(G30<'A - Contractor Summary'!$C$36,"No",IF(G30>'A - Contractor Summary'!$C$39,"",""))) -> No | O30: =IF(OR(N30="Yes",N30="No")*AND(G30<'A - Contractor Summary'!$C$39),"",IF(AND(G30>'A - Contractor Summary'!$C$39,G30<'A - Contractor Summary'!$C$42),"Yes",IF(G30>'A - Contractor Summary'!$C$42,"No","Needs Review"))) ->  | P30: Yes | Q30: No | R30: 0 | S30: 0
B31: 18 | N31: =IF(AND(G31>='A - Contractor Summary'!$C$36,G31<='A - Contractor Summary'!$C$38),"Yes",IF(G31<'A - Contractor Summary'!$C$36,"No",IF(G31>'A - Contractor Summary'!$C$39,"",""))) -> No | O31: =IF(OR(N31="Yes",N31="No")*AND(G31<'A - Contractor Summary'!$C$39),"",IF(AND(G31>'A - Contractor Summary'!$C$39,G31<'A - Contractor Summary'!$C$42),"Yes",IF(G31>'A - Contractor Summary'!$C$42,"No","Needs Review"))) ->  | P31: Yes | Q31: No | R31: 0 | S31: 0
B32: 19 | N32: =IF(AND(G32>='A - Contractor Summary'!$C$36,G32<='A - Contractor Summary'!$C$38),"Yes",IF(G32<'A - Contractor Summary'!$C$36,"No",IF(G32>'A - Contractor Summary'!$C$39,"",""))) -> No | O32: =IF(OR(N32="Yes",N32="No")*AND(G32<'A - Contractor Summary'!$C$39),"",IF(AND(G32>'A - Contractor Summary'!$C$39,G32<'A - Contractor Summary'!$C$42),"Yes",IF(G32>'A - Contractor Summary'!$C$42,"No","Needs Review"))) ->  | P32: Yes | Q32: No | R32: 0 | S32: 0 | T32: 0 | U32: 0
B33: 20 | N33: =IF(AND(G33>='A - Contractor Summary'!$C$36,G33<='A - Contractor Summary'!$C$38),"Yes",IF(G33<'A - Contractor Summary'!$C$36,"No",IF(G33>'A - Contractor Summary'!$C$39,"",""))) -> No | O33: =IF(OR(N33="Yes",N33="No")*AND(G33<'A - Contractor Summary'!$C$39),"",IF(AND(G33>'A - Contractor Summary'!$C$39,G33<'A - Contractor Summary'!$C$42),"Yes",IF(G33>'A - Contractor Summary'!$C$42,"No","Needs Review"))) ->  | P33: Yes | Q33: No | R33: 0 | S33: 0
B34: 21 | N34: =IF(AND(G34>='A - Contractor Summary'!$C$36,G34<='A - Contractor Summary'!$C$38),"Yes",IF(G34<'A - Contractor Summary'!$C$36,"No",IF(G34>'A - Contractor Summary'!$C$39,"",""))) -> No | O34: =IF(OR(N34="Yes",N34="No")*AND(G34<'A - Contractor Summary'!$C$39),"",IF(AND(G34>'A - Contractor Summary'!$C$39,G34<'A - Contractor Summary'!$C$42),"Yes",IF(G34>'A - Contractor Summary'!$C$42,"No","Needs Review"))) ->  | P34: Yes | Q34: No | R34: 0 | S34: 0
B35: 22 | N35: =IF(AND(G35>='A - Contractor Summary'!$C$36,G35<='A - Contractor Summary'!$C$38),"Yes",IF(G35<'A - Contractor Summary'!$C$36,"No",IF(G35>'A - Contractor Summary'!$C$39,"",""))) -> No | O35: =IF(OR(N35="Yes",N35="No")*AND(G35<'A - Contractor Summary'!$C$39),"",IF(AND(G35>'A - Contractor Summary'!$C$39,G35<'A - Contractor Summary'!$C$42),"Yes",IF(G35>'A - Contractor Summary'!$C$42,"No","Needs Review"))) ->  | P35: Yes | Q35: No | R35: 0 | S35: 0 | T35: 0 | U35: 0
B36: 23 | N36: =IF(AND(G36>='A - Contractor Summary'!$C$36,G36<='A - Contractor Summary'!$C$38),"Yes",IF(G36<'A - Contractor Summary'!$C$36,"No",IF(G36>'A - Contractor Summary'!$C$39,"",""))) -> No | O36: =IF(OR(N36="Yes",N36="No")*AND(G36<'A - Contractor Summary'!$C$39),"",IF(AND(G36>'A - Contractor Summary'!$C$39,G36<'A - Contractor Summary'!$C$42),"Yes",IF(G36>'A - Contractor Summary'!$C$42,"No","Needs Review"))) ->  | P36: Yes | Q36: No | R36: 0 | S36: 0 | T36: 0 | U36: 0
B37: 24 | N37: =IF(AND(G37>='A - Contractor Summary'!$C$36,G37<='A - Contractor Summary'!$C$38),"Yes",IF(G37<'A - Contractor Summary'!$C$36,"No",IF(G37>'A - Contractor Summary'!$C$39,"",""))) -> No | O37: =IF(OR(N37="Yes",N37="No")*AND(G37<'A - Contractor Summary'!$C$39),"",IF(AND(G37>'A - Contractor Summary'!$C$39,G37<'A - Contractor Summary'!$C$42),"Yes",IF(G37>'A - Contractor Summary'!$C$42,"No","Needs Review"))) ->  | P37: Yes | Q37: No | R37: 0 | S37: 0
B38: 25 | N38: =IF(AND(G38>='A - Contractor Summary'!$C$36,G38<='A - Contractor Summary'!$C$38),"Yes",IF(G38<'A - Contractor Summary'!$C$36,"No",IF(G38>'A - Contractor Summary'!$C$39,"",""))) -> No | O38: =IF(OR(N38="Yes",N38="No")*AND(G38<'A - Contractor Summary'!$C$39),"",IF(AND(G38>'A - Contractor Summary'!$C$39,G38<'A - Contractor Summary'!$C$42),"Yes",IF(G38>'A - Contractor Summary'!$C$42,"No","Needs Review"))) ->  | P38: Yes | Q38: No | R38: 0 | S38: 0
B39: 26 | N39: =IF(AND(G39>='A - Contractor Summary'!$C$36,G39<='A - Contractor Summary'!$C$38),"Yes",IF(G39<'A - Contractor Summary'!$C$36,"No",IF(G39>'A - Contractor Summary'!$C$39,"",""))) -> No | O39: =IF(OR(N39="Yes",N39="No")*AND(G39<'A - Contractor Summary'!$C$39),"",IF(AND(G39>'A - Contractor Summary'!$C$39,G39<'A - Contractor Summary'!$C$42),"Yes",IF(G39>'A - Contractor Summary'!$C$42,"No","Needs Review"))) ->  | P39: Yes | Q39: No | R39: 0 | S39: 0
B40: 27 | N40: =IF(AND(G40>='A - Contractor Summary'!$C$36,G40<='A - Contractor Summary'!$C$38),"Yes",IF(G40<'A - Contractor Summary'!$C$36,"No",IF(G40>'A - Contractor Summary'!$C$39,"",""))) -> No | O40: =IF(OR(N40="Yes",N40="No")*AND(G40<'A - Contractor Summary'!$C$39),"",IF(AND(G40>'A - Contractor Summary'!$C$39,G40<'A - Contractor Summary'!$C$42),"Yes",IF(G40>'A - Contractor Summary'!$C$42,"No","Needs Review"))) ->  | P40: Yes | Q40: No | R40: 0 | S40: 0
B41: 28 | N41: =IF(AND(G41>='A - Contractor Summary'!$C$36,G41<='A - Contractor Summary'!$C$38),"Yes",IF(G41<'A - Contractor Summary'!$C$36,"No",IF(G41>'A - Contractor Summary'!$C$39,"",""))) -> No | O41: =IF(OR(N41="Yes",N41="No")*AND(G41<'A - Contractor Summary'!$C$39),"",IF(AND(G41>'A - Contractor Summary'!$C$39,G41<'A - Contractor Summary'!$C$42),"Yes",IF(G41>'A - Contractor Summary'!$C$42,"No","Needs Review"))) ->  | P41: Yes | Q41: No | R41: 0 | S41: 0 | T41: 0 | U41: 0
B42: 29 | N42: =IF(AND(G42>='A - Contractor Summary'!$C$36,G42<='A - Contractor Summary'!$C$38),"Yes",IF(G42<'A - Contractor Summary'!$C$36,"No",IF(G42>'A - Contractor Summary'!$C$39,"",""))) -> No | O42: =IF(OR(N42="Yes",N42="No")*AND(G42<'A - Contractor Summary'!$C$39),"",IF(AND(G42>'A - Contractor Summary'!$C$39,G42<'A - Contractor Summary'!$C$42),"Yes",IF(G42>'A - Contractor Summary'!$C$42,"No","Needs Review"))) ->  | P42: Yes | Q42: No | R42: 0 | S42: 0
B43: 30 | N43: =IF(AND(G43>='A - Contractor Summary'!$C$36,G43<='A - Contractor Summary'!$C$38),"Yes",IF(G43<'A - Contractor Summary'!$C$36,"No",IF(G43>'A - Contractor Summary'!$C$39,"",""))) -> No | O43: =IF(OR(N43="Yes",N43="No")*AND(G43<'A - Contractor Summary'!$C$39),"",IF(AND(G43>'A - Contractor Summary'!$C$39,G43<'A - Contractor Summary'!$C$42),"Yes",IF(G43>'A - Contractor Summary'!$C$42,"No","Needs Review"))) ->  | P43: Yes | Q43: No | R43: 0 | S43: 0
B44: 31 | N44: =IF(AND(G44>='A - Contractor Summary'!$C$36,G44<='A - Contractor Summary'!$C$38),"Yes",IF(G44<'A - Contractor Summary'!$C$36,"No",IF(G44>'A - Contractor Summary'!$C$39,"",""))) -> No | O44: =IF(OR(N44="Yes",N44="No")*AND(G44<'A - Contractor Summary'!$C$39),"",IF(AND(G44>'A - Contractor Summary'!$C$39,G44<'A - Contractor Summary'!$C$42),"Yes",IF(G44>'A - Contractor Summary'!$C$42,"No","Needs Review"))) ->  | P44: Yes | Q44: No | R44: 0 | S44: 0
B45: 32 | N45: =IF(AND(G45>='A - Contractor Summary'!$C$36,G45<='A - Contractor Summary'!$C$38),"Yes",IF(G45<'A - Contractor Summary'!$C$36,"No",IF(G45>'A - Contractor Summary'!$C$39,"",""))) -> No | O45: =IF(OR(N45="Yes",N45="No")*AND(G45<'A - Contractor Summary'!$C$39),"",IF(AND(G45>'A - Contractor Summary'!$C$39,G45<'A - Contractor Summary'!$C$42),"Yes",IF(G45>'A - Contractor Summary'!$C$42,"No","Needs Review"))) ->  | P45: Yes | Q45: No | R45: 0 | S45: 0
B46: 33 | N46: =IF(AND(G46>='A - Contractor Summary'!$C$36,G46<='A - Contractor Summary'!$C$38),"Yes",IF(G46<'A - Contractor Summary'!$C$36,"No",IF(G46>'A - Contractor Summary'!$C$39,"",""))) -> No | O46: =IF(OR(N46="Yes",N46="No")*AND(G46<'A - Contractor Summary'!$C$39),"",IF(AND(G46>'A - Contractor Summary'!$C$39,G46<'A - Contractor Summary'!$C$42),"Yes",IF(G46>'A - Contractor Summary'!$C$42,"No","Needs Review"))) ->  | P46: Yes | Q46: =IF(AND(P46="Yes",L46="Yes",M46="Yes")*OR(O46="Yes",N46="Yes"),"Yes",IF(OR(L46="No",N46="No",O46="No",P46="No",M46="No"),"No","Needs Review")) -> No | R46: =IF(Q46="Yes",K46,0) -> 0 | S46: =IF(Q46="Needs Review",K46,0) -> 0
B47: 34 | N47: =IF(AND(G47>='A - Contractor Summary'!$C$36,G47<='A - Contractor Summary'!$C$38),"Yes",IF(G47<'A - Contractor Summary'!$C$36,"No",IF(G47>'A - Contractor Summary'!$C$39,"",""))) -> No | O47: =IF(OR(N47="Yes",N47="No")*AND(G47<'A - Contractor Summary'!$C$39),"",IF(AND(G47>'A - Contractor Summary'!$C$39,G47<'A - Contractor Summary'!$C$42),"Yes",IF(G47>'A - Contractor Summary'!$C$42,"No","Needs Review"))) ->  | P47: Yes | Q47: No | R47: 0 | S47: 0
B48: 35 | N48: =IF(AND(G48>='A - Contractor Summary'!$C$36,G48<='A - Contractor Summary'!$C$38),"Yes",IF(G48<'A - Contractor Summary'!$C$36,"No",IF(G48>'A - Contractor Summary'!$C$39,"",""))) -> No | O48: =IF(OR(N48="Yes",N48="No")*AND(G48<'A - Contractor Summary'!$C$39),"",IF(AND(G48>'A - Contractor Summary'!$C$39,G48<'A - Contractor Summary'!$C$42),"Yes",IF(G48>'A - Contractor Summary'!$C$42,"No","Needs Review"))) ->  | P48: Yes | Q48: No | R48: 0 | S48: 0 | T48: 0 | U48: 0
B49: 36 | N49: =IF(AND(G49>='A - Contractor Summary'!$C$36,G49<='A - Contractor Summary'!$C$38),"Yes",IF(G49<'A - Contractor Summary'!$C$36,"No",IF(G49>'A - Contractor Summary'!$C$39,"",""))) -> No | O49: =IF(OR(N49="Yes",N49="No")*AND(G49<'A - Contractor Summary'!$C$39),"",IF(AND(G49>'A - Contractor Summary'!$C$39,G49<'A - Contractor Summary'!$C$42),"Yes",IF(G49>'A - Contractor Summary'!$C$42,"No","Needs Review"))) ->  | P49: Yes | Q49: No | R49: 0 | S49: 0
B50: 37 | N50: =IF(AND(G50>='A - Contractor Summary'!$C$36,G50<='A - Contractor Summary'!$C$38),"Yes",IF(G50<'A - Contractor Summary'!$C$36,"No",IF(G50>'A - Contractor Summary'!$C$39,"",""))) -> No | O50: =IF(OR(N50="Yes",N50="No")*AND(G50<'A - Contractor Summary'!$C$39),"",IF(AND(G50>'A - Contractor Summary'!$C$39,G50<'A - Contractor Summary'!$C$42),"Yes",IF(G50>'A - Contractor Summary'!$C$42,"No","Needs Review"))) ->  | P50: Yes | Q50: No | R50: 0 | S50: 0
B51: 38 | N51: =IF(AND(G51>='A - Contractor Summary'!$C$36,G51<='A - Contractor Summary'!$C$38),"Yes",IF(G51<'A - Contractor Summary'!$C$36,"No",IF(G51>'A - Contractor Summary'!$C$39,"",""))) -> No | O51: =IF(OR(N51="Yes",N51="No")*AND(G51<'A - Contractor Summary'!$C$39),"",IF(AND(G51>'A - Contractor Summary'!$C$39,G51<'A - Contractor Summary'!$C$42),"Yes",IF(G51>'A - Contractor Summary'!$C$42,"No","Needs Review"))) ->  | P51: Yes | Q51: No | R51: 0 | S51: 0
B52: 39 | N52: =IF(AND(G52>='A - Contractor Summary'!$C$36,G52<='A - Contractor Summary'!$C$38),"Yes",IF(G52<'A - Contractor Summary'!$C$36,"No",IF(G52>'A - Contractor Summary'!$C$39,"",""))) -> No | O52: =IF(OR(N52="Yes",N52="No")*AND(G52<'A - Contractor Summary'!$C$39),"",IF(AND(G52>'A - Contractor Summary'!$C$39,G52<'A - Contractor Summary'!$C$42),"Yes",IF(G52>'A - Contractor Summary'!$C$42,"No","Needs Review"))) ->  | P52: Yes | Q52: No | R52: 0 | S52: 0 | T52: 0 | U52: 0
B53: 40 | N53: =IF(AND(G53>='A - Contractor Summary'!$C$36,G53<='A - Contractor Summary'!$C$38),"Yes",IF(G53<'A - Contractor Summary'!$C$36,"No",IF(G53>'A - Contractor Summary'!$C$39,"",""))) -> No | O53: =IF(OR(N53="Yes",N53="No")*AND(G53<'A - Contractor Summary'!$C$39),"",IF(AND(G53>'A - Contractor Summary'!$C$39,G53<'A - Contractor Summary'!$C$42),"Yes",IF(G53>'A - Contractor Summary'!$C$42,"No","Needs Review"))) ->  | P53: Yes | Q53: No | R53: 0 | S53: 0 | T53: 0 | U53: 0
B54: 41 | N54: =IF(AND(G54>='A - Contractor Summary'!$C$36,G54<='A - Contractor Summary'!$C$38),"Yes",IF(G54<'A - Contractor Summary'!$C$36,"No",IF(G54>'A - Contractor Summary'!$C$39,"",""))) -> No | O54: =IF(OR(N54="Yes",N54="No")*AND(G54<'A - Contractor Summary'!$C$39),"",IF(AND(G54>'A - Contractor Summary'!$C$39,G54<'A - Contractor Summary'!$C$42),"Yes",IF(G54>'A - Contractor Summary'!$C$42,"No","Needs Review"))) ->  | P54: Yes | Q54: No | R54: 0 | S54: 0
B55: 42 | N55: =IF(AND(G55>='A - Contractor Summary'!$C$36,G55<='A - Contractor Summary'!$C$38),"Yes",IF(G55<'A - Contractor Summary'!$C$36,"No",IF(G55>'A - Contractor Summary'!$C$39,"",""))) -> No | O55: =IF(OR(N55="Yes",N55="No")*AND(G55<'A - Contractor Summary'!$C$39),"",IF(AND(G55>'A - Contractor Summary'!$C$39,G55<'A - Contractor Summary'!$C$42),"Yes",IF(G55>'A - Contractor Summary'!$C$42,"No","Needs Review"))) ->  | P55: No | Q55: No | R55: 0 | S55: 0 | T55: 0 | U55: 0
B56: 43 | N56: =IF(AND(G56>='A - Contractor Summary'!$C$36,G56<='A - Contractor Summary'!$C$38),"Yes",IF(G56<'A - Contractor Summary'!$C$36,"No",IF(G56>'A - Contractor Summary'!$C$39,"",""))) -> No | O56: =IF(OR(N56="Yes",N56="No")*AND(G56<'A - Contractor Summary'!$C$39),"",IF(AND(G56>'A - Contractor Summary'!$C$39,G56<'A - Contractor Summary'!$C$42),"Yes",IF(G56>'A - Contractor Summary'!$C$42,"No","Needs Review"))) ->  | P56: Yes | Q56: No | R56: 0 | S56: 0 | T56: 0 | U56: 0
B57: 44 | N57: =IF(AND(G57>='A - Contractor Summary'!$C$36,G57<='A - Contractor Summary'!$C$38),"Yes",IF(G57<'A - Contractor Summary'!$C$36,"No",IF(G57>'A - Contractor Summary'!$C$39,"",""))) -> No | O57: =IF(OR(N57="Yes",N57="No")*AND(G57<'A - Contractor Summary'!$C$39),"",IF(AND(G57>'A - Contractor Summary'!$C$39,G57<'A - Contractor Summary'!$C$42),"Yes",IF(G57>'A - Contractor Summary'!$C$42,"No","Needs Review"))) ->  | P57: Yes | Q57: No | R57: 0 | S57: 0
B58: 46 | N58: =IF(AND(G58>='A - Contractor Summary'!$C$36,G58<='A - Contractor Summary'!$C$38),"Yes",IF(G58<'A - Contractor Summary'!$C$36,"No",IF(G58>'A - Contractor Summary'!$C$39,"",""))) -> No | O58: =IF(OR(N58="Yes",N58="No")*AND(G58<'A - Contractor Summary'!$C$39),"",IF(AND(G58>'A - Contractor Summary'!$C$39,G58<'A - Contractor Summary'!$C$42),"Yes",IF(G58>'A - Contractor Summary'!$C$42,"No","Needs Review"))) ->  | P58: Yes | Q58: No | R58: 0 | S58: 0
B59: 47 | N59: =IF(AND(G59>='A - Contractor Summary'!$C$36,G59<='A - Contractor Summary'!$C$38),"Yes",IF(G59<'A - Contractor Summary'!$C$36,"No",IF(G59>'A - Contractor Summary'!$C$39,"",""))) -> No | O59: =IF(OR(N59="Yes",N59="No")*AND(G59<'A - Contractor Summary'!$C$39),"",IF(AND(G59>'A - Contractor Summary'!$C$39,G59<'A - Contractor Summary'!$C$42),"Yes",IF(G59>'A - Contractor Summary'!$C$42,"No","Needs Review"))) ->  | P59: Yes | Q59: No | R59: 0 | S59: 0
B60: 48 | N60: =IF(AND(G60>='A - Contractor Summary'!$C$36,G60<='A - Contractor Summary'!$C$38),"Yes",IF(G60<'A - Contractor Summary'!$C$36,"No",IF(G60>'A - Contractor Summary'!$C$39,"",""))) -> No | O60: =IF(OR(N60="Yes",N60="No")*AND(G60<'A - Contractor Summary'!$C$39),"",IF(AND(G60>'A - Contractor Summary'!$C$39,G60<'A - Contractor Summary'!$C$42),"Yes",IF(G60>'A - Contractor Summary'!$C$42,"No","Needs Review"))) ->  | P60: Yes | Q60: No | R60: 0 | S60: 0
B61: 49 | N61: =IF(AND(G61>='A - Contractor Summary'!$C$36,G61<='A - Contractor Summary'!$C$38),"Yes",IF(G61<'A - Contractor Summary'!$C$36,"No",IF(G61>'A - Contractor Summary'!$C$39,"",""))) -> No | O61: =IF(OR(N61="Yes",N61="No")*AND(G61<'A - Contractor Summary'!$C$39),"",IF(AND(G61>'A - Contractor Summary'!$C$39,G61<'A - Contractor Summary'!$C$42),"Yes",IF(G61>'A - Contractor Summary'!$C$42,"No","Needs Review"))) ->  | P61: Yes | Q61: No | R61: 0 | S61: 0
B62: 50 | N62: =IF(AND(G62>='A - Contractor Summary'!$C$36,G62<='A - Contractor Summary'!$C$38),"Yes",IF(G62<'A - Contractor Summary'!$C$36,"No",IF(G62>'A - Contractor Summary'!$C$39,"",""))) -> No | O62: =IF(OR(N62="Yes",N62="No")*AND(G62<'A - Contractor Summary'!$C$39),"",IF(AND(G62>'A - Contractor Summary'!$C$39,G62<'A - Contractor Summary'!$C$42),"Yes",IF(G62>'A - Contractor Summary'!$C$42,"No","Needs Review"))) ->  | P62: Yes | Q62: No | R62: 0 | S62: 0
B63: 51 | N63: =IF(AND(G63>='A - Contractor Summary'!$C$36,G63<='A - Contractor Summary'!$C$38),"Yes",IF(G63<'A - Contractor Summary'!$C$36,"No",IF(G63>'A - Contractor Summary'!$C$39,"",""))) -> No | O63: =IF(OR(N63="Yes",N63="No")*AND(G63<'A - Contractor Summary'!$C$39),"",IF(AND(G63>'A - Contractor Summary'!$C$39,G63<'A - Contractor Summary'!$C$42),"Yes",IF(G63>'A - Contractor Summary'!$C$42,"No","Needs Review"))) ->  | P63: Yes | Q63: No | R63: 0 | S63: 0
B64: 52 | N64: =IF(AND(G64>='A - Contractor Summary'!$C$36,G64<='A - Contractor Summary'!$C$38),"Yes",IF(G64<'A - Contractor Summary'!$C$36,"No",IF(G64>'A - Contractor Summary'!$C$39,"",""))) -> No | O64: =IF(OR(N64="Yes",N64="No")*AND(G64<'A - Contractor Summary'!$C$39),"",IF(AND(G64>'A - Contractor Summary'!$C$39,G64<'A - Contractor Summary'!$C$42),"Yes",IF(G64>'A - Contractor Summary'!$C$42,"No","Needs Review"))) ->  | P64: Yes | Q64: No | R64: 0 | S64: 0
B65: 53 | N65: =IF(AND(G65>='A - Contractor Summary'!$C$36,G65<='A - Contractor Summary'!$C$38),"Yes",IF(G65<'A - Contractor Summary'!$C$36,"No",IF(G65>'A - Contractor Summary'!$C$39,"",""))) -> No | O65: =IF(OR(N65="Yes",N65="No")*AND(G65<'A - Contractor Summary'!$C$39),"",IF(AND(G65>'A - Contractor Summary'!$C$39,G65<'A - Contractor Summary'!$C$42),"Yes",IF(G65>'A - Contractor Summary'!$C$42,"No","Needs Review"))) ->  | P65: Yes | Q65: No | R65: 0 | S65: 0
B66: 54 | N66: =IF(AND(G66>='A - Contractor Summary'!$C$36,G66<='A - Contractor Summary'!$C$38),"Yes",IF(G66<'A - Contractor Summary'!$C$36,"No",IF(G66>'A - Contractor Summary'!$C$39,"",""))) -> No | O66: =IF(OR(N66="Yes",N66="No")*AND(G66<'A - Contractor Summary'!$C$39),"",IF(AND(G66>'A - Contractor Summary'!$C$39,G66<'A - Contractor Summary'!$C$42),"Yes",IF(G66>'A - Contractor Summary'!$C$42,"No","Needs Review"))) ->  | P66: Yes | Q66: No | R66: 0 | S66: 0
B67: 55 | N67: =IF(AND(G67>='A - Contractor Summary'!$C$36,G67<='A - Contractor Summary'!$C$38),"Yes",IF(G67<'A - Contractor Summary'!$C$36,"No",IF(G67>'A - Contractor Summary'!$C$39,"",""))) -> No | O67: =IF(OR(N67="Yes",N67="No")*AND(G67<'A - Contractor Summary'!$C$39),"",IF(AND(G67>'A - Contractor Summary'!$C$39,G67<'A - Contractor Summary'!$C$42),"Yes",IF(G67>'A - Contractor Summary'!$C$42,"No","Needs Review"))) ->  | P67: Yes | Q67: No | R67: 0 | S67: 0
B68: 56 | N68: =IF(AND(G68>='A - Contractor Summary'!$C$36,G68<='A - Contractor Summary'!$C$38),"Yes",IF(G68<'A - Contractor Summary'!$C$36,"No",IF(G68>'A - Contractor Summary'!$C$39,"",""))) -> No | O68: =IF(OR(N68="Yes",N68="No")*AND(G68<'A - Contractor Summary'!$C$39),"",IF(AND(G68>'A - Contractor Summary'!$C$39,G68<'A - Contractor Summary'!$C$42),"Yes",IF(G68>'A - Contractor Summary'!$C$42,"No","Needs Review"))) ->  | P68: Yes | Q68: No | R68: 0 | S68: 0
B69: 57 | N69: =IF(AND(G69>='A - Contractor Summary'!$C$36,G69<='A - Contractor Summary'!$C$38),"Yes",IF(G69<'A - Contractor Summary'!$C$36,"No",IF(G69>'A - Contractor Summary'!$C$39,"",""))) -> No | O69: =IF(OR(N69="Yes",N69="No")*AND(G69<'A - Contractor Summary'!$C$39),"",IF(AND(G69>'A - Contractor Summary'!$C$39,G69<'A - Contractor Summary'!$C$42),"Yes",IF(G69>'A - Contractor Summary'!$C$42,"No","Needs Review"))) ->  | P69: Yes | Q69: No | R69: 0 | S69: 0
B70: 58 | N70: =IF(AND(G70>='A - Contractor Summary'!$C$36,G70<='A - Contractor Summary'!$C$38),"Yes",IF(G70<'A - Contractor Summary'!$C$36,"No",IF(G70>'A - Contractor Summary'!$C$39,"",""))) -> No | O70: =IF(OR(N70="Yes",N70="No")*AND(G70<'A - Contractor Summary'!$C$39),"",IF(AND(G70>'A - Contractor Summary'!$C$39,G70<'A - Contractor Summary'!$C$42),"Yes",IF(G70>'A - Contractor Summary'!$C$42,"No","Needs Review"))) ->  | P70: No | Q70: Needs Review | R70: 0 | S70: 0
B71: 59 | N71: =IF(AND(G71>='A - Contractor Summary'!$C$36,G71<='A - Contractor Summary'!$C$38),"Yes",IF(G71<'A - Contractor Summary'!$C$36,"No",IF(G71>'A - Contractor Summary'!$C$39,"",""))) -> No | O71: =IF(OR(N71="Yes",N71="No")*AND(G71<'A - Contractor Summary'!$C$39),"",IF(AND(G71>'A - Contractor Summary'!$C$39,G71<'A - Contractor Summary'!$C$42),"Yes",IF(G71>'A - Contractor Summary'!$C$42,"No","Needs Review"))) ->  | P71: Yes | Q71: No | R71: 0 | S71: 0
B72: 61 | N72: =IF(AND(G72>='A - Contractor Summary'!$C$36,G72<='A - Contractor Summary'!$C$38),"Yes",IF(G72<'A - Contractor Summary'!$C$36,"No",IF(G72>'A - Contractor Summary'!$C$39,"",""))) -> No | O72: =IF(OR(N72="Yes",N72="No")*AND(G72<'A - Contractor Summary'!$C$39),"",IF(AND(G72>'A - Contractor Summary'!$C$39,G72<'A - Contractor Summary'!$C$42),"Yes",IF(G72>'A - Contractor Summary'!$C$42,"No","Needs Review"))) ->  | P72: Yes | Q72: No | R72: 0 | S72: 0
B73: 62 | N73: =IF(AND(G73>='A - Contractor Summary'!$C$36,G73<='A - Contractor Summary'!$C$38),"Yes",IF(G73<'A - Contractor Summary'!$C$36,"No",IF(G73>'A - Contractor Summary'!$C$39,"",""))) -> No | O73: =IF(OR(N73="Yes",N73="No")*AND(G73<'A - Contractor Summary'!$C$39),"",IF(AND(G73>'A - Contractor Summary'!$C$39,G73<'A - Contractor Summary'!$C$42),"Yes",IF(G73>'A - Contractor Summary'!$C$42,"No","Needs Review"))) ->  | P73: Yes | Q73: No | R73: 0 | S73: 0
B74: 63 | N74: =IF(AND(G74>='A - Contractor Summary'!$C$36,G74<='A - Contractor Summary'!$C$38),"Yes",IF(G74<'A - Contractor Summary'!$C$36,"No",IF(G74>'A - Contractor Summary'!$C$39,"",""))) -> No | O74: =IF(OR(N74="Yes",N74="No")*AND(G74<'A - Contractor Summary'!$C$39),"",IF(AND(G74>'A - Contractor Summary'!$C$39,G74<'A - Contractor Summary'!$C$42),"Yes",IF(G74>'A - Contractor Summary'!$C$42,"No","Needs Review"))) ->  | P74: Yes | Q74: No | R74: 0 | S74: 0
B75: 64 | N75: =IF(AND(G75>='A - Contractor Summary'!$C$36,G75<='A - Contractor Summary'!$C$38),"Yes",IF(G75<'A - Contractor Summary'!$C$36,"No",IF(G75>'A - Contractor Summary'!$C$39,"",""))) -> No | O75: =IF(OR(N75="Yes",N75="No")*AND(G75<'A - Contractor Summary'!$C$39),"",IF(AND(G75>'A - Contractor Summary'!$C$39,G75<'A - Contractor Summary'!$C$42),"Yes",IF(G75>'A - Contractor Summary'!$C$42,"No","Needs Review"))) ->  | P75: Yes | Q75: No | R75: 0 | S75: 0
B76: 65 | N76: =IF(AND(G76>='A - Contractor Summary'!$C$36,G76<='A - Contractor Summary'!$C$38),"Yes",IF(G76<'A - Contractor Summary'!$C$36,"No",IF(G76>'A - Contractor Summary'!$C$39,"",""))) -> No | O76: =IF(OR(N76="Yes",N76="No")*AND(G76<'A - Contractor Summary'!$C$39),"",IF(AND(G76>'A - Contractor Summary'!$C$39,G76<'A - Contractor Summary'!$C$42),"Yes",IF(G76>'A - Contractor Summary'!$C$42,"No","Needs Review"))) ->  | P76: No | Q76: No | R76: 0 | S76: 0
B77: 66 | N77: =IF(AND(G77>='A - Contractor Summary'!$C$36,G77<='A - Contractor Summary'!$C$38),"Yes",IF(G77<'A - Contractor Summary'!$C$36,"No",IF(G77>'A - Contractor Summary'!$C$39,"",""))) -> No | O77: =IF(OR(N77="Yes",N77="No")*AND(G77<'A - Contractor Summary'!$C$39),"",IF(AND(G77>'A - Contractor Summary'!$C$39,G77<'A - Contractor Summary'!$C$42),"Yes",IF(G77>'A - Contractor Summary'!$C$42,"No","Needs Review"))) ->  | P77: Yes | Q77: No | R77: 0 | S77: 0
B78: 67 | N78: =IF(AND(G78>='A - Contractor Summary'!$C$36,G78<='A - Contractor Summary'!$C$38),"Yes",IF(G78<'A - Contractor Summary'!$C$36,"No",IF(G78>'A - Contractor Summary'!$C$39,"",""))) -> No | O78: =IF(OR(N78="Yes",N78="No")*AND(G78<'A - Contractor Summary'!$C$39),"",IF(AND(G78>'A - Contractor Summary'!$C$39,G78<'A - Contractor Summary'!$C$42),"Yes",IF(G78>'A - Contractor Summary'!$C$42,"No","Needs Review"))) ->  | P78: No | Q78: Needs Review | R78: =IF(Q78="Yes",K78,0) -> 0 | S78: =IF(Q78="Needs Review",K78,0) -> 0
B79: 68 | N79: =IF(AND(G79>='A - Contractor Summary'!$C$36,G79<='A - Contractor Summary'!$C$38),"Yes",IF(G79<'A - Contractor Summary'!$C$36,"No",IF(G79>'A - Contractor Summary'!$C$39,"",""))) -> No | O79: =IF(OR(N79="Yes",N79="No")*AND(G79<'A - Contractor Summary'!$C$39),"",IF(AND(G79>'A - Contractor Summary'!$C$39,G79<'A - Contractor Summary'!$C$42),"Yes",IF(G79>'A - Contractor Summary'!$C$42,"No","Needs Review"))) ->  | P79: Yes | Q79: =IF(AND(P79="Yes",L79="Yes",M79="Yes")*OR(O79="Yes",N79="Yes"),"Yes",IF(OR(L79="No",N79="No",O79="No",P79="No",M79="No"),"No","Needs Review")) -> No | R79: 0 | S79: 0
B80: 69 | N80: =IF(AND(G80>='A - Contractor Summary'!$C$36,G80<='A - Contractor Summary'!$C$38),"Yes",IF(G80<'A - Contractor Summary'!$C$36,"No",IF(G80>'A - Contractor Summary'!$C$39,"",""))) -> No | O80: =IF(OR(N80="Yes",N80="No")*AND(G80<'A - Contractor Summary'!$C$39),"",IF(AND(G80>'A - Contractor Summary'!$C$39,G80<'A - Contractor Summary'!$C$42),"Yes",IF(G80>'A - Contractor Summary'!$C$42,"No","Needs Review"))) ->  | P80: Yes | Q80: No | R80: 0 | S80: 0
B81: 70 | N81: =IF(AND(G81>='A - Contractor Summary'!$C$36,G81<='A - Contractor Summary'!$C$38),"Yes",IF(G81<'A - Contractor Summary'!$C$36,"No",IF(G81>'A - Contractor Summary'!$C$39,"",""))) -> No | O81: =IF(OR(N81="Yes",N81="No")*AND(G81<'A - Contractor Summary'!$C$39),"",IF(AND(G81>'A - Contractor Summary'!$C$39,G81<'A - Contractor Summary'!$C$42),"Yes",IF(G81>'A - Contractor Summary'!$C$42,"No","Needs Review"))) ->  | P81: Yes | Q81: No | R81: 0 | S81: 0
B82: 71 | N82: =IF(AND(G82>='A - Contractor Summary'!$C$36,G82<='A - Contractor Summary'!$C$38),"Yes",IF(G82<'A - Contractor Summary'!$C$36,"No",IF(G82>'A - Contractor Summary'!$C$39,"",""))) -> No | O82: =IF(OR(N82="Yes",N82="No")*AND(G82<'A - Contractor Summary'!$C$39),"",IF(AND(G82>'A - Contractor Summary'!$C$39,G82<'A - Contractor Summary'!$C$42),"Yes",IF(G82>'A - Contractor Summary'!$C$42,"No","Needs Review"))) ->  | P82: Yes | Q82: No | R82: 0 | S82: 0
B83: 72 | N83: =IF(AND(G83>='A - Contractor Summary'!$C$36,G83<='A - Contractor Summary'!$C$38),"Yes",IF(G83<'A - Contractor Summary'!$C$36,"No",IF(G83>'A - Contractor Summary'!$C$39,"",""))) -> No | O83: =IF(OR(N83="Yes",N83="No")*AND(G83<'A - Contractor Summary'!$C$39),"",IF(AND(G83>'A - Contractor Summary'!$C$39,G83<'A - Contractor Summary'!$C$42),"Yes",IF(G83>'A - Contractor Summary'!$C$42,"No","Needs Review"))) ->  | P83: Yes | Q83: No | R83: 0 | S83: 0
B84: 73 | N84: =IF(AND(G84>='A - Contractor Summary'!$C$36,G84<='A - Contractor Summary'!$C$38),"Yes",IF(G84<'A - Contractor Summary'!$C$36,"No",IF(G84>'A - Contractor Summary'!$C$39,"",""))) -> No | O84: =IF(OR(N84="Yes",N84="No")*AND(G84<'A - Contractor Summary'!$C$39),"",IF(AND(G84>'A - Contractor Summary'!$C$39,G84<'A - Contractor Summary'!$C$42),"Yes",IF(G84>'A - Contractor Summary'!$C$42,"No","Needs Review"))) ->  | P84: No | Q84: Needs Review | R84: 0 | S84: 0
B85: 74 | N85: =IF(AND(G85>='A - Contractor Summary'!$C$36,G85<='A - Contractor Summary'!$C$38),"Yes",IF(G85<'A - Contractor Summary'!$C$36,"No",IF(G85>'A - Contractor Summary'!$C$39,"",""))) -> No | O85: =IF(OR(N85="Yes",N85="No")*AND(G85<'A - Contractor Summary'!$C$39),"",IF(AND(G85>'A - Contractor Summary'!$C$39,G85<'A - Contractor Summary'!$C$42),"Yes",IF(G85>'A - Contractor Summary'!$C$42,"No","Needs Review"))) ->  | P85: No | Q85: No | R85: 0 | S85: 0
B86: 75 | N86: =IF(AND(G86>='A - Contractor Summary'!$C$36,G86<='A - Contractor Summary'!$C$38),"Yes",IF(G86<'A - Contractor Summary'!$C$36,"No",IF(G86>'A - Contractor Summary'!$C$39,"",""))) -> No | O86: =IF(OR(N86="Yes",N86="No")*AND(G86<'A - Contractor Summary'!$C$39),"",IF(AND(G86>'A - Contractor Summary'!$C$39,G86<'A - Contractor Summary'!$C$42),"Yes",IF(G86>'A - Contractor Summary'!$C$42,"No","Needs Review"))) ->  | P86: Yes | Q86: No | R86: 0 | S86: 0
B87: 76 | N87: =IF(AND(G87>='A - Contractor Summary'!$C$36,G87<='A - Contractor Summary'!$C$38),"Yes",IF(G87<'A - Contractor Summary'!$C$36,"No",IF(G87>'A - Contractor Summary'!$C$39,"",""))) -> No | O87: =IF(OR(N87="Yes",N87="No")*AND(G87<'A - Contractor Summary'!$C$39),"",IF(AND(G87>'A - Contractor Summary'!$C$39,G87<'A - Contractor Summary'!$C$42),"Yes",IF(G87>'A - Contractor Summary'!$C$42,"No","Needs Review"))) ->  | P87: Yes | Q87: No | R87: 0 | S87: 0
B88: 77 | N88: =IF(AND(G88>='A - Contractor Summary'!$C$36,G88<='A - Contractor Summary'!$C$38),"Yes",IF(G88<'A - Contractor Summary'!$C$36,"No",IF(G88>'A - Contractor Summary'!$C$39,"",""))) -> No | O88: =IF(OR(N88="Yes",N88="No")*AND(G88<'A - Contractor Summary'!$C$39),"",IF(AND(G88>'A - Contractor Summary'!$C$39,G88<'A - Contractor Summary'!$C$42),"Yes",IF(G88>'A - Contractor Summary'!$C$42,"No","Needs Review"))) ->  | P88: Yes | Q88: No | R88: 0 | S88: 0
B89: 78 | N89: =IF(AND(G89>='A - Contractor Summary'!$C$36,G89<='A - Contractor Summary'!$C$38),"Yes",IF(G89<'A - Contractor Summary'!$C$36,"No",IF(G89>'A - Contractor Summary'!$C$39,"",""))) -> No | O89: =IF(OR(N89="Yes",N89="No")*AND(G89<'A - Contractor Summary'!$C$39),"",IF(AND(G89>'A - Contractor Summary'!$C$39,G89<'A - Contractor Summary'!$C$42),"Yes",IF(G89>'A - Contractor Summary'!$C$42,"No","Needs Review"))) ->  | P89: Yes | Q89: No | R89: 0 | S89: 0
B90: 79 | N90: =IF(AND(G90>='A - Contractor Summary'!$C$36,G90<='A - Contractor Summary'!$C$38),"Yes",IF(G90<'A - Contractor Summary'!$C$36,"No",IF(G90>'A - Contractor Summary'!$C$39,"",""))) -> No | O90: =IF(OR(N90="Yes",N90="No")*AND(G90<'A - Contractor Summary'!$C$39),"",IF(AND(G90>'A - Contractor Summary'!$C$39,G90<'A - Contractor Summary'!$C$42),"Yes",IF(G90>'A - Contractor Summary'!$C$42,"No","Needs Review"))) ->  | P90: Yes | Q90: No | R90: 0 | S90: 0
B91: 80 | N91: =IF(AND(G91>='A - Contractor Summary'!$C$36,G91<='A - Contractor Summary'!$C$38),"Yes",IF(G91<'A - Contractor Summary'!$C$36,"No",IF(G91>'A - Contractor Summary'!$C$39,"",""))) -> No | O91: =IF(OR(N91="Yes",N91="No")*AND(G91<'A - Contractor Summary'!$C$39),"",IF(AND(G91>'A - Contractor Summary'!$C$39,G91<'A - Contractor Summary'!$C$42),"Yes",IF(G91>'A - Contractor Summary'!$C$42,"No","Needs Review"))) ->  | P91: No | Q91: No | R91: 0 | S91: 0
B92: 81 | N92: =IF(AND(G92>='A - Contractor Summary'!$C$36,G92<='A - Contractor Summary'!$C$38),"Yes",IF(G92<'A - Contractor Summary'!$C$36,"No",IF(G92>'A - Contractor Summary'!$C$39,"",""))) -> No | O92: =IF(OR(N92="Yes",N92="No")*AND(G92<'A - Contractor Summary'!$C$39),"",IF(AND(G92>'A - Contractor Summary'!$C$39,G92<'A - Contractor Summary'!$C$42),"Yes",IF(G92>'A - Contractor Summary'!$C$42,"No","Needs Review"))) ->  | P92: No | Q92: No | R92: 0 | S92: 0
B93: 82 | N93: =IF(AND(G93>='A - Contractor Summary'!$C$36,G93<='A - Contractor Summary'!$C$38),"Yes",IF(G93<'A - Contractor Summary'!$C$36,"No",IF(G93>'A - Contractor Summary'!$C$39,"",""))) -> No | O93: =IF(OR(N93="Yes",N93="No")*AND(G93<'A - Contractor Summary'!$C$39),"",IF(AND(G93>'A - Contractor Summary'!$C$39,G93<'A - Contractor Summary'!$C$42),"Yes",IF(G93>'A - Contractor Summary'!$C$42,"No","Needs Review"))) ->  | P93: No | Q93: No | R93: 0 | S93: 0
B94: 83 | N94: =IF(AND(G94>='A - Contractor Summary'!$C$36,G94<='A - Contractor Summary'!$C$38),"Yes",IF(G94<'A - Contractor Summary'!$C$36,"No",IF(G94>'A - Contractor Summary'!$C$39,"",""))) -> No | O94: =IF(OR(N94="Yes",N94="No")*AND(G94<'A - Contractor Summary'!$C$39),"",IF(AND(G94>'A - Contractor Summary'!$C$39,G94<'A - Contractor Summary'!$C$42),"Yes",IF(G94>'A - Contractor Summary'!$C$42,"No","Needs Review"))) ->  | P94: No | Q94: =IF(AND(P94="Yes",L94="Yes",M94="Yes")*OR(O94="Yes",N94="Yes"),"Yes",IF(OR(L94="No",N94="No",O94="No",P94="No",M94="No"),"No","Needs Review")) -> No | R94: =IF(Q94="Yes",K94,0) -> 0 | S94: =IF(Q94="Needs Review",K94,0) -> 0
B95: 84 | N95: =IF(AND(G95>='A - Contractor Summary'!$C$36,G95<='A - Contractor Summary'!$C$38),"Yes",IF(G95<'A - Contractor Summary'!$C$36,"No",IF(G95>'A - Contractor Summary'!$C$39,"",""))) -> No | O95: =IF(OR(N95="Yes",N95="No")*AND(G95<'A - Contractor Summary'!$C$39),"",IF(AND(G95>'A - Contractor Summary'!$C$39,G95<'A - Contractor Summary'!$C$42),"Yes",IF(G95>'A - Contractor Summary'!$C$42,"No","Needs Review"))) ->  | P95: No | Q95: No | R95: 0 | S95: 0
B96: 85 | N96: =IF(AND(G96>='A - Contractor Summary'!$C$36,G96<='A - Contractor Summary'!$C$38),"Yes",IF(G96<'A - Contractor Summary'!$C$36,"No",IF(G96>'A - Contractor Summary'!$C$39,"",""))) -> No | O96: =IF(OR(N96="Yes",N96="No")*AND(G96<'A - Contractor Summary'!$C$39),"",IF(AND(G96>'A - Contractor Summary'!$C$39,G96<'A - Contractor Summary'!$C$42),"Yes",IF(G96>'A - Contractor Summary'!$C$42,"No","Needs Review"))) ->  | P96: No | Q96: No | R96: 0 | S96: 0
B97: 86 | N97: =IF(AND(G97>='A - Contractor Summary'!$C$36,G97<='A - Contractor Summary'!$C$38),"Yes",IF(G97<'A - Contractor Summary'!$C$36,"No",IF(G97>'A - Contractor Summary'!$C$39,"",""))) -> No | O97: =IF(OR(N97="Yes",N97="No")*AND(G97<'A - Contractor Summary'!$C$39),"",IF(AND(G97>'A - Contractor Summary'!$C$39,G97<'A - Contractor Summary'!$C$42),"Yes",IF(G97>'A - Contractor Summary'!$C$42,"No","Needs Review"))) ->  | P97: Yes | Q97: No | R97: 0 | S97: 0
B98: 87 | N98: =IF(AND(G98>='A - Contractor Summary'!$C$36,G98<='A - Contractor Summary'!$C$38),"Yes",IF(G98<'A - Contractor Summary'!$C$36,"No",IF(G98>'A - Contractor Summary'!$C$39,"",""))) -> No | O98: =IF(OR(N98="Yes",N98="No")*AND(G98<'A - Contractor Summary'!$C$39),"",IF(AND(G98>'A - Contractor Summary'!$C$39,G98<'A - Contractor Summary'!$C$42),"Yes",IF(G98>'A - Contractor Summary'!$C$42,"No","Needs Review"))) ->  | P98: Yes | Q98: No | R98: 0 | S98: 0
B99: 88 | N99: =IF(AND(G99>='A - Contractor Summary'!$C$36,G99<='A - Contractor Summary'!$C$38),"Yes",IF(G99<'A - Contractor Summary'!$C$36,"No",IF(G99>'A - Contractor Summary'!$C$39,"",""))) -> No | O99: =IF(OR(N99="Yes",N99="No")*AND(G99<'A - Contractor Summary'!$C$39),"",IF(AND(G99>'A - Contractor Summary'!$C$39,G99<'A - Contractor Summary'!$C$42),"Yes",IF(G99>'A - Contractor Summary'!$C$42,"No","Needs Review"))) ->  | P99: Yes | Q99: No | R99: 0 | S99: 0
B100: 89 | N100: =IF(AND(G100>='A - Contractor Summary'!$C$36,G100<='A - Contractor Summary'!$C$38),"Yes",IF(G100<'A - Contractor Summary'!$C$36,"No",IF(G100>'A - Contractor Summary'!$C$39,"",""))) -> No | O100: =IF(OR(N100="Yes",N100="No")*AND(G100<'A - Contractor Summary'!$C$39),"",IF(AND(G100>'A - Contractor Summary'!$C$39,G100<'A - Contractor Summary'!$C$42),"Yes",IF(G100>'A - Contractor Summary'!$C$42,"No","Needs Review"))) ->  | P100: Yes | Q100: No | R100: 0 | S100: 0
B101: 90 | N101: =IF(AND(G101>='A - Contractor Summary'!$C$36,G101<='A - Contractor Summary'!$C$38),"Yes",IF(G101<'A - Contractor Summary'!$C$36,"No",IF(G101>'A - Contractor Summary'!$C$39,"",""))) -> No | O101: =IF(OR(N101="Yes",N101="No")*AND(G101<'A - Contractor Summary'!$C$39),"",IF(AND(G101>'A - Contractor Summary'!$C$39,G101<'A - Contractor Summary'!$C$42),"Yes",IF(G101>'A - Contractor Summary'!$C$42,"No","Needs Review"))) ->  | P101: Yes | Q101: No | R101: 0 | S101: 0
B102: 91 | N102: =IF(AND(G102>='A - Contractor Summary'!$C$36,G102<='A - Contractor Summary'!$C$38),"Yes",IF(G102<'A - Contractor Summary'!$C$36,"No",IF(G102>'A - Contractor Summary'!$C$39,"",""))) -> No | O102: =IF(OR(N102="Yes",N102="No")*AND(G102<'A - Contractor Summary'!$C$39),"",IF(AND(G102>'A - Contractor Summary'!$C$39,G102<'A - Contractor Summary'!$C$42),"Yes",IF(G102>'A - Contractor Summary'!$C$42,"No","Needs Review"))) ->  | P102: Yes | Q102: No | R102: 0 | S102: 0
B103: 92 | N103: =IF(AND(G103>='A - Contractor Summary'!$C$36,G103<='A - Contractor Summary'!$C$38),"Yes",IF(G103<'A - Contractor Summary'!$C$36,"No",IF(G103>'A - Contractor Summary'!$C$39,"",""))) -> No | O103: =IF(OR(N103="Yes",N103="No")*AND(G103<'A - Contractor Summary'!$C$39),"",IF(AND(G103>'A - Contractor Summary'!$C$39,G103<'A - Contractor Summary'!$C$42),"Yes",IF(G103>'A - Contractor Summary'!$C$42,"No","Needs Review"))) ->  | P103: Yes | Q103: No | R103: 0 | S103: 0
B104: 93 | N104: =IF(AND(G104>='A - Contractor Summary'!$C$36,G104<='A - Contractor Summary'!$C$38),"Yes",IF(G104<'A - Contractor Summary'!$C$36,"No",IF(G104>'A - Contractor Summary'!$C$39,"",""))) -> No | O104: =IF(OR(N104="Yes",N104="No")*AND(G104<'A - Contractor Summary'!$C$39),"",IF(AND(G104>'A - Contractor Summary'!$C$39,G104<'A - Contractor Summary'!$C$42),"Yes",IF(G104>'A - Contractor Summary'!$C$42,"No","Needs Review"))) ->  | P104: Yes | Q104: No | R104: 0 | S104: 0
B105: 94 | N105: =IF(AND(G105>='A - Contractor Summary'!$C$36,G105<='A - Contractor Summary'!$C$38),"Yes",IF(G105<'A - Contractor Summary'!$C$36,"No",IF(G105>'A - Contractor Summary'!$C$39,"",""))) -> No | O105: =IF(OR(N105="Yes",N105="No")*AND(G105<'A - Contractor Summary'!$C$39),"",IF(AND(G105>'A - Contractor Summary'!$C$39,G105<'A - Contractor Summary'!$C$42),"Yes",IF(G105>'A - Contractor Summary'!$C$42,"No","Needs Review"))) ->  | P105: Yes | Q105: No | R105: 0 | S105: 0
B106: 95 | N106: =IF(AND(G106>='A - Contractor Summary'!$C$36,G106<='A - Contractor Summary'!$C$38),"Yes",IF(G106<'A - Contractor Summary'!$C$36,"No",IF(G106>'A - Contractor Summary'!$C$39,"",""))) -> No | O106: =IF(OR(N106="Yes",N106="No")*AND(G106<'A - Contractor Summary'!$C$39),"",IF(AND(G106>'A - Contractor Summary'!$C$39,G106<'A - Contractor Summary'!$C$42),"Yes",IF(G106>'A - Contractor Summary'!$C$42,"No","Needs Review"))) ->  | P106: Yes | Q106: No | R106: 0 | S106: 0
B107: 96 | N107: =IF(AND(G107>='A - Contractor Summary'!$C$36,G107<='A - Contractor Summary'!$C$38),"Yes",IF(G107<'A - Contractor Summary'!$C$36,"No",IF(G107>'A - Contractor Summary'!$C$39,"",""))) -> No | O107: =IF(OR(N107="Yes",N107="No")*AND(G107<'A - Contractor Summary'!$C$39),"",IF(AND(G107>'A - Contractor Summary'!$C$39,G107<'A - Contractor Summary'!$C$42),"Yes",IF(G107>'A - Contractor Summary'!$C$42,"No","Needs Review"))) ->  | P107: Yes | Q107: No | R107: 0 | S107: 0
B108: 97 | N108: =IF(AND(G108>='A - Contractor Summary'!$C$36,G108<='A - Contractor Summary'!$C$38),"Yes",IF(G108<'A - Contractor Summary'!$C$36,"No",IF(G108>'A - Contractor Summary'!$C$39,"",""))) -> No | O108: =IF(OR(N108="Yes",N108="No")*AND(G108<'A - Contractor Summary'!$C$39),"",IF(AND(G108>'A - Contractor Summary'!$C$39,G108<'A - Contractor Summary'!$C$42),"Yes",IF(G108>'A - Contractor Summary'!$C$42,"No","Needs Review"))) ->  | P108: Yes | Q108: No | R108: 0 | S108: 0
B109: 98 | N109: =IF(AND(G109>='A - Contractor Summary'!$C$36,G109<='A - Contractor Summary'!$C$38),"Yes",IF(G109<'A - Contractor Summary'!$C$36,"No",IF(G109>'A - Contractor Summary'!$C$39,"",""))) -> No | O109: =IF(OR(N109="Yes",N109="No")*AND(G109<'A - Contractor Summary'!$C$39),"",IF(AND(G109>'A - Contractor Summary'!$C$39,G109<'A - Contractor Summary'!$C$42),"Yes",IF(G109>'A - Contractor Summary'!$C$42,"No","Needs Review"))) ->  | P109: Yes | Q109: No | R109: 0 | S109: 0
B110: 99 | N110: =IF(AND(G110>='A - Contractor Summary'!$C$36,G110<='A - Contractor Summary'!$C$38),"Yes",IF(G110<'A - Contractor Summary'!$C$36,"No",IF(G110>'A - Contractor Summary'!$C$39,"",""))) -> No | O110: =IF(OR(N110="Yes",N110="No")*AND(G110<'A - Contractor Summary'!$C$39),"",IF(AND(G110>'A - Contractor Summary'!$C$39,G110<'A - Contractor Summary'!$C$42),"Yes",IF(G110>'A - Contractor Summary'!$C$42,"No","Needs Review"))) ->  | P110: Yes | Q110: No | R110: 0 | S110: 0
B111: 100 | N111: =IF(AND(G111>='A - Contractor Summary'!$C$36,G111<='A - Contractor Summary'!$C$38),"Yes",IF(G111<'A - Contractor Summary'!$C$36,"No",IF(G111>'A - Contractor Summary'!$C$39,"",""))) -> No | O111: =IF(OR(N111="Yes",N111="No")*AND(G111<'A - Contractor Summary'!$C$39),"",IF(AND(G111>'A - Contractor Summary'!$C$39,G111<'A - Contractor Summary'!$C$42),"Yes",IF(G111>'A - Contractor Summary'!$C$42,"No","Needs Review"))) ->  | P111: Yes | Q111: No | R111: 0 | S111: 0
B112: 101 | N112: =IF(AND(G112>='A - Contractor Summary'!$C$36,G112<='A - Contractor Summary'!$C$38),"Yes",IF(G112<'A - Contractor Summary'!$C$36,"No",IF(G112>'A - Contractor Summary'!$C$39,"",""))) -> No | O112: =IF(OR(N112="Yes",N112="No")*AND(G112<'A - Contractor Summary'!$C$39),"",IF(AND(G112>'A - Contractor Summary'!$C$39,G112<'A - Contractor Summary'!$C$42),"Yes",IF(G112>'A - Contractor Summary'!$C$42,"No","Needs Review"))) ->  | P112: Yes | Q112: No | R112: 0 | S112: 0
B113: 102 | N113: =IF(AND(G113>='A - Contractor Summary'!$C$36,G113<='A - Contractor Summary'!$C$38),"Yes",IF(G113<'A - Contractor Summary'!$C$36,"No",IF(G113>'A - Contractor Summary'!$C$39,"",""))) -> No | O113: =IF(OR(N113="Yes",N113="No")*AND(G113<'A - Contractor Summary'!$C$39),"",IF(AND(G113>'A - Contractor Summary'!$C$39,G113<'A - Contractor Summary'!$C$42),"Yes",IF(G113>'A - Contractor Summary'!$C$42,"No","Needs Review"))) ->  | P113: Yes | Q113: No | R113: 0 | S113: 0
B114: 103 | N114: =IF(AND(G114>='A - Contractor Summary'!$C$36,G114<='A - Contractor Summary'!$C$38),"Yes",IF(G114<'A - Contractor Summary'!$C$36,"No",IF(G114>'A - Contractor Summary'!$C$39,"",""))) -> No | O114: =IF(OR(N114="Yes",N114="No")*AND(G114<'A - Contractor Summary'!$C$39),"",IF(AND(G114>'A - Contractor Summary'!$C$39,G114<'A - Contractor Summary'!$C$42),"Yes",IF(G114>'A - Contractor Summary'!$C$42,"No","Needs Review"))) ->  | P114: Yes | Q114: No | R114: 0 | S114: 0
B115: 104 | N115: =IF(AND(G115>='A - Contractor Summary'!$C$36,G115<='A - Contractor Summary'!$C$38),"Yes",IF(G115<'A - Contractor Summary'!$C$36,"No",IF(G115>'A - Contractor Summary'!$C$39,"",""))) -> No | O115: =IF(OR(N115="Yes",N115="No")*AND(G115<'A - Contractor Summary'!$C$39),"",IF(AND(G115>'A - Contractor Summary'!$C$39,G115<'A - Contractor Summary'!$C$42),"Yes",IF(G115>'A - Contractor Summary'!$C$42,"No","Needs Review"))) ->  | P115: Yes | Q115: No | R115: 0 | S115: 0
B116: 105 | N116: =IF(AND(G116>='A - Contractor Summary'!$C$36,G116<='A - Contractor Summary'!$C$38),"Yes",IF(G116<'A - Contractor Summary'!$C$36,"No",IF(G116>'A - Contractor Summary'!$C$39,"",""))) -> No | O116: =IF(OR(N116="Yes",N116="No")*AND(G116<'A - Contractor Summary'!$C$39),"",IF(AND(G116>'A - Contractor Summary'!$C$39,G116<'A - Contractor Summary'!$C$42),"Yes",IF(G116>'A - Contractor Summary'!$C$42,"No","Needs Review"))) ->  | P116: Yes | Q116: No | R116: 0 | S116: 0
B117: 106 | N117: =IF(AND(G117>='A - Contractor Summary'!$C$36,G117<='A - Contractor Summary'!$C$38),"Yes",IF(G117<'A - Contractor Summary'!$C$36,"No",IF(G117>'A - Contractor Summary'!$C$39,"",""))) -> No | O117: =IF(OR(N117="Yes",N117="No")*AND(G117<'A - Contractor Summary'!$C$39),"",IF(AND(G117>'A - Contractor Summary'!$C$39,G117<'A - Contractor Summary'!$C$42),"Yes",IF(G117>'A - Contractor Summary'!$C$42,"No","Needs Review"))) ->  | P117: Yes | Q117: No | R117: 0 | S117: 0
B118: 107 | N118: =IF(AND(G118>='A - Contractor Summary'!$C$36,G118<='A - Contractor Summary'!$C$38),"Yes",IF(G118<'A - Contractor Summary'!$C$36,"No",IF(G118>'A - Contractor Summary'!$C$39,"",""))) -> No | O118: =IF(OR(N118="Yes",N118="No")*AND(G118<'A - Contractor Summary'!$C$39),"",IF(AND(G118>'A - Contractor Summary'!$C$39,G118<'A - Contractor Summary'!$C$42),"Yes",IF(G118>'A - Contractor Summary'!$C$42,"No","Needs Review"))) ->  | P118: Yes | Q118: No | R118: 0 | S118: 0
B119: 108 | N119: =IF(AND(G119>='A - Contractor Summary'!$C$36,G119<='A - Contractor Summary'!$C$38),"Yes",IF(G119<'A - Contractor Summary'!$C$36,"No",IF(G119>'A - Contractor Summary'!$C$39,"",""))) -> No | O119: =IF(OR(N119="Yes",N119="No")*AND(G119<'A - Contractor Summary'!$C$39),"",IF(AND(G119>'A - Contractor Summary'!$C$39,G119<'A - Contractor Summary'!$C$42),"Yes",IF(G119>'A - Contractor Summary'!$C$42,"No","Needs Review"))) ->  | P119: Yes | Q119: No | R119: 0 | S119: 0
B120: 109 | N120: =IF(AND(G120>='A - Contractor Summary'!$C$36,G120<='A - Contractor Summary'!$C$38),"Yes",IF(G120<'A - Contractor Summary'!$C$36,"No",IF(G120>'A - Contractor Summary'!$C$39,"",""))) -> No | O120: =IF(OR(N120="Yes",N120="No")*AND(G120<'A - Contractor Summary'!$C$39),"",IF(AND(G120>'A - Contractor Summary'!$C$39,G120<'A - Contractor Summary'!$C$42),"Yes",IF(G120>'A - Contractor Summary'!$C$42,"No","Needs Review"))) ->  | P120: Yes | Q120: No | R120: 0 | S120: 0
B121: 110 | N121: =IF(AND(G121>='A - Contractor Summary'!$C$36,G121<='A - Contractor Summary'!$C$38),"Yes",IF(G121<'A - Contractor Summary'!$C$36,"No",IF(G121>'A - Contractor Summary'!$C$39,"",""))) -> No | O121: =IF(OR(N121="Yes",N121="No")*AND(G121<'A - Contractor Summary'!$C$39),"",IF(AND(G121>'A - Contractor Summary'!$C$39,G121<'A - Contractor Summary'!$C$42),"Yes",IF(G121>'A - Contractor Summary'!$C$42,"No","Needs Review"))) ->  | P121: Yes | Q121: No | R121: 0 | S121: 0
B122: 111 | N122: =IF(AND(G122>='A - Contractor Summary'!$C$36,G122<='A - Contractor Summary'!$C$38),"Yes",IF(G122<'A - Contractor Summary'!$C$36,"No",IF(G122>'A - Contractor Summary'!$C$39,"",""))) -> No | O122: =IF(OR(N122="Yes",N122="No")*AND(G122<'A - Contractor Summary'!$C$39),"",IF(AND(G122>'A - Contractor Summary'!$C$39,G122<'A - Contractor Summary'!$C$42),"Yes",IF(G122>'A - Contractor Summary'!$C$42,"No","Needs Review"))) ->  | P122: Yes | Q122: No | R122: 0 | S122: 0
B123: 112 | N123: =IF(AND(G123>='A - Contractor Summary'!$C$36,G123<='A - Contractor Summary'!$C$38),"Yes",IF(G123<'A - Contractor Summary'!$C$36,"No",IF(G123>'A - Contractor Summary'!$C$39,"",""))) -> No | O123: =IF(OR(N123="Yes",N123="No")*AND(G123<'A - Contractor Summary'!$C$39),"",IF(AND(G123>'A - Contractor Summary'!$C$39,G123<'A - Contractor Summary'!$C$42),"Yes",IF(G123>'A - Contractor Summary'!$C$42,"No","Needs Review"))) ->  | P123: Yes | Q123: No | R123: 0 | S123: 0
B124: 113 | N124: =IF(AND(G124>='A - Contractor Summary'!$C$36,G124<='A - Contractor Summary'!$C$38),"Yes",IF(G124<'A - Contractor Summary'!$C$36,"No",IF(G124>'A - Contractor Summary'!$C$39,"",""))) -> No | O124: =IF(OR(N124="Yes",N124="No")*AND(G124<'A - Contractor Summary'!$C$39),"",IF(AND(G124>'A - Contractor Summary'!$C$39,G124<'A - Contractor Summary'!$C$42),"Yes",IF(G124>'A - Contractor Summary'!$C$42,"No","Needs Review"))) ->  | P124: Yes | Q124: No | R124: 0 | S124: 0
B125: 114 | N125: =IF(AND(G125>='A - Contractor Summary'!$C$36,G125<='A - Contractor Summary'!$C$38),"Yes",IF(G125<'A - Contractor Summary'!$C$36,"No",IF(G125>'A - Contractor Summary'!$C$39,"",""))) -> No | O125: =IF(OR(N125="Yes",N125="No")*AND(G125<'A - Contractor Summary'!$C$39),"",IF(AND(G125>'A - Contractor Summary'!$C$39,G125<'A - Contractor Summary'!$C$42),"Yes",IF(G125>'A - Contractor Summary'!$C$42,"No","Needs Review"))) ->  | P125: Yes | Q125: No | R125: 0 | S125: 0
B126: 115 | N126: =IF(AND(G126>='A - Contractor Summary'!$C$36,G126<='A - Contractor Summary'!$C$38),"Yes",IF(G126<'A - Contractor Summary'!$C$36,"No",IF(G126>'A - Contractor Summary'!$C$39,"",""))) -> No | O126: =IF(OR(N126="Yes",N126="No")*AND(G126<'A - Contractor Summary'!$C$39),"",IF(AND(G126>'A - Contractor Summary'!$C$39,G126<'A - Contractor Summary'!$C$42),"Yes",IF(G126>'A - Contractor Summary'!$C$42,"No","Needs Review"))) ->  | P126: Yes | Q126: No | R126: 0 | S126: 0
B127: 116 | N127: =IF(AND(G127>='A - Contractor Summary'!$C$36,G127<='A - Contractor Summary'!$C$38),"Yes",IF(G127<'A - Contractor Summary'!$C$36,"No",IF(G127>'A - Contractor Summary'!$C$39,"",""))) -> No | O127: =IF(OR(N127="Yes",N127="No")*AND(G127<'A - Contractor Summary'!$C$39),"",IF(AND(G127>'A - Contractor Summary'!$C$39,G127<'A - Contractor Summary'!$C$42),"Yes",IF(G127>'A - Contractor Summary'!$C$42,"No","Needs Review"))) ->  | P127: Yes | Q127: No | R127: 0 | S127: 0
B128: 117 | N128: =IF(AND(G128>='A - Contractor Summary'!$C$36,G128<='A - Contractor Summary'!$C$38),"Yes",IF(G128<'A - Contractor Summary'!$C$36,"No",IF(G128>'A - Contractor Summary'!$C$39,"",""))) -> No | O128: =IF(OR(N128="Yes",N128="No")*AND(G128<'A - Contractor Summary'!$C$39),"",IF(AND(G128>'A - Contractor Summary'!$C$39,G128<'A - Contractor Summary'!$C$42),"Yes",IF(G128>'A - Contractor Summary'!$C$42,"No","Needs Review"))) ->  | P128: Yes | Q128: No | R128: 0 | S128: 0
B129: 118 | N129: =IF(AND(G129>='A - Contractor Summary'!$C$36,G129<='A - Contractor Summary'!$C$38),"Yes",IF(G129<'A - Contractor Summary'!$C$36,"No",IF(G129>'A - Contractor Summary'!$C$39,"",""))) -> No | O129: =IF(OR(N129="Yes",N129="No")*AND(G129<'A - Contractor Summary'!$C$39),"",IF(AND(G129>'A - Contractor Summary'!$C$39,G129<'A - Contractor Summary'!$C$42),"Yes",IF(G129>'A - Contractor Summary'!$C$42,"No","Needs Review"))) ->  | P129: Yes | Q129: No | R129: 0 | S129: 0
B130: 119 | N130: =IF(AND(G130>='A - Contractor Summary'!$C$36,G130<='A - Contractor Summary'!$C$38),"Yes",IF(G130<'A - Contractor Summary'!$C$36,"No",IF(G130>'A - Contractor Summary'!$C$39,"",""))) -> No | O130: =IF(OR(N130="Yes",N130="No")*AND(G130<'A - Contractor Summary'!$C$39),"",IF(AND(G130>'A - Contractor Summary'!$C$39,G130<'A - Contractor Summary'!$C$42),"Yes",IF(G130>'A - Contractor Summary'!$C$42,"No","Needs Review"))) ->  | P130: Yes | Q130: No | R130: 0 | S130: 0
B131: 120 | N131: =IF(AND(G131>='A - Contractor Summary'!$C$36,G131<='A - Contractor Summary'!$C$38),"Yes",IF(G131<'A - Contractor Summary'!$C$36,"No",IF(G131>'A - Contractor Summary'!$C$39,"",""))) -> No | O131: =IF(OR(N131="Yes",N131="No")*AND(G131<'A - Contractor Summary'!$C$39),"",IF(AND(G131>'A - Contractor Summary'!$C$39,G131<'A - Contractor Summary'!$C$42),"Yes",IF(G131>'A - Contractor Summary'!$C$42,"No","Needs Review"))) ->  | P131: Yes | Q131: No | R131: 0 | S131: 0
B132: 121 | N132: =IF(AND(G132>='A - Contractor Summary'!$C$36,G132<='A - Contractor Summary'!$C$38),"Yes",IF(G132<'A - Contractor Summary'!$C$36,"No",IF(G132>'A - Contractor Summary'!$C$39,"",""))) -> No | O132: =IF(OR(N132="Yes",N132="No")*AND(G132<'A - Contractor Summary'!$C$39),"",IF(AND(G132>'A - Contractor Summary'!$C$39,G132<'A - Contractor Summary'!$C$42),"Yes",IF(G132>'A - Contractor Summary'!$C$42,"No","Needs Review"))) ->  | P132: Yes | Q132: No | R132: 0 | S132: 0
B133: 122 | N133: =IF(AND(G133>='A - Contractor Summary'!$C$36,G133<='A - Contractor Summary'!$C$38),"Yes",IF(G133<'A - Contractor Summary'!$C$36,"No",IF(G133>'A - Contractor Summary'!$C$39,"",""))) -> No | O133: =IF(OR(N133="Yes",N133="No")*AND(G133<'A - Contractor Summary'!$C$39),"",IF(AND(G133>'A - Contractor Summary'!$C$39,G133<'A - Contractor Summary'!$C$42),"Yes",IF(G133>'A - Contractor Summary'!$C$42,"No","Needs Review"))) ->  | P133: Yes | Q133: No | R133: 0 | S133: 0
B134: 123 | N134: =IF(AND(G134>='A - Contractor Summary'!$C$36,G134<='A - Contractor Summary'!$C$38),"Yes",IF(G134<'A - Contractor Summary'!$C$36,"No",IF(G134>'A - Contractor Summary'!$C$39,"",""))) -> No | O134: =IF(OR(N134="Yes",N134="No")*AND(G134<'A - Contractor Summary'!$C$39),"",IF(AND(G134>'A - Contractor Summary'!$C$39,G134<'A - Contractor Summary'!$C$42),"Yes",IF(G134>'A - Contractor Summary'!$C$42,"No","Needs Review"))) ->  | P134: Yes | Q134: No | R134: 0 | S134: 0
B135: 124 | N135: =IF(AND(G135>='A - Contractor Summary'!$C$36,G135<='A - Contractor Summary'!$C$38),"Yes",IF(G135<'A - Contractor Summary'!$C$36,"No",IF(G135>'A - Contractor Summary'!$C$39,"",""))) -> No | O135: =IF(OR(N135="Yes",N135="No")*AND(G135<'A - Contractor Summary'!$C$39),"",IF(AND(G135>'A - Contractor Summary'!$C$39,G135<'A - Contractor Summary'!$C$42),"Yes",IF(G135>'A - Contractor Summary'!$C$42,"No","Needs Review"))) ->  | P135: Yes | Q135: No | R135: 0 | S135: 0
B136: 125 | N136: =IF(AND(G136>='A - Contractor Summary'!$C$36,G136<='A - Contractor Summary'!$C$38),"Yes",IF(G136<'A - Contractor Summary'!$C$36,"No",IF(G136>'A - Contractor Summary'!$C$39,"",""))) -> No | O136: =IF(OR(N136="Yes",N136="No")*AND(G136<'A - Contractor Summary'!$C$39),"",IF(AND(G136>'A - Contractor Summary'!$C$39,G136<'A - Contractor Summary'!$C$42),"Yes",IF(G136>'A - Contractor Summary'!$C$42,"No","Needs Review"))) ->  | P136: Yes | Q136: No | R136: 0 | S136: 0
B137: 126 | N137: =IF(AND(G137>='A - Contractor Summary'!$C$36,G137<='A - Contractor Summary'!$C$38),"Yes",IF(G137<'A - Contractor Summary'!$C$36,"No",IF(G137>'A - Contractor Summary'!$C$39,"",""))) -> No | O137: =IF(OR(N137="Yes",N137="No")*AND(G137<'A - Contractor Summary'!$C$39),"",IF(AND(G137>'A - Contractor Summary'!$C$39,G137<'A - Contractor Summary'!$C$42),"Yes",IF(G137>'A - Contractor Summary'!$C$42,"No","Needs Review"))) ->  | P137: Yes | Q137: No | R137: 0 | S137: 0
B138: 127 | N138: =IF(AND(G138>='A - Contractor Summary'!$C$36,G138<='A - Contractor Summary'!$C$38),"Yes",IF(G138<'A - Contractor Summary'!$C$36,"No",IF(G138>'A - Contractor Summary'!$C$39,"",""))) -> No | O138: =IF(OR(N138="Yes",N138="No")*AND(G138<'A - Contractor Summary'!$C$39),"",IF(AND(G138>'A - Contractor Summary'!$C$39,G138<'A - Contractor Summary'!$C$42),"Yes",IF(G138>'A - Contractor Summary'!$C$42,"No","Needs Review"))) ->  | P138: Yes | Q138: No | R138: 0 | S138: 0
B139: 128 | N139: =IF(AND(G139>='A - Contractor Summary'!$C$36,G139<='A - Contractor Summary'!$C$38),"Yes",IF(G139<'A - Contractor Summary'!$C$36,"No",IF(G139>'A - Contractor Summary'!$C$39,"",""))) -> No | O139: =IF(OR(N139="Yes",N139="No")*AND(G139<'A - Contractor Summary'!$C$39),"",IF(AND(G139>'A - Contractor Summary'!$C$39,G139<'A - Contractor Summary'!$C$42),"Yes",IF(G139>'A - Contractor Summary'!$C$42,"No","Needs Review"))) ->  | P139: Yes | Q139: No | R139: 0 | S139: 0
B140: 129 | N140: =IF(AND(G140>='A - Contractor Summary'!$C$36,G140<='A - Contractor Summary'!$C$38),"Yes",IF(G140<'A - Contractor Summary'!$C$36,"No",IF(G140>'A - Contractor Summary'!$C$39,"",""))) -> No | O140: =IF(OR(N140="Yes",N140="No")*AND(G140<'A - Contractor Summary'!$C$39),"",IF(AND(G140>'A - Contractor Summary'!$C$39,G140<'A - Contractor Summary'!$C$42),"Yes",IF(G140>'A - Contractor Summary'!$C$42,"No","Needs Review"))) ->  | P140: Yes | Q140: =IF(AND(P140="Yes",L140="Yes",M140="Yes")*OR(O140="Yes",N140="Yes"),"Yes",IF(OR(L140="No",N140="No",O140="No",P140="No",M140="No"),"No","Needs Review")) -> No | R140: =IF(Q140="Yes",K140,0) -> 0 | S140: =IF(Q140="Needs Review",K140,0) -> 0
K141: =SUM(K14:K140) -> 0 | R141: =IFERROR(SUM(R14:R140),0) -> 0 | S141: =IFERROR(SUM(S14:S140),0) -> 0 | T141: =SUM(T14:T140) -> 0 | U141: =SUM(U14:U140) -> 0 | V141: =S141-T141-U141 -> 0 | W141: check (a)
B145: Tickmark Explanation:
C146: 1
C147: 2
C148: 3
C149: 4
C150: 5
C151: 6
C152: 7

Sheet I - Other
B2: Other Charges
B4: Test Plan: (A) Obtain support of individual charges. (B) Enter Yes/No if receipt is itemized. (C) Enter Yes/No if proof of payment has been provided. (D) Ensure charges fall between the dates the vendor was mobilized and the date they arrived. (E) Ensure charges are prior to the date the vendor arrived home or was released to another utility. (F) Ensure the expense type is reasonable (G) Determine the amount(s) to be reviewed, allowed and/or disallowed. (H) For charges which required further review, document review and include why it was determined to be allowed/disallowed via a tickmark.
B9: a | C9: Check figure should equal $0. Cell will appear yellow if discrepancies are noted.
C12: A | L12: B | M12: C | N12: D | O12: E | P12: F | Q12: G | T12: H
B13: Support Reviewed | N13: Conclusions
B14: # | C14: Type of Support | D14: Support Identifier | E14: Company | F14: Crew | G14: Date | H14: Person | I14: Vendor Name | J14: Location | K14: $ Total | L14: Itemized Receipt | M14: Proof of Payment | N14: Reasonable based on Mobilization date(s) | O14: Reasonable based on Demobilization date(s) | P14: Expense Type Appropriate | Q14: Conclusion | R14: $ Allowable Charge | S14: $ To Be Reviewed | T14: Reviewed - Allowable Charge | U14: Reviewed - Unallowable Charge | V14: Tickmarks
B15: 1 | N15: =IF(AND(G15>='A - Contractor Summary'!$C$36,G15<='A - Contractor Summary'!$C$38),"Yes",IF(G15<'A - Contractor Summary'!$C$36,"No",IF(G15>'A - Contractor Summary'!$C$39,"",""))) -> No | O15: =IF(OR(N15="Yes",N15="No")*AND(G15<'A - Contractor Summary'!$C$39),"",IF(AND(G15>'A - Contractor Summary'!$C$39,G15<'A - Contractor Summary'!$C$42),"Yes",IF(G15>'A - Contractor Summary'!$C$42,"No","Needs Review"))) ->  | P15: Needs Reviewed | Q15: =IF(AND(P15="YES",L15="Yes",M15="yes")*OR(N15="Yes",O15="Yes"),"Yes",IF(OR(O15="No",P15="No",N15="No",M15="No"),"No","Needs Review")) -> No | R15: =IF(Q15="Yes",K15,0) -> 0 | S15: =IF(Q15="Needs Review",K15,0) -> 0 | T15: =SUM('B - Summary Expenses '!E13:F15)*0.1 -> 0 | V15: 1
K16: =SUM(K15:K15) -> 0 | R16: =IFERROR(SUM(R15:R15),0) -> 0 | S16: =IFERROR(SUM(S15:S15),0) -> 0 | T16: =SUM(T15:T15) -> 0 | U16: =SUM(U15:U15) -> 0 | V16: =S16-T16-U16 -> 0 | W16: check (a)
B20: Tickmark Explanation:
C21: 1

Sheet G - Per Diem
B2: Per Diem Charges
B4: Test Plan: (A) Enter per diem charges per invoice. (B) Enter number of crew worked per timecard. (C) Enter the Per Diem Rate charged per person per meal (D) Ensure the number of crew members being charged is appropriate (This is comparing the submitted timecards and the per diem charges invoiced). (E) Ensure charges fall between the dates the vendor was mobilized and the date they arrived. (F) Ensure charges are prior to the date the vendor arrived home or was released to another utility. (G) Determine the amount(s) to be reviewed, allowed and/or disallowed. (H) For charges which required further review, document review and include why it was determined to be allowed/disallowed via a tickmark.
B10: Rx | C10: Recalculated.
B11: a | C11: Check figure should equal $0. Cell will appear yellow if discrepancies are noted.
B14: A | F14: B | G14: Rx | H14: C | I14: Rx | J14: D | K14: E | L14: F | M14: G | P14: H
B15: Support Reviewed | J15: Conclusion
B16: Dates | C16: Company | D16: Per Diem Type | E16: # Crew Worked (per invoice) | F16: # Crew Worked (per timecards) | G16: Difference | H16: Per Diem Rate | I16: Total Per Diem | J16: # Crew Reasonable | K16: Reasonable based on Mobilization date(s) | L16: Reasonable based on Demobilization date(s) | M16: Conclusion | N16: $ Allowable Charge | O16: $ To Be Reviewed | P16: Reviewed - Allowable Charge | Q16: Reviewed - Unallowable Charge | R16: Tickmarks
G17: =E17-F17 -> 0 | I17: =H17*F17 -> 0 | J17: =IF(G17>0,"No",IF(F17=0,"N/A","Yes")) -> N/A | K17: =IF(AND(B17>='A - Contractor Summary'!$C$36,B17<='A - Contractor Summary'!$C$38),"Yes",IF(B17<'A - Contractor Summary'!$C$36,"No",IF(B17>'A - Contractor Summary'!$C$39,"",""))) -> No | L17: =IF(OR(K17="Yes",K17="No")*AND(B17<'A - Contractor Summary'!$C$39),"",IF(AND(B17>'A - Contractor Summary'!$C$39,B17<'A - Contractor Summary'!$C$42),"Yes",IF(B17>'A - Contractor Summary'!$C$42,"No","Needs Review"))) ->  | M17: =IF(AND(J17="Yes")*OR(K17="Yes",L17="Yes"),"Yes",IF(OR(K17="No",J17="No",L17="No"),"No","Needs Review")) -> No | N17: =IF(M17="Yes",I17,0) -> 0 | O17: =IF(M17="Needs Review",I17,0) -> 0
G18: 0 | I18: 0 | J18: =IF(G18>0,"No",IF(F18=0,"N/A","Yes")) -> N/A | K18: =IF(AND(B18>='A - Contractor Summary'!$C$36,B18<='A - Contractor Summary'!$C$38),"Yes",IF(B18<'A - Contractor Summary'!$C$36,"No",IF(B18>'A - Contractor Summary'!$C$39,"",""))) -> No | L18: =IF(OR(K18="Yes",K18="No")*AND(B18<'A - Contractor Summary'!$C$39),"",IF(AND(B18>'A - Contractor Summary'!$C$39,B18<'A - Contractor Summary'!$C$42),"Yes",IF(B18>'A - Contractor Summary'!$C$42,"No","Needs Review"))) ->  | M18: =IF(AND(J18="Yes")*OR(K18="Yes",L18="Yes"),"Yes",IF(OR(K18="No",J18="No",L18="No"),"No","Needs Review")) -> No | N18: =IF(M18="Yes",I18,0) -> 0 | O18: =IF(M18="Needs Review",I18,0) -> 0
G19: 0 | I19: 0 | J19: =IF(G19>0,"No",IF(F19=0,"N/A","Yes")) -> N/A | K19: =IF(AND(B19>='A - Contractor Summary'!$C$36,B19<='A - Contractor Summary'!$C$38),"Yes",IF(B19<'A - Contractor Summary'!$C$36,"No",IF(B19>'A - Contractor Summary'!$C$39,"",""))) -> No | L19: =IF(OR(K19="Yes",K19="No")*AND(B19<'A - Contractor Summary'!$C$39),"",IF(AND(B19>'A - Contractor Summary'!$C$39,B19<'A - Contractor Summary'!$C$42),"Yes",IF(B19>'A - Contractor Summary'!$C$42,"No","Needs Review"))) ->  | M19: No | N19: 0 | O19: 0
G20: 0 | I20: 0 | J20: N/A | K20: =IF(AND(B20>='A - Contractor Summary'!$C$36,B20<='A - Contractor Summary'!$C$38),"Yes",IF(B20<'A - Contractor Summary'!$C$36,"No",IF(B20>'A - Contractor Summary'!$C$39,"",""))) -> No | L20: =IF(OR(K20="Yes",K20="No")*AND(B20<'A - Contractor Summary'!$C$39),"",IF(AND(B20>'A - Contractor Summary'!$C$39,B20<'A - Contractor Summary'!$C$42),"Yes",IF(B20>'A - Contractor Summary'!$C$42,"No","Needs Review"))) ->  | M20: No | N20: 0 | O20: 0
G21: 0 | I21: 0 | J21: N/A | K21: =IF(AND(B21>='A - Contractor Summary'!$C$36,B21<='A - Contractor Summary'!$C$38),"Yes",IF(B21<'A - Contractor Summary'!$C$36,"No",IF(B21>'A - Contractor Summary'!$C$39,"",""))) -> No | L21: =IF(OR(K21="Yes",K21="No")*AND(B21<'A - Contractor Summary'!$C$39),"",IF(AND(B21>'A - Contractor Summary'!$C$39,B21<'A - Contractor Summary'!$C$42),"Yes",IF(B21>'A - Contractor Summary'!$C$42,"No","Needs Review"))) ->  | M21: No | N21: 0 | O21: 0
G22: 0 | I22: 0 | J22: N/A | K22: =IF(AND(B22>='A - Contractor Summary'!$C$36,B22<='A - Contractor Summary'!$C$38),"Yes",IF(B22<'A - Contractor Summary'!$C$36,"No",IF(B22>'A - Contractor Summary'!$C$39,"",""))) -> No | L22: =IF(OR(K22="Yes",K22="No")*AND(B22<'A - Contractor Summary'!$C$39),"",IF(AND(B22>'A - Contractor Summary'!$C$39,B22<'A - Contractor Summary'!$C$42),"Yes",IF(B22>'A - Contractor Summary'!$C$42,"No","Needs Review"))) ->  | M22: No | N22: 0 | O22: 0
G23: 0 | I23: 0 | J23: N/A | K23: =IF(AND(B23>='A - Contractor Summary'!$C$36,B23<='A - Contractor Summary'!$C$38),"Yes",IF(B23<'A - Contractor Summary'!$C$36,"No",IF(B23>'A - Contractor Summary'!$C$39,"",""))) -> No | L23: =IF(OR(K23="Yes",K23="No")*AND(B23<'A - Contractor Summary'!$C$39),"",IF(AND(B23>'A - Contractor Summary'!$C$39,B23<'A - Contractor Summary'!$C$42),"Yes",IF(B23>'A - Contractor Summary'!$C$42,"No","Needs Review"))) ->  | M23: No | N23: 0 | O23: 0
G24: 0 | I24: 0 | J24: N/A | K24: =IF(AND(B24>='A - Contractor Summary'!$C$36,B24<='A - Contractor Summary'!$C$38),"Yes",IF(B24<'A - Contractor Summary'!$C$36,"No",IF(B24>'A - Contractor Summary'!$C$39,"",""))) -> No | L24: =IF(OR(K24="Yes",K24="No")*AND(B24<'A - Contractor Summary'!$C$39),"",IF(AND(B24>'A - Contractor Summary'!$C$39,B24<'A - Contractor Summary'!$C$42),"Yes",IF(B24>'A - Contractor Summary'!$C$42,"No","Needs Review"))) ->  | M24: No | N24: 0 | O24: 0
G25: 0 | I25: 0 | J25: N/A | K25: =IF(AND(B25>='A - Contractor Summary'!$C$36,B25<='A - Contractor Summary'!$C$38),"Yes",IF(B25<'A - Contractor Summary'!$C$36,"No",IF(B25>'A - Contractor Summary'!$C$39,"",""))) -> No | L25: =IF(OR(K25="Yes",K25="No")*AND(B25<'A - Contractor Summary'!$C$39),"",IF(AND(B25>'A - Contractor Summary'!$C$39,B25<'A - Contractor Summary'!$C$42),"Yes",IF(B25>'A - Contractor Summary'!$C$42,"No","Needs Review"))) ->  | M25: No | N25: 0 | O25: 0
G26: 0 | I26: 0 | J26: N/A | K26: =IF(AND(B26>='A - Contractor Summary'!$C$36,B26<='A - Contractor Summary'!$C$38),"Yes",IF(B26<'A - Contractor Summary'!$C$36,"No",IF(B26>'A - Contractor Summary'!$C$39,"",""))) -> No | L26: =IF(OR(K26="Yes",K26="No")*AND(B26<'A - Contractor Summary'!$C$39),"",IF(AND(B26>'A - Contractor Summary'!$C$39,B26<'A - Contractor Summary'!$C$42),"Yes",IF(B26>'A - Contractor Summary'!$C$42,"No","Needs Review"))) ->  | M26: No | N26: 0 | O26: 0
G27: 0 | I27: 0 | J27: N/A | K27: =IF(AND(B27>='A - Contractor Summary'!$C$36,B27<='A - Contractor Summary'!$C$38),"Yes",IF(B27<'A - Contractor Summary'!$C$36,"No",IF(B27>'A - Contractor Summary'!$C$39,"",""))) -> No | L27: =IF(OR(K27="Yes",K27="No")*AND(B27<'A - Contractor Summary'!$C$39),"",IF(AND(B27>'A - Contractor Summary'!$C$39,B27<'A - Contractor Summary'!$C$42),"Yes",IF(B27>'A - Contractor Summary'!$C$42,"No","Needs Review"))) ->  | M27: No | N27: 0 | O27: 0
G28: 0 | I28: 0 | J28: N/A | K28: =IF(AND(B28>='A - Contractor Summary'!$C$36,B28<='A - Contractor Summary'!$C$38),"Yes",IF(B28<'A - Contractor Summary'!$C$36,"No",IF(B28>'A - Contractor Summary'!$C$39,"",""))) -> No | L28: =IF(OR(K28="Yes",K28="No")*AND(B28<'A - Contractor Summary'!$C$39),"",IF(AND(B28>'A - Contractor Summary'!$C$39,B28<'A - Contractor Summary'!$C$42),"Yes",IF(B28>'A - Contractor Summary'!$C$42,"No","Needs Review"))) ->  | M28: No | N28: 0 | O28: 0
G29: 0 | I29: 0 | J29: N/A | K29: =IF(AND(B29>='A - Contractor Summary'!$C$36,B29<='A - Contractor Summary'!$C$38),"Yes",IF(B29<'A - Contractor Summary'!$C$36,"No",IF(B29>'A - Contractor Summary'!$C$39,"",""))) -> No | L29: =IF(OR(K29="Yes",K29="No")*AND(B29<'A - Contractor Summary'!$C$39),"",IF(AND(B29>'A - Contractor Summary'!$C$39,B29<'A - Contractor Summary'!$C$42),"Yes",IF(B29>'A - Contractor Summary'!$C$42,"No","Needs Review"))) ->  | M29: No | N29: 0 | O29: 0
G30: 0 | I30: 0 | J30: N/A | K30: =IF(AND(B30>='A - Contractor Summary'!$C$36,B30<='A - Contractor Summary'!$C$38),"Yes",IF(B30<'A - Contractor Summary'!$C$36,"No",IF(B30>'A - Contractor Summary'!$C$39,"",""))) -> No | L30: =IF(OR(K30="Yes",K30="No")*AND(B30<'A - Contractor Summary'!$C$39),"",IF(AND(B30>'A - Contractor Summary'!$C$39,B30<'A - Contractor Summary'!$C$42),"Yes",IF(B30>'A - Contractor Summary'!$C$42,"No","Needs Review"))) ->  | M30: No | N30: 0 | O30: 0
G31: 0 | I31: 0 | J31: N/A | K31: =IF(AND(B31>='A - Contractor Summary'!$C$36,B31<='A - Contractor Summary'!$C$38),"Yes",IF(B31<'A - Contractor Summary'!$C$36,"No",IF(B31>'A - Contractor Summary'!$C$39,"",""))) -> No | L31: =IF(OR(K31="Yes",K31="No")*AND(B31<'A - Contractor Summary'!$C$39),"",IF(AND(B31>'A - Contractor Summary'!$C$39,B31<'A - Contractor Summary'!$C$42),"Yes",IF(B31>'A - Contractor Summary'!$C$42,"No","Needs Review"))) ->  | M31: No | N31: 0 | O31: 0
G32: 0 | I32: 0 | J32: N/A | K32: =IF(AND(B32>='A - Contractor Summary'!$C$36,B32<='A - Contractor Summary'!$C$38),"Yes",IF(B32<'A - Contractor Summary'!$C$36,"No",IF(B32>'A - Contractor Summary'!$C$39,"",""))) -> No | L32: =IF(OR(K32="Yes",K32="No")*AND(B32<'A - Contractor Summary'!$C$39),"",IF(AND(B32>'A - Contractor Summary'!$C$39,B32<'A - Contractor Summary'!$C$42),"Yes",IF(B32>'A - Contractor Summary'!$C$42,"No","Needs Review"))) ->  | M32: No | N32: 0 | O32: 0
G33: 0 | I33: 0 | J33: N/A | K33: =IF(AND(B33>='A - Contractor Summary'!$C$36,B33<='A - Contractor Summary'!$C$38),"Yes",IF(B33<'A - Contractor Summary'!$C$36,"No",IF(B33>'A - Contractor Summary'!$C$39,"",""))) -> No | L33: =IF(OR(K33="Yes",K33="No")*AND(B33<'A - Contractor Summary'!$C$39),"",IF(AND(B33>'A - Contractor Summary'!$C$39,B33<'A - Contractor Summary'!$C$42),"Yes",IF(B33>'A - Contractor Summary'!$C$42,"No","Needs Review"))) ->  | M33: No | N33: 0 | O33: 0
G34: 0 | I34: 0 | J34: N/A | K34: =IF(AND(B34>='A - Contractor Summary'!$C$36,B34<='A - Contractor Summary'!$C$38),"Yes",IF(B34<'A - Contractor Summary'!$C$36,"No",IF(B34>'A - Contractor Summary'!$C$39,"",""))) -> No | L34: =IF(OR(K34="Yes",K34="No")*AND(B34<'A - Contractor Summary'!$C$39),"",IF(AND(B34>'A - Contractor Summary'!$C$39,B34<'A - Contractor Summary'!$C$42),"Yes",IF(B34>'A - Contractor Summary'!$C$42,"No","Needs Review"))) ->  | M34: No | N34: 0 | O34: 0
G35: 0 | I35: 0 | J35: N/A | K35: =IF(AND(B35>='A - Contractor Summary'!$C$36,B35<='A - Contractor Summary'!$C$38),"Yes",IF(B35<'A - Contractor Summary'!$C$36,"No",IF(B35>'A - Contractor Summary'!$C$39,"",""))) -> No | L35: =IF(OR(K35="Yes",K35="No")*AND(B35<'A - Contractor Summary'!$C$39),"",IF(AND(B35>'A - Contractor Summary'!$C$39,B35<'A - Contractor Summary'!$C$42),"Yes",IF(B35>'A - Contractor Summary'!$C$42,"No","Needs Review"))) ->  | M35: No | N35: 0 | O35: 0
G36: =SUM(G17:G35) -> 0 | I36: =SUM(I17:I35) -> 0 | N36: =IFERROR(SUM(N17:N35),0) -> 0 | O36: =IFERROR(SUM(O17:O35),0) -> 0 | P36: =SUM(P17:P35) -> 0 | Q36: =SUM(Q17:Q35) -> 0 | R36: =O36-P36-Q36 -> 0 | S36: check (a)
B39: Tickmark Explanation:

Sheet H - Mileage
B2: Mileage Charges
B4: Test Plan: (A) Obtain support of individual mileage charged (Typically a rate and mileage included on invoice). (B) Ensure charges fall between the dates the vendor was mobilized and the date they arrived. (C) Ensure charges are prior to the date the vendor arrived home or was released to another utility. (D) Ensure number of miles charged deemed reasonable based on vendor location (recalculated per 'A - Contractor Summary' tab). (E) Ensure the location of charge was reasonable (If mobilizing, charges should be related to travelling to TECO Service area, and home, if demobilizing). (F) Determine the amount(s) to be reviewed, allowed and/or disallowed. (G) For charges which required further review, document review and include why it was determined to be allowed/disallowed via a tickmark.
B10: Rx | C10: Recalculated.
B11: a | C11: Check figure should equal $0. Cell will appear yellow if discrepancies are noted.
C13: A | L13: Rx | M13: B | N13: C | O13: D | P13: E | Q13: F | T13: G
B14: Support Reviewed | M14: Conclusions
B15: # | C15: Type of Support | D15: Company | E15: Equipment Name | F15: Equipment ID | G15: Crew | H15: Date | I15: Location | J15: Miles Charged | K15: $ / Mile (Rate) | L15: Total Charge | M15: Reasonable based on Mobilization date(s) | N15: Reasonable based on Demobilization date(s) | O15: Number of Miles Charged Reasonable | P15: Locations Reasonable | Q15: Conclusion | R15: $ Allowable Charge | S15: $ To Be Reviewed | T15: Reviewed - Allowable Charge | U15: Reviewed - Unallowable Charge | V15: Tickmarks
B16: 1 | C16: Spreadsheet | D16: Vendor No. 3 | E16: Pickup Mileage | F16: 614-3521 | G16: 50937 | H16: 2018-10-19 | I16: Marrianna FL | J16: 345 | K16: =VLOOKUP(E16,'C.1 - Rate Sheets'!H15:I30,2,FALSE) -> 0.97 | L16: =J16*K16 -> 334.65 | M16: =IF(AND(H16>='A - Contractor Summary'!$C$36,H16<='A - Contractor Summary'!$C$38),"Yes",IF(H16<'A - Contractor Summary'!$C$36,"No",IF(H16>'A - Contractor Summary'!$C$39,"",""))) -> Yes | N16: =IF(OR(M16="Yes",M16="No")*AND(H16<'A - Contractor Summary'!$C$39),"",IF(AND(H16>'A - Contractor Summary'!$C$39,H16<'A - Contractor Summary'!$C$42),"Yes",IF(H16>'A - Contractor Summary'!$C$42,"No","Needs Review"))) ->  | O16: =IF(AND(J16>PRODUCT('A - Contractor Summary'!$C$29,0.85),J16<PRODUCT('A - Contractor Summary'!$C$29,1.15)),"Yes","No") -> Yes | Q16: =IF(AND(P16="Yes",O16="Yes")*OR(N16="Yes",M16="Yes"),"Yes",IF(OR(M16="No",N16="No",P16="No",O16="No"),"No","Needs Review")) -> Needs Review | R16: =IF(Q16="Yes",L16,0) -> 0 | S16: =IF(Q16="Needs Review",L16,0) -> 334.65 | T16: =+L16 -> 334.65 | V16: 1
B17: 2 | C17: Spreadsheet | D17: Vendor No. 3 | E17: Pickup Mileage | F17: 602-0501 | G17: 50937 | H17: 2018-10-19 | I17: Marrianna FL | J17: 5 | K17: =VLOOKUP(E17,'C.1 - Rate Sheets'!H16:I31,2,FALSE) -> 0.97 | L17: 4.85 | M17: =IF(AND(H17>='A - Contractor Summary'!$C$36,H17<='A - Contractor Summary'!$C$38),"Yes",IF(H17<'A - Contractor Summary'!$C$36,"No",IF(H17>'A - Contractor Summary'!$C$39,"",""))) -> Yes | N17: =IF(OR(M17="Yes",M17="No")*AND(H17<'A - Contractor Summary'!$C$39),"",IF(AND(H17>'A - Contractor Summary'!$C$39,H17<'A - Contractor Summary'!$C$42),"Yes",IF(H17>'A - Contractor Summary'!$C$42,"No","Needs Review"))) ->  | O17: =IF(AND(J17>PRODUCT('A - Contractor Summary'!$C$29,0.85),J17<PRODUCT('A - Contractor Summary'!$C$29,1.15)),"Yes","No") -> No | Q17: No | R17: 0 | S17: 0 | T17: =+L17 -> 4.85 | V17: 1
B18: 3 | C18: Spreadsheet | D18: Vendor No. 3 | E18: Lift Mileage | F18: 896-8383 | G18: 50937 | H18: 2018-10-19 | I18: Marrianna FL | J18: 345 | K18: =VLOOKUP(E18,'C.1 - Rate Sheets'!H17:I32,2,FALSE) -> 1.98 | L18: 683.1 | M18: =IF(AND(H18>='A - Contractor Summary'!$C$36,H18<='A - Contractor Summary'!$C$38),"Yes",IF(H18<'A - Contractor Summary'!$C$36,"No",IF(H18>'A - Contractor Summary'!$C$39,"",""))) -> Yes | N18: =IF(OR(M18="Yes",M18="No")*AND(H18<'A - Contractor Summary'!$C$39),"",IF(AND(H18>'A - Contractor Summary'!$C$39,H18<'A - Contractor Summary'!$C$42),"Yes",IF(H18>'A - Contractor Summary'!$C$42,"No","Needs Review"))) ->  | O18: =IF(AND(J18>PRODUCT('A - Contractor Summary'!$C$29,0.85),J18<PRODUCT('A - Contractor Summary'!$C$29,1.15)),"Yes","No") -> Yes | Q18: Needs Review | R18: 0 | S18: 683.1 | T18: 683.1 | V18: 1
B19: 4 | C19: Spreadsheet | D19: Vendor No. 3 | E19: Lift Mileage | F19: 895-0743 | G19: 50937 | H19: 2018-10-19 | I19: Marrianna FL | J19: 345 | K19: =VLOOKUP(E19,'C.1 - Rate Sheets'!H18:I33,2,FALSE) -> 1.98 | L19: 683.1 | M19: =IF(AND(H19>='A - Contractor Summary'!$C$36,H19<='A - Contractor Summary'!$C$38),"Yes",IF(H19<'A - Contractor Summary'!$C$36,"No",IF(H19>'A - Contractor Summary'!$C$39,"",""))) -> Yes | N19: =IF(OR(M19="Yes",M19="No")*AND(H19<'A - Contractor Summary'!$C$39),"",IF(AND(H19>'A - Contractor Summary'!$C$39,H19<'A - Contractor Summary'!$C$42),"Yes",IF(H19>'A - Contractor Summary'!$C$42,"No","Needs Review"))) ->  | O19: =IF(AND(J19>PRODUCT('A - Contractor Summary'!$C$29,0.85),J19<PRODUCT('A - Contractor Summary'!$C$29,1.15)),"Yes","No") -> Yes | Q19: Needs Review | R19: 0 | S19: 683.1 | T19: 683.1 | V19: 1
B20: 5 | C20: Spreadsheet | D20: Vendor No. 3 | E20: Pickup Mileage | F20: 632-8575 | G20: 50937 | H20: 2018-10-19 | I20: Marrianna FL | J20: 345 | K20: =VLOOKUP(E20,'C.1 - Rate Sheets'!H19:I34,2,FALSE) -> 0.97 | L20: 334.65 | M20: =IF(AND(H20>='A - Contractor Summary'!$C$36,H20<='A - Contractor Summary'!$C$38),"Yes",IF(H20<'A - Contractor Summary'!$C$36,"No",IF(H20>'A - Contractor Summary'!$C$39,"",""))) -> Yes | N20: =IF(OR(M20="Yes",M20="No")*AND(H20<'A - Contractor Summary'!$C$39),"",IF(AND(H20>'A - Contractor Summary'!$C$39,H20<'A - Contractor Summary'!$C$42),"Yes",IF(H20>'A - Contractor Summary'!$C$42,"No","Needs Review"))) ->  | O20: =IF(AND(J20>PRODUCT('A - Contractor Summary'!$C$29,0.85),J20<PRODUCT('A - Contractor Summary'!$C$29,1.15)),"Yes","No") -> Yes | Q20: Needs Review | R20: 0 | S20: 334.65 | T20: 334.65 | V20: 1
B21: 6 | C21: Spreadsheet | D21: Vendor No. 3 | E21: Pickup Mileage | F21: 632-5524 | G21: 50399 | H21: 2018-10-19 | I21: Marrianna FL | J21: 310 | K21: =VLOOKUP(E21,'C.1 - Rate Sheets'!H20:I35,2,FALSE) -> 0.97 | L21: 300.7 | M21: =IF(AND(H21>='A - Contractor Summary'!$C$36,H21<='A - Contractor Summary'!$C$38),"Yes",IF(H21<'A - Contractor Summary'!$C$36,"No",IF(H21>'A - Contractor Summary'!$C$39,"",""))) -> Yes | N21: =IF(OR(M21="Yes",M21="No")*AND(H21<'A - Contractor Summary'!$C$39),"",IF(AND(H21>'A - Contractor Summary'!$C$39,H21<'A - Contractor Summary'!$C$42),"Yes",IF(H21>'A - Contractor Summary'!$C$42,"No","Needs Review"))) ->  | O21: =IF(AND(J21>PRODUCT('A - Contractor Summary'!$C$29,0.85),J21<PRODUCT('A - Contractor Summary'!$C$29,1.15)),"Yes","No") -> Yes | Q21: Needs Review | R21: 0 | S21: 300.7 | T21: 300.7 | V21: 1
B22: 7 | C22: Spreadsheet | D22: Vendor No. 3 | E22: Lift Mileage | F22: 897-3887 | G22: 50900 | H22: 2018-10-19 | I22: Marrianna FL | J22: 310 | K22: =VLOOKUP(E22,'C.1 - Rate Sheets'!H21:I36,2,FALSE) -> 1.98 | L22: 613.8 | M22: =IF(AND(H22>='A - Contractor Summary'!$C$36,H22<='A - Contractor Summary'!$C$38),"Yes",IF(H22<'A - Contractor Summary'!$C$36,"No",IF(H22>'A - Contractor Summary'!$C$39,"",""))) -> Yes | N22: =IF(OR(M22="Yes",M22="No")*AND(H22<'A - Contractor Summary'!$C$39),"",IF(AND(H22>'A - Contractor Summary'!$C$39,H22<'A - Contractor Summary'!$C$42),"Yes",IF(H22>'A - Contractor Summary'!$C$42,"No","Needs Review"))) ->  | O22: =IF(AND(J22>PRODUCT('A - Contractor Summary'!$C$29,0.85),J22<PRODUCT('A - Contractor Summary'!$C$29,1.15)),"Yes","No") -> Yes | Q22: Needs Review | R22: 0 | S22: 613.8 | T22: 613.8 | V22: 1
B23: 8 | C23: Spreadsheet | D23: Vendor No. 3 | E23: Lift Mileage | F23: 869-2522 | G23: 50900 | H23: 2018-10-19 | I23: Marrianna FL | J23: 310 | K23: =VLOOKUP(E23,'C.1 - Rate Sheets'!H22:I37,2,FALSE) -> 1.98 | L23: 613.8 | M23: =IF(AND(H23>='A - Contractor Summary'!$C$36,H23<='A - Contractor Summary'!$C$38),"Yes",IF(H23<'A - Contractor Summary'!$C$36,"No",IF(H23>'A - Contractor Summary'!$C$39,"",""))) -> Yes | N23: =IF(OR(M23="Yes",M23="No")*AND(H23<'A - Contractor Summary'!$C$39),"",IF(AND(H23>'A - Contractor Summary'!$C$39,H23<'A - Contractor Summary'!$C$42),"Yes",IF(H23>'A - Contractor Summary'!$C$42,"No","Needs Review"))) ->  | O23: =IF(AND(J23>PRODUCT('A - Contractor Summary'!$C$29,0.85),J23<PRODUCT('A - Contractor Summary'!$C$29,1.15)),"Yes","No") -> Yes | Q23: Needs Review | R23: 0 | S23: 613.8 | T23: 613.8 | V23: 1
B24: 9 | C24: Spreadsheet | D24: Vendor No. 3 | E24: Lift Mileage | F24: 865-2550 | G24: 50900 | H24: 2018-10-19 | I24: Marrianna FL | J24: 310 | K24: =VLOOKUP(E24,'C.1 - Rate Sheets'!H23:I38,2,FALSE) -> 1.98 | L24: 613.8 | M24: =IF(AND(H24>='A - Contractor Summary'!$C$36,H24<='A - Contractor Summary'!$C$38),"Yes",IF(H24<'A - Contractor Summary'!$C$36,"No",IF(H24>'A - Contractor Summary'!$C$39,"",""))) -> Yes | N24: =IF(OR(M24="Yes",M24="No")*AND(H24<'A - Contractor Summary'!$C$39),"",IF(AND(H24>'A - Contractor Summary'!$C$39,H24<'A - Contractor Summary'!$C$42),"Yes",IF(H24>'A - Contractor Summary'!$C$42,"No","Needs Review"))) ->  | O24: =IF(AND(J24>PRODUCT('A - Contractor Summary'!$C$29,0.85),J24<PRODUCT('A - Contractor Summary'!$C$29,1.15)),"Yes","No") -> Yes | Q24: Needs Review | R24: 0 | S24: 613.8 | T24: 613.8 | V24: 1
B25: 10 | C25: Spreadsheet | D25: Vendor No. 3 | E25: Lift Mileage | F25: 865-8219 | G25: 50900 | H25: 2018-10-19 | I25: Marrianna FL | J25: 310 | K25: =VLOOKUP(E25,'C.1 - Rate Sheets'!H:I,2,FALSE) -> 1.98 | L25: 613.8 | M25: =IF(AND(H25>='A - Contractor Summary'!$C$36,H25<='A - Contractor Summary'!$C$38),"Yes",IF(H25<'A - Contractor Summary'!$C$36,"No",IF(H25>'A - Contractor Summary'!$C$39,"",""))) -> Yes | N25: =IF(OR(M25="Yes",M25="No")*AND(H25<'A - Contractor Summary'!$C$39),"",IF(AND(H25>'A - Contractor Summary'!$C$39,H25<'A - Contractor Summary'!$C$42),"Yes",IF(H25>'A - Contractor Summary'!$C$42,"No","Needs Review"))) ->  | O25: =IF(AND(J25>PRODUCT('A - Contractor Summary'!$C$29,0.85),J25<PRODUCT('A - Contractor Summary'!$C$29,1.15)),"Yes","No") -> Yes | Q25: Needs Review | R25: 0 | S25: 613.8 | T25: 613.8 | V25: 1
B26: 11 | C26: Spreadsheet | D26: Vendor No. 3 | E26: Lift Mileage | F26: 865-9076 | G26: 50900 | H26: 2018-10-19 | I26: Marrianna FL | J26: 310 | K26: =VLOOKUP(E26,'C.1 - Rate Sheets'!H:I,2,FALSE) -> 1.98 | L26: 613.8 | M26: =IF(AND(H26>='A - Contractor Summary'!$C$36,H26<='A - Contractor Summary'!$C$38),"Yes",IF(H26<'A - Contractor Summary'!$C$36,"No",IF(H26>'A - Contractor Summary'!$C$39,"",""))) -> Yes | N26: =IF(OR(M26="Yes",M26="No")*AND(H26<'A - Contractor Summary'!$C$39),"",IF(AND(H26>'A - Contractor Summary'!$C$39,H26<'A - Contractor Summary'!$C$42),"Yes",IF(H26>'A - Contractor Summary'!$C$42,"No","Needs Review"))) ->  | O26: =IF(AND(J26>PRODUCT('A - Contractor Summary'!$C$29,0.85),J26<PRODUCT('A - Contractor Summary'!$C$29,1.15)),"Yes","No") -> Yes | Q26: Needs Review | R26: 0 | S26: 613.8 | T26: 613.8 | V26: 1
B27: 12 | C27: Spreadsheet | D27: Vendor No. 3 | E27: Lift Mileage | F27: 897-3204 | G27: 50900 | H27: 2018-10-19 | I27: Marrianna FL | J27: 310 | K27: =VLOOKUP(E27,'C.1 - Rate Sheets'!H:I,2,FALSE) -> 1.98 | L27: 613.8 | M27: =IF(AND(H27>='A - Contractor Summary'!$C$36,H27<='A - Contractor Summary'!$C$38),"Yes",IF(H27<'A - Contractor Summary'!$C$36,"No",IF(H27>'A - Contractor Summary'!$C$39,"",""))) -> Yes | N27: =IF(OR(M27="Yes",M27="No")*AND(H27<'A - Contractor Summary'!$C$39),"",IF(AND(H27>'A - Contractor Summary'!$C$39,H27<'A - Contractor Summary'!$C$42),"Yes",IF(H27>'A - Contractor Summary'!$C$42,"No","Needs Review"))) ->  | O27: =IF(AND(J27>PRODUCT('A - Contractor Summary'!$C$29,0.85),J27<PRODUCT('A - Contractor Summary'!$C$29,1.15)),"Yes","No") -> Yes | Q27: Needs Review | R27: 0 | S27: 613.8 | T27: 613.8 | V27: 1
B28: 13 | C28: Spreadsheet | D28: Vendor No. 3 | E28: Pickup Mileage | F28: 614-7588 | G28: 55392 | H28: 2018-10-19 | I28: Marrianna FL | J28: 525 | K28: =VLOOKUP(E28,'C.1 - Rate Sheets'!H:I,2,FALSE) -> 0.97 | L28: 509.25 | M28: =IF(AND(H28>='A - Contractor Summary'!$C$36,H28<='A - Contractor Summary'!$C$38),"Yes",IF(H28<'A - Contractor Summary'!$C$36,"No",IF(H28>'A - Contractor Summary'!$C$39,"",""))) -> Yes | N28: =IF(OR(M28="Yes",M28="No")*AND(H28<'A - Contractor Summary'!$C$39),"",IF(AND(H28>'A - Contractor Summary'!$C$39,H28<'A - Contractor Summary'!$C$42),"Yes",IF(H28>'A - Contractor Summary'!$C$42,"No","Needs Review"))) ->  | O28: =IF(AND(J28>PRODUCT('A - Contractor Summary'!$C$29,0.85),J28<PRODUCT('A - Contractor Summary'!$C$29,1.15)),"Yes","No") -> No | Q28: No | R28: 0 | S28: 0 | T28: 509.25 | V28: 1
B29: 16 | C29: Spreadsheet | D29: Vendor No. 3 | E29: Lift Mileage | F29: 895-8778 | G29: 55921 | H29: 2018-11-03 | I29: Marrianna FL | J29: 525 | K29: =VLOOKUP(E29,'C.1 - Rate Sheets'!H:I,2,FALSE) -> 1.98 | L29: 1039.5 | M29: =IF(AND(H29>='A - Contractor Summary'!$C$36,H29<='A - Contractor Summary'!$C$38),"Yes",IF(H29<'A - Contractor Summary'!$C$36,"No",IF(H29>'A - Contractor Summary'!$C$39,"",""))) ->  | N29: =IF(OR(M29="Yes",M29="No")*AND(H29<'A - Contractor Summary'!$C$39),"",IF(AND(H29>'A - Contractor Summary'!$C$39,H29<'A - Contractor Summary'!$C$42),"Yes",IF(H29>'A - Contractor Summary'!$C$42,"No","Needs Review"))) -> No | O29: =IF(AND(J29>PRODUCT('A - Contractor Summary'!$C$29,0.85),J29<PRODUCT('A - Contractor Summary'!$C$29,1.15)),"Yes","No") -> No | Q29: No | R29: 0 | S29: 0 | T29: 1039.5 | V29: 1
B30: 17 | C30: Spreadsheet | D30: Vendor No. 3 | E30: Lift Mileage | F30: 895-0736 | G30: 55921 | H30: 2018-11-03 | I30: Marrianna FL | J30: 525 | K30: =VLOOKUP(E30,'C.1 - Rate Sheets'!H:I,2,FALSE) -> 1.98 | L30: 1039.5 | M30: =IF(AND(H30>='A - Contractor Summary'!$C$36,H30<='A - Contractor Summary'!$C$38),"Yes",IF(H30<'A - Contractor Summary'!$C$36,"No",IF(H30>'A - Contractor Summary'!$C$39,"",""))) ->  | N30: =IF(OR(M30="Yes",M30="No")*AND(H30<'A - Contractor Summary'!$C$39),"",IF(AND(H30>'A - Contractor Summary'!$C$39,H30<'A - Contractor Summary'!$C$42),"Yes",IF(H30>'A - Contractor Summary'!$C$42,"No","Needs Review"))) -> No | O30: =IF(AND(J30>PRODUCT('A - Contractor Summary'!$C$29,0.85),J30<PRODUCT('A - Contractor Summary'!$C$29,1.15)),"Yes","No") -> No | Q30: No | R30: 0 | S30: 0 | T30: 1039.5 | V30: 1
B31: 18 | C31: Spreadsheet | D31: Vendor No. 3 | E31: Lift Mileage | F31: 897-2576 | G31: 55921 | H31: 2018-11-03 | I31: Marrianna FL | J31: 525 | K31: =VLOOKUP(E31,'C.1 - Rate Sheets'!H:I,2,FALSE) -> 1.98 | L31: 1039.5 | M31: =IF(AND(H31>='A - Contractor Summary'!$C$36,H31<='A - Contractor Summary'!$C$38),"Yes",IF(H31<'A - Contractor Summary'!$C$36,"No",IF(H31>'A - Contractor Summary'!$C$39,"",""))) ->  | N31: =IF(OR(M31="Yes",M31="No")*AND(H31<'A - Contractor Summary'!$C$39),"",IF(AND(H31>'A - Contractor Summary'!$C$39,H31<'A - Contractor Summary'!$C$42),"Yes",IF(H31>'A - Contractor Summary'!$C$42,"No","Needs Review"))) -> No | O31: =IF(AND(J31>PRODUCT('A - Contractor Summary'!$C$29,0.85),J31<PRODUCT('A - Contractor Summary'!$C$29,1.15)),"Yes","No") -> No | Q31: No | R31: =IF(Q31="Yes",#REF!,0) -> 0 | S31: 0 | T31: 1039.5 | V31: 1
